Workbook

Sheet Raw Voice stats (hidden)
C2: Telekom Srbija a.d. | D2: Telenor Serbia | E2: Vip mobile d.o.o.
B3: Call setup time to ALERTING (std) | C3: 1.057716759 | D3: 1.384140317 | E3: 0.3695460136
B4: Call setup time to ALERTING (min) | C4: 1.347 | D4: 0.889 | E4: 1.042
B5: Call setup time to ALERTING (max) | C5: 10.107 | D5: 13.052 | E5: 4.62
B6: Call setup time to ALERTING (avg) | C6: 1.914442478 | D6: 1.71506 | E6: 1.494734694
B7: Call attempt | C7: 225 | D7: 199 | E7: 196
B8: Call attempt excluded | C8: 0 | D8: 0 | E8: 1
B9: Call attempt failure | C9: 0 | D9: 0 | E9: 1
B10: Call connected | C10: 225 | D10: 199 | E10: 195
B11: Call dropped | C11: 0 | D11: 2 | E11: 0
B12: Call attempt excluded | C12: 0 | D12: 0 | E12: 0
B13: LTE IMS voice call connected | C13: 215 | D13: 192 | E13: 193
B14: CSFB call connected | C14: 0 | D14: 1 | E14: 1
B15: Call connected (GSM) | C15: 0 | D15: 0 | E15: 0
B16: Call connected (UMTS) | C16: 10 | D16: 7 | E16: 1
B17: CSFB call connected (GSM) | C17: 0 | D17: 0 | E17: 0
B18: CSFB call connected (UMTS) | C18: 0 | D18: 1 | E18: 1

Sheet Raw CST distribution (hidden)
B2: Call setup time -distribution | K2: Call setup time per operator (CDF source) | L2: =IF(ISBLANK('Raw measurement info'!$W$6),"",'Raw measurement info'!$W$6) -> Telekom Srbija a.d. | M2: =IF(ISBLANK('Raw measurement info'!$W$7),"",'Raw measurement info'!$W$7) -> Telenor Serbia | N2: =IF(ISBLANK('Raw measurement info'!$W$8),"",'Raw measurement info'!$W$8) -> Vip mobile d.o.o.
B3: lower_bound | C3: upper_bound | D3: cumulation | E3: cumulation_sampled | F3: density | G3: density_sampled | H3: group | K3: =B5 -> 0 | L3: =IF(AND(L$2<>"",'Voice Call'!C$8>0),(100-SUMIFS($D:$D,$B:$B,$K3,$H:$H,L$2))/100,"") -> 0 | M3: =IF(AND(M$2<>"",'Voice Call'!D$8>0),(100-SUMIFS($D:$D,$B:$B,$K3,$H:$H,M$2))/100,"") -> 0 | N3: =IF(AND(N$2<>"",'Voice Call'!E$8>0),(100-SUMIFS($D:$D,$B:$B,$K3,$H:$H,N$2))/100,"") -> 0
B4: ... | C4: 0 | D4: 100 | E4: 113 | F4: 0 | G4: 0 | H4: Telekom Srbija a.d. | K4: 5 | L4: =IF(AND(L$2<>"",'Voice Call'!C$8>0),(100-SUMIFS($D:$D,$B:$B,$K4,$H:$H,L$2))/100,"") -> -0.01769911504 | M4: =IF(AND(M$2<>"",'Voice Call'!D$8>0),(100-SUMIFS($D:$D,$B:$B,$K4,$H:$H,M$2))/100,"") -> -0.03 | N4: =IF(AND(N$2<>"",'Voice Call'!E$8>0),(100-SUMIFS($D:$D,$B:$B,$K4,$H:$H,N$2))/100,"") -> 0
B5: 0 | C5: 5 | D5: 100 | E5: 113 | F5: 0 | G5: 0 | H5: Telekom Srbija a.d. | K5: 1 | L5: =IF(AND(L$2<>"",'Voice Call'!C$8>0),(100-SUMIFS($D:$D,$B:$B,$K5,$H:$H,L$2))/100,"") -> 0 | M5: =IF(AND(M$2<>"",'Voice Call'!D$8>0),(100-SUMIFS($D:$D,$B:$B,$K5,$H:$H,M$2))/100,"") -> 0.01 | N5: =IF(AND(N$2<>"",'Voice Call'!E$8>0),(100-SUMIFS($D:$D,$B:$B,$K5,$H:$H,N$2))/100,"") -> 0
B6: 5 | C6: 1 | D6: 100 | E6: 113 | F6: 0 | G6: 0 | H6: Telekom Srbija a.d. | K6: 15 | L6: =IF(AND(L$2<>"",'Voice Call'!C$8>0),(100-SUMIFS($D:$D,$B:$B,$K6,$H:$H,L$2))/100,"") -> 0.2477876106 | M6: =IF(AND(M$2<>"",'Voice Call'!D$8>0),(100-SUMIFS($D:$D,$B:$B,$K6,$H:$H,M$2))/100,"") -> 0.77 | N6: =IF(AND(N$2<>"",'Voice Call'!E$8>0),(100-SUMIFS($D:$D,$B:$B,$K6,$H:$H,N$2))/100,"") -> 0.6428571429
B7: 1 | C7: 15 | D7: 100 | E7: 113 | F7: 24.77876106 | G7: 28 | H7: Telekom Srbija a.d. | K7: 2 | L7: =IF(AND(L$2<>"",'Voice Call'!C$8>0),(100-SUMIFS($D:$D,$B:$B,$K7,$H:$H,L$2))/100,"") -> 0.8584070796 | M7: =IF(AND(M$2<>"",'Voice Call'!D$8>0),(100-SUMIFS($D:$D,$B:$B,$K7,$H:$H,M$2))/100,"") -> 0.93 | N7: =IF(AND(N$2<>"",'Voice Call'!E$8>0),(100-SUMIFS($D:$D,$B:$B,$K7,$H:$H,N$2))/100,"") -> 0.9693877551
B8: 15 | C8: 2 | D8: 75.22123894 | E8: 85 | F8: 61.0619469 | G8: 69 | H8: Telekom Srbija a.d. | K8: 25 | L8: =IF(AND(L$2<>"",'Voice Call'!C$8>0),(100-SUMIFS($D:$D,$B:$B,$K8,$H:$H,L$2))/100,"") -> 0.9115044248 | M8: =IF(AND(M$2<>"",'Voice Call'!D$8>0),(100-SUMIFS($D:$D,$B:$B,$K8,$H:$H,M$2))/100,"") -> 0.93 | N8: =IF(AND(N$2<>"",'Voice Call'!E$8>0),(100-SUMIFS($D:$D,$B:$B,$K8,$H:$H,N$2))/100,"") -> 0.9897959184
B9: 2 | C9: 25 | D9: 14.15929204 | E9: 16 | F9: 5.309734513 | G9: 6 | H9: Telekom Srbija a.d. | K9: 3 | L9: =IF(AND(L$2<>"",'Voice Call'!C$8>0),(100-SUMIFS($D:$D,$B:$B,$K9,$H:$H,L$2))/100,"") -> 0.9115044248 | M9: =IF(AND(M$2<>"",'Voice Call'!D$8>0),(100-SUMIFS($D:$D,$B:$B,$K9,$H:$H,M$2))/100,"") -> 0.94 | N9: =IF(AND(N$2<>"",'Voice Call'!E$8>0),(100-SUMIFS($D:$D,$B:$B,$K9,$H:$H,N$2))/100,"") -> 0.9897959184
B10: 25 | C10: 3 | D10: 8.849557522 | E10: 10 | F10: 0 | G10: 0 | H10: Telekom Srbija a.d. | K10: 35 | L10: =IF(AND(L$2<>"",'Voice Call'!C$8>0),(100-SUMIFS($D:$D,$B:$B,$K10,$H:$H,L$2))/100,"") -> 0.9292035398 | M10: =IF(AND(M$2<>"",'Voice Call'!D$8>0),(100-SUMIFS($D:$D,$B:$B,$K10,$H:$H,M$2))/100,"") -> 0.94 | N10: =IF(AND(N$2<>"",'Voice Call'!E$8>0),(100-SUMIFS($D:$D,$B:$B,$K10,$H:$H,N$2))/100,"") -> 0.9897959184
B11: 3 | C11: 35 | D11: 8.849557522 | E11: 10 | F11: 1.769911504 | G11: 2 | H11: Telekom Srbija a.d. | K11: 4 | L11: =IF(AND(L$2<>"",'Voice Call'!C$8>0),(100-SUMIFS($D:$D,$B:$B,$K11,$H:$H,L$2))/100,"") -> 0.9469026549 | M11: =IF(AND(M$2<>"",'Voice Call'!D$8>0),(100-SUMIFS($D:$D,$B:$B,$K11,$H:$H,M$2))/100,"") -> 0.95 | N11: =IF(AND(N$2<>"",'Voice Call'!E$8>0),(100-SUMIFS($D:$D,$B:$B,$K11,$H:$H,N$2))/100,"") -> 0.9897959184
B12: 35 | C12: 4 | D12: 7.079646018 | E12: 8 | F12: 1.769911504 | G12: 2 | H12: Telekom Srbija a.d. | K12: 45 | L12: =IF(AND(L$2<>"",'Voice Call'!C$8>0),(100-SUMIFS($D:$D,$B:$B,$K12,$H:$H,L$2))/100,"") -> 0.9734513274 | M12: =IF(AND(M$2<>"",'Voice Call'!D$8>0),(100-SUMIFS($D:$D,$B:$B,$K12,$H:$H,M$2))/100,"") -> 0.95 | N12: =IF(AND(N$2<>"",'Voice Call'!E$8>0),(100-SUMIFS($D:$D,$B:$B,$K12,$H:$H,N$2))/100,"") -> 0.9897959184
B13: 4 | C13: 45 | D13: 5.309734513 | E13: 6 | F13: 2.654867257 | G13: 3 | H13: Telekom Srbija a.d. | K13: 5 | L13: =IF(AND(L$2<>"",'Voice Call'!C$8>0),(100-SUMIFS($D:$D,$B:$B,$K13,$H:$H,L$2))/100,"") -> -0.01769911504 | M13: =IF(AND(M$2<>"",'Voice Call'!D$8>0),(100-SUMIFS($D:$D,$B:$B,$K13,$H:$H,M$2))/100,"") -> -0.03 | N13: =IF(AND(N$2<>"",'Voice Call'!E$8>0),(100-SUMIFS($D:$D,$B:$B,$K13,$H:$H,N$2))/100,"") -> 0
B14: 45 | C14: 5 | D14: 2.654867257 | E14: 3 | F14: 0.8849557522 | G14: 1 | H14: Telekom Srbija a.d. | K14: 55 | L14: =IF(AND(L$2<>"",'Voice Call'!C$8>0),(100-SUMIFS($D:$D,$B:$B,$K14,$H:$H,L$2))/100,"") -> 0.982300885 | M14: =IF(AND(M$2<>"",'Voice Call'!D$8>0),(100-SUMIFS($D:$D,$B:$B,$K14,$H:$H,M$2))/100,"") -> 0.98 | N14: =IF(AND(N$2<>"",'Voice Call'!E$8>0),(100-SUMIFS($D:$D,$B:$B,$K14,$H:$H,N$2))/100,"") -> 1
B15: 5 | C15: 55 | D15: 1.769911504 | E15: 2 | F15: 0 | G15: 0 | H15: Telekom Srbija a.d. | K15: 6 | L15: =IF(AND(L$2<>"",'Voice Call'!C$8>0),(100-SUMIFS($D:$D,$B:$B,$K15,$H:$H,L$2))/100,"") -> 0.9911504425 | M15: =IF(AND(M$2<>"",'Voice Call'!D$8>0),(100-SUMIFS($D:$D,$B:$B,$K15,$H:$H,M$2))/100,"") -> 0.98 | N15: =IF(AND(N$2<>"",'Voice Call'!E$8>0),(100-SUMIFS($D:$D,$B:$B,$K15,$H:$H,N$2))/100,"") -> 1
B16: 55 | C16: 6 | D16: 1.769911504 | E16: 2 | F16: 0.8849557522 | G16: 1 | H16: Telekom Srbija a.d. | K16: 65 | L16: =IF(AND(L$2<>"",'Voice Call'!C$8>0),(100-SUMIFS($D:$D,$B:$B,$K16,$H:$H,L$2))/100,"") -> 0.9911504425 | M16: =IF(AND(M$2<>"",'Voice Call'!D$8>0),(100-SUMIFS($D:$D,$B:$B,$K16,$H:$H,M$2))/100,"") -> 0.99 | N16: =IF(AND(N$2<>"",'Voice Call'!E$8>0),(100-SUMIFS($D:$D,$B:$B,$K16,$H:$H,N$2))/100,"") -> 1
B17: 6 | C17: 65 | D17: 0.8849557522 | E17: 1 | F17: 0 | G17: 0 | H17: Telekom Srbija a.d. | K17: 7 | L17: =IF(AND(L$2<>"",'Voice Call'!C$8>0),(100-SUMIFS($D:$D,$B:$B,$K17,$H:$H,L$2))/100,"") -> 0.9911504425 | M17: =IF(AND(M$2<>"",'Voice Call'!D$8>0),(100-SUMIFS($D:$D,$B:$B,$K17,$H:$H,M$2))/100,"") -> 0.99 | N17: =IF(AND(N$2<>"",'Voice Call'!E$8>0),(100-SUMIFS($D:$D,$B:$B,$K17,$H:$H,N$2))/100,"") -> 1
B18: 65 | C18: 7 | D18: 0.8849557522 | E18: 1 | F18: 0 | G18: 0 | H18: Telekom Srbija a.d. | K18: 75 | L18: =IF(AND(L$2<>"",'Voice Call'!C$8>0),(100-SUMIFS($D:$D,$B:$B,$K18,$H:$H,L$2))/100,"") -> 0.9911504425 | M18: =IF(AND(M$2<>"",'Voice Call'!D$8>0),(100-SUMIFS($D:$D,$B:$B,$K18,$H:$H,M$2))/100,"") -> 0.99 | N18: =IF(AND(N$2<>"",'Voice Call'!E$8>0),(100-SUMIFS($D:$D,$B:$B,$K18,$H:$H,N$2))/100,"") -> 1
B19: 7 | C19: 75 | D19: 0.8849557522 | E19: 1 | F19: 0 | G19: 0 | H19: Telekom Srbija a.d. | K19: 8 | L19: =IF(AND(L$2<>"",'Voice Call'!C$8>0),(100-SUMIFS($D:$D,$B:$B,$K19,$H:$H,L$2))/100,"") -> 0.9911504425 | M19: =IF(AND(M$2<>"",'Voice Call'!D$8>0),(100-SUMIFS($D:$D,$B:$B,$K19,$H:$H,M$2))/100,"") -> 0.99 | N19: =IF(AND(N$2<>"",'Voice Call'!E$8>0),(100-SUMIFS($D:$D,$B:$B,$K19,$H:$H,N$2))/100,"") -> 1
B20: 75 | C20: 8 | D20: 0.8849557522 | E20: 1 | F20: 0 | G20: 0 | H20: Telekom Srbija a.d. | K20: 85 | L20: =IF(AND(L$2<>"",'Voice Call'!C$8>0),(100-SUMIFS($D:$D,$B:$B,$K20,$H:$H,L$2))/100,"") -> 0.9911504425 | M20: =IF(AND(M$2<>"",'Voice Call'!D$8>0),(100-SUMIFS($D:$D,$B:$B,$K20,$H:$H,M$2))/100,"") -> 0.99 | N20: =IF(AND(N$2<>"",'Voice Call'!E$8>0),(100-SUMIFS($D:$D,$B:$B,$K20,$H:$H,N$2))/100,"") -> 1
B21: 8 | C21: 85 | D21: 0.8849557522 | E21: 1 | F21: 0 | G21: 0 | H21: Telekom Srbija a.d. | K21: 9 | L21: =IF(AND(L$2<>"",'Voice Call'!C$8>0),(100-SUMIFS($D:$D,$B:$B,$K21,$H:$H,L$2))/100,"") -> 0.9911504425 | M21: =IF(AND(M$2<>"",'Voice Call'!D$8>0),(100-SUMIFS($D:$D,$B:$B,$K21,$H:$H,M$2))/100,"") -> 0.99 | N21: =IF(AND(N$2<>"",'Voice Call'!E$8>0),(100-SUMIFS($D:$D,$B:$B,$K21,$H:$H,N$2))/100,"") -> 1
B22: 85 | C22: 9 | D22: 0.8849557522 | E22: 1 | F22: 0 | G22: 0 | H22: Telekom Srbija a.d. | K22: 95 | L22: =IF(AND(L$2<>"",'Voice Call'!C$8>0),(100-SUMIFS($D:$D,$B:$B,$K22,$H:$H,L$2))/100,"") -> 0.9911504425 | M22: =IF(AND(M$2<>"",'Voice Call'!D$8>0),(100-SUMIFS($D:$D,$B:$B,$K22,$H:$H,M$2))/100,"") -> 0.99 | N22: =IF(AND(N$2<>"",'Voice Call'!E$8>0),(100-SUMIFS($D:$D,$B:$B,$K22,$H:$H,N$2))/100,"") -> 1
B23: 9 | C23: 95 | D23: 0.8849557522 | E23: 1 | F23: 0 | G23: 0 | H23: Telekom Srbija a.d. | K23: 10 | L23: =IF(AND(L$2<>"",'Voice Call'!C$8>0),(100-SUMIFS($D:$D,$B:$B,$K23,$H:$H,L$2))/100,"") -> 0.9911504425 | M23: =IF(AND(M$2<>"",'Voice Call'!D$8>0),(100-SUMIFS($D:$D,$B:$B,$K23,$H:$H,M$2))/100,"") -> 0.99 | N23: =IF(AND(N$2<>"",'Voice Call'!E$8>0),(100-SUMIFS($D:$D,$B:$B,$K23,$H:$H,N$2))/100,"") -> 1
B24: 95 | C24: 10 | D24: 0.8849557522 | E24: 1 | F24: 0 | G24: 0 | H24: Telekom Srbija a.d. | K24: 105 | L24: =IF(AND(L$2<>"",'Voice Call'!C$8>0),(100-SUMIFS($D:$D,$B:$B,$K24,$H:$H,L$2))/100,"") -> 1 | M24: =IF(AND(M$2<>"",'Voice Call'!D$8>0),(100-SUMIFS($D:$D,$B:$B,$K24,$H:$H,M$2))/100,"") -> 0.99 | N24: =IF(AND(N$2<>"",'Voice Call'!E$8>0),(100-SUMIFS($D:$D,$B:$B,$K24,$H:$H,N$2))/100,"") -> 1
B25: 10 | C25: 105 | D25: 0.8849557522 | E25: 1 | F25: 0.8849557522 | G25: 1 | H25: Telekom Srbija a.d. | K25: 11 | L25: =IF(AND(L$2<>"",'Voice Call'!C$8>0),(100-SUMIFS($D:$D,$B:$B,$K25,$H:$H,L$2))/100,"") -> 1 | M25: =IF(AND(M$2<>"",'Voice Call'!D$8>0),(100-SUMIFS($D:$D,$B:$B,$K25,$H:$H,M$2))/100,"") -> 0.99 | N25: =IF(AND(N$2<>"",'Voice Call'!E$8>0),(100-SUMIFS($D:$D,$B:$B,$K25,$H:$H,N$2))/100,"") -> 1
B26: 105 | C26: 11 | D26: 0 | E26: 0 | F26: 0 | G26: 0 | H26: Telekom Srbija a.d. | K26: 115 | L26: =IF(AND(L$2<>"",'Voice Call'!C$8>0),(100-SUMIFS($D:$D,$B:$B,$K26,$H:$H,L$2))/100,"") -> 1 | M26: =IF(AND(M$2<>"",'Voice Call'!D$8>0),(100-SUMIFS($D:$D,$B:$B,$K26,$H:$H,M$2))/100,"") -> 0.99 | N26: =IF(AND(N$2<>"",'Voice Call'!E$8>0),(100-SUMIFS($D:$D,$B:$B,$K26,$H:$H,N$2))/100,"") -> 1
B27: 11 | C27: 115 | D27: 0 | E27: 0 | F27: 0 | G27: 0 | H27: Telekom Srbija a.d. | K27: 12 | L27: =IF(AND(L$2<>"",'Voice Call'!C$8>0),(100-SUMIFS($D:$D,$B:$B,$K27,$H:$H,L$2))/100,"") -> 1 | M27: =IF(AND(M$2<>"",'Voice Call'!D$8>0),(100-SUMIFS($D:$D,$B:$B,$K27,$H:$H,M$2))/100,"") -> 0.99 | N27: =IF(AND(N$2<>"",'Voice Call'!E$8>0),(100-SUMIFS($D:$D,$B:$B,$K27,$H:$H,N$2))/100,"") -> 1
B28: 115 | C28: 12 | D28: 0 | E28: 0 | F28: 0 | G28: 0 | H28: Telekom Srbija a.d. | K28: 125 | L28: =IF(AND(L$2<>"",'Voice Call'!C$8>0),(100-SUMIFS($D:$D,$B:$B,$K28,$H:$H,L$2))/100,"") -> 1 | M28: =IF(AND(M$2<>"",'Voice Call'!D$8>0),(100-SUMIFS($D:$D,$B:$B,$K28,$H:$H,M$2))/100,"") -> 0.99 | N28: =IF(AND(N$2<>"",'Voice Call'!E$8>0),(100-SUMIFS($D:$D,$B:$B,$K28,$H:$H,N$2))/100,"") -> 1
B29: 12 | C29: 125 | D29: 0 | E29: 0 | F29: 0 | G29: 0 | H29: Telekom Srbija a.d. | K29: 13 | L29: =IF(AND(L$2<>"",'Voice Call'!C$8>0),(100-SUMIFS($D:$D,$B:$B,$K29,$H:$H,L$2))/100,"") -> 1 | M29: =IF(AND(M$2<>"",'Voice Call'!D$8>0),(100-SUMIFS($D:$D,$B:$B,$K29,$H:$H,M$2))/100,"") -> 0.99 | N29: =IF(AND(N$2<>"",'Voice Call'!E$8>0),(100-SUMIFS($D:$D,$B:$B,$K29,$H:$H,N$2))/100,"") -> 1
B30: 125 | C30: 13 | D30: 0 | E30: 0 | F30: 0 | G30: 0 | H30: Telekom Srbija a.d. | K30: 135 | L30: =IF(AND(L$2<>"",'Voice Call'!C$8>0),(100-SUMIFS($D:$D,$B:$B,$K30,$H:$H,L$2))/100,"") -> 1 | M30: =IF(AND(M$2<>"",'Voice Call'!D$8>0),(100-SUMIFS($D:$D,$B:$B,$K30,$H:$H,M$2))/100,"") -> 1 | N30: =IF(AND(N$2<>"",'Voice Call'!E$8>0),(100-SUMIFS($D:$D,$B:$B,$K30,$H:$H,N$2))/100,"") -> 1
B31: 13 | C31: 135 | D31: 0 | E31: 0 | F31: 0 | G31: 0 | H31: Telekom Srbija a.d. | K31: 14 | L31: =IF(AND(L$2<>"",'Voice Call'!C$8>0),(100-SUMIFS($D:$D,$B:$B,$K31,$H:$H,L$2))/100,"") -> 1 | M31: =IF(AND(M$2<>"",'Voice Call'!D$8>0),(100-SUMIFS($D:$D,$B:$B,$K31,$H:$H,M$2))/100,"") -> 1 | N31: =IF(AND(N$2<>"",'Voice Call'!E$8>0),(100-SUMIFS($D:$D,$B:$B,$K31,$H:$H,N$2))/100,"") -> 1
B32: 135 | C32: 14 | D32: 0 | E32: 0 | F32: 0 | G32: 0 | H32: Telekom Srbija a.d. | K32: 145 | L32: =IF(AND(L$2<>"",'Voice Call'!C$8>0),(100-SUMIFS($D:$D,$B:$B,$K32,$H:$H,L$2))/100,"") -> 1 | M32: =IF(AND(M$2<>"",'Voice Call'!D$8>0),(100-SUMIFS($D:$D,$B:$B,$K32,$H:$H,M$2))/100,"") -> 1 | N32: =IF(AND(N$2<>"",'Voice Call'!E$8>0),(100-SUMIFS($D:$D,$B:$B,$K32,$H:$H,N$2))/100,"") -> 1
B33: 14 | C33: 145 | D33: 0 | E33: 0 | F33: 0 | G33: 0 | H33: Telekom Srbija a.d. | K33: 15 | L33: =IF(AND(L$2<>"",'Voice Call'!C$8>0),(100-SUMIFS($D:$D,$B:$B,$K33,$H:$H,L$2))/100,"") -> 0.2477876106 | M33: =IF(AND(M$2<>"",'Voice Call'!D$8>0),(100-SUMIFS($D:$D,$B:$B,$K33,$H:$H,M$2))/100,"") -> 0.77 | N33: =IF(AND(N$2<>"",'Voice Call'!E$8>0),(100-SUMIFS($D:$D,$B:$B,$K33,$H:$H,N$2))/100,"") -> 0.6428571429
B34: 145 | C34: 15 | D34: 0 | E34: 0 | F34: 0 | G34: 0 | H34: Telekom Srbija a.d. | K34: 155 | L34: =IF(AND(L$2<>"",'Voice Call'!C$8>0),(100-SUMIFS($D:$D,$B:$B,$K34,$H:$H,L$2))/100,"") -> 1 | M34: =IF(AND(M$2<>"",'Voice Call'!D$8>0),(100-SUMIFS($D:$D,$B:$B,$K34,$H:$H,M$2))/100,"") -> 1 | N34: =IF(AND(N$2<>"",'Voice Call'!E$8>0),(100-SUMIFS($D:$D,$B:$B,$K34,$H:$H,N$2))/100,"") -> 1
B35: 15 | C35: 155 | D35: 0 | E35: 0 | F35: 0 | G35: 0 | H35: Telekom Srbija a.d. | K35: 16 | L35: =IF(AND(L$2<>"",'Voice Call'!C$8>0),(100-SUMIFS($D:$D,$B:$B,$K35,$H:$H,L$2))/100,"") -> 1 | M35: =IF(AND(M$2<>"",'Voice Call'!D$8>0),(100-SUMIFS($D:$D,$B:$B,$K35,$H:$H,M$2))/100,"") -> 1 | N35: =IF(AND(N$2<>"",'Voice Call'!E$8>0),(100-SUMIFS($D:$D,$B:$B,$K35,$H:$H,N$2))/100,"") -> 1
B36: 155 | C36: 16 | D36: 0 | E36: 0 | F36: 0 | G36: 0 | H36: Telekom Srbija a.d. | K36: 165 | L36: =IF(AND(L$2<>"",'Voice Call'!C$8>0),(100-SUMIFS($D:$D,$B:$B,$K36,$H:$H,L$2))/100,"") -> 1 | M36: =IF(AND(M$2<>"",'Voice Call'!D$8>0),(100-SUMIFS($D:$D,$B:$B,$K36,$H:$H,M$2))/100,"") -> 1 | N36: =IF(AND(N$2<>"",'Voice Call'!E$8>0),(100-SUMIFS($D:$D,$B:$B,$K36,$H:$H,N$2))/100,"") -> 1
B37: 16 | C37: 165 | D37: 0 | E37: 0 | F37: 0 | G37: 0 | H37: Telekom Srbija a.d. | K37: 17 | L37: =IF(AND(L$2<>"",'Voice Call'!C$8>0),(100-SUMIFS($D:$D,$B:$B,$K37,$H:$H,L$2))/100,"") -> 1 | M37: =IF(AND(M$2<>"",'Voice Call'!D$8>0),(100-SUMIFS($D:$D,$B:$B,$K37,$H:$H,M$2))/100,"") -> 1 | N37: =IF(AND(N$2<>"",'Voice Call'!E$8>0),(100-SUMIFS($D:$D,$B:$B,$K37,$H:$H,N$2))/100,"") -> 1
B38: 165 | C38: 17 | D38: 0 | E38: 0 | F38: 0 | G38: 0 | H38: Telekom Srbija a.d. | K38: 175 | L38: =IF(AND(L$2<>"",'Voice Call'!C$8>0),(100-SUMIFS($D:$D,$B:$B,$K38,$H:$H,L$2))/100,"") -> 1 | M38: =IF(AND(M$2<>"",'Voice Call'!D$8>0),(100-SUMIFS($D:$D,$B:$B,$K38,$H:$H,M$2))/100,"") -> 1 | N38: =IF(AND(N$2<>"",'Voice Call'!E$8>0),(100-SUMIFS($D:$D,$B:$B,$K38,$H:$H,N$2))/100,"") -> 1
B39: 17 | C39: 175 | D39: 0 | E39: 0 | F39: 0 | G39: 0 | H39: Telekom Srbija a.d. | K39: 18 | L39: =IF(AND(L$2<>"",'Voice Call'!C$8>0),(100-SUMIFS($D:$D,$B:$B,$K39,$H:$H,L$2))/100,"") -> 1 | M39: =IF(AND(M$2<>"",'Voice Call'!D$8>0),(100-SUMIFS($D:$D,$B:$B,$K39,$H:$H,M$2))/100,"") -> 1 | N39: =IF(AND(N$2<>"",'Voice Call'!E$8>0),(100-SUMIFS($D:$D,$B:$B,$K39,$H:$H,N$2))/100,"") -> 1
B40: 175 | C40: 18 | D40: 0 | E40: 0 | F40: 0 | G40: 0 | H40: Telekom Srbija a.d. | K40: 185 | L40: =IF(AND(L$2<>"",'Voice Call'!C$8>0),(100-SUMIFS($D:$D,$B:$B,$K40,$H:$H,L$2))/100,"") -> 1 | M40: =IF(AND(M$2<>"",'Voice Call'!D$8>0),(100-SUMIFS($D:$D,$B:$B,$K40,$H:$H,M$2))/100,"") -> 1 | N40: =IF(AND(N$2<>"",'Voice Call'!E$8>0),(100-SUMIFS($D:$D,$B:$B,$K40,$H:$H,N$2))/100,"") -> 1
B41: 18 | C41: 185 | D41: 0 | E41: 0 | F41: 0 | G41: 0 | H41: Telekom Srbija a.d. | K41: 19 | L41: =IF(AND(L$2<>"",'Voice Call'!C$8>0),(100-SUMIFS($D:$D,$B:$B,$K41,$H:$H,L$2))/100,"") -> 1 | M41: =IF(AND(M$2<>"",'Voice Call'!D$8>0),(100-SUMIFS($D:$D,$B:$B,$K41,$H:$H,M$2))/100,"") -> 1 | N41: =IF(AND(N$2<>"",'Voice Call'!E$8>0),(100-SUMIFS($D:$D,$B:$B,$K41,$H:$H,N$2))/100,"") -> 1
B42: 185 | C42: 19 | D42: 0 | E42: 0 | F42: 0 | G42: 0 | H42: Telekom Srbija a.d. | K42: 195 | L42: =IF(AND(L$2<>"",'Voice Call'!C$8>0),(100-SUMIFS($D:$D,$B:$B,$K42,$H:$H,L$2))/100,"") -> 1 | M42: =IF(AND(M$2<>"",'Voice Call'!D$8>0),(100-SUMIFS($D:$D,$B:$B,$K42,$H:$H,M$2))/100,"") -> 1 | N42: =IF(AND(N$2<>"",'Voice Call'!E$8>0),(100-SUMIFS($D:$D,$B:$B,$K42,$H:$H,N$2))/100,"") -> 1
B43: 19 | C43: 195 | D43: 0 | E43: 0 | F43: 0 | G43: 0 | H43: Telekom Srbija a.d. | K43: 20 | L43: =IF(AND(L$2<>"",'Voice Call'!C$8>0),(100-SUMIFS($D:$D,$B:$B,$K43,$H:$H,L$2))/100,"") -> 1 | M43: =IF(AND(M$2<>"",'Voice Call'!D$8>0),(100-SUMIFS($D:$D,$B:$B,$K43,$H:$H,M$2))/100,"") -> 1 | N43: =IF(AND(N$2<>"",'Voice Call'!E$8>0),(100-SUMIFS($D:$D,$B:$B,$K43,$H:$H,N$2))/100,"") -> 1
B44: 195 | C44: 20 | D44: 0 | E44: 0 | F44: 0 | G44: 0 | H44: Telekom Srbija a.d.
B45: 20 | C45: ... | D45: 0 | E45: 0 | F45: 0 | G45: 0 | H45: Telekom Srbija a.d.
B46: ... | C46: 0 | D46: 100 | E46: 100 | F46: 0 | G46: 0 | H46: Telenor Serbia
B47: 0 | C47: 5 | D47: 100 | E47: 100 | F47: 0 | G47: 0 | H47: Telenor Serbia
B48: 5 | C48: 1 | D48: 100 | E48: 100 | F48: 1 | G48: 1 | H48: Telenor Serbia
B49: 1 | C49: 15 | D49: 99 | E49: 99 | F49: 76 | G49: 76 | H49: Telenor Serbia
B50: 15 | C50: 2 | D50: 23 | E50: 23 | F50: 16 | G50: 16 | H50: Telenor Serbia
B51: 2 | C51: 25 | D51: 7 | E51: 7 | F51: 0 | G51: 0 | H51: Telenor Serbia
B52: 25 | C52: 3 | D52: 7 | E52: 7 | F52: 1 | G52: 1 | H52: Telenor Serbia
B53: 3 | C53: 35 | D53: 6 | E53: 6 | F53: 0 | G53: 0 | H53: Telenor Serbia
B54: 35 | C54: 4 | D54: 6 | E54: 6 | F54: 1 | G54: 1 | H54: Telenor Serbia
B55: 4 | C55: 45 | D55: 5 | E55: 5 | F55: 0 | G55: 0 | H55: Telenor Serbia
B56: 45 | C56: 5 | D56: 5 | E56: 5 | F56: 2 | G56: 2 | H56: Telenor Serbia
B57: 5 | C57: 55 | D57: 3 | E57: 3 | F57: 1 | G57: 1 | H57: Telenor Serbia
B58: 55 | C58: 6 | D58: 2 | E58: 2 | F58: 0 | G58: 0 | H58: Telenor Serbia
B59: 6 | C59: 65 | D59: 2 | E59: 2 | F59: 1 | G59: 1 | H59: Telenor Serbia
B60: 65 | C60: 7 | D60: 1 | E60: 1 | F60: 0 | G60: 0 | H60: Telenor Serbia
B61: 7 | C61: 75 | D61: 1 | E61: 1 | F61: 0 | G61: 0 | H61: Telenor Serbia
B62: 75 | C62: 8 | D62: 1 | E62: 1 | F62: 0 | G62: 0 | H62: Telenor Serbia
B63: 8 | C63: 85 | D63: 1 | E63: 1 | F63: 0 | G63: 0 | H63: Telenor Serbia
B64: 85 | C64: 9 | D64: 1 | E64: 1 | F64: 0 | G64: 0 | H64: Telenor Serbia
B65: 9 | C65: 95 | D65: 1 | E65: 1 | F65: 0 | G65: 0 | H65: Telenor Serbia
B66: 95 | C66: 10 | D66: 1 | E66: 1 | F66: 0 | G66: 0 | H66: Telenor Serbia
B67: 10 | C67: 105 | D67: 1 | E67: 1 | F67: 0 | G67: 0 | H67: Telenor Serbia
B68: 105 | C68: 11 | D68: 1 | E68: 1 | F68: 0 | G68: 0 | H68: Telenor Serbia
B69: 11 | C69: 115 | D69: 1 | E69: 1 | F69: 0 | G69: 0 | H69: Telenor Serbia
B70: 115 | C70: 12 | D70: 1 | E70: 1 | F70: 0 | G70: 0 | H70: Telenor Serbia
B71: 12 | C71: 125 | D71: 1 | E71: 1 | F71: 0 | G71: 0 | H71: Telenor Serbia
B72: 125 | C72: 13 | D72: 1 | E72: 1 | F72: 0 | G72: 0 | H72: Telenor Serbia
B73: 13 | C73: 135 | D73: 1 | E73: 1 | F73: 1 | G73: 1 | H73: Telenor Serbia
B74: 135 | C74: 14 | D74: 0 | E74: 0 | F74: 0 | G74: 0 | H74: Telenor Serbia
B75: 14 | C75: 145 | D75: 0 | E75: 0 | F75: 0 | G75: 0 | H75: Telenor Serbia
B76: 145 | C76: 15 | D76: 0 | E76: 0 | F76: 0 | G76: 0 | H76: Telenor Serbia
B77: 15 | C77: 155 | D77: 0 | E77: 0 | F77: 0 | G77: 0 | H77: Telenor Serbia
B78: 155 | C78: 16 | D78: 0 | E78: 0 | F78: 0 | G78: 0 | H78: Telenor Serbia
B79: 16 | C79: 165 | D79: 0 | E79: 0 | F79: 0 | G79: 0 | H79: Telenor Serbia
B80: 165 | C80: 17 | D80: 0 | E80: 0 | F80: 0 | G80: 0 | H80: Telenor Serbia
B81: 17 | C81: 175 | D81: 0 | E81: 0 | F81: 0 | G81: 0 | H81: Telenor Serbia
B82: 175 | C82: 18 | D82: 0 | E82: 0 | F82: 0 | G82: 0 | H82: Telenor Serbia
B83: 18 | C83: 185 | D83: 0 | E83: 0 | F83: 0 | G83: 0 | H83: Telenor Serbia
B84: 185 | C84: 19 | D84: 0 | E84: 0 | F84: 0 | G84: 0 | H84: Telenor Serbia
B85: 19 | C85: 195 | D85: 0 | E85: 0 | F85: 0 | G85: 0 | H85: Telenor Serbia
B86: 195 | C86: 20 | D86: 0 | E86: 0 | F86: 0 | G86: 0 | H86: Telenor Serbia
B87: 20 | C87: ... | D87: 0 | E87: 0 | F87: 0 | G87: 0 | H87: Telenor Serbia
B88: ... | C88: 0 | D88: 100 | E88: 98 | F88: 0 | G88: 0 | H88: Vip mobile d.o.o.
B89: 0 | C89: 5 | D89: 100 | E89: 98 | F89: 0 | G89: 0 | H89: Vip mobile d.o.o.
B90: 5 | C90: 1 | D90: 100 | E90: 98 | F90: 0 | G90: 0 | H90: Vip mobile d.o.o.
B91: 1 | C91: 15 | D91: 100 | E91: 98 | F91: 64.28571429 | G91: 63 | H91: Vip mobile d.o.o.
B92: 15 | C92: 2 | D92: 35.71428571 | E92: 35 | F92: 32.65306122 | G92: 32 | H92: Vip mobile d.o.o.
B93: 2 | C93: 25 | D93: 3.06122449 | E93: 3 | F93: 2.040816327 | G93: 2 | H93: Vip mobile d.o.o.
B94: 25 | C94: 3 | D94: 1.020408163 | E94: 1 | F94: 0 | G94: 0 | H94: Vip mobile d.o.o.
B95: 3 | C95: 35 | D95: 1.020408163 | E95: 1 | F95: 0 | G95: 0 | H95: Vip mobile d.o.o.
B96: 35 | C96: 4 | D96: 1.020408163 | E96: 1 | F96: 0 | G96: 0 | H96: Vip mobile d.o.o.
B97: 4 | C97: 45 | D97: 1.020408163 | E97: 1 | F97: 0 | G97: 0 | H97: Vip mobile d.o.o.
B98: 45 | C98: 5 | D98: 1.020408163 | E98: 1 | F98: 1.020408163 | G98: 1 | H98: Vip mobile d.o.o.
B99: 5 | C99: 55 | D99: 0 | E99: 0 | F99: 0 | G99: 0 | H99: Vip mobile d.o.o.
B100: 55 | C100: 6 | D100: 0 | E100: 0 | F100: 0 | G100: 0 | H100: Vip mobile d.o.o.
B101: 6 | C101: 65 | D101: 0 | E101: 0 | F101: 0 | G101: 0 | H101: Vip mobile d.o.o.
B102: 65 | C102: 7 | D102: 0 | E102: 0 | F102: 0 | G102: 0 | H102: Vip mobile d.o.o.
B103: 7 | C103: 75 | D103: 0 | E103: 0 | F103: 0 | G103: 0 | H103: Vip mobile d.o.o.
B104: 75 | C104: 8 | D104: 0 | E104: 0 | F104: 0 | G104: 0 | H104: Vip mobile d.o.o.
B105: 8 | C105: 85 | D105: 0 | E105: 0 | F105: 0 | G105: 0 | H105: Vip mobile d.o.o.
B106: 85 | C106: 9 | D106: 0 | E106: 0 | F106: 0 | G106: 0 | H106: Vip mobile d.o.o.
B107: 9 | C107: 95 | D107: 0 | E107: 0 | F107: 0 | G107: 0 | H107: Vip mobile d.o.o.
B108: 95 | C108: 10 | D108: 0 | E108: 0 | F108: 0 | G108: 0 | H108: Vip mobile d.o.o.
B109: 10 | C109: 105 | D109: 0 | E109: 0 | F109: 0 | G109: 0 | H109: Vip mobile d.o.o.
B110: 105 | C110: 11 | D110: 0 | E110: 0 | F110: 0 | G110: 0 | H110: Vip mobile d.o.o.
B111: 11 | C111: 115 | D111: 0 | E111: 0 | F111: 0 | G111: 0 | H111: Vip mobile d.o.o.
B112: 115 | C112: 12 | D112: 0 | E112: 0 | F112: 0 | G112: 0 | H112: Vip mobile d.o.o.
B113: 12 | C113: 125 | D113: 0 | E113: 0 | F113: 0 | G113: 0 | H113: Vip mobile d.o.o.
B114: 125 | C114: 13 | D114: 0 | E114: 0 | F114: 0 | G114: 0 | H114: Vip mobile d.o.o.
B115: 13 | C115: 135 | D115: 0 | E115: 0 | F115: 0 | G115: 0 | H115: Vip mobile d.o.o.
B116: 135 | C116: 14 | D116: 0 | E116: 0 | F116: 0 | G116: 0 | H116: Vip mobile d.o.o.
B117: 14 | C117: 145 | D117: 0 | E117: 0 | F117: 0 | G117: 0 | H117: Vip mobile d.o.o.
B118: 145 | C118: 15 | D118: 0 | E118: 0 | F118: 0 | G118: 0 | H118: Vip mobile d.o.o.
B119: 15 | C119: 155 | D119: 0 | E119: 0 | F119: 0 | G119: 0 | H119: Vip mobile d.o.o.
B120: 155 | C120: 16 | D120: 0 | E120: 0 | F120: 0 | G120: 0 | H120: Vip mobile d.o.o.
B121: 16 | C121: 165 | D121: 0 | E121: 0 | F121: 0 | G121: 0 | H121: Vip mobile d.o.o.
B122: 165 | C122: 17 | D122: 0 | E122: 0 | F122: 0 | G122: 0 | H122: Vip mobile d.o.o.
B123: 17 | C123: 175 | D123: 0 | E123: 0 | F123: 0 | G123: 0 | H123: Vip mobile d.o.o.
B124: 175 | C124: 18 | D124: 0 | E124: 0 | F124: 0 | G124: 0 | H124: Vip mobile d.o.o.
B125: 18 | C125: 185 | D125: 0 | E125: 0 | F125: 0 | G125: 0 | H125: Vip mobile d.o.o.
B126: 185 | C126: 19 | D126: 0 | E126: 0 | F126: 0 | G126: 0 | H126: Vip mobile d.o.o.
B127: 19 | C127: 195 | D127: 0 | E127: 0 | F127: 0 | G127: 0 | H127: Vip mobile d.o.o.
B128: 195 | C128: 20 | D128: 0 | E128: 0 | F128: 0 | G128: 0 | H128: Vip mobile d.o.o.
B129: 20 | C129: ... | D129: 0 | E129: 0 | F129: 0 | G129: 0 | H129: Vip mobile d.o.o.

Sheet Raw MOS stats (hidden)
C2: Telekom Srbija a.d. | D2: Telenor Serbia | E2: Vip mobile d.o.o.
B3: Audio quality MOS DL (std) | C3: 0.4922736018 | D3: 0.4213745271 | E3: 0.3124834311
B4: Audio quality MOS DL (min) | C4: 1.248000026 | D4: 1.075000048 | E4: 1.952999949
B5: Audio quality MOS DL (max) | C5: 4.723999977 | D5: 4.727000237 | E5: 4.736999989
B6: Audio quality MOS DL (avg) | C6: 4.31548366 | D6: 4.256738173 | E6: 4.442330465

Sheet Raw MOS distribution (hidden)
B2: MOS -distribution | K2: MOS per operator (CDF source) | L2: =IF(ISBLANK('Raw measurement info'!$W$6),"",'Raw measurement info'!$W$6) -> Telekom Srbija a.d. | M2: =IF(ISBLANK('Raw measurement info'!$W$7),"",'Raw measurement info'!$W$7) -> Telenor Serbia | N2: =IF(ISBLANK('Raw measurement info'!$W$8),"",'Raw measurement info'!$W$8) -> Vip mobile d.o.o.
B3: lower_bound | C3: upper_bound | D3: cumulation | E3: cumulation_sampled | F3: density | G3: density_sampled | H3: group | K3: =B5 -> 1 | L3: =IF(AND(L$2<>"",'Voice Call'!C$8>0),(100-SUMIFS($D:$D,$B:$B,$K3,$H:$H,L$2))/100,"") -> 0 | M3: =IF(AND(M$2<>"",'Voice Call'!D$8>0),(100-SUMIFS($D:$D,$B:$B,$K3,$H:$H,M$2))/100,"") -> 0 | N3: =IF(AND(N$2<>"",'Voice Call'!E$8>0),(100-SUMIFS($D:$D,$B:$B,$K3,$H:$H,N$2))/100,"") -> 0 | P3: 1
B4: ... | C4: 1 | D4: 100 | E4: 1071 | F4: 0 | G4: 0 | H4: Telekom Srbija a.d. | K4: 11 | L4: =IF(AND(L$2<>"",'Voice Call'!C$8>0),(100-SUMIFS($D:$D,$B:$B,$K4,$H:$H,L$2))/100,"") -> 0 | M4: =IF(AND(M$2<>"",'Voice Call'!D$8>0),(100-SUMIFS($D:$D,$B:$B,$K4,$H:$H,M$2))/100,"") -> 0.002103049422 | N4: =IF(AND(N$2<>"",'Voice Call'!E$8>0),(100-SUMIFS($D:$D,$B:$B,$K4,$H:$H,N$2))/100,"") -> 0 | P4: 1.1
B5: 1 | C5: 11 | D5: 100 | E5: 1071 | F5: 0 | G5: 0 | H5: Telekom Srbija a.d. | K5: 12 | L5: =IF(AND(L$2<>"",'Voice Call'!C$8>0),(100-SUMIFS($D:$D,$B:$B,$K5,$H:$H,L$2))/100,"") -> 0 | M5: =IF(AND(M$2<>"",'Voice Call'!D$8>0),(100-SUMIFS($D:$D,$B:$B,$K5,$H:$H,M$2))/100,"") -> 0.002103049422 | N5: =IF(AND(N$2<>"",'Voice Call'!E$8>0),(100-SUMIFS($D:$D,$B:$B,$K5,$H:$H,N$2))/100,"") -> 0 | P5: 1.2
B6: 11 | C6: 12 | D6: 100 | E6: 1071 | F6: 0 | G6: 0 | H6: Telekom Srbija a.d. | K6: 13 | L6: =IF(AND(L$2<>"",'Voice Call'!C$8>0),(100-SUMIFS($D:$D,$B:$B,$K6,$H:$H,L$2))/100,"") -> 0.0009337068161 | M6: =IF(AND(M$2<>"",'Voice Call'!D$8>0),(100-SUMIFS($D:$D,$B:$B,$K6,$H:$H,M$2))/100,"") -> 0.002103049422 | N6: =IF(AND(N$2<>"",'Voice Call'!E$8>0),(100-SUMIFS($D:$D,$B:$B,$K6,$H:$H,N$2))/100,"") -> 0 | P6: 1.3
B7: 12 | C7: 13 | D7: 100 | E7: 1071 | F7: 0.09337068161 | G7: 1 | H7: Telekom Srbija a.d. | K7: 14 | L7: =IF(AND(L$2<>"",'Voice Call'!C$8>0),(100-SUMIFS($D:$D,$B:$B,$K7,$H:$H,L$2))/100,"") -> 0.001867413632 | M7: =IF(AND(M$2<>"",'Voice Call'!D$8>0),(100-SUMIFS($D:$D,$B:$B,$K7,$H:$H,M$2))/100,"") -> 0.004206098843 | N7: =IF(AND(N$2<>"",'Voice Call'!E$8>0),(100-SUMIFS($D:$D,$B:$B,$K7,$H:$H,N$2))/100,"") -> 0 | P7: 1.4
B8: 13 | C8: 14 | D8: 99.90662932 | E8: 1070 | F8: 0.09337068161 | G8: 1 | H8: Telekom Srbija a.d. | K8: 15 | L8: =IF(AND(L$2<>"",'Voice Call'!C$8>0),(100-SUMIFS($D:$D,$B:$B,$K8,$H:$H,L$2))/100,"") -> 0.002801120448 | M8: =IF(AND(M$2<>"",'Voice Call'!D$8>0),(100-SUMIFS($D:$D,$B:$B,$K8,$H:$H,M$2))/100,"") -> 0.005257623554 | N8: =IF(AND(N$2<>"",'Voice Call'!E$8>0),(100-SUMIFS($D:$D,$B:$B,$K8,$H:$H,N$2))/100,"") -> 0 | P8: 1.5
B9: 14 | C9: 15 | D9: 99.81325864 | E9: 1069 | F9: 0.09337068161 | G9: 1 | H9: Telekom Srbija a.d. | K9: 16 | L9: =IF(AND(L$2<>"",'Voice Call'!C$8>0),(100-SUMIFS($D:$D,$B:$B,$K9,$H:$H,L$2))/100,"") -> 0.007469654528 | M9: =IF(AND(M$2<>"",'Voice Call'!D$8>0),(100-SUMIFS($D:$D,$B:$B,$K9,$H:$H,M$2))/100,"") -> 0.005257623554 | N9: =IF(AND(N$2<>"",'Voice Call'!E$8>0),(100-SUMIFS($D:$D,$B:$B,$K9,$H:$H,N$2))/100,"") -> 0 | P9: 1.6
B10: 15 | C10: 16 | D10: 99.71988796 | E10: 1068 | F10: 0.466853408 | G10: 5 | H10: Telekom Srbija a.d. | K10: 17 | L10: =IF(AND(L$2<>"",'Voice Call'!C$8>0),(100-SUMIFS($D:$D,$B:$B,$K10,$H:$H,L$2))/100,"") -> 0.008403361345 | M10: =IF(AND(M$2<>"",'Voice Call'!D$8>0),(100-SUMIFS($D:$D,$B:$B,$K10,$H:$H,M$2))/100,"") -> 0.005257623554 | N10: =IF(AND(N$2<>"",'Voice Call'!E$8>0),(100-SUMIFS($D:$D,$B:$B,$K10,$H:$H,N$2))/100,"") -> 0 | P10: 1.7
B11: 16 | C11: 17 | D11: 99.25303455 | E11: 1063 | F11: 0.09337068161 | G11: 1 | H11: Telekom Srbija a.d. | K11: 18 | L11: =IF(AND(L$2<>"",'Voice Call'!C$8>0),(100-SUMIFS($D:$D,$B:$B,$K11,$H:$H,L$2))/100,"") -> 0.009337068161 | M11: =IF(AND(M$2<>"",'Voice Call'!D$8>0),(100-SUMIFS($D:$D,$B:$B,$K11,$H:$H,M$2))/100,"") -> 0.006309148265 | N11: =IF(AND(N$2<>"",'Voice Call'!E$8>0),(100-SUMIFS($D:$D,$B:$B,$K11,$H:$H,N$2))/100,"") -> 0 | P11: 1.8
B12: 17 | C12: 18 | D12: 99.15966387 | E12: 1062 | F12: 0.09337068161 | G12: 1 | H12: Telekom Srbija a.d. | K12: 19 | L12: =IF(AND(L$2<>"",'Voice Call'!C$8>0),(100-SUMIFS($D:$D,$B:$B,$K12,$H:$H,L$2))/100,"") -> 0.01027077498 | M12: =IF(AND(M$2<>"",'Voice Call'!D$8>0),(100-SUMIFS($D:$D,$B:$B,$K12,$H:$H,M$2))/100,"") -> 0.006309148265 | N12: =IF(AND(N$2<>"",'Voice Call'!E$8>0),(100-SUMIFS($D:$D,$B:$B,$K12,$H:$H,N$2))/100,"") -> 0 | P12: 1.9
B13: 18 | C13: 19 | D13: 99.06629318 | E13: 1061 | F13: 0.09337068161 | G13: 1 | H13: Telekom Srbija a.d. | K13: 2 | L13: =IF(AND(L$2<>"",'Voice Call'!C$8>0),(100-SUMIFS($D:$D,$B:$B,$K13,$H:$H,L$2))/100,"") -> 0.01027077498 | M13: =IF(AND(M$2<>"",'Voice Call'!D$8>0),(100-SUMIFS($D:$D,$B:$B,$K13,$H:$H,M$2))/100,"") -> 0.006309148265 | N13: =IF(AND(N$2<>"",'Voice Call'!E$8>0),(100-SUMIFS($D:$D,$B:$B,$K13,$H:$H,N$2))/100,"") -> 0.001076426265 | P13: 2
B14: 19 | C14: 2 | D14: 98.9729225 | E14: 1060 | F14: 0 | G14: 0 | H14: Telekom Srbija a.d. | K14: 21 | L14: =IF(AND(L$2<>"",'Voice Call'!C$8>0),(100-SUMIFS($D:$D,$B:$B,$K14,$H:$H,L$2))/100,"") -> 0.01027077498 | M14: =IF(AND(M$2<>"",'Voice Call'!D$8>0),(100-SUMIFS($D:$D,$B:$B,$K14,$H:$H,M$2))/100,"") -> 0.007360672976 | N14: =IF(AND(N$2<>"",'Voice Call'!E$8>0),(100-SUMIFS($D:$D,$B:$B,$K14,$H:$H,N$2))/100,"") -> 0.001076426265 | P14: 2.1
B15: 2 | C15: 21 | D15: 98.9729225 | E15: 1060 | F15: 0 | G15: 0 | H15: Telekom Srbija a.d. | K15: 22 | L15: =IF(AND(L$2<>"",'Voice Call'!C$8>0),(100-SUMIFS($D:$D,$B:$B,$K15,$H:$H,L$2))/100,"") -> 0.01027077498 | M15: =IF(AND(M$2<>"",'Voice Call'!D$8>0),(100-SUMIFS($D:$D,$B:$B,$K15,$H:$H,M$2))/100,"") -> 0.007360672976 | N15: =IF(AND(N$2<>"",'Voice Call'!E$8>0),(100-SUMIFS($D:$D,$B:$B,$K15,$H:$H,N$2))/100,"") -> 0.001076426265 | P15: 2.2
B16: 21 | C16: 22 | D16: 98.9729225 | E16: 1060 | F16: 0 | G16: 0 | H16: Telekom Srbija a.d. | K16: 23 | L16: =IF(AND(L$2<>"",'Voice Call'!C$8>0),(100-SUMIFS($D:$D,$B:$B,$K16,$H:$H,L$2))/100,"") -> 0.01213818861 | M16: =IF(AND(M$2<>"",'Voice Call'!D$8>0),(100-SUMIFS($D:$D,$B:$B,$K16,$H:$H,M$2))/100,"") -> 0.007360672976 | N16: =IF(AND(N$2<>"",'Voice Call'!E$8>0),(100-SUMIFS($D:$D,$B:$B,$K16,$H:$H,N$2))/100,"") -> 0.001076426265 | P16: 2.3
B17: 22 | C17: 23 | D17: 98.9729225 | E17: 1060 | F17: 0.1867413632 | G17: 2 | H17: Telekom Srbija a.d. | K17: 24 | L17: =IF(AND(L$2<>"",'Voice Call'!C$8>0),(100-SUMIFS($D:$D,$B:$B,$K17,$H:$H,L$2))/100,"") -> 0.01400560224 | M17: =IF(AND(M$2<>"",'Voice Call'!D$8>0),(100-SUMIFS($D:$D,$B:$B,$K17,$H:$H,M$2))/100,"") -> 0.007360672976 | N17: =IF(AND(N$2<>"",'Voice Call'!E$8>0),(100-SUMIFS($D:$D,$B:$B,$K17,$H:$H,N$2))/100,"") -> 0.00215285253 | P17: 2.4
B18: 23 | C18: 24 | D18: 98.78618114 | E18: 1058 | F18: 0.1867413632 | G18: 2 | H18: Telekom Srbija a.d. | K18: 25 | L18: =IF(AND(L$2<>"",'Voice Call'!C$8>0),(100-SUMIFS($D:$D,$B:$B,$K18,$H:$H,L$2))/100,"") -> 0.01587301587 | M18: =IF(AND(M$2<>"",'Voice Call'!D$8>0),(100-SUMIFS($D:$D,$B:$B,$K18,$H:$H,M$2))/100,"") -> 0.007360672976 | N18: =IF(AND(N$2<>"",'Voice Call'!E$8>0),(100-SUMIFS($D:$D,$B:$B,$K18,$H:$H,N$2))/100,"") -> 0.00215285253 | P18: 2.5
B19: 24 | C19: 25 | D19: 98.59943978 | E19: 1056 | F19: 0.1867413632 | G19: 2 | H19: Telekom Srbija a.d. | K19: 26 | L19: =IF(AND(L$2<>"",'Voice Call'!C$8>0),(100-SUMIFS($D:$D,$B:$B,$K19,$H:$H,L$2))/100,"") -> 0.01774042951 | M19: =IF(AND(M$2<>"",'Voice Call'!D$8>0),(100-SUMIFS($D:$D,$B:$B,$K19,$H:$H,M$2))/100,"") -> 0.008412197687 | N19: =IF(AND(N$2<>"",'Voice Call'!E$8>0),(100-SUMIFS($D:$D,$B:$B,$K19,$H:$H,N$2))/100,"") -> 0.00215285253 | P19: 2.6
B20: 25 | C20: 26 | D20: 98.41269841 | E20: 1054 | F20: 0.1867413632 | G20: 2 | H20: Telekom Srbija a.d. | K20: 27 | L20: =IF(AND(L$2<>"",'Voice Call'!C$8>0),(100-SUMIFS($D:$D,$B:$B,$K20,$H:$H,L$2))/100,"") -> 0.01960784314 | M20: =IF(AND(M$2<>"",'Voice Call'!D$8>0),(100-SUMIFS($D:$D,$B:$B,$K20,$H:$H,M$2))/100,"") -> 0.008412197687 | N20: =IF(AND(N$2<>"",'Voice Call'!E$8>0),(100-SUMIFS($D:$D,$B:$B,$K20,$H:$H,N$2))/100,"") -> 0.00215285253 | P20: 2.7
B21: 26 | C21: 27 | D21: 98.22595705 | E21: 1052 | F21: 0.1867413632 | G21: 2 | H21: Telekom Srbija a.d. | K21: 28 | L21: =IF(AND(L$2<>"",'Voice Call'!C$8>0),(100-SUMIFS($D:$D,$B:$B,$K21,$H:$H,L$2))/100,"") -> 0.02054154995 | M21: =IF(AND(M$2<>"",'Voice Call'!D$8>0),(100-SUMIFS($D:$D,$B:$B,$K21,$H:$H,M$2))/100,"") -> 0.009463722397 | N21: =IF(AND(N$2<>"",'Voice Call'!E$8>0),(100-SUMIFS($D:$D,$B:$B,$K21,$H:$H,N$2))/100,"") -> 0.00215285253 | P21: 2.8
B22: 27 | C22: 28 | D22: 98.03921569 | E22: 1050 | F22: 0.09337068161 | G22: 1 | H22: Telekom Srbija a.d. | K22: 29 | L22: =IF(AND(L$2<>"",'Voice Call'!C$8>0),(100-SUMIFS($D:$D,$B:$B,$K22,$H:$H,L$2))/100,"") -> 0.02147525677 | M22: =IF(AND(M$2<>"",'Voice Call'!D$8>0),(100-SUMIFS($D:$D,$B:$B,$K22,$H:$H,M$2))/100,"") -> 0.009463722397 | N22: =IF(AND(N$2<>"",'Voice Call'!E$8>0),(100-SUMIFS($D:$D,$B:$B,$K22,$H:$H,N$2))/100,"") -> 0.004305705059 | P22: 2.9
B23: 28 | C23: 29 | D23: 97.945845 | E23: 1049 | F23: 0.09337068161 | G23: 1 | H23: Telekom Srbija a.d. | K23: 3 | L23: =IF(AND(L$2<>"",'Voice Call'!C$8>0),(100-SUMIFS($D:$D,$B:$B,$K23,$H:$H,L$2))/100,"") -> 0.02240896359 | M23: =IF(AND(M$2<>"",'Voice Call'!D$8>0),(100-SUMIFS($D:$D,$B:$B,$K23,$H:$H,M$2))/100,"") -> 0.01366982124 | N23: =IF(AND(N$2<>"",'Voice Call'!E$8>0),(100-SUMIFS($D:$D,$B:$B,$K23,$H:$H,N$2))/100,"") -> 0.006458557589 | P23: 3
B24: 29 | C24: 3 | D24: 97.85247432 | E24: 1048 | F24: 0.09337068161 | G24: 1 | H24: Telekom Srbija a.d. | K24: 31 | L24: =IF(AND(L$2<>"",'Voice Call'!C$8>0),(100-SUMIFS($D:$D,$B:$B,$K24,$H:$H,L$2))/100,"") -> 0.0289449113 | M24: =IF(AND(M$2<>"",'Voice Call'!D$8>0),(100-SUMIFS($D:$D,$B:$B,$K24,$H:$H,M$2))/100,"") -> 0.01682439537 | N24: =IF(AND(N$2<>"",'Voice Call'!E$8>0),(100-SUMIFS($D:$D,$B:$B,$K24,$H:$H,N$2))/100,"") -> 0.009687836383 | P24: 3.1
B25: 3 | C25: 31 | D25: 97.75910364 | E25: 1047 | F25: 0.6535947712 | G25: 7 | H25: Telekom Srbija a.d. | K25: 32 | L25: =IF(AND(L$2<>"",'Voice Call'!C$8>0),(100-SUMIFS($D:$D,$B:$B,$K25,$H:$H,L$2))/100,"") -> 0.03174603175 | M25: =IF(AND(M$2<>"",'Voice Call'!D$8>0),(100-SUMIFS($D:$D,$B:$B,$K25,$H:$H,M$2))/100,"") -> 0.01892744479 | N25: =IF(AND(N$2<>"",'Voice Call'!E$8>0),(100-SUMIFS($D:$D,$B:$B,$K25,$H:$H,N$2))/100,"") -> 0.01184068891 | P25: 3.2
B26: 31 | C26: 32 | D26: 97.10550887 | E26: 1040 | F26: 0.2801120448 | G26: 3 | H26: Telekom Srbija a.d. | K26: 33 | L26: =IF(AND(L$2<>"",'Voice Call'!C$8>0),(100-SUMIFS($D:$D,$B:$B,$K26,$H:$H,L$2))/100,"") -> 0.03454715219 | M26: =IF(AND(M$2<>"",'Voice Call'!D$8>0),(100-SUMIFS($D:$D,$B:$B,$K26,$H:$H,M$2))/100,"") -> 0.02523659306 | N26: =IF(AND(N$2<>"",'Voice Call'!E$8>0),(100-SUMIFS($D:$D,$B:$B,$K26,$H:$H,N$2))/100,"") -> 0.01399354144 | P26: 3.3
B27: 32 | C27: 33 | D27: 96.82539683 | E27: 1037 | F27: 0.2801120448 | G27: 3 | H27: Telekom Srbija a.d. | K27: 34 | L27: =IF(AND(L$2<>"",'Voice Call'!C$8>0),(100-SUMIFS($D:$D,$B:$B,$K27,$H:$H,L$2))/100,"") -> 0.04014939309 | M27: =IF(AND(M$2<>"",'Voice Call'!D$8>0),(100-SUMIFS($D:$D,$B:$B,$K27,$H:$H,M$2))/100,"") -> 0.03575184017 | N27: =IF(AND(N$2<>"",'Voice Call'!E$8>0),(100-SUMIFS($D:$D,$B:$B,$K27,$H:$H,N$2))/100,"") -> 0.0182992465 | P27: 3.4
B28: 33 | C28: 34 | D28: 96.54528478 | E28: 1034 | F28: 0.5602240896 | G28: 6 | H28: Telekom Srbija a.d. | K28: 35 | L28: =IF(AND(L$2<>"",'Voice Call'!C$8>0),(100-SUMIFS($D:$D,$B:$B,$K28,$H:$H,L$2))/100,"") -> 0.05602240896 | M28: =IF(AND(M$2<>"",'Voice Call'!D$8>0),(100-SUMIFS($D:$D,$B:$B,$K28,$H:$H,M$2))/100,"") -> 0.05152471083 | N28: =IF(AND(N$2<>"",'Voice Call'!E$8>0),(100-SUMIFS($D:$D,$B:$B,$K28,$H:$H,N$2))/100,"") -> 0.03013993541 | P28: 3.5
B29: 34 | C29: 35 | D29: 95.98506069 | E29: 1028 | F29: 1.587301587 | G29: 17 | H29: Telekom Srbija a.d. | K29: 36 | L29: =IF(AND(L$2<>"",'Voice Call'!C$8>0),(100-SUMIFS($D:$D,$B:$B,$K29,$H:$H,L$2))/100,"") -> 0.0756302521 | M29: =IF(AND(M$2<>"",'Voice Call'!D$8>0),(100-SUMIFS($D:$D,$B:$B,$K29,$H:$H,M$2))/100,"") -> 0.06729758149 | N29: =IF(AND(N$2<>"",'Voice Call'!E$8>0),(100-SUMIFS($D:$D,$B:$B,$K29,$H:$H,N$2))/100,"") -> 0.04198062433 | P29: 3.6
B30: 35 | C30: 36 | D30: 94.3977591 | E30: 1011 | F30: 1.960784314 | G30: 21 | H30: Telekom Srbija a.d. | K30: 37 | L30: =IF(AND(L$2<>"",'Voice Call'!C$8>0),(100-SUMIFS($D:$D,$B:$B,$K30,$H:$H,L$2))/100,"") -> 0.09990662932 | M30: =IF(AND(M$2<>"",'Voice Call'!D$8>0),(100-SUMIFS($D:$D,$B:$B,$K30,$H:$H,M$2))/100,"") -> 0.08096740273 | N30: =IF(AND(N$2<>"",'Voice Call'!E$8>0),(100-SUMIFS($D:$D,$B:$B,$K30,$H:$H,N$2))/100,"") -> 0.05059203445 | P30: 3.7
B31: 36 | C31: 37 | D31: 92.43697479 | E31: 990 | F31: 2.427637722 | G31: 26 | H31: Telekom Srbija a.d. | K31: 38 | L31: =IF(AND(L$2<>"",'Voice Call'!C$8>0),(100-SUMIFS($D:$D,$B:$B,$K31,$H:$H,L$2))/100,"") -> 0.1204481793 | M31: =IF(AND(M$2<>"",'Voice Call'!D$8>0),(100-SUMIFS($D:$D,$B:$B,$K31,$H:$H,M$2))/100,"") -> 0.1114616193 | N31: =IF(AND(N$2<>"",'Voice Call'!E$8>0),(100-SUMIFS($D:$D,$B:$B,$K31,$H:$H,N$2))/100,"") -> 0.06458557589 | P31: 3.8
B32: 37 | C32: 38 | D32: 90.00933707 | E32: 964 | F32: 2.054154995 | G32: 22 | H32: Telekom Srbija a.d. | K32: 39 | L32: =IF(AND(L$2<>"",'Voice Call'!C$8>0),(100-SUMIFS($D:$D,$B:$B,$K32,$H:$H,L$2))/100,"") -> 0.1493930906 | M32: =IF(AND(M$2<>"",'Voice Call'!D$8>0),(100-SUMIFS($D:$D,$B:$B,$K32,$H:$H,M$2))/100,"") -> 0.134595163 | N32: =IF(AND(N$2<>"",'Voice Call'!E$8>0),(100-SUMIFS($D:$D,$B:$B,$K32,$H:$H,N$2))/100,"") -> 0.07319698601 | P32: 3.9
B33: 38 | C33: 39 | D33: 87.95518207 | E33: 942 | F33: 2.89449113 | G33: 31 | H33: Telekom Srbija a.d. | K33: 4 | L33: =IF(AND(L$2<>"",'Voice Call'!C$8>0),(100-SUMIFS($D:$D,$B:$B,$K33,$H:$H,L$2))/100,"") -> 0.1960784314 | M33: =IF(AND(M$2<>"",'Voice Call'!D$8>0),(100-SUMIFS($D:$D,$B:$B,$K33,$H:$H,M$2))/100,"") -> 0.1955835962 | N33: =IF(AND(N$2<>"",'Voice Call'!E$8>0),(100-SUMIFS($D:$D,$B:$B,$K33,$H:$H,N$2))/100,"") -> 0.08503767492 | P33: 4
B34: 39 | C34: 4 | D34: 85.06069094 | E34: 911 | F34: 4.66853408 | G34: 50 | H34: Telekom Srbija a.d. | K34: 41 | L34: =IF(AND(L$2<>"",'Voice Call'!C$8>0),(100-SUMIFS($D:$D,$B:$B,$K34,$H:$H,L$2))/100,"") -> 0.2474323063 | M34: =IF(AND(M$2<>"",'Voice Call'!D$8>0),(100-SUMIFS($D:$D,$B:$B,$K34,$H:$H,M$2))/100,"") -> 0.2523659306 | N34: =IF(AND(N$2<>"",'Voice Call'!E$8>0),(100-SUMIFS($D:$D,$B:$B,$K34,$H:$H,N$2))/100,"") -> 0.1076426265 | P34: 4.1
B35: 4 | C35: 41 | D35: 80.39215686 | E35: 861 | F35: 5.135387488 | G35: 55 | H35: Telekom Srbija a.d. | K35: 42 | L35: =IF(AND(L$2<>"",'Voice Call'!C$8>0),(100-SUMIFS($D:$D,$B:$B,$K35,$H:$H,L$2))/100,"") -> 0.2633053221 | M35: =IF(AND(M$2<>"",'Voice Call'!D$8>0),(100-SUMIFS($D:$D,$B:$B,$K35,$H:$H,M$2))/100,"") -> 0.3038906414 | N35: =IF(AND(N$2<>"",'Voice Call'!E$8>0),(100-SUMIFS($D:$D,$B:$B,$K35,$H:$H,N$2))/100,"") -> 0.1334768568 | P35: 4.2
B36: 41 | C36: 42 | D36: 75.25676937 | E36: 806 | F36: 1.587301587 | G36: 17 | H36: Telekom Srbija a.d. | K36: 43 | L36: =IF(AND(L$2<>"",'Voice Call'!C$8>0),(100-SUMIFS($D:$D,$B:$B,$K36,$H:$H,L$2))/100,"") -> 0.268907563 | M36: =IF(AND(M$2<>"",'Voice Call'!D$8>0),(100-SUMIFS($D:$D,$B:$B,$K36,$H:$H,M$2))/100,"") -> 0.3953732913 | N36: =IF(AND(N$2<>"",'Voice Call'!E$8>0),(100-SUMIFS($D:$D,$B:$B,$K36,$H:$H,N$2))/100,"") -> 0.1485468245 | P36: 4.3
B37: 42 | C37: 43 | D37: 73.66946779 | E37: 789 | F37: 0.5602240896 | G37: 6 | H37: Telekom Srbija a.d. | K37: 44 | L37: =IF(AND(L$2<>"",'Voice Call'!C$8>0),(100-SUMIFS($D:$D,$B:$B,$K37,$H:$H,L$2))/100,"") -> 0.2931839402 | M37: =IF(AND(M$2<>"",'Voice Call'!D$8>0),(100-SUMIFS($D:$D,$B:$B,$K37,$H:$H,M$2))/100,"") -> 0.4952681388 | N37: =IF(AND(N$2<>"",'Voice Call'!E$8>0),(100-SUMIFS($D:$D,$B:$B,$K37,$H:$H,N$2))/100,"") -> 0.1733046286 | P37: 4.4
B38: 43 | C38: 44 | D38: 73.1092437 | E38: 783 | F38: 2.427637722 | G38: 26 | H38: Telekom Srbija a.d. | K38: 45 | L38: =IF(AND(L$2<>"",'Voice Call'!C$8>0),(100-SUMIFS($D:$D,$B:$B,$K38,$H:$H,L$2))/100,"") -> 0.4136321195 | M38: =IF(AND(M$2<>"",'Voice Call'!D$8>0),(100-SUMIFS($D:$D,$B:$B,$K38,$H:$H,M$2))/100,"") -> 0.6929547844 | N38: =IF(AND(N$2<>"",'Voice Call'!E$8>0),(100-SUMIFS($D:$D,$B:$B,$K38,$H:$H,N$2))/100,"") -> 0.3100107643 | P38: 4.5
B39: 44 | C39: 45 | D39: 70.68160598 | E39: 757 | F39: 12.04481793 | G39: 129 | H39: Telekom Srbija a.d. | K39: 46 | L39: =IF(AND(L$2<>"",'Voice Call'!C$8>0),(100-SUMIFS($D:$D,$B:$B,$K39,$H:$H,L$2))/100,"") -> 0.8151260504 | M39: =IF(AND(M$2<>"",'Voice Call'!D$8>0),(100-SUMIFS($D:$D,$B:$B,$K39,$H:$H,M$2))/100,"") -> 0.9106203996 | N39: =IF(AND(N$2<>"",'Voice Call'!E$8>0),(100-SUMIFS($D:$D,$B:$B,$K39,$H:$H,N$2))/100,"") -> 0.7900968784 | P39: 4.6
B40: 45 | C40: 46 | D40: 58.63678805 | E40: 628 | F40: 40.14939309 | G40: 430 | H40: Telekom Srbija a.d. | K40: 47 | L40: =IF(AND(L$2<>"",'Voice Call'!C$8>0),(100-SUMIFS($D:$D,$B:$B,$K40,$H:$H,L$2))/100,"") -> 0.9971988796 | M40: =IF(AND(M$2<>"",'Voice Call'!D$8>0),(100-SUMIFS($D:$D,$B:$B,$K40,$H:$H,M$2))/100,"") -> 0.9978969506 | N40: =IF(AND(N$2<>"",'Voice Call'!E$8>0),(100-SUMIFS($D:$D,$B:$B,$K40,$H:$H,N$2))/100,"") -> 0.9967707212 | P40: 4.7
B41: 46 | C41: 47 | D41: 18.48739496 | E41: 198 | F41: 18.20728291 | G41: 195 | H41: Telekom Srbija a.d. | K41: 48 | L41: =IF(AND(L$2<>"",'Voice Call'!C$8>0),(100-SUMIFS($D:$D,$B:$B,$K41,$H:$H,L$2))/100,"") -> 1 | M41: =IF(AND(M$2<>"",'Voice Call'!D$8>0),(100-SUMIFS($D:$D,$B:$B,$K41,$H:$H,M$2))/100,"") -> 1 | N41: =IF(AND(N$2<>"",'Voice Call'!E$8>0),(100-SUMIFS($D:$D,$B:$B,$K41,$H:$H,N$2))/100,"") -> 1 | P41: 4.8
B42: 47 | C42: 48 | D42: 0.2801120448 | E42: 3 | F42: 0.2801120448 | G42: 3 | H42: Telekom Srbija a.d. | K42: 49 | L42: =IF(AND(L$2<>"",'Voice Call'!C$8>0),(100-SUMIFS($D:$D,$B:$B,$K42,$H:$H,L$2))/100,"") -> 1 | M42: =IF(AND(M$2<>"",'Voice Call'!D$8>0),(100-SUMIFS($D:$D,$B:$B,$K42,$H:$H,M$2))/100,"") -> 1 | N42: =IF(AND(N$2<>"",'Voice Call'!E$8>0),(100-SUMIFS($D:$D,$B:$B,$K42,$H:$H,N$2))/100,"") -> 1 | P42: 4.9
B43: 48 | C43: 49 | D43: 0 | E43: 0 | F43: 0 | G43: 0 | H43: Telekom Srbija a.d. | K43: 5 | L43: =IF(AND(L$2<>"",'Voice Call'!C$8>0),(100-SUMIFS($D:$D,$B:$B,$K43,$H:$H,L$2))/100,"") -> 1 | M43: =IF(AND(M$2<>"",'Voice Call'!D$8>0),(100-SUMIFS($D:$D,$B:$B,$K43,$H:$H,M$2))/100,"") -> 1 | N43: =IF(AND(N$2<>"",'Voice Call'!E$8>0),(100-SUMIFS($D:$D,$B:$B,$K43,$H:$H,N$2))/100,"") -> 1 | P43: 5
B44: 49 | C44: 5 | D44: 0 | E44: 0 | F44: 0 | G44: 0 | H44: Telekom Srbija a.d.
B45: 5 | C45: ... | D45: 0 | E45: 0 | F45: 0 | G45: 0 | H45: Telekom Srbija a.d.
B46: ... | C46: 1 | D46: 100 | E46: 951 | F46: 0 | G46: 0 | H46: Telenor Serbia
B47: 1 | C47: 11 | D47: 100 | E47: 951 | F47: 0.2103049422 | G47: 2 | H47: Telenor Serbia
B48: 11 | C48: 12 | D48: 99.78969506 | E48: 949 | F48: 0 | G48: 0 | H48: Telenor Serbia
B49: 12 | C49: 13 | D49: 99.78969506 | E49: 949 | F49: 0 | G49: 0 | H49: Telenor Serbia
B50: 13 | C50: 14 | D50: 99.78969506 | E50: 949 | F50: 0.2103049422 | G50: 2 | H50: Telenor Serbia
B51: 14 | C51: 15 | D51: 99.57939012 | E51: 947 | F51: 0.1051524711 | G51: 1 | H51: Telenor Serbia
B52: 15 | C52: 16 | D52: 99.47423764 | E52: 946 | F52: 0 | G52: 0 | H52: Telenor Serbia
B53: 16 | C53: 17 | D53: 99.47423764 | E53: 946 | F53: 0 | G53: 0 | H53: Telenor Serbia
B54: 17 | C54: 18 | D54: 99.47423764 | E54: 946 | F54: 0.1051524711 | G54: 1 | H54: Telenor Serbia
B55: 18 | C55: 19 | D55: 99.36908517 | E55: 945 | F55: 0 | G55: 0 | H55: Telenor Serbia
B56: 19 | C56: 2 | D56: 99.36908517 | E56: 945 | F56: 0 | G56: 0 | H56: Telenor Serbia
B57: 2 | C57: 21 | D57: 99.36908517 | E57: 945 | F57: 0.1051524711 | G57: 1 | H57: Telenor Serbia
B58: 21 | C58: 22 | D58: 99.2639327 | E58: 944 | F58: 0 | G58: 0 | H58: Telenor Serbia
B59: 22 | C59: 23 | D59: 99.2639327 | E59: 944 | F59: 0 | G59: 0 | H59: Telenor Serbia
B60: 23 | C60: 24 | D60: 99.2639327 | E60: 944 | F60: 0 | G60: 0 | H60: Telenor Serbia
B61: 24 | C61: 25 | D61: 99.2639327 | E61: 944 | F61: 0 | G61: 0 | H61: Telenor Serbia
B62: 25 | C62: 26 | D62: 99.2639327 | E62: 944 | F62: 0.1051524711 | G62: 1 | H62: Telenor Serbia
B63: 26 | C63: 27 | D63: 99.15878023 | E63: 943 | F63: 0 | G63: 0 | H63: Telenor Serbia
B64: 27 | C64: 28 | D64: 99.15878023 | E64: 943 | F64: 0.1051524711 | G64: 1 | H64: Telenor Serbia
B65: 28 | C65: 29 | D65: 99.05362776 | E65: 942 | F65: 0 | G65: 0 | H65: Telenor Serbia
B66: 29 | C66: 3 | D66: 99.05362776 | E66: 942 | F66: 0.4206098843 | G66: 4 | H66: Telenor Serbia
B67: 3 | C67: 31 | D67: 98.63301788 | E67: 938 | F67: 0.3154574132 | G67: 3 | H67: Telenor Serbia
B68: 31 | C68: 32 | D68: 98.31756046 | E68: 935 | F68: 0.2103049422 | G68: 2 | H68: Telenor Serbia
B69: 32 | C69: 33 | D69: 98.10725552 | E69: 933 | F69: 0.6309148265 | G69: 6 | H69: Telenor Serbia
B70: 33 | C70: 34 | D70: 97.47634069 | E70: 927 | F70: 1.051524711 | G70: 10 | H70: Telenor Serbia
B71: 34 | C71: 35 | D71: 96.42481598 | E71: 917 | F71: 1.577287066 | G71: 15 | H71: Telenor Serbia
B72: 35 | C72: 36 | D72: 94.84752892 | E72: 902 | F72: 1.577287066 | G72: 15 | H72: Telenor Serbia
B73: 36 | C73: 37 | D73: 93.27024185 | E73: 887 | F73: 1.366982124 | G73: 13 | H73: Telenor Serbia
B74: 37 | C74: 38 | D74: 91.90325973 | E74: 874 | F74: 3.049421661 | G74: 29 | H74: Telenor Serbia
B75: 38 | C75: 39 | D75: 88.85383807 | E75: 845 | F75: 2.313354364 | G75: 22 | H75: Telenor Serbia
B76: 39 | C76: 4 | D76: 86.5404837 | E76: 823 | F76: 6.098843323 | G76: 58 | H76: Telenor Serbia
B77: 4 | C77: 41 | D77: 80.44164038 | E77: 765 | F77: 5.678233438 | G77: 54 | H77: Telenor Serbia
B78: 41 | C78: 42 | D78: 74.76340694 | E78: 711 | F78: 5.152471083 | G78: 49 | H78: Telenor Serbia
B79: 42 | C79: 43 | D79: 69.61093586 | E79: 662 | F79: 9.148264984 | G79: 87 | H79: Telenor Serbia
B80: 43 | C80: 44 | D80: 60.46267087 | E80: 575 | F80: 9.989484753 | G80: 95 | H80: Telenor Serbia
B81: 44 | C81: 45 | D81: 50.47318612 | E81: 480 | F81: 19.76866456 | G81: 188 | H81: Telenor Serbia
B82: 45 | C82: 46 | D82: 30.70452156 | E82: 292 | F82: 21.76656151 | G82: 207 | H82: Telenor Serbia
B83: 46 | C83: 47 | D83: 8.937960042 | E83: 85 | F83: 8.7276551 | G83: 83 | H83: Telenor Serbia
B84: 47 | C84: 48 | D84: 0.2103049422 | E84: 2 | F84: 0.2103049422 | G84: 2 | H84: Telenor Serbia
B85: 48 | C85: 49 | D85: 0 | E85: 0 | F85: 0 | G85: 0 | H85: Telenor Serbia
B86: 49 | C86: 5 | D86: 0 | E86: 0 | F86: 0 | G86: 0 | H86: Telenor Serbia
B87: 5 | C87: ... | D87: 0 | E87: 0 | F87: 0 | G87: 0 | H87: Telenor Serbia
B88: ... | C88: 1 | D88: 100 | E88: 929 | F88: 0 | G88: 0 | H88: Vip mobile d.o.o.
B89: 1 | C89: 11 | D89: 100 | E89: 929 | F89: 0 | G89: 0 | H89: Vip mobile d.o.o.
B90: 11 | C90: 12 | D90: 100 | E90: 929 | F90: 0 | G90: 0 | H90: Vip mobile d.o.o.
B91: 12 | C91: 13 | D91: 100 | E91: 929 | F91: 0 | G91: 0 | H91: Vip mobile d.o.o.
B92: 13 | C92: 14 | D92: 100 | E92: 929 | F92: 0 | G92: 0 | H92: Vip mobile d.o.o.
B93: 14 | C93: 15 | D93: 100 | E93: 929 | F93: 0 | G93: 0 | H93: Vip mobile d.o.o.
B94: 15 | C94: 16 | D94: 100 | E94: 929 | F94: 0 | G94: 0 | H94: Vip mobile d.o.o.
B95: 16 | C95: 17 | D95: 100 | E95: 929 | F95: 0 | G95: 0 | H95: Vip mobile d.o.o.
B96: 17 | C96: 18 | D96: 100 | E96: 929 | F96: 0 | G96: 0 | H96: Vip mobile d.o.o.
B97: 18 | C97: 19 | D97: 100 | E97: 929 | F97: 0 | G97: 0 | H97: Vip mobile d.o.o.
B98: 19 | C98: 2 | D98: 100 | E98: 929 | F98: 0.1076426265 | G98: 1 | H98: Vip mobile d.o.o.
B99: 2 | C99: 21 | D99: 99.89235737 | E99: 928 | F99: 0 | G99: 0 | H99: Vip mobile d.o.o.
B100: 21 | C100: 22 | D100: 99.89235737 | E100: 928 | F100: 0 | G100: 0 | H100: Vip mobile d.o.o.
B101: 22 | C101: 23 | D101: 99.89235737 | E101: 928 | F101: 0 | G101: 0 | H101: Vip mobile d.o.o.
B102: 23 | C102: 24 | D102: 99.89235737 | E102: 928 | F102: 0.1076426265 | G102: 1 | H102: Vip mobile d.o.o.
B103: 24 | C103: 25 | D103: 99.78471475 | E103: 927 | F103: 0 | G103: 0 | H103: Vip mobile d.o.o.
B104: 25 | C104: 26 | D104: 99.78471475 | E104: 927 | F104: 0 | G104: 0 | H104: Vip mobile d.o.o.
B105: 26 | C105: 27 | D105: 99.78471475 | E105: 927 | F105: 0 | G105: 0 | H105: Vip mobile d.o.o.
B106: 27 | C106: 28 | D106: 99.78471475 | E106: 927 | F106: 0 | G106: 0 | H106: Vip mobile d.o.o.
B107: 28 | C107: 29 | D107: 99.78471475 | E107: 927 | F107: 0.215285253 | G107: 2 | H107: Vip mobile d.o.o.
B108: 29 | C108: 3 | D108: 99.56942949 | E108: 925 | F108: 0.215285253 | G108: 2 | H108: Vip mobile d.o.o.
B109: 3 | C109: 31 | D109: 99.35414424 | E109: 923 | F109: 0.3229278794 | G109: 3 | H109: Vip mobile d.o.o.
B110: 31 | C110: 32 | D110: 99.03121636 | E110: 920 | F110: 0.215285253 | G110: 2 | H110: Vip mobile d.o.o.
B111: 32 | C111: 33 | D111: 98.81593111 | E111: 918 | F111: 0.215285253 | G111: 2 | H111: Vip mobile d.o.o.
B112: 33 | C112: 34 | D112: 98.60064586 | E112: 916 | F112: 0.4305705059 | G112: 4 | H112: Vip mobile d.o.o.
B113: 34 | C113: 35 | D113: 98.17007535 | E113: 912 | F113: 1.184068891 | G113: 11 | H113: Vip mobile d.o.o.
B114: 35 | C114: 36 | D114: 96.98600646 | E114: 901 | F114: 1.184068891 | G114: 11 | H114: Vip mobile d.o.o.
B115: 36 | C115: 37 | D115: 95.80193757 | E115: 890 | F115: 0.8611410118 | G115: 8 | H115: Vip mobile d.o.o.
B116: 37 | C116: 38 | D116: 94.94079656 | E116: 882 | F116: 1.399354144 | G116: 13 | H116: Vip mobile d.o.o.
B117: 38 | C117: 39 | D117: 93.54144241 | E117: 869 | F117: 0.8611410118 | G117: 8 | H117: Vip mobile d.o.o.
B118: 39 | C118: 4 | D118: 92.6803014 | E118: 861 | F118: 1.184068891 | G118: 11 | H118: Vip mobile d.o.o.
B119: 4 | C119: 41 | D119: 91.49623251 | E119: 850 | F119: 2.260495156 | G119: 21 | H119: Vip mobile d.o.o.
B120: 41 | C120: 42 | D120: 89.23573735 | E120: 829 | F120: 2.583423036 | G120: 24 | H120: Vip mobile d.o.o.
B121: 42 | C121: 43 | D121: 86.65231432 | E121: 805 | F121: 1.506996771 | G121: 14 | H121: Vip mobile d.o.o.
B122: 43 | C122: 44 | D122: 85.14531755 | E122: 791 | F122: 2.475780409 | G122: 23 | H122: Vip mobile d.o.o.
B123: 44 | C123: 45 | D123: 82.66953714 | E123: 768 | F123: 13.67061356 | G123: 127 | H123: Vip mobile d.o.o.
B124: 45 | C124: 46 | D124: 68.99892357 | E124: 641 | F124: 48.00861141 | G124: 446 | H124: Vip mobile d.o.o.
B125: 46 | C125: 47 | D125: 20.99031216 | E125: 195 | F125: 20.66738428 | G125: 192 | H125: Vip mobile d.o.o.
B126: 47 | C126: 48 | D126: 0.3229278794 | E126: 3 | F126: 0.3229278794 | G126: 3 | H126: Vip mobile d.o.o.
B127: 48 | C127: 49 | D127: 0 | E127: 0 | F127: 0 | G127: 0 | H127: Vip mobile d.o.o.
B128: 49 | C128: 5 | D128: 0 | E128: 0 | F128: 0 | G128: 0 | H128: Vip mobile d.o.o.
B129: 5 | C129: ... | D129: 0 | E129: 0 | F129: 0 | G129: 0 | H129: Vip mobile d.o.o.

Sheet Raw Browsing stats (hidden)
C2: Telekom Srbija a.d. | D2: Telenor Serbia | E2: Vip mobile d.o.o.
B3: Data transfer IP service access time (std) | C3: 488.5190605 | D3: 39.83418978 | E3: 137.341263
B4: Data transfer IP service access time (min) | C4: 19 | D4: 37 | E4: 29
B5: Data transfer IP service access time (max) | C5: 5351 | D5: 394 | E5: 1493
B6: Data transfer IP service access time (avg) | C6: 111.195122 | D6: 78.22321429 | E6: 80.90990991
B7: HTTP browsing attempt | C7: 126 | D7: 118 | E7: 120
B8: HTTP browsing failure | C8: 3 | D8: 7 | E8: 9
B9: Data server session time (std) | C9: 3.728018698 | D9: 4.921285006 | E9: 3.214073936
B10: Data server session time (min) | C10: 4.5 | D10: 4.518 | E10: 4.664
B11: Data server session time (max) | C11: 39.65 | D11: 32.65 | E11: 31.806
B12: Data server session time (avg) | C12: 6.495650407 | D12: 7.073686957 | E12: 6.752446429

Sheet Raw Ping stats (hidden)
C2: Telekom Srbija a.d. | D2: Telenor Serbia | E2: Vip mobile d.o.o.
B3: Ping round trip time (success) | C3: 630 | D3: 587 | E3: 610
B4: Ping lost packet | C4: 0 | D4: 0 | E4: 0
B5: Ping round trip time (std) | C5: 68.40270571 | D5: 22.34018509 | E5: 13.7317707
B6: Ping round trip time (min) | C6: 19 | D6: 17 | E6: 17
B7: Ping round trip time (max) | C7: 567 | D7: 219 | E7: 109
B8: Ping round trip time (avg) | C8: 45.7968254 | D8: 33.58773424 | E8: 35.92459016

Sheet Source Data Tech (hidden)
E4: =IF(ISBLANK('Raw measurement info'!$W$6),"",'Raw measurement info'!$W$6) -> Telekom Srbija a.d. | F4: =IF(ISBLANK('Raw measurement info'!$W$7),"",'Raw measurement info'!$W$7) -> Telenor Serbia | G4: =IF(ISBLANK('Raw measurement info'!$W$8),"",'Raw measurement info'!$W$8) -> Vip mobile d.o.o. | H4: Values
B5: Capacity | C5: Downlink | D5: total | E5: =SUM(E6:E16) -> 7806.513 | F5: 7444.354 | G5: 7556.609 | H5: =IF(SUM(E5:G5)>0,"YES","") -> YES
D6: =LEFT('Raw data cdr'!CA$1,FIND(" time",'Raw data cdr'!CA$1)-1) -> GPRS | E6: =SUMIFS('Raw data cdr'!$CA:$CA,'Raw data cdr'!$D:$D,E$4,'Raw data cdr'!$L:$L,"*",'Raw data cdr'!$N:$N,$C$5) -> 0 | F6: =SUMIFS('Raw data cdr'!$CA:$CA,'Raw data cdr'!$D:$D,F$4,'Raw data cdr'!$L:$L,"*",'Raw data cdr'!$N:$N,$C$5) -> 0 | G6: =SUMIFS('Raw data cdr'!$CA:$CA,'Raw data cdr'!$D:$D,G$4,'Raw data cdr'!$L:$L,"*",'Raw data cdr'!$N:$N,$C$5) -> 0
D7: =LEFT('Raw data cdr'!CB$1,FIND(" time",'Raw data cdr'!CB$1)-1) -> EDGE | E7: =SUMIFS('Raw data cdr'!$CB:$CB,'Raw data cdr'!$D:$D,E$4,'Raw data cdr'!$L:$L,"*",'Raw data cdr'!$N:$N,$C$5) -> 0 | F7: =SUMIFS('Raw data cdr'!$CB:$CB,'Raw data cdr'!$D:$D,F$4,'Raw data cdr'!$L:$L,"*",'Raw data cdr'!$N:$N,$C$5) -> 0 | G7: =SUMIFS('Raw data cdr'!$CB:$CB,'Raw data cdr'!$D:$D,G$4,'Raw data cdr'!$L:$L,"*",'Raw data cdr'!$N:$N,$C$5) -> 0
D8: =LEFT('Raw data cdr'!CC$1,FIND(" time",'Raw data cdr'!CC$1)-1) -> UMTSR99 | E8: =SUMIFS('Raw data cdr'!$CC:$CC,'Raw data cdr'!$D:$D,E$4,'Raw data cdr'!$L:$L,"*",'Raw data cdr'!$N:$N,$C$5) -> 61.776 | F8: =SUMIFS('Raw data cdr'!$CC:$CC,'Raw data cdr'!$D:$D,F$4,'Raw data cdr'!$L:$L,"*",'Raw data cdr'!$N:$N,$C$5) -> 3.346 | G8: =SUMIFS('Raw data cdr'!$CC:$CC,'Raw data cdr'!$D:$D,G$4,'Raw data cdr'!$L:$L,"*",'Raw data cdr'!$N:$N,$C$5) -> 7.923 | H8: YES
D9: =LEFT('Raw data cdr'!CD$1,FIND(" time",'Raw data cdr'!CD$1)-1) -> HSDPA | E9: =SUMIFS('Raw data cdr'!$CD:$CD,'Raw data cdr'!$D:$D,E$4,'Raw data cdr'!$L:$L,"*",'Raw data cdr'!$N:$N,$C$5) -> 31.958 | F9: =SUMIFS('Raw data cdr'!$CD:$CD,'Raw data cdr'!$D:$D,F$4,'Raw data cdr'!$L:$L,"*",'Raw data cdr'!$N:$N,$C$5) -> 0 | G9: =SUMIFS('Raw data cdr'!$CD:$CD,'Raw data cdr'!$D:$D,G$4,'Raw data cdr'!$L:$L,"*",'Raw data cdr'!$N:$N,$C$5) -> 0 | H9: YES
D10: =LEFT('Raw data cdr'!CE$1,FIND(" time",'Raw data cdr'!CE$1)-1) -> HSUPA | E10: =SUMIFS('Raw data cdr'!$CE:$CE,'Raw data cdr'!$D:$D,E$4,'Raw data cdr'!$L:$L,"*",'Raw data cdr'!$N:$N,$C$5) -> 0 | F10: =SUMIFS('Raw data cdr'!$CE:$CE,'Raw data cdr'!$D:$D,F$4,'Raw data cdr'!$L:$L,"*",'Raw data cdr'!$N:$N,$C$5) -> 0 | G10: =SUMIFS('Raw data cdr'!$CE:$CE,'Raw data cdr'!$D:$D,G$4,'Raw data cdr'!$L:$L,"*",'Raw data cdr'!$N:$N,$C$5) -> 0
D11: =LEFT('Raw data cdr'!CF$1,FIND(" time",'Raw data cdr'!CF$1)-1) -> HSPA | E11: =SUMIFS('Raw data cdr'!$CF:$CF,'Raw data cdr'!$D:$D,E$4,'Raw data cdr'!$L:$L,"*",'Raw data cdr'!$N:$N,$C$5) -> 404.599 | F11: =SUMIFS('Raw data cdr'!$CF:$CF,'Raw data cdr'!$D:$D,F$4,'Raw data cdr'!$L:$L,"*",'Raw data cdr'!$N:$N,$C$5) -> 400.594 | G11: =SUMIFS('Raw data cdr'!$CF:$CF,'Raw data cdr'!$D:$D,G$4,'Raw data cdr'!$L:$L,"*",'Raw data cdr'!$N:$N,$C$5) -> 15.447 | H11: YES
D12: =LEFT('Raw data cdr'!CG$1,FIND(" time",'Raw data cdr'!CG$1)-1) -> HSPA DC | E12: =SUMIFS('Raw data cdr'!$CG:$CG,'Raw data cdr'!$D:$D,E$4,'Raw data cdr'!$L:$L,"*",'Raw data cdr'!$N:$N,$C$5) -> 0 | F12: =SUMIFS('Raw data cdr'!$CG:$CG,'Raw data cdr'!$D:$D,F$4,'Raw data cdr'!$L:$L,"*",'Raw data cdr'!$N:$N,$C$5) -> 0 | G12: =SUMIFS('Raw data cdr'!$CG:$CG,'Raw data cdr'!$D:$D,G$4,'Raw data cdr'!$L:$L,"*",'Raw data cdr'!$N:$N,$C$5) -> 107.221 | H12: YES
D13: =LEFT('Raw data cdr'!CH$1,FIND(" time",'Raw data cdr'!CH$1)-1) -> LTE | E13: =SUMIFS('Raw data cdr'!$CH:$CH,'Raw data cdr'!$D:$D,E$4,'Raw data cdr'!$L:$L,"*",'Raw data cdr'!$N:$N,$C$5) -> 2424.272 | F13: =SUMIFS('Raw data cdr'!$CH:$CH,'Raw data cdr'!$D:$D,F$4,'Raw data cdr'!$L:$L,"*",'Raw data cdr'!$N:$N,$C$5) -> 3908.098 | G13: =SUMIFS('Raw data cdr'!$CH:$CH,'Raw data cdr'!$D:$D,G$4,'Raw data cdr'!$L:$L,"*",'Raw data cdr'!$N:$N,$C$5) -> 2567.7 | H13: YES
D14: =LEFT('Raw data cdr'!CI$1,FIND(" time",'Raw data cdr'!CI$1)-1) -> LTE CA | E14: =SUMIFS('Raw data cdr'!$CI:$CI,'Raw data cdr'!$D:$D,E$4,'Raw data cdr'!$L:$L,"*",'Raw data cdr'!$N:$N,$C$5) -> 4883.908 | F14: =SUMIFS('Raw data cdr'!$CI:$CI,'Raw data cdr'!$D:$D,F$4,'Raw data cdr'!$L:$L,"*",'Raw data cdr'!$N:$N,$C$5) -> 3132.316 | G14: =SUMIFS('Raw data cdr'!$CI:$CI,'Raw data cdr'!$D:$D,G$4,'Raw data cdr'!$L:$L,"*",'Raw data cdr'!$N:$N,$C$5) -> 4091.023 | H14: YES
D15: =LEFT('Raw data cdr'!CJ$1,FIND(" time",'Raw data cdr'!CJ$1)-1) -> DC HSUPA | E15: =SUMIFS('Raw data cdr'!$CJ:$CJ,'Raw data cdr'!$D:$D,E$4,'Raw data cdr'!$L:$L,"*",'Raw data cdr'!$N:$N,$C$5) -> 0 | F15: =SUMIFS('Raw data cdr'!$CJ:$CJ,'Raw data cdr'!$D:$D,F$4,'Raw data cdr'!$L:$L,"*",'Raw data cdr'!$N:$N,$C$5) -> 0 | G15: =SUMIFS('Raw data cdr'!$CJ:$CJ,'Raw data cdr'!$D:$D,G$4,'Raw data cdr'!$L:$L,"*",'Raw data cdr'!$N:$N,$C$5) -> 0
D16: =LEFT('Raw data cdr'!CK$1,FIND(" time",'Raw data cdr'!CK$1)-1) -> LTE CA UL and DL | E16: =SUMIFS('Raw data cdr'!$CK:$CK,'Raw data cdr'!$D:$D,E$4,'Raw data cdr'!$L:$L,"*",'Raw data cdr'!$N:$N,$C$5) -> 0 | F16: =SUMIFS('Raw data cdr'!$CK:$CK,'Raw data cdr'!$D:$D,F$4,'Raw data cdr'!$L:$L,"*",'Raw data cdr'!$N:$N,$C$5) -> 0 | G16: =SUMIFS('Raw data cdr'!$CK:$CK,'Raw data cdr'!$D:$D,G$4,'Raw data cdr'!$L:$L,"*",'Raw data cdr'!$N:$N,$C$5) -> 767.295 | H16: YES
C17: Uplink | D17: total | E17: =SUM(E18:E28) -> 2786.459 | F17: 3375.484 | G17: 2916.269 | H17: YES
D18: =LEFT('Raw data cdr'!CA$1,FIND(" time",'Raw data cdr'!CA$1)-1) -> GPRS | E18: =SUMIFS('Raw data cdr'!$CA:$CA,'Raw data cdr'!$D:$D,E$4,'Raw data cdr'!$L:$L,"*",'Raw data cdr'!$N:$N,$C$17) -> 0 | F18: =SUMIFS('Raw data cdr'!$CA:$CA,'Raw data cdr'!$D:$D,F$4,'Raw data cdr'!$L:$L,"*",'Raw data cdr'!$N:$N,$C$17) -> 0 | G18: =SUMIFS('Raw data cdr'!$CA:$CA,'Raw data cdr'!$D:$D,G$4,'Raw data cdr'!$L:$L,"*",'Raw data cdr'!$N:$N,$C$17) -> 0
D19: =LEFT('Raw data cdr'!CB$1,FIND(" time",'Raw data cdr'!CB$1)-1) -> EDGE | E19: =SUMIFS('Raw data cdr'!$CB:$CB,'Raw data cdr'!$D:$D,E$4,'Raw data cdr'!$L:$L,"*",'Raw data cdr'!$N:$N,$C$17) -> 0 | F19: =SUMIFS('Raw data cdr'!$CB:$CB,'Raw data cdr'!$D:$D,F$4,'Raw data cdr'!$L:$L,"*",'Raw data cdr'!$N:$N,$C$17) -> 0 | G19: =SUMIFS('Raw data cdr'!$CB:$CB,'Raw data cdr'!$D:$D,G$4,'Raw data cdr'!$L:$L,"*",'Raw data cdr'!$N:$N,$C$17) -> 0
D20: =LEFT('Raw data cdr'!CC$1,FIND(" time",'Raw data cdr'!CC$1)-1) -> UMTSR99 | E20: =SUMIFS('Raw data cdr'!$CC:$CC,'Raw data cdr'!$D:$D,E$4,'Raw data cdr'!$L:$L,"*",'Raw data cdr'!$N:$N,$C$17) -> 13.1 | F20: =SUMIFS('Raw data cdr'!$CC:$CC,'Raw data cdr'!$D:$D,F$4,'Raw data cdr'!$L:$L,"*",'Raw data cdr'!$N:$N,$C$17) -> 0 | G20: =SUMIFS('Raw data cdr'!$CC:$CC,'Raw data cdr'!$D:$D,G$4,'Raw data cdr'!$L:$L,"*",'Raw data cdr'!$N:$N,$C$17) -> 0.653 | H20: YES
D21: =LEFT('Raw data cdr'!CD$1,FIND(" time",'Raw data cdr'!CD$1)-1) -> HSDPA | E21: =SUMIFS('Raw data cdr'!$CD:$CD,'Raw data cdr'!$D:$D,E$4,'Raw data cdr'!$L:$L,"*",'Raw data cdr'!$N:$N,$C$17) -> 6.801 | F21: =SUMIFS('Raw data cdr'!$CD:$CD,'Raw data cdr'!$D:$D,F$4,'Raw data cdr'!$L:$L,"*",'Raw data cdr'!$N:$N,$C$17) -> 0 | G21: =SUMIFS('Raw data cdr'!$CD:$CD,'Raw data cdr'!$D:$D,G$4,'Raw data cdr'!$L:$L,"*",'Raw data cdr'!$N:$N,$C$17) -> 0 | H21: YES
D22: =LEFT('Raw data cdr'!CE$1,FIND(" time",'Raw data cdr'!CE$1)-1) -> HSUPA | E22: =SUMIFS('Raw data cdr'!$CE:$CE,'Raw data cdr'!$D:$D,E$4,'Raw data cdr'!$L:$L,"*",'Raw data cdr'!$N:$N,$C$17) -> 0 | F22: =SUMIFS('Raw data cdr'!$CE:$CE,'Raw data cdr'!$D:$D,F$4,'Raw data cdr'!$L:$L,"*",'Raw data cdr'!$N:$N,$C$17) -> 0 | G22: =SUMIFS('Raw data cdr'!$CE:$CE,'Raw data cdr'!$D:$D,G$4,'Raw data cdr'!$L:$L,"*",'Raw data cdr'!$N:$N,$C$17) -> 0
D23: =LEFT('Raw data cdr'!CF$1,FIND(" time",'Raw data cdr'!CF$1)-1) -> HSPA | E23: =SUMIFS('Raw data cdr'!$CF:$CF,'Raw data cdr'!$D:$D,E$4,'Raw data cdr'!$L:$L,"*",'Raw data cdr'!$N:$N,$C$17) -> 172.727 | F23: =SUMIFS('Raw data cdr'!$CF:$CF,'Raw data cdr'!$D:$D,F$4,'Raw data cdr'!$L:$L,"*",'Raw data cdr'!$N:$N,$C$17) -> 71.025 | G23: =SUMIFS('Raw data cdr'!$CF:$CF,'Raw data cdr'!$D:$D,G$4,'Raw data cdr'!$L:$L,"*",'Raw data cdr'!$N:$N,$C$17) -> 8.071 | H23: YES
D24: =LEFT('Raw data cdr'!CG$1,FIND(" time",'Raw data cdr'!CG$1)-1) -> HSPA DC | E24: =SUMIFS('Raw data cdr'!$CG:$CG,'Raw data cdr'!$D:$D,E$4,'Raw data cdr'!$L:$L,"*",'Raw data cdr'!$N:$N,$C$17) -> 0 | F24: =SUMIFS('Raw data cdr'!$CG:$CG,'Raw data cdr'!$D:$D,F$4,'Raw data cdr'!$L:$L,"*",'Raw data cdr'!$N:$N,$C$17) -> 0 | G24: =SUMIFS('Raw data cdr'!$CG:$CG,'Raw data cdr'!$D:$D,G$4,'Raw data cdr'!$L:$L,"*",'Raw data cdr'!$N:$N,$C$17) -> 26.027 | H24: YES
D25: =LEFT('Raw data cdr'!CH$1,FIND(" time",'Raw data cdr'!CH$1)-1) -> LTE | E25: =SUMIFS('Raw data cdr'!$CH:$CH,'Raw data cdr'!$D:$D,E$4,'Raw data cdr'!$L:$L,"*",'Raw data cdr'!$N:$N,$C$17) -> 878.014 | F25: =SUMIFS('Raw data cdr'!$CH:$CH,'Raw data cdr'!$D:$D,F$4,'Raw data cdr'!$L:$L,"*",'Raw data cdr'!$N:$N,$C$17) -> 1829.712 | G25: =SUMIFS('Raw data cdr'!$CH:$CH,'Raw data cdr'!$D:$D,G$4,'Raw data cdr'!$L:$L,"*",'Raw data cdr'!$N:$N,$C$17) -> 944.148 | H25: YES
D26: =LEFT('Raw data cdr'!CI$1,FIND(" time",'Raw data cdr'!CI$1)-1) -> LTE CA | E26: =SUMIFS('Raw data cdr'!$CI:$CI,'Raw data cdr'!$D:$D,E$4,'Raw data cdr'!$L:$L,"*",'Raw data cdr'!$N:$N,$C$17) -> 1715.817 | F26: =SUMIFS('Raw data cdr'!$CI:$CI,'Raw data cdr'!$D:$D,F$4,'Raw data cdr'!$L:$L,"*",'Raw data cdr'!$N:$N,$C$17) -> 1474.747 | G26: =SUMIFS('Raw data cdr'!$CI:$CI,'Raw data cdr'!$D:$D,G$4,'Raw data cdr'!$L:$L,"*",'Raw data cdr'!$N:$N,$C$17) -> 1640.646 | H26: YES
D27: =LEFT('Raw data cdr'!CJ$1,FIND(" time",'Raw data cdr'!CJ$1)-1) -> DC HSUPA | E27: =SUMIFS('Raw data cdr'!$CJ:$CJ,'Raw data cdr'!$D:$D,E$4,'Raw data cdr'!$L:$L,"*",'Raw data cdr'!$N:$N,$C$17) -> 0 | F27: =SUMIFS('Raw data cdr'!$CJ:$CJ,'Raw data cdr'!$D:$D,F$4,'Raw data cdr'!$L:$L,"*",'Raw data cdr'!$N:$N,$C$17) -> 0 | G27: =SUMIFS('Raw data cdr'!$CJ:$CJ,'Raw data cdr'!$D:$D,G$4,'Raw data cdr'!$L:$L,"*",'Raw data cdr'!$N:$N,$C$17) -> 0
D28: =LEFT('Raw data cdr'!CK$1,FIND(" time",'Raw data cdr'!CK$1)-1) -> LTE CA UL and DL | E28: =SUMIFS('Raw data cdr'!$CK:$CK,'Raw data cdr'!$D:$D,E$4,'Raw data cdr'!$L:$L,"*",'Raw data cdr'!$N:$N,$C$17) -> 0 | F28: =SUMIFS('Raw data cdr'!$CK:$CK,'Raw data cdr'!$D:$D,F$4,'Raw data cdr'!$L:$L,"*",'Raw data cdr'!$N:$N,$C$17) -> 0 | G28: =SUMIFS('Raw data cdr'!$CK:$CK,'Raw data cdr'!$D:$D,G$4,'Raw data cdr'!$L:$L,"*",'Raw data cdr'!$N:$N,$C$17) -> 296.724 | H28: YES
B29: HTTPTransfer | C29: Downlink | D29: total | E29: =SUM(E30:E40) -> 659.55 | F29: 646.29 | G29: 714.042 | H29: YES
D30: =LEFT('Raw data cdr'!CA$1,FIND(" time",'Raw data cdr'!CA$1)-1) -> GPRS | E30: =SUMIFS('Raw data cdr'!$CA:$CA,'Raw data cdr'!$D:$D,E$4,'Raw data cdr'!$L:$L,"HTTP",'Raw data cdr'!$N:$N,$C$5) -> 0 | F30: =SUMIFS('Raw data cdr'!$CA:$CA,'Raw data cdr'!$D:$D,F$4,'Raw data cdr'!$L:$L,"HTTP",'Raw data cdr'!$N:$N,$C$5) -> 0 | G30: =SUMIFS('Raw data cdr'!$CA:$CA,'Raw data cdr'!$D:$D,G$4,'Raw data cdr'!$L:$L,"HTTP",'Raw data cdr'!$N:$N,$C$5) -> 0
D31: =LEFT('Raw data cdr'!CB$1,FIND(" time",'Raw data cdr'!CB$1)-1) -> EDGE | E31: =SUMIFS('Raw data cdr'!$CB:$CB,'Raw data cdr'!$D:$D,E$4,'Raw data cdr'!$L:$L,"HTTP",'Raw data cdr'!$N:$N,$C$5) -> 0 | F31: =SUMIFS('Raw data cdr'!$CB:$CB,'Raw data cdr'!$D:$D,F$4,'Raw data cdr'!$L:$L,"HTTP",'Raw data cdr'!$N:$N,$C$5) -> 0 | G31: =SUMIFS('Raw data cdr'!$CB:$CB,'Raw data cdr'!$D:$D,G$4,'Raw data cdr'!$L:$L,"HTTP",'Raw data cdr'!$N:$N,$C$5) -> 0
D32: =LEFT('Raw data cdr'!CC$1,FIND(" time",'Raw data cdr'!CC$1)-1) -> UMTSR99 | E32: =SUMIFS('Raw data cdr'!$CC:$CC,'Raw data cdr'!$D:$D,E$4,'Raw data cdr'!$L:$L,"HTTP",'Raw data cdr'!$N:$N,$C$5) -> 0 | F32: =SUMIFS('Raw data cdr'!$CC:$CC,'Raw data cdr'!$D:$D,F$4,'Raw data cdr'!$L:$L,"HTTP",'Raw data cdr'!$N:$N,$C$5) -> 0 | G32: =SUMIFS('Raw data cdr'!$CC:$CC,'Raw data cdr'!$D:$D,G$4,'Raw data cdr'!$L:$L,"HTTP",'Raw data cdr'!$N:$N,$C$5) -> 0
D33: =LEFT('Raw data cdr'!CD$1,FIND(" time",'Raw data cdr'!CD$1)-1) -> HSDPA | E33: =SUMIFS('Raw data cdr'!$CD:$CD,'Raw data cdr'!$D:$D,E$4,'Raw data cdr'!$L:$L,"HTTP",'Raw data cdr'!$N:$N,$C$5) -> 0 | F33: =SUMIFS('Raw data cdr'!$CD:$CD,'Raw data cdr'!$D:$D,F$4,'Raw data cdr'!$L:$L,"HTTP",'Raw data cdr'!$N:$N,$C$5) -> 0 | G33: =SUMIFS('Raw data cdr'!$CD:$CD,'Raw data cdr'!$D:$D,G$4,'Raw data cdr'!$L:$L,"HTTP",'Raw data cdr'!$N:$N,$C$5) -> 0
D34: =LEFT('Raw data cdr'!CE$1,FIND(" time",'Raw data cdr'!CE$1)-1) -> HSUPA | E34: =SUMIFS('Raw data cdr'!$CE:$CE,'Raw data cdr'!$D:$D,E$4,'Raw data cdr'!$L:$L,"HTTP",'Raw data cdr'!$N:$N,$C$5) -> 0 | F34: =SUMIFS('Raw data cdr'!$CE:$CE,'Raw data cdr'!$D:$D,F$4,'Raw data cdr'!$L:$L,"HTTP",'Raw data cdr'!$N:$N,$C$5) -> 0 | G34: =SUMIFS('Raw data cdr'!$CE:$CE,'Raw data cdr'!$D:$D,G$4,'Raw data cdr'!$L:$L,"HTTP",'Raw data cdr'!$N:$N,$C$5) -> 0
D35: =LEFT('Raw data cdr'!CF$1,FIND(" time",'Raw data cdr'!CF$1)-1) -> HSPA | E35: =SUMIFS('Raw data cdr'!$CF:$CF,'Raw data cdr'!$D:$D,E$4,'Raw data cdr'!$L:$L,"HTTP",'Raw data cdr'!$N:$N,$C$5) -> 25.639 | F35: =SUMIFS('Raw data cdr'!$CF:$CF,'Raw data cdr'!$D:$D,F$4,'Raw data cdr'!$L:$L,"HTTP",'Raw data cdr'!$N:$N,$C$5) -> 19.966 | G35: =SUMIFS('Raw data cdr'!$CF:$CF,'Raw data cdr'!$D:$D,G$4,'Raw data cdr'!$L:$L,"HTTP",'Raw data cdr'!$N:$N,$C$5) -> 0 | H35: YES
D36: =LEFT('Raw data cdr'!CG$1,FIND(" time",'Raw data cdr'!CG$1)-1) -> HSPA DC | E36: =SUMIFS('Raw data cdr'!$CG:$CG,'Raw data cdr'!$D:$D,E$4,'Raw data cdr'!$L:$L,"HTTP",'Raw data cdr'!$N:$N,$C$5) -> 0 | F36: =SUMIFS('Raw data cdr'!$CG:$CG,'Raw data cdr'!$D:$D,F$4,'Raw data cdr'!$L:$L,"HTTP",'Raw data cdr'!$N:$N,$C$5) -> 0 | G36: =SUMIFS('Raw data cdr'!$CG:$CG,'Raw data cdr'!$D:$D,G$4,'Raw data cdr'!$L:$L,"HTTP",'Raw data cdr'!$N:$N,$C$5) -> 7.962 | H36: YES
D37: =LEFT('Raw data cdr'!CH$1,FIND(" time",'Raw data cdr'!CH$1)-1) -> LTE | E37: =SUMIFS('Raw data cdr'!$CH:$CH,'Raw data cdr'!$D:$D,E$4,'Raw data cdr'!$L:$L,"HTTP",'Raw data cdr'!$N:$N,$C$5) -> 239.448 | F37: =SUMIFS('Raw data cdr'!$CH:$CH,'Raw data cdr'!$D:$D,F$4,'Raw data cdr'!$L:$L,"HTTP",'Raw data cdr'!$N:$N,$C$5) -> 358.882 | G37: =SUMIFS('Raw data cdr'!$CH:$CH,'Raw data cdr'!$D:$D,G$4,'Raw data cdr'!$L:$L,"HTTP",'Raw data cdr'!$N:$N,$C$5) -> 231.108 | H37: YES
D38: =LEFT('Raw data cdr'!CI$1,FIND(" time",'Raw data cdr'!CI$1)-1) -> LTE CA | E38: =SUMIFS('Raw data cdr'!$CI:$CI,'Raw data cdr'!$D:$D,E$4,'Raw data cdr'!$L:$L,"HTTP",'Raw data cdr'!$N:$N,$C$5) -> 394.463 | F38: =SUMIFS('Raw data cdr'!$CI:$CI,'Raw data cdr'!$D:$D,F$4,'Raw data cdr'!$L:$L,"HTTP",'Raw data cdr'!$N:$N,$C$5) -> 267.442 | G38: =SUMIFS('Raw data cdr'!$CI:$CI,'Raw data cdr'!$D:$D,G$4,'Raw data cdr'!$L:$L,"HTTP",'Raw data cdr'!$N:$N,$C$5) -> 413.876 | H38: YES
D39: =LEFT('Raw data cdr'!CJ$1,FIND(" time",'Raw data cdr'!CJ$1)-1) -> DC HSUPA | E39: =SUMIFS('Raw data cdr'!$CJ:$CJ,'Raw data cdr'!$D:$D,E$4,'Raw data cdr'!$L:$L,"HTTP",'Raw data cdr'!$N:$N,$C$5) -> 0 | F39: =SUMIFS('Raw data cdr'!$CJ:$CJ,'Raw data cdr'!$D:$D,F$4,'Raw data cdr'!$L:$L,"HTTP",'Raw data cdr'!$N:$N,$C$5) -> 0 | G39: =SUMIFS('Raw data cdr'!$CJ:$CJ,'Raw data cdr'!$D:$D,G$4,'Raw data cdr'!$L:$L,"HTTP",'Raw data cdr'!$N:$N,$C$5) -> 0
D40: =LEFT('Raw data cdr'!CK$1,FIND(" time",'Raw data cdr'!CK$1)-1) -> LTE CA UL and DL | E40: =SUMIFS('Raw data cdr'!$CK:$CK,'Raw data cdr'!$D:$D,E$4,'Raw data cdr'!$L:$L,"HTTP",'Raw data cdr'!$N:$N,$C$5) -> 0 | F40: =SUMIFS('Raw data cdr'!$CK:$CK,'Raw data cdr'!$D:$D,F$4,'Raw data cdr'!$L:$L,"HTTP",'Raw data cdr'!$N:$N,$C$5) -> 0 | G40: =SUMIFS('Raw data cdr'!$CK:$CK,'Raw data cdr'!$D:$D,G$4,'Raw data cdr'!$L:$L,"HTTP",'Raw data cdr'!$N:$N,$C$5) -> 61.096 | H40: YES
C41: Uplink | D41: total | E41: =SUM(E42:E52) -> 2786.459 | F41: 3375.484 | G41: 2916.269 | H41: YES
D42: =LEFT('Raw data cdr'!CA$1,FIND(" time",'Raw data cdr'!CA$1)-1) -> GPRS | E42: =SUMIFS('Raw data cdr'!$CA:$CA,'Raw data cdr'!$D:$D,E$4,'Raw data cdr'!$L:$L,"HTTP",'Raw data cdr'!$N:$N,$C$17) -> 0 | F42: =SUMIFS('Raw data cdr'!$CA:$CA,'Raw data cdr'!$D:$D,F$4,'Raw data cdr'!$L:$L,"HTTP",'Raw data cdr'!$N:$N,$C$17) -> 0 | G42: =SUMIFS('Raw data cdr'!$CA:$CA,'Raw data cdr'!$D:$D,G$4,'Raw data cdr'!$L:$L,"HTTP",'Raw data cdr'!$N:$N,$C$17) -> 0
D43: =LEFT('Raw data cdr'!CB$1,FIND(" time",'Raw data cdr'!CB$1)-1) -> EDGE | E43: =SUMIFS('Raw data cdr'!$CB:$CB,'Raw data cdr'!$D:$D,E$4,'Raw data cdr'!$L:$L,"HTTP",'Raw data cdr'!$N:$N,$C$17) -> 0 | F43: =SUMIFS('Raw data cdr'!$CB:$CB,'Raw data cdr'!$D:$D,F$4,'Raw data cdr'!$L:$L,"HTTP",'Raw data cdr'!$N:$N,$C$17) -> 0 | G43: =SUMIFS('Raw data cdr'!$CB:$CB,'Raw data cdr'!$D:$D,G$4,'Raw data cdr'!$L:$L,"HTTP",'Raw data cdr'!$N:$N,$C$17) -> 0
D44: =LEFT('Raw data cdr'!CC$1,FIND(" time",'Raw data cdr'!CC$1)-1) -> UMTSR99 | E44: =SUMIFS('Raw data cdr'!$CC:$CC,'Raw data cdr'!$D:$D,E$4,'Raw data cdr'!$L:$L,"HTTP",'Raw data cdr'!$N:$N,$C$17) -> 13.1 | F44: =SUMIFS('Raw data cdr'!$CC:$CC,'Raw data cdr'!$D:$D,F$4,'Raw data cdr'!$L:$L,"HTTP",'Raw data cdr'!$N:$N,$C$17) -> 0 | G44: =SUMIFS('Raw data cdr'!$CC:$CC,'Raw data cdr'!$D:$D,G$4,'Raw data cdr'!$L:$L,"HTTP",'Raw data cdr'!$N:$N,$C$17) -> 0.653 | H44: YES
D45: =LEFT('Raw data cdr'!CD$1,FIND(" time",'Raw data cdr'!CD$1)-1) -> HSDPA | E45: =SUMIFS('Raw data cdr'!$CD:$CD,'Raw data cdr'!$D:$D,E$4,'Raw data cdr'!$L:$L,"HTTP",'Raw data cdr'!$N:$N,$C$17) -> 6.801 | F45: =SUMIFS('Raw data cdr'!$CD:$CD,'Raw data cdr'!$D:$D,F$4,'Raw data cdr'!$L:$L,"HTTP",'Raw data cdr'!$N:$N,$C$17) -> 0 | G45: =SUMIFS('Raw data cdr'!$CD:$CD,'Raw data cdr'!$D:$D,G$4,'Raw data cdr'!$L:$L,"HTTP",'Raw data cdr'!$N:$N,$C$17) -> 0 | H45: YES
D46: =LEFT('Raw data cdr'!CE$1,FIND(" time",'Raw data cdr'!CE$1)-1) -> HSUPA | E46: =SUMIFS('Raw data cdr'!$CE:$CE,'Raw data cdr'!$D:$D,E$4,'Raw data cdr'!$L:$L,"HTTP",'Raw data cdr'!$N:$N,$C$17) -> 0 | F46: =SUMIFS('Raw data cdr'!$CE:$CE,'Raw data cdr'!$D:$D,F$4,'Raw data cdr'!$L:$L,"HTTP",'Raw data cdr'!$N:$N,$C$17) -> 0 | G46: =SUMIFS('Raw data cdr'!$CE:$CE,'Raw data cdr'!$D:$D,G$4,'Raw data cdr'!$L:$L,"HTTP",'Raw data cdr'!$N:$N,$C$17) -> 0
D47: =LEFT('Raw data cdr'!CF$1,FIND(" time",'Raw data cdr'!CF$1)-1) -> HSPA | E47: =SUMIFS('Raw data cdr'!$CF:$CF,'Raw data cdr'!$D:$D,E$4,'Raw data cdr'!$L:$L,"HTTP",'Raw data cdr'!$N:$N,$C$17) -> 172.727 | F47: =SUMIFS('Raw data cdr'!$CF:$CF,'Raw data cdr'!$D:$D,F$4,'Raw data cdr'!$L:$L,"HTTP",'Raw data cdr'!$N:$N,$C$17) -> 71.025 | G47: =SUMIFS('Raw data cdr'!$CF:$CF,'Raw data cdr'!$D:$D,G$4,'Raw data cdr'!$L:$L,"HTTP",'Raw data cdr'!$N:$N,$C$17) -> 8.071 | H47: YES
D48: =LEFT('Raw data cdr'!CG$1,FIND(" time",'Raw data cdr'!CG$1)-1) -> HSPA DC | E48: =SUMIFS('Raw data cdr'!$CG:$CG,'Raw data cdr'!$D:$D,E$4,'Raw data cdr'!$L:$L,"HTTP",'Raw data cdr'!$N:$N,$C$17) -> 0 | F48: =SUMIFS('Raw data cdr'!$CG:$CG,'Raw data cdr'!$D:$D,F$4,'Raw data cdr'!$L:$L,"HTTP",'Raw data cdr'!$N:$N,$C$17) -> 0 | G48: =SUMIFS('Raw data cdr'!$CG:$CG,'Raw data cdr'!$D:$D,G$4,'Raw data cdr'!$L:$L,"HTTP",'Raw data cdr'!$N:$N,$C$17) -> 26.027 | H48: YES
D49: =LEFT('Raw data cdr'!CH$1,FIND(" time",'Raw data cdr'!CH$1)-1) -> LTE | E49: =SUMIFS('Raw data cdr'!$CH:$CH,'Raw data cdr'!$D:$D,E$4,'Raw data cdr'!$L:$L,"HTTP",'Raw data cdr'!$N:$N,$C$17) -> 878.014 | F49: =SUMIFS('Raw data cdr'!$CH:$CH,'Raw data cdr'!$D:$D,F$4,'Raw data cdr'!$L:$L,"HTTP",'Raw data cdr'!$N:$N,$C$17) -> 1829.712 | G49: =SUMIFS('Raw data cdr'!$CH:$CH,'Raw data cdr'!$D:$D,G$4,'Raw data cdr'!$L:$L,"HTTP",'Raw data cdr'!$N:$N,$C$17) -> 944.148 | H49: YES
D50: =LEFT('Raw data cdr'!CI$1,FIND(" time",'Raw data cdr'!CI$1)-1) -> LTE CA | E50: =SUMIFS('Raw data cdr'!$CI:$CI,'Raw data cdr'!$D:$D,E$4,'Raw data cdr'!$L:$L,"HTTP",'Raw data cdr'!$N:$N,$C$17) -> 1715.817 | F50: =SUMIFS('Raw data cdr'!$CI:$CI,'Raw data cdr'!$D:$D,F$4,'Raw data cdr'!$L:$L,"HTTP",'Raw data cdr'!$N:$N,$C$17) -> 1474.747 | G50: =SUMIFS('Raw data cdr'!$CI:$CI,'Raw data cdr'!$D:$D,G$4,'Raw data cdr'!$L:$L,"HTTP",'Raw data cdr'!$N:$N,$C$17) -> 1640.646 | H50: YES
D51: =LEFT('Raw data cdr'!CJ$1,FIND(" time",'Raw data cdr'!CJ$1)-1) -> DC HSUPA | E51: =SUMIFS('Raw data cdr'!$CJ:$CJ,'Raw data cdr'!$D:$D,E$4,'Raw data cdr'!$L:$L,"HTTP",'Raw data cdr'!$N:$N,$C$17) -> 0 | F51: =SUMIFS('Raw data cdr'!$CJ:$CJ,'Raw data cdr'!$D:$D,F$4,'Raw data cdr'!$L:$L,"HTTP",'Raw data cdr'!$N:$N,$C$17) -> 0 | G51: =SUMIFS('Raw data cdr'!$CJ:$CJ,'Raw data cdr'!$D:$D,G$4,'Raw data cdr'!$L:$L,"HTTP",'Raw data cdr'!$N:$N,$C$17) -> 0
D52: =LEFT('Raw data cdr'!CK$1,FIND(" time",'Raw data cdr'!CK$1)-1) -> LTE CA UL and DL | E52: =SUMIFS('Raw data cdr'!$CK:$CK,'Raw data cdr'!$D:$D,E$4,'Raw data cdr'!$L:$L,"HTTP",'Raw data cdr'!$N:$N,$C$17) -> 0 | F52: =SUMIFS('Raw data cdr'!$CK:$CK,'Raw data cdr'!$D:$D,F$4,'Raw data cdr'!$L:$L,"HTTP",'Raw data cdr'!$N:$N,$C$17) -> 0 | G52: =SUMIFS('Raw data cdr'!$CK:$CK,'Raw data cdr'!$D:$D,G$4,'Raw data cdr'!$L:$L,"HTTP",'Raw data cdr'!$N:$N,$C$17) -> 296.724 | H52: YES
B53: HTTPBrowser | C53: =Configuration!C8 -> http://benchmarktestsrv.ratel.rs | D53: total | E53: =SUM(E54:E64) -> 331.25 | F53: 365.674 | G53: 306.06 | H53: YES
D54: =LEFT('Raw data cdr'!CA$1,FIND(" time",'Raw data cdr'!CA$1)-1) -> GPRS | E54: =SUMIFS('Raw data cdr'!$CA:$CA,'Raw data cdr'!$D:$D,E$4,'Raw data cdr'!$L:$L,"HTTP browsing",'Raw data cdr'!$O:$O,$C$53) -> 0 | F54: =SUMIFS('Raw data cdr'!$CA:$CA,'Raw data cdr'!$D:$D,F$4,'Raw data cdr'!$L:$L,"HTTP browsing",'Raw data cdr'!$O:$O,$C$53) -> 0 | G54: =SUMIFS('Raw data cdr'!$CA:$CA,'Raw data cdr'!$D:$D,G$4,'Raw data cdr'!$L:$L,"HTTP browsing",'Raw data cdr'!$O:$O,$C$53) -> 0
D55: =LEFT('Raw data cdr'!CB$1,FIND(" time",'Raw data cdr'!CB$1)-1) -> EDGE | E55: =SUMIFS('Raw data cdr'!$CB:$CB,'Raw data cdr'!$D:$D,E$4,'Raw data cdr'!$L:$L,"HTTP browsing",'Raw data cdr'!$O:$O,$C$53) -> 0 | F55: =SUMIFS('Raw data cdr'!$CB:$CB,'Raw data cdr'!$D:$D,F$4,'Raw data cdr'!$L:$L,"HTTP browsing",'Raw data cdr'!$O:$O,$C$53) -> 0 | G55: =SUMIFS('Raw data cdr'!$CB:$CB,'Raw data cdr'!$D:$D,G$4,'Raw data cdr'!$L:$L,"HTTP browsing",'Raw data cdr'!$O:$O,$C$53) -> 0
D56: =LEFT('Raw data cdr'!CC$1,FIND(" time",'Raw data cdr'!CC$1)-1) -> UMTSR99 | E56: =SUMIFS('Raw data cdr'!$CC:$CC,'Raw data cdr'!$D:$D,E$4,'Raw data cdr'!$L:$L,"HTTP browsing",'Raw data cdr'!$O:$O,$C$53) -> 7.882 | F56: =SUMIFS('Raw data cdr'!$CC:$CC,'Raw data cdr'!$D:$D,F$4,'Raw data cdr'!$L:$L,"HTTP browsing",'Raw data cdr'!$O:$O,$C$53) -> 0 | G56: =SUMIFS('Raw data cdr'!$CC:$CC,'Raw data cdr'!$D:$D,G$4,'Raw data cdr'!$L:$L,"HTTP browsing",'Raw data cdr'!$O:$O,$C$53) -> 0 | H56: YES
D57: =LEFT('Raw data cdr'!CD$1,FIND(" time",'Raw data cdr'!CD$1)-1) -> HSDPA | E57: =SUMIFS('Raw data cdr'!$CD:$CD,'Raw data cdr'!$D:$D,E$4,'Raw data cdr'!$L:$L,"HTTP browsing",'Raw data cdr'!$O:$O,$C$53) -> 5.362 | F57: =SUMIFS('Raw data cdr'!$CD:$CD,'Raw data cdr'!$D:$D,F$4,'Raw data cdr'!$L:$L,"HTTP browsing",'Raw data cdr'!$O:$O,$C$53) -> 0 | G57: =SUMIFS('Raw data cdr'!$CD:$CD,'Raw data cdr'!$D:$D,G$4,'Raw data cdr'!$L:$L,"HTTP browsing",'Raw data cdr'!$O:$O,$C$53) -> 0 | H57: YES
D58: =LEFT('Raw data cdr'!CE$1,FIND(" time",'Raw data cdr'!CE$1)-1) -> HSUPA | E58: =SUMIFS('Raw data cdr'!$CE:$CE,'Raw data cdr'!$D:$D,E$4,'Raw data cdr'!$L:$L,"HTTP browsing",'Raw data cdr'!$O:$O,$C$53) -> 0 | F58: =SUMIFS('Raw data cdr'!$CE:$CE,'Raw data cdr'!$D:$D,F$4,'Raw data cdr'!$L:$L,"HTTP browsing",'Raw data cdr'!$O:$O,$C$53) -> 0 | G58: =SUMIFS('Raw data cdr'!$CE:$CE,'Raw data cdr'!$D:$D,G$4,'Raw data cdr'!$L:$L,"HTTP browsing",'Raw data cdr'!$O:$O,$C$53) -> 0
D59: =LEFT('Raw data cdr'!CF$1,FIND(" time",'Raw data cdr'!CF$1)-1) -> HSPA | E59: =SUMIFS('Raw data cdr'!$CF:$CF,'Raw data cdr'!$D:$D,E$4,'Raw data cdr'!$L:$L,"HTTP browsing",'Raw data cdr'!$O:$O,$C$53) -> 31.729 | F59: =SUMIFS('Raw data cdr'!$CF:$CF,'Raw data cdr'!$D:$D,F$4,'Raw data cdr'!$L:$L,"HTTP browsing",'Raw data cdr'!$O:$O,$C$53) -> 26.886 | G59: =SUMIFS('Raw data cdr'!$CF:$CF,'Raw data cdr'!$D:$D,G$4,'Raw data cdr'!$L:$L,"HTTP browsing",'Raw data cdr'!$O:$O,$C$53) -> 0 | H59: YES
D60: =LEFT('Raw data cdr'!CG$1,FIND(" time",'Raw data cdr'!CG$1)-1) -> HSPA DC | E60: =SUMIFS('Raw data cdr'!$CG:$CG,'Raw data cdr'!$D:$D,E$4,'Raw data cdr'!$L:$L,"HTTP browsing",'Raw data cdr'!$O:$O,$C$53) -> 0 | F60: =SUMIFS('Raw data cdr'!$CG:$CG,'Raw data cdr'!$D:$D,F$4,'Raw data cdr'!$L:$L,"HTTP browsing",'Raw data cdr'!$O:$O,$C$53) -> 0 | G60: =SUMIFS('Raw data cdr'!$CG:$CG,'Raw data cdr'!$D:$D,G$4,'Raw data cdr'!$L:$L,"HTTP browsing",'Raw data cdr'!$O:$O,$C$53) -> 0
D61: =LEFT('Raw data cdr'!CH$1,FIND(" time",'Raw data cdr'!CH$1)-1) -> LTE | E61: =SUMIFS('Raw data cdr'!$CH:$CH,'Raw data cdr'!$D:$D,E$4,'Raw data cdr'!$L:$L,"HTTP browsing",'Raw data cdr'!$O:$O,$C$53) -> 103.074 | F61: =SUMIFS('Raw data cdr'!$CH:$CH,'Raw data cdr'!$D:$D,F$4,'Raw data cdr'!$L:$L,"HTTP browsing",'Raw data cdr'!$O:$O,$C$53) -> 178.568 | G61: =SUMIFS('Raw data cdr'!$CH:$CH,'Raw data cdr'!$D:$D,G$4,'Raw data cdr'!$L:$L,"HTTP browsing",'Raw data cdr'!$O:$O,$C$53) -> 97.759 | H61: YES
D62: =LEFT('Raw data cdr'!CI$1,FIND(" time",'Raw data cdr'!CI$1)-1) -> LTE CA | E62: =SUMIFS('Raw data cdr'!$CI:$CI,'Raw data cdr'!$D:$D,E$4,'Raw data cdr'!$L:$L,"HTTP browsing",'Raw data cdr'!$O:$O,$C$53) -> 183.203 | F62: =SUMIFS('Raw data cdr'!$CI:$CI,'Raw data cdr'!$D:$D,F$4,'Raw data cdr'!$L:$L,"HTTP browsing",'Raw data cdr'!$O:$O,$C$53) -> 160.22 | G62: =SUMIFS('Raw data cdr'!$CI:$CI,'Raw data cdr'!$D:$D,G$4,'Raw data cdr'!$L:$L,"HTTP browsing",'Raw data cdr'!$O:$O,$C$53) -> 170.287 | H62: YES
D63: =LEFT('Raw data cdr'!CJ$1,FIND(" time",'Raw data cdr'!CJ$1)-1) -> DC HSUPA | E63: =SUMIFS('Raw data cdr'!$CJ:$CJ,'Raw data cdr'!$D:$D,E$4,'Raw data cdr'!$L:$L,"HTTP browsing",'Raw data cdr'!$O:$O,$C$53) -> 0 | F63: =SUMIFS('Raw data cdr'!$CJ:$CJ,'Raw data cdr'!$D:$D,F$4,'Raw data cdr'!$L:$L,"HTTP browsing",'Raw data cdr'!$O:$O,$C$53) -> 0 | G63: =SUMIFS('Raw data cdr'!$CJ:$CJ,'Raw data cdr'!$D:$D,G$4,'Raw data cdr'!$L:$L,"HTTP browsing",'Raw data cdr'!$O:$O,$C$53) -> 0
D64: =LEFT('Raw data cdr'!CK$1,FIND(" time",'Raw data cdr'!CK$1)-1) -> LTE CA UL and DL | E64: =SUMIFS('Raw data cdr'!$CK:$CK,'Raw data cdr'!$D:$D,E$4,'Raw data cdr'!$L:$L,"HTTP browsing",'Raw data cdr'!$O:$O,$C$53) -> 0 | F64: =SUMIFS('Raw data cdr'!$CK:$CK,'Raw data cdr'!$D:$D,F$4,'Raw data cdr'!$L:$L,"HTTP browsing",'Raw data cdr'!$O:$O,$C$53) -> 0 | G64: =SUMIFS('Raw data cdr'!$CK:$CK,'Raw data cdr'!$D:$D,G$4,'Raw data cdr'!$L:$L,"HTTP browsing",'Raw data cdr'!$O:$O,$C$53) -> 38.014 | H64: YES
C65: =Configuration!C9 -> https://m.kupujemprodajem.com | D65: total | E65: =SUM(E66:E76) -> 463.715 | F65: 446.812 | G65: 450.094 | H65: YES
D66: =LEFT('Raw data cdr'!CA$1,FIND(" time",'Raw data cdr'!CA$1)-1) -> GPRS | E66: =SUMIFS('Raw data cdr'!$CA:$CA,'Raw data cdr'!$D:$D,E$4,'Raw data cdr'!$L:$L,"HTTP browsing",'Raw data cdr'!$O:$O,$C$65) -> 0 | F66: =SUMIFS('Raw data cdr'!$CA:$CA,'Raw data cdr'!$D:$D,F$4,'Raw data cdr'!$L:$L,"HTTP browsing",'Raw data cdr'!$O:$O,$C$65) -> 0 | G66: =SUMIFS('Raw data cdr'!$CA:$CA,'Raw data cdr'!$D:$D,G$4,'Raw data cdr'!$L:$L,"HTTP browsing",'Raw data cdr'!$O:$O,$C$65) -> 0
D67: =LEFT('Raw data cdr'!CB$1,FIND(" time",'Raw data cdr'!CB$1)-1) -> EDGE | E67: =SUMIFS('Raw data cdr'!$CB:$CB,'Raw data cdr'!$D:$D,E$4,'Raw data cdr'!$L:$L,"HTTP browsing",'Raw data cdr'!$O:$O,$C$65) -> 0 | F67: =SUMIFS('Raw data cdr'!$CB:$CB,'Raw data cdr'!$D:$D,F$4,'Raw data cdr'!$L:$L,"HTTP browsing",'Raw data cdr'!$O:$O,$C$65) -> 0 | G67: =SUMIFS('Raw data cdr'!$CB:$CB,'Raw data cdr'!$D:$D,G$4,'Raw data cdr'!$L:$L,"HTTP browsing",'Raw data cdr'!$O:$O,$C$65) -> 0
D68: =LEFT('Raw data cdr'!CC$1,FIND(" time",'Raw data cdr'!CC$1)-1) -> UMTSR99 | E68: =SUMIFS('Raw data cdr'!$CC:$CC,'Raw data cdr'!$D:$D,E$4,'Raw data cdr'!$L:$L,"HTTP browsing",'Raw data cdr'!$O:$O,$C$65) -> 11.42 | F68: =SUMIFS('Raw data cdr'!$CC:$CC,'Raw data cdr'!$D:$D,F$4,'Raw data cdr'!$L:$L,"HTTP browsing",'Raw data cdr'!$O:$O,$C$65) -> 3.346 | G68: =SUMIFS('Raw data cdr'!$CC:$CC,'Raw data cdr'!$D:$D,G$4,'Raw data cdr'!$L:$L,"HTTP browsing",'Raw data cdr'!$O:$O,$C$65) -> 0 | H68: YES
D69: =LEFT('Raw data cdr'!CD$1,FIND(" time",'Raw data cdr'!CD$1)-1) -> HSDPA | E69: =SUMIFS('Raw data cdr'!$CD:$CD,'Raw data cdr'!$D:$D,E$4,'Raw data cdr'!$L:$L,"HTTP browsing",'Raw data cdr'!$O:$O,$C$65) -> 10.168 | F69: =SUMIFS('Raw data cdr'!$CD:$CD,'Raw data cdr'!$D:$D,F$4,'Raw data cdr'!$L:$L,"HTTP browsing",'Raw data cdr'!$O:$O,$C$65) -> 0 | G69: =SUMIFS('Raw data cdr'!$CD:$CD,'Raw data cdr'!$D:$D,G$4,'Raw data cdr'!$L:$L,"HTTP browsing",'Raw data cdr'!$O:$O,$C$65) -> 0 | H69: YES
D70: =LEFT('Raw data cdr'!CE$1,FIND(" time",'Raw data cdr'!CE$1)-1) -> HSUPA | E70: =SUMIFS('Raw data cdr'!$CE:$CE,'Raw data cdr'!$D:$D,E$4,'Raw data cdr'!$L:$L,"HTTP browsing",'Raw data cdr'!$O:$O,$C$65) -> 0 | F70: =SUMIFS('Raw data cdr'!$CE:$CE,'Raw data cdr'!$D:$D,F$4,'Raw data cdr'!$L:$L,"HTTP browsing",'Raw data cdr'!$O:$O,$C$65) -> 0 | G70: =SUMIFS('Raw data cdr'!$CE:$CE,'Raw data cdr'!$D:$D,G$4,'Raw data cdr'!$L:$L,"HTTP browsing",'Raw data cdr'!$O:$O,$C$65) -> 0
D71: =LEFT('Raw data cdr'!CF$1,FIND(" time",'Raw data cdr'!CF$1)-1) -> HSPA | E71: =SUMIFS('Raw data cdr'!$CF:$CF,'Raw data cdr'!$D:$D,E$4,'Raw data cdr'!$L:$L,"HTTP browsing",'Raw data cdr'!$O:$O,$C$65) -> 41.083 | F71: =SUMIFS('Raw data cdr'!$CF:$CF,'Raw data cdr'!$D:$D,F$4,'Raw data cdr'!$L:$L,"HTTP browsing",'Raw data cdr'!$O:$O,$C$65) -> 17.71 | G71: =SUMIFS('Raw data cdr'!$CF:$CF,'Raw data cdr'!$D:$D,G$4,'Raw data cdr'!$L:$L,"HTTP browsing",'Raw data cdr'!$O:$O,$C$65) -> 2.432 | H71: YES
D72: =LEFT('Raw data cdr'!CG$1,FIND(" time",'Raw data cdr'!CG$1)-1) -> HSPA DC | E72: =SUMIFS('Raw data cdr'!$CG:$CG,'Raw data cdr'!$D:$D,E$4,'Raw data cdr'!$L:$L,"HTTP browsing",'Raw data cdr'!$O:$O,$C$65) -> 0 | F72: =SUMIFS('Raw data cdr'!$CG:$CG,'Raw data cdr'!$D:$D,F$4,'Raw data cdr'!$L:$L,"HTTP browsing",'Raw data cdr'!$O:$O,$C$65) -> 0 | G72: =SUMIFS('Raw data cdr'!$CG:$CG,'Raw data cdr'!$D:$D,G$4,'Raw data cdr'!$L:$L,"HTTP browsing",'Raw data cdr'!$O:$O,$C$65) -> 1.788 | H72: YES
D73: =LEFT('Raw data cdr'!CH$1,FIND(" time",'Raw data cdr'!CH$1)-1) -> LTE | E73: =SUMIFS('Raw data cdr'!$CH:$CH,'Raw data cdr'!$D:$D,E$4,'Raw data cdr'!$L:$L,"HTTP browsing",'Raw data cdr'!$O:$O,$C$65) -> 124.974 | F73: =SUMIFS('Raw data cdr'!$CH:$CH,'Raw data cdr'!$D:$D,F$4,'Raw data cdr'!$L:$L,"HTTP browsing",'Raw data cdr'!$O:$O,$C$65) -> 231.187 | G73: =SUMIFS('Raw data cdr'!$CH:$CH,'Raw data cdr'!$D:$D,G$4,'Raw data cdr'!$L:$L,"HTTP browsing",'Raw data cdr'!$O:$O,$C$65) -> 155.194 | H73: YES
D74: =LEFT('Raw data cdr'!CI$1,FIND(" time",'Raw data cdr'!CI$1)-1) -> LTE CA | E74: =SUMIFS('Raw data cdr'!$CI:$CI,'Raw data cdr'!$D:$D,E$4,'Raw data cdr'!$L:$L,"HTTP browsing",'Raw data cdr'!$O:$O,$C$65) -> 276.07 | F74: =SUMIFS('Raw data cdr'!$CI:$CI,'Raw data cdr'!$D:$D,F$4,'Raw data cdr'!$L:$L,"HTTP browsing",'Raw data cdr'!$O:$O,$C$65) -> 194.569 | G74: =SUMIFS('Raw data cdr'!$CI:$CI,'Raw data cdr'!$D:$D,G$4,'Raw data cdr'!$L:$L,"HTTP browsing",'Raw data cdr'!$O:$O,$C$65) -> 234.912 | H74: YES
D75: =LEFT('Raw data cdr'!CJ$1,FIND(" time",'Raw data cdr'!CJ$1)-1) -> DC HSUPA | E75: =SUMIFS('Raw data cdr'!$CJ:$CJ,'Raw data cdr'!$D:$D,E$4,'Raw data cdr'!$L:$L,"HTTP browsing",'Raw data cdr'!$O:$O,$C$65) -> 0 | F75: =SUMIFS('Raw data cdr'!$CJ:$CJ,'Raw data cdr'!$D:$D,F$4,'Raw data cdr'!$L:$L,"HTTP browsing",'Raw data cdr'!$O:$O,$C$65) -> 0 | G75: =SUMIFS('Raw data cdr'!$CJ:$CJ,'Raw data cdr'!$D:$D,G$4,'Raw data cdr'!$L:$L,"HTTP browsing",'Raw data cdr'!$O:$O,$C$65) -> 0
D76: =LEFT('Raw data cdr'!CK$1,FIND(" time",'Raw data cdr'!CK$1)-1) -> LTE CA UL and DL | E76: =SUMIFS('Raw data cdr'!$CK:$CK,'Raw data cdr'!$D:$D,E$4,'Raw data cdr'!$L:$L,"HTTP browsing",'Raw data cdr'!$O:$O,$C$65) -> 0 | F76: =SUMIFS('Raw data cdr'!$CK:$CK,'Raw data cdr'!$D:$D,F$4,'Raw data cdr'!$L:$L,"HTTP browsing",'Raw data cdr'!$O:$O,$C$65) -> 0 | G76: =SUMIFS('Raw data cdr'!$CK:$CK,'Raw data cdr'!$D:$D,G$4,'Raw data cdr'!$L:$L,"HTTP browsing",'Raw data cdr'!$O:$O,$C$65) -> 55.768 | H76: YES
C77: =Configuration!C10 -> https://www.google.rs | D77: total | E77: =SUM(E78:E88) -> 0 | F77: 0 | G77: 0
D78: =LEFT('Raw data cdr'!CA$1,FIND(" time",'Raw data cdr'!CA$1)-1) -> GPRS | E78: =SUMIFS('Raw data cdr'!$CA:$CA,'Raw data cdr'!$D:$D,E$4,'Raw data cdr'!$L:$L,"HTTP browsing",'Raw data cdr'!$O:$O,$C$77) -> 0 | F78: =SUMIFS('Raw data cdr'!$CA:$CA,'Raw data cdr'!$D:$D,F$4,'Raw data cdr'!$L:$L,"HTTP browsing",'Raw data cdr'!$O:$O,$C$77) -> 0 | G78: =SUMIFS('Raw data cdr'!$CA:$CA,'Raw data cdr'!$D:$D,G$4,'Raw data cdr'!$L:$L,"HTTP browsing",'Raw data cdr'!$O:$O,$C$77) -> 0
D79: =LEFT('Raw data cdr'!CB$1,FIND(" time",'Raw data cdr'!CB$1)-1) -> EDGE | E79: =SUMIFS('Raw data cdr'!$CB:$CB,'Raw data cdr'!$D:$D,E$4,'Raw data cdr'!$L:$L,"HTTP browsing",'Raw data cdr'!$O:$O,$C$77) -> 0 | F79: =SUMIFS('Raw data cdr'!$CB:$CB,'Raw data cdr'!$D:$D,F$4,'Raw data cdr'!$L:$L,"HTTP browsing",'Raw data cdr'!$O:$O,$C$77) -> 0 | G79: =SUMIFS('Raw data cdr'!$CB:$CB,'Raw data cdr'!$D:$D,G$4,'Raw data cdr'!$L:$L,"HTTP browsing",'Raw data cdr'!$O:$O,$C$77) -> 0
D80: =LEFT('Raw data cdr'!CC$1,FIND(" time",'Raw data cdr'!CC$1)-1) -> UMTSR99 | E80: =SUMIFS('Raw data cdr'!$CC:$CC,'Raw data cdr'!$D:$D,E$4,'Raw data cdr'!$L:$L,"HTTP browsing",'Raw data cdr'!$O:$O,$C$77) -> 0 | F80: =SUMIFS('Raw data cdr'!$CC:$CC,'Raw data cdr'!$D:$D,F$4,'Raw data cdr'!$L:$L,"HTTP browsing",'Raw data cdr'!$O:$O,$C$77) -> 0 | G80: =SUMIFS('Raw data cdr'!$CC:$CC,'Raw data cdr'!$D:$D,G$4,'Raw data cdr'!$L:$L,"HTTP browsing",'Raw data cdr'!$O:$O,$C$77) -> 0
D81: =LEFT('Raw data cdr'!CD$1,FIND(" time",'Raw data cdr'!CD$1)-1) -> HSDPA | E81: =SUMIFS('Raw data cdr'!$CD:$CD,'Raw data cdr'!$D:$D,E$4,'Raw data cdr'!$L:$L,"HTTP browsing",'Raw data cdr'!$O:$O,$C$77) -> 0 | F81: =SUMIFS('Raw data cdr'!$CD:$CD,'Raw data cdr'!$D:$D,F$4,'Raw data cdr'!$L:$L,"HTTP browsing",'Raw data cdr'!$O:$O,$C$77) -> 0 | G81: =SUMIFS('Raw data cdr'!$CD:$CD,'Raw data cdr'!$D:$D,G$4,'Raw data cdr'!$L:$L,"HTTP browsing",'Raw data cdr'!$O:$O,$C$77) -> 0
D82: =LEFT('Raw data cdr'!CE$1,FIND(" time",'Raw data cdr'!CE$1)-1) -> HSUPA | E82: =SUMIFS('Raw data cdr'!$CE:$CE,'Raw data cdr'!$D:$D,E$4,'Raw data cdr'!$L:$L,"HTTP browsing",'Raw data cdr'!$O:$O,$C$77) -> 0 | F82: =SUMIFS('Raw data cdr'!$CE:$CE,'Raw data cdr'!$D:$D,F$4,'Raw data cdr'!$L:$L,"HTTP browsing",'Raw data cdr'!$O:$O,$C$77) -> 0 | G82: =SUMIFS('Raw data cdr'!$CE:$CE,'Raw data cdr'!$D:$D,G$4,'Raw data cdr'!$L:$L,"HTTP browsing",'Raw data cdr'!$O:$O,$C$77) -> 0
D83: =LEFT('Raw data cdr'!CF$1,FIND(" time",'Raw data cdr'!CF$1)-1) -> HSPA | E83: =SUMIFS('Raw data cdr'!$CF:$CF,'Raw data cdr'!$D:$D,E$4,'Raw data cdr'!$L:$L,"HTTP browsing",'Raw data cdr'!$O:$O,$C$77) -> 0 | F83: =SUMIFS('Raw data cdr'!$CF:$CF,'Raw data cdr'!$D:$D,F$4,'Raw data cdr'!$L:$L,"HTTP browsing",'Raw data cdr'!$O:$O,$C$77) -> 0 | G83: =SUMIFS('Raw data cdr'!$CF:$CF,'Raw data cdr'!$D:$D,G$4,'Raw data cdr'!$L:$L,"HTTP browsing",'Raw data cdr'!$O:$O,$C$77) -> 0
D84: =LEFT('Raw data cdr'!CG$1,FIND(" time",'Raw data cdr'!CG$1)-1) -> HSPA DC | E84: =SUMIFS('Raw data cdr'!$CG:$CG,'Raw data cdr'!$D:$D,E$4,'Raw data cdr'!$L:$L,"HTTP browsing",'Raw data cdr'!$O:$O,$C$77) -> 0 | F84: =SUMIFS('Raw data cdr'!$CG:$CG,'Raw data cdr'!$D:$D,F$4,'Raw data cdr'!$L:$L,"HTTP browsing",'Raw data cdr'!$O:$O,$C$77) -> 0 | G84: =SUMIFS('Raw data cdr'!$CG:$CG,'Raw data cdr'!$D:$D,G$4,'Raw data cdr'!$L:$L,"HTTP browsing",'Raw data cdr'!$O:$O,$C$77) -> 0
D85: =LEFT('Raw data cdr'!CH$1,FIND(" time",'Raw data cdr'!CH$1)-1) -> LTE | E85: =SUMIFS('Raw data cdr'!$CH:$CH,'Raw data cdr'!$D:$D,E$4,'Raw data cdr'!$L:$L,"HTTP browsing",'Raw data cdr'!$O:$O,$C$77) -> 0 | F85: =SUMIFS('Raw data cdr'!$CH:$CH,'Raw data cdr'!$D:$D,F$4,'Raw data cdr'!$L:$L,"HTTP browsing",'Raw data cdr'!$O:$O,$C$77) -> 0 | G85: =SUMIFS('Raw data cdr'!$CH:$CH,'Raw data cdr'!$D:$D,G$4,'Raw data cdr'!$L:$L,"HTTP browsing",'Raw data cdr'!$O:$O,$C$77) -> 0
D86: =LEFT('Raw data cdr'!CI$1,FIND(" time",'Raw data cdr'!CI$1)-1) -> LTE CA | E86: =SUMIFS('Raw data cdr'!$CI:$CI,'Raw data cdr'!$D:$D,E$4,'Raw data cdr'!$L:$L,"HTTP browsing",'Raw data cdr'!$O:$O,$C$77) -> 0 | F86: =SUMIFS('Raw data cdr'!$CI:$CI,'Raw data cdr'!$D:$D,F$4,'Raw data cdr'!$L:$L,"HTTP browsing",'Raw data cdr'!$O:$O,$C$77) -> 0 | G86: =SUMIFS('Raw data cdr'!$CI:$CI,'Raw data cdr'!$D:$D,G$4,'Raw data cdr'!$L:$L,"HTTP browsing",'Raw data cdr'!$O:$O,$C$77) -> 0
D87: =LEFT('Raw data cdr'!CJ$1,FIND(" time",'Raw data cdr'!CJ$1)-1) -> DC HSUPA | E87: =SUMIFS('Raw data cdr'!$CJ:$CJ,'Raw data cdr'!$D:$D,E$4,'Raw data cdr'!$L:$L,"HTTP browsing",'Raw data cdr'!$O:$O,$C$77) -> 0 | F87: =SUMIFS('Raw data cdr'!$CJ:$CJ,'Raw data cdr'!$D:$D,F$4,'Raw data cdr'!$L:$L,"HTTP browsing",'Raw data cdr'!$O:$O,$C$77) -> 0 | G87: =SUMIFS('Raw data cdr'!$CJ:$CJ,'Raw data cdr'!$D:$D,G$4,'Raw data cdr'!$L:$L,"HTTP browsing",'Raw data cdr'!$O:$O,$C$77) -> 0
D88: =LEFT('Raw data cdr'!CK$1,FIND(" time",'Raw data cdr'!CK$1)-1) -> LTE CA UL and DL | E88: =SUMIFS('Raw data cdr'!$CK:$CK,'Raw data cdr'!$D:$D,E$4,'Raw data cdr'!$L:$L,"HTTP browsing",'Raw data cdr'!$O:$O,$C$77) -> 0 | F88: =SUMIFS('Raw data cdr'!$CK:$CK,'Raw data cdr'!$D:$D,F$4,'Raw data cdr'!$L:$L,"HTTP browsing",'Raw data cdr'!$O:$O,$C$77) -> 0 | G88: =SUMIFS('Raw data cdr'!$CK:$CK,'Raw data cdr'!$D:$D,G$4,'Raw data cdr'!$L:$L,"HTTP browsing",'Raw data cdr'!$O:$O,$C$77) -> 0
C89: =Configuration!C11 -> https://www.instagram.com | D89: total | E89: =SUM(E90:E100) -> 0 | F89: 0 | G89: 0
D90: =LEFT('Raw data cdr'!CA$1,FIND(" time",'Raw data cdr'!CA$1)-1) -> GPRS | E90: =SUMIFS('Raw data cdr'!$CA:$CA,'Raw data cdr'!$D:$D,E$4,'Raw data cdr'!$L:$L,"HTTP browsing",'Raw data cdr'!$O:$O,$C$89) -> 0 | F90: =SUMIFS('Raw data cdr'!$CA:$CA,'Raw data cdr'!$D:$D,F$4,'Raw data cdr'!$L:$L,"HTTP browsing",'Raw data cdr'!$O:$O,$C$89) -> 0 | G90: =SUMIFS('Raw data cdr'!$CA:$CA,'Raw data cdr'!$D:$D,G$4,'Raw data cdr'!$L:$L,"HTTP browsing",'Raw data cdr'!$O:$O,$C$89) -> 0
D91: =LEFT('Raw data cdr'!CB$1,FIND(" time",'Raw data cdr'!CB$1)-1) -> EDGE | E91: =SUMIFS('Raw data cdr'!$CB:$CB,'Raw data cdr'!$D:$D,E$4,'Raw data cdr'!$L:$L,"HTTP browsing",'Raw data cdr'!$O:$O,$C$89) -> 0 | F91: =SUMIFS('Raw data cdr'!$CB:$CB,'Raw data cdr'!$D:$D,F$4,'Raw data cdr'!$L:$L,"HTTP browsing",'Raw data cdr'!$O:$O,$C$89) -> 0 | G91: =SUMIFS('Raw data cdr'!$CB:$CB,'Raw data cdr'!$D:$D,G$4,'Raw data cdr'!$L:$L,"HTTP browsing",'Raw data cdr'!$O:$O,$C$89) -> 0
D92: =LEFT('Raw data cdr'!CC$1,FIND(" time",'Raw data cdr'!CC$1)-1) -> UMTSR99 | E92: =SUMIFS('Raw data cdr'!$CC:$CC,'Raw data cdr'!$D:$D,E$4,'Raw data cdr'!$L:$L,"HTTP browsing",'Raw data cdr'!$O:$O,$C$89) -> 0 | F92: =SUMIFS('Raw data cdr'!$CC:$CC,'Raw data cdr'!$D:$D,F$4,'Raw data cdr'!$L:$L,"HTTP browsing",'Raw data cdr'!$O:$O,$C$89) -> 0 | G92: =SUMIFS('Raw data cdr'!$CC:$CC,'Raw data cdr'!$D:$D,G$4,'Raw data cdr'!$L:$L,"HTTP browsing",'Raw data cdr'!$O:$O,$C$89) -> 0
D93: =LEFT('Raw data cdr'!CD$1,FIND(" time",'Raw data cdr'!CD$1)-1) -> HSDPA | E93: =SUMIFS('Raw data cdr'!$CD:$CD,'Raw data cdr'!$D:$D,E$4,'Raw data cdr'!$L:$L,"HTTP browsing",'Raw data cdr'!$O:$O,$C$89) -> 0 | F93: =SUMIFS('Raw data cdr'!$CD:$CD,'Raw data cdr'!$D:$D,F$4,'Raw data cdr'!$L:$L,"HTTP browsing",'Raw data cdr'!$O:$O,$C$89) -> 0 | G93: =SUMIFS('Raw data cdr'!$CD:$CD,'Raw data cdr'!$D:$D,G$4,'Raw data cdr'!$L:$L,"HTTP browsing",'Raw data cdr'!$O:$O,$C$89) -> 0
D94: =LEFT('Raw data cdr'!CE$1,FIND(" time",'Raw data cdr'!CE$1)-1) -> HSUPA | E94: =SUMIFS('Raw data cdr'!$CE:$CE,'Raw data cdr'!$D:$D,E$4,'Raw data cdr'!$L:$L,"HTTP browsing",'Raw data cdr'!$O:$O,$C$89) -> 0 | F94: =SUMIFS('Raw data cdr'!$CE:$CE,'Raw data cdr'!$D:$D,F$4,'Raw data cdr'!$L:$L,"HTTP browsing",'Raw data cdr'!$O:$O,$C$89) -> 0 | G94: =SUMIFS('Raw data cdr'!$CE:$CE,'Raw data cdr'!$D:$D,G$4,'Raw data cdr'!$L:$L,"HTTP browsing",'Raw data cdr'!$O:$O,$C$89) -> 0
D95: =LEFT('Raw data cdr'!CF$1,FIND(" time",'Raw data cdr'!CF$1)-1) -> HSPA | E95: =SUMIFS('Raw data cdr'!$CF:$CF,'Raw data cdr'!$D:$D,E$4,'Raw data cdr'!$L:$L,"HTTP browsing",'Raw data cdr'!$O:$O,$C$89) -> 0 | F95: =SUMIFS('Raw data cdr'!$CF:$CF,'Raw data cdr'!$D:$D,F$4,'Raw data cdr'!$L:$L,"HTTP browsing",'Raw data cdr'!$O:$O,$C$89) -> 0 | G95: =SUMIFS('Raw data cdr'!$CF:$CF,'Raw data cdr'!$D:$D,G$4,'Raw data cdr'!$L:$L,"HTTP browsing",'Raw data cdr'!$O:$O,$C$89) -> 0
D96: =LEFT('Raw data cdr'!CG$1,FIND(" time",'Raw data cdr'!CG$1)-1) -> HSPA DC | E96: =SUMIFS('Raw data cdr'!$CG:$CG,'Raw data cdr'!$D:$D,E$4,'Raw data cdr'!$L:$L,"HTTP browsing",'Raw data cdr'!$O:$O,$C$89) -> 0 | F96: =SUMIFS('Raw data cdr'!$CG:$CG,'Raw data cdr'!$D:$D,F$4,'Raw data cdr'!$L:$L,"HTTP browsing",'Raw data cdr'!$O:$O,$C$89) -> 0 | G96: =SUMIFS('Raw data cdr'!$CG:$CG,'Raw data cdr'!$D:$D,G$4,'Raw data cdr'!$L:$L,"HTTP browsing",'Raw data cdr'!$O:$O,$C$89) -> 0
D97: =LEFT('Raw data cdr'!CH$1,FIND(" time",'Raw data cdr'!CH$1)-1) -> LTE | E97: =SUMIFS('Raw data cdr'!$CH:$CH,'Raw data cdr'!$D:$D,E$4,'Raw data cdr'!$L:$L,"HTTP browsing",'Raw data cdr'!$O:$O,$C$89) -> 0 | F97: =SUMIFS('Raw data cdr'!$CH:$CH,'Raw data cdr'!$D:$D,F$4,'Raw data cdr'!$L:$L,"HTTP browsing",'Raw data cdr'!$O:$O,$C$89) -> 0 | G97: =SUMIFS('Raw data cdr'!$CH:$CH,'Raw data cdr'!$D:$D,G$4,'Raw data cdr'!$L:$L,"HTTP browsing",'Raw data cdr'!$O:$O,$C$89) -> 0
D98: =LEFT('Raw data cdr'!CI$1,FIND(" time",'Raw data cdr'!CI$1)-1) -> LTE CA | E98: =SUMIFS('Raw data cdr'!$CI:$CI,'Raw data cdr'!$D:$D,E$4,'Raw data cdr'!$L:$L,"HTTP browsing",'Raw data cdr'!$O:$O,$C$89) -> 0 | F98: =SUMIFS('Raw data cdr'!$CI:$CI,'Raw data cdr'!$D:$D,F$4,'Raw data cdr'!$L:$L,"HTTP browsing",'Raw data cdr'!$O:$O,$C$89) -> 0 | G98: =SUMIFS('Raw data cdr'!$CI:$CI,'Raw data cdr'!$D:$D,G$4,'Raw data cdr'!$L:$L,"HTTP browsing",'Raw data cdr'!$O:$O,$C$89) -> 0
D99: =LEFT('Raw data cdr'!CJ$1,FIND(" time",'Raw data cdr'!CJ$1)-1) -> DC HSUPA | E99: =SUMIFS('Raw data cdr'!$CJ:$CJ,'Raw data cdr'!$D:$D,E$4,'Raw data cdr'!$L:$L,"HTTP browsing",'Raw data cdr'!$O:$O,$C$89) -> 0 | F99: =SUMIFS('Raw data cdr'!$CJ:$CJ,'Raw data cdr'!$D:$D,F$4,'Raw data cdr'!$L:$L,"HTTP browsing",'Raw data cdr'!$O:$O,$C$89) -> 0 | G99: =SUMIFS('Raw data cdr'!$CJ:$CJ,'Raw data cdr'!$D:$D,G$4,'Raw data cdr'!$L:$L,"HTTP browsing",'Raw data cdr'!$O:$O,$C$89) -> 0
D100: =LEFT('Raw data cdr'!CK$1,FIND(" time",'Raw data cdr'!CK$1)-1) -> LTE CA UL and DL | E100: =SUMIFS('Raw data cdr'!$CK:$CK,'Raw data cdr'!$D:$D,E$4,'Raw data cdr'!$L:$L,"HTTP browsing",'Raw data cdr'!$O:$O,$C$89) -> 0 | F100: =SUMIFS('Raw data cdr'!$CK:$CK,'Raw data cdr'!$D:$D,F$4,'Raw data cdr'!$L:$L,"HTTP browsing",'Raw data cdr'!$O:$O,$C$89) -> 0 | G100: =SUMIFS('Raw data cdr'!$CK:$CK,'Raw data cdr'!$D:$D,G$4,'Raw data cdr'!$L:$L,"HTTP browsing",'Raw data cdr'!$O:$O,$C$89) -> 0
C101: =Configuration!C12 -> url missing | D101: total | E101: =SUM(E102:E112) -> 0 | F101: 0 | G101: 0
D102: =LEFT('Raw data cdr'!CA$1,FIND(" time",'Raw data cdr'!CA$1)-1) -> GPRS | E102: =SUMIFS('Raw data cdr'!$CA:$CA,'Raw data cdr'!$D:$D,E$4,'Raw data cdr'!$L:$L,"HTTP browsing",'Raw data cdr'!$O:$O,$C$101) -> 0 | F102: =SUMIFS('Raw data cdr'!$CA:$CA,'Raw data cdr'!$D:$D,F$4,'Raw data cdr'!$L:$L,"HTTP browsing",'Raw data cdr'!$O:$O,$C$101) -> 0 | G102: =SUMIFS('Raw data cdr'!$CA:$CA,'Raw data cdr'!$D:$D,G$4,'Raw data cdr'!$L:$L,"HTTP browsing",'Raw data cdr'!$O:$O,$C$101) -> 0
D103: =LEFT('Raw data cdr'!CB$1,FIND(" time",'Raw data cdr'!CB$1)-1) -> EDGE | E103: =SUMIFS('Raw data cdr'!$CB:$CB,'Raw data cdr'!$D:$D,E$4,'Raw data cdr'!$L:$L,"HTTP browsing",'Raw data cdr'!$O:$O,$C$101) -> 0 | F103: =SUMIFS('Raw data cdr'!$CB:$CB,'Raw data cdr'!$D:$D,F$4,'Raw data cdr'!$L:$L,"HTTP browsing",'Raw data cdr'!$O:$O,$C$101) -> 0 | G103: =SUMIFS('Raw data cdr'!$CB:$CB,'Raw data cdr'!$D:$D,G$4,'Raw data cdr'!$L:$L,"HTTP browsing",'Raw data cdr'!$O:$O,$C$101) -> 0
D104: =LEFT('Raw data cdr'!CC$1,FIND(" time",'Raw data cdr'!CC$1)-1) -> UMTSR99 | E104: =SUMIFS('Raw data cdr'!$CC:$CC,'Raw data cdr'!$D:$D,E$4,'Raw data cdr'!$L:$L,"HTTP browsing",'Raw data cdr'!$O:$O,$C$101) -> 0 | F104: =SUMIFS('Raw data cdr'!$CC:$CC,'Raw data cdr'!$D:$D,F$4,'Raw data cdr'!$L:$L,"HTTP browsing",'Raw data cdr'!$O:$O,$C$101) -> 0 | G104: =SUMIFS('Raw data cdr'!$CC:$CC,'Raw data cdr'!$D:$D,G$4,'Raw data cdr'!$L:$L,"HTTP browsing",'Raw data cdr'!$O:$O,$C$101) -> 0
D105: =LEFT('Raw data cdr'!CD$1,FIND(" time",'Raw data cdr'!CD$1)-1) -> HSDPA | E105: =SUMIFS('Raw data cdr'!$CD:$CD,'Raw data cdr'!$D:$D,E$4,'Raw data cdr'!$L:$L,"HTTP browsing",'Raw data cdr'!$O:$O,$C$101) -> 0 | F105: =SUMIFS('Raw data cdr'!$CD:$CD,'Raw data cdr'!$D:$D,F$4,'Raw data cdr'!$L:$L,"HTTP browsing",'Raw data cdr'!$O:$O,$C$101) -> 0 | G105: =SUMIFS('Raw data cdr'!$CD:$CD,'Raw data cdr'!$D:$D,G$4,'Raw data cdr'!$L:$L,"HTTP browsing",'Raw data cdr'!$O:$O,$C$101) -> 0
D106: =LEFT('Raw data cdr'!CE$1,FIND(" time",'Raw data cdr'!CE$1)-1) -> HSUPA | E106: =SUMIFS('Raw data cdr'!$CE:$CE,'Raw data cdr'!$D:$D,E$4,'Raw data cdr'!$L:$L,"HTTP browsing",'Raw data cdr'!$O:$O,$C$101) -> 0 | F106: =SUMIFS('Raw data cdr'!$CE:$CE,'Raw data cdr'!$D:$D,F$4,'Raw data cdr'!$L:$L,"HTTP browsing",'Raw data cdr'!$O:$O,$C$101) -> 0 | G106: =SUMIFS('Raw data cdr'!$CE:$CE,'Raw data cdr'!$D:$D,G$4,'Raw data cdr'!$L:$L,"HTTP browsing",'Raw data cdr'!$O:$O,$C$101) -> 0
D107: =LEFT('Raw data cdr'!CF$1,FIND(" time",'Raw data cdr'!CF$1)-1) -> HSPA | E107: =SUMIFS('Raw data cdr'!$CF:$CF,'Raw data cdr'!$D:$D,E$4,'Raw data cdr'!$L:$L,"HTTP browsing",'Raw data cdr'!$O:$O,$C$101) -> 0 | F107: =SUMIFS('Raw data cdr'!$CF:$CF,'Raw data cdr'!$D:$D,F$4,'Raw data cdr'!$L:$L,"HTTP browsing",'Raw data cdr'!$O:$O,$C$101) -> 0 | G107: =SUMIFS('Raw data cdr'!$CF:$CF,'Raw data cdr'!$D:$D,G$4,'Raw data cdr'!$L:$L,"HTTP browsing",'Raw data cdr'!$O:$O,$C$101) -> 0
D108: =LEFT('Raw data cdr'!CG$1,FIND(" time",'Raw data cdr'!CG$1)-1) -> HSPA DC | E108: =SUMIFS('Raw data cdr'!$CG:$CG,'Raw data cdr'!$D:$D,E$4,'Raw data cdr'!$L:$L,"HTTP browsing",'Raw data cdr'!$O:$O,$C$101) -> 0 | F108: =SUMIFS('Raw data cdr'!$CG:$CG,'Raw data cdr'!$D:$D,F$4,'Raw data cdr'!$L:$L,"HTTP browsing",'Raw data cdr'!$O:$O,$C$101) -> 0 | G108: =SUMIFS('Raw data cdr'!$CG:$CG,'Raw data cdr'!$D:$D,G$4,'Raw data cdr'!$L:$L,"HTTP browsing",'Raw data cdr'!$O:$O,$C$101) -> 0
D109: =LEFT('Raw data cdr'!CH$1,FIND(" time",'Raw data cdr'!CH$1)-1) -> LTE | E109: =SUMIFS('Raw data cdr'!$CH:$CH,'Raw data cdr'!$D:$D,E$4,'Raw data cdr'!$L:$L,"HTTP browsing",'Raw data cdr'!$O:$O,$C$101) -> 0 | F109: =SUMIFS('Raw data cdr'!$CH:$CH,'Raw data cdr'!$D:$D,F$4,'Raw data cdr'!$L:$L,"HTTP browsing",'Raw data cdr'!$O:$O,$C$101) -> 0 | G109: =SUMIFS('Raw data cdr'!$CH:$CH,'Raw data cdr'!$D:$D,G$4,'Raw data cdr'!$L:$L,"HTTP browsing",'Raw data cdr'!$O:$O,$C$101) -> 0
D110: =LEFT('Raw data cdr'!CI$1,FIND(" time",'Raw data cdr'!CI$1)-1) -> LTE CA | E110: =SUMIFS('Raw data cdr'!$CI:$CI,'Raw data cdr'!$D:$D,E$4,'Raw data cdr'!$L:$L,"HTTP browsing",'Raw data cdr'!$O:$O,$C$101) -> 0 | F110: =SUMIFS('Raw data cdr'!$CI:$CI,'Raw data cdr'!$D:$D,F$4,'Raw data cdr'!$L:$L,"HTTP browsing",'Raw data cdr'!$O:$O,$C$101) -> 0 | G110: =SUMIFS('Raw data cdr'!$CI:$CI,'Raw data cdr'!$D:$D,G$4,'Raw data cdr'!$L:$L,"HTTP browsing",'Raw data cdr'!$O:$O,$C$101) -> 0
D111: =LEFT('Raw data cdr'!CJ$1,FIND(" time",'Raw data cdr'!CJ$1)-1) -> DC HSUPA | E111: =SUMIFS('Raw data cdr'!$CJ:$CJ,'Raw data cdr'!$D:$D,E$4,'Raw data cdr'!$L:$L,"HTTP browsing",'Raw data cdr'!$O:$O,$C$101) -> 0 | F111: =SUMIFS('Raw data cdr'!$CJ:$CJ,'Raw data cdr'!$D:$D,F$4,'Raw data cdr'!$L:$L,"HTTP browsing",'Raw data cdr'!$O:$O,$C$101) -> 0 | G111: =SUMIFS('Raw data cdr'!$CJ:$CJ,'Raw data cdr'!$D:$D,G$4,'Raw data cdr'!$L:$L,"HTTP browsing",'Raw data cdr'!$O:$O,$C$101) -> 0
D112: =LEFT('Raw data cdr'!CK$1,FIND(" time",'Raw data cdr'!CK$1)-1) -> LTE CA UL and DL | E112: =SUMIFS('Raw data cdr'!$CK:$CK,'Raw data cdr'!$D:$D,E$4,'Raw data cdr'!$L:$L,"HTTP browsing",'Raw data cdr'!$O:$O,$C$101) -> 0 | F112: =SUMIFS('Raw data cdr'!$CK:$CK,'Raw data cdr'!$D:$D,F$4,'Raw data cdr'!$L:$L,"HTTP browsing",'Raw data cdr'!$O:$O,$C$101) -> 0 | G112: =SUMIFS('Raw data cdr'!$CK:$CK,'Raw data cdr'!$D:$D,G$4,'Raw data cdr'!$L:$L,"HTTP browsing",'Raw data cdr'!$O:$O,$C$101) -> 0
C113: =Configuration!C13 -> url missing | D113: total | E113: =SUM(E114:E124) -> 0 | F113: 0 | G113: 0
D114: =LEFT('Raw data cdr'!CA$1,FIND(" time",'Raw data cdr'!CA$1)-1) -> GPRS | E114: =SUMIFS('Raw data cdr'!$CA:$CA,'Raw data cdr'!$D:$D,E$4,'Raw data cdr'!$L:$L,"HTTP browsing",'Raw data cdr'!$O:$O,$C$113) -> 0 | F114: =SUMIFS('Raw data cdr'!$CA:$CA,'Raw data cdr'!$D:$D,F$4,'Raw data cdr'!$L:$L,"HTTP browsing",'Raw data cdr'!$O:$O,$C$113) -> 0 | G114: =SUMIFS('Raw data cdr'!$CA:$CA,'Raw data cdr'!$D:$D,G$4,'Raw data cdr'!$L:$L,"HTTP browsing",'Raw data cdr'!$O:$O,$C$113) -> 0
D115: =LEFT('Raw data cdr'!CB$1,FIND(" time",'Raw data cdr'!CB$1)-1) -> EDGE | E115: =SUMIFS('Raw data cdr'!$CB:$CB,'Raw data cdr'!$D:$D,E$4,'Raw data cdr'!$L:$L,"HTTP browsing",'Raw data cdr'!$O:$O,$C$113) -> 0 | F115: =SUMIFS('Raw data cdr'!$CB:$CB,'Raw data cdr'!$D:$D,F$4,'Raw data cdr'!$L:$L,"HTTP browsing",'Raw data cdr'!$O:$O,$C$113) -> 0 | G115: =SUMIFS('Raw data cdr'!$CB:$CB,'Raw data cdr'!$D:$D,G$4,'Raw data cdr'!$L:$L,"HTTP browsing",'Raw data cdr'!$O:$O,$C$113) -> 0
D116: =LEFT('Raw data cdr'!CC$1,FIND(" time",'Raw data cdr'!CC$1)-1) -> UMTSR99 | E116: =SUMIFS('Raw data cdr'!$CC:$CC,'Raw data cdr'!$D:$D,E$4,'Raw data cdr'!$L:$L,"HTTP browsing",'Raw data cdr'!$O:$O,$C$113) -> 0 | F116: =SUMIFS('Raw data cdr'!$CC:$CC,'Raw data cdr'!$D:$D,F$4,'Raw data cdr'!$L:$L,"HTTP browsing",'Raw data cdr'!$O:$O,$C$113) -> 0 | G116: =SUMIFS('Raw data cdr'!$CC:$CC,'Raw data cdr'!$D:$D,G$4,'Raw data cdr'!$L:$L,"HTTP browsing",'Raw data cdr'!$O:$O,$C$113) -> 0
D117: =LEFT('Raw data cdr'!CD$1,FIND(" time",'Raw data cdr'!CD$1)-1) -> HSDPA | E117: =SUMIFS('Raw data cdr'!$CD:$CD,'Raw data cdr'!$D:$D,E$4,'Raw data cdr'!$L:$L,"HTTP browsing",'Raw data cdr'!$O:$O,$C$113) -> 0 | F117: =SUMIFS('Raw data cdr'!$CD:$CD,'Raw data cdr'!$D:$D,F$4,'Raw data cdr'!$L:$L,"HTTP browsing",'Raw data cdr'!$O:$O,$C$113) -> 0 | G117: =SUMIFS('Raw data cdr'!$CD:$CD,'Raw data cdr'!$D:$D,G$4,'Raw data cdr'!$L:$L,"HTTP browsing",'Raw data cdr'!$O:$O,$C$113) -> 0
D118: =LEFT('Raw data cdr'!CE$1,FIND(" time",'Raw data cdr'!CE$1)-1) -> HSUPA | E118: =SUMIFS('Raw data cdr'!$CE:$CE,'Raw data cdr'!$D:$D,E$4,'Raw data cdr'!$L:$L,"HTTP browsing",'Raw data cdr'!$O:$O,$C$113) -> 0 | F118: =SUMIFS('Raw data cdr'!$CE:$CE,'Raw data cdr'!$D:$D,F$4,'Raw data cdr'!$L:$L,"HTTP browsing",'Raw data cdr'!$O:$O,$C$113) -> 0 | G118: =SUMIFS('Raw data cdr'!$CE:$CE,'Raw data cdr'!$D:$D,G$4,'Raw data cdr'!$L:$L,"HTTP browsing",'Raw data cdr'!$O:$O,$C$113) -> 0
D119: =LEFT('Raw data cdr'!CF$1,FIND(" time",'Raw data cdr'!CF$1)-1) -> HSPA | E119: =SUMIFS('Raw data cdr'!$CF:$CF,'Raw data cdr'!$D:$D,E$4,'Raw data cdr'!$L:$L,"HTTP browsing",'Raw data cdr'!$O:$O,$C$113) -> 0 | F119: =SUMIFS('Raw data cdr'!$CF:$CF,'Raw data cdr'!$D:$D,F$4,'Raw data cdr'!$L:$L,"HTTP browsing",'Raw data cdr'!$O:$O,$C$113) -> 0 | G119: =SUMIFS('Raw data cdr'!$CF:$CF,'Raw data cdr'!$D:$D,G$4,'Raw data cdr'!$L:$L,"HTTP browsing",'Raw data cdr'!$O:$O,$C$113) -> 0
D120: =LEFT('Raw data cdr'!CG$1,FIND(" time",'Raw data cdr'!CG$1)-1) -> HSPA DC | E120: =SUMIFS('Raw data cdr'!$CG:$CG,'Raw data cdr'!$D:$D,E$4,'Raw data cdr'!$L:$L,"HTTP browsing",'Raw data cdr'!$O:$O,$C$113) -> 0 | F120: =SUMIFS('Raw data cdr'!$CG:$CG,'Raw data cdr'!$D:$D,F$4,'Raw data cdr'!$L:$L,"HTTP browsing",'Raw data cdr'!$O:$O,$C$113) -> 0 | G120: =SUMIFS('Raw data cdr'!$CG:$CG,'Raw data cdr'!$D:$D,G$4,'Raw data cdr'!$L:$L,"HTTP browsing",'Raw data cdr'!$O:$O,$C$113) -> 0
D121: =LEFT('Raw data cdr'!CH$1,FIND(" time",'Raw data cdr'!CH$1)-1) -> LTE | E121: =SUMIFS('Raw data cdr'!$CH:$CH,'Raw data cdr'!$D:$D,E$4,'Raw data cdr'!$L:$L,"HTTP browsing",'Raw data cdr'!$O:$O,$C$113) -> 0 | F121: =SUMIFS('Raw data cdr'!$CH:$CH,'Raw data cdr'!$D:$D,F$4,'Raw data cdr'!$L:$L,"HTTP browsing",'Raw data cdr'!$O:$O,$C$113) -> 0 | G121: =SUMIFS('Raw data cdr'!$CH:$CH,'Raw data cdr'!$D:$D,G$4,'Raw data cdr'!$L:$L,"HTTP browsing",'Raw data cdr'!$O:$O,$C$113) -> 0
D122: =LEFT('Raw data cdr'!CI$1,FIND(" time",'Raw data cdr'!CI$1)-1) -> LTE CA | E122: =SUMIFS('Raw data cdr'!$CI:$CI,'Raw data cdr'!$D:$D,E$4,'Raw data cdr'!$L:$L,"HTTP browsing",'Raw data cdr'!$O:$O,$C$113) -> 0 | F122: =SUMIFS('Raw data cdr'!$CI:$CI,'Raw data cdr'!$D:$D,F$4,'Raw data cdr'!$L:$L,"HTTP browsing",'Raw data cdr'!$O:$O,$C$113) -> 0 | G122: =SUMIFS('Raw data cdr'!$CI:$CI,'Raw data cdr'!$D:$D,G$4,'Raw data cdr'!$L:$L,"HTTP browsing",'Raw data cdr'!$O:$O,$C$113) -> 0
D123: =LEFT('Raw data cdr'!CJ$1,FIND(" time",'Raw data cdr'!CJ$1)-1) -> DC HSUPA | E123: =SUMIFS('Raw data cdr'!$CJ:$CJ,'Raw data cdr'!$D:$D,E$4,'Raw data cdr'!$L:$L,"HTTP browsing",'Raw data cdr'!$O:$O,$C$113) -> 0 | F123: =SUMIFS('Raw data cdr'!$CJ:$CJ,'Raw data cdr'!$D:$D,F$4,'Raw data cdr'!$L:$L,"HTTP browsing",'Raw data cdr'!$O:$O,$C$113) -> 0 | G123: =SUMIFS('Raw data cdr'!$CJ:$CJ,'Raw data cdr'!$D:$D,G$4,'Raw data cdr'!$L:$L,"HTTP browsing",'Raw data cdr'!$O:$O,$C$113) -> 0
D124: =LEFT('Raw data cdr'!CK$1,FIND(" time",'Raw data cdr'!CK$1)-1) -> LTE CA UL and DL | E124: =SUMIFS('Raw data cdr'!$CK:$CK,'Raw data cdr'!$D:$D,E$4,'Raw data cdr'!$L:$L,"HTTP browsing",'Raw data cdr'!$O:$O,$C$113) -> 0 | F124: =SUMIFS('Raw data cdr'!$CK:$CK,'Raw data cdr'!$D:$D,F$4,'Raw data cdr'!$L:$L,"HTTP browsing",'Raw data cdr'!$O:$O,$C$113) -> 0 | G124: =SUMIFS('Raw data cdr'!$CK:$CK,'Raw data cdr'!$D:$D,G$4,'Raw data cdr'!$L:$L,"HTTP browsing",'Raw data cdr'!$O:$O,$C$113) -> 0
C125: =Configuration!C14 -> url missing | D125: total | E125: =SUM(E126:E136) -> 0 | F125: 0 | G125: 0
D126: =LEFT('Raw data cdr'!CA$1,FIND(" time",'Raw data cdr'!CA$1)-1) -> GPRS | E126: =SUMIFS('Raw data cdr'!$CA:$CA,'Raw data cdr'!$D:$D,E$4,'Raw data cdr'!$L:$L,"HTTP browsing",'Raw data cdr'!$O:$O,$C$125) -> 0 | F126: =SUMIFS('Raw data cdr'!$CA:$CA,'Raw data cdr'!$D:$D,F$4,'Raw data cdr'!$L:$L,"HTTP browsing",'Raw data cdr'!$O:$O,$C$125) -> 0 | G126: =SUMIFS('Raw data cdr'!$CA:$CA,'Raw data cdr'!$D:$D,G$4,'Raw data cdr'!$L:$L,"HTTP browsing",'Raw data cdr'!$O:$O,$C$125) -> 0
D127: =LEFT('Raw data cdr'!CB$1,FIND(" time",'Raw data cdr'!CB$1)-1) -> EDGE | E127: =SUMIFS('Raw data cdr'!$CB:$CB,'Raw data cdr'!$D:$D,E$4,'Raw data cdr'!$L:$L,"HTTP browsing",'Raw data cdr'!$O:$O,$C$125) -> 0 | F127: =SUMIFS('Raw data cdr'!$CB:$CB,'Raw data cdr'!$D:$D,F$4,'Raw data cdr'!$L:$L,"HTTP browsing",'Raw data cdr'!$O:$O,$C$125) -> 0 | G127: =SUMIFS('Raw data cdr'!$CB:$CB,'Raw data cdr'!$D:$D,G$4,'Raw data cdr'!$L:$L,"HTTP browsing",'Raw data cdr'!$O:$O,$C$125) -> 0
D128: =LEFT('Raw data cdr'!CC$1,FIND(" time",'Raw data cdr'!CC$1)-1) -> UMTSR99 | E128: =SUMIFS('Raw data cdr'!$CC:$CC,'Raw data cdr'!$D:$D,E$4,'Raw data cdr'!$L:$L,"HTTP browsing",'Raw data cdr'!$O:$O,$C$125) -> 0 | F128: =SUMIFS('Raw data cdr'!$CC:$CC,'Raw data cdr'!$D:$D,F$4,'Raw data cdr'!$L:$L,"HTTP browsing",'Raw data cdr'!$O:$O,$C$125) -> 0 | G128: =SUMIFS('Raw data cdr'!$CC:$CC,'Raw data cdr'!$D:$D,G$4,'Raw data cdr'!$L:$L,"HTTP browsing",'Raw data cdr'!$O:$O,$C$125) -> 0
D129: =LEFT('Raw data cdr'!CD$1,FIND(" time",'Raw data cdr'!CD$1)-1) -> HSDPA | E129: =SUMIFS('Raw data cdr'!$CD:$CD,'Raw data cdr'!$D:$D,E$4,'Raw data cdr'!$L:$L,"HTTP browsing",'Raw data cdr'!$O:$O,$C$125) -> 0 | F129: =SUMIFS('Raw data cdr'!$CD:$CD,'Raw data cdr'!$D:$D,F$4,'Raw data cdr'!$L:$L,"HTTP browsing",'Raw data cdr'!$O:$O,$C$125) -> 0 | G129: =SUMIFS('Raw data cdr'!$CD:$CD,'Raw data cdr'!$D:$D,G$4,'Raw data cdr'!$L:$L,"HTTP browsing",'Raw data cdr'!$O:$O,$C$125) -> 0
D130: =LEFT('Raw data cdr'!CE$1,FIND(" time",'Raw data cdr'!CE$1)-1) -> HSUPA | E130: =SUMIFS('Raw data cdr'!$CE:$CE,'Raw data cdr'!$D:$D,E$4,'Raw data cdr'!$L:$L,"HTTP browsing",'Raw data cdr'!$O:$O,$C$125) -> 0 | F130: =SUMIFS('Raw data cdr'!$CE:$CE,'Raw data cdr'!$D:$D,F$4,'Raw data cdr'!$L:$L,"HTTP browsing",'Raw data cdr'!$O:$O,$C$125) -> 0 | G130: =SUMIFS('Raw data cdr'!$CE:$CE,'Raw data cdr'!$D:$D,G$4,'Raw data cdr'!$L:$L,"HTTP browsing",'Raw data cdr'!$O:$O,$C$125) -> 0
D131: =LEFT('Raw data cdr'!CF$1,FIND(" time",'Raw data cdr'!CF$1)-1) -> HSPA | E131: =SUMIFS('Raw data cdr'!$CF:$CF,'Raw data cdr'!$D:$D,E$4,'Raw data cdr'!$L:$L,"HTTP browsing",'Raw data cdr'!$O:$O,$C$125) -> 0 | F131: =SUMIFS('Raw data cdr'!$CF:$CF,'Raw data cdr'!$D:$D,F$4,'Raw data cdr'!$L:$L,"HTTP browsing",'Raw data cdr'!$O:$O,$C$125) -> 0 | G131: =SUMIFS('Raw data cdr'!$CF:$CF,'Raw data cdr'!$D:$D,G$4,'Raw data cdr'!$L:$L,"HTTP browsing",'Raw data cdr'!$O:$O,$C$125) -> 0
D132: =LEFT('Raw data cdr'!CG$1,FIND(" time",'Raw data cdr'!CG$1)-1) -> HSPA DC | E132: =SUMIFS('Raw data cdr'!$CG:$CG,'Raw data cdr'!$D:$D,E$4,'Raw data cdr'!$L:$L,"HTTP browsing",'Raw data cdr'!$O:$O,$C$125) -> 0 | F132: =SUMIFS('Raw data cdr'!$CG:$CG,'Raw data cdr'!$D:$D,F$4,'Raw data cdr'!$L:$L,"HTTP browsing",'Raw data cdr'!$O:$O,$C$125) -> 0 | G132: =SUMIFS('Raw data cdr'!$CG:$CG,'Raw data cdr'!$D:$D,G$4,'Raw data cdr'!$L:$L,"HTTP browsing",'Raw data cdr'!$O:$O,$C$125) -> 0
D133: =LEFT('Raw data cdr'!CH$1,FIND(" time",'Raw data cdr'!CH$1)-1) -> LTE | E133: =SUMIFS('Raw data cdr'!$CH:$CH,'Raw data cdr'!$D:$D,E$4,'Raw data cdr'!$L:$L,"HTTP browsing",'Raw data cdr'!$O:$O,$C$125) -> 0 | F133: =SUMIFS('Raw data cdr'!$CH:$CH,'Raw data cdr'!$D:$D,F$4,'Raw data cdr'!$L:$L,"HTTP browsing",'Raw data cdr'!$O:$O,$C$125) -> 0 | G133: =SUMIFS('Raw data cdr'!$CH:$CH,'Raw data cdr'!$D:$D,G$4,'Raw data cdr'!$L:$L,"HTTP browsing",'Raw data cdr'!$O:$O,$C$125) -> 0
D134: =LEFT('Raw data cdr'!CI$1,FIND(" time",'Raw data cdr'!CI$1)-1) -> LTE CA | E134: =SUMIFS('Raw data cdr'!$CI:$CI,'Raw data cdr'!$D:$D,E$4,'Raw data cdr'!$L:$L,"HTTP browsing",'Raw data cdr'!$O:$O,$C$125) -> 0 | F134: =SUMIFS('Raw data cdr'!$CI:$CI,'Raw data cdr'!$D:$D,F$4,'Raw data cdr'!$L:$L,"HTTP browsing",'Raw data cdr'!$O:$O,$C$125) -> 0 | G134: =SUMIFS('Raw data cdr'!$CI:$CI,'Raw data cdr'!$D:$D,G$4,'Raw data cdr'!$L:$L,"HTTP browsing",'Raw data cdr'!$O:$O,$C$125) -> 0
D135: =LEFT('Raw data cdr'!CJ$1,FIND(" time",'Raw data cdr'!CJ$1)-1) -> DC HSUPA | E135: =SUMIFS('Raw data cdr'!$CJ:$CJ,'Raw data cdr'!$D:$D,E$4,'Raw data cdr'!$L:$L,"HTTP browsing",'Raw data cdr'!$O:$O,$C$125) -> 0 | F135: =SUMIFS('Raw data cdr'!$CJ:$CJ,'Raw data cdr'!$D:$D,F$4,'Raw data cdr'!$L:$L,"HTTP browsing",'Raw data cdr'!$O:$O,$C$125) -> 0 | G135: =SUMIFS('Raw data cdr'!$CJ:$CJ,'Raw data cdr'!$D:$D,G$4,'Raw data cdr'!$L:$L,"HTTP browsing",'Raw data cdr'!$O:$O,$C$125) -> 0
D136: =LEFT('Raw data cdr'!CK$1,FIND(" time",'Raw data cdr'!CK$1)-1) -> LTE CA UL and DL | E136: =SUMIFS('Raw data cdr'!$CK:$CK,'Raw data cdr'!$D:$D,E$4,'Raw data cdr'!$L:$L,"HTTP browsing",'Raw data cdr'!$O:$O,$C$125) -> 0 | F136: =SUMIFS('Raw data cdr'!$CK:$CK,'Raw data cdr'!$D:$D,F$4,'Raw data cdr'!$L:$L,"HTTP browsing",'Raw data cdr'!$O:$O,$C$125) -> 0 | G136: =SUMIFS('Raw data cdr'!$CK:$CK,'Raw data cdr'!$D:$D,G$4,'Raw data cdr'!$L:$L,"HTTP browsing",'Raw data cdr'!$O:$O,$C$125) -> 0
C137: =Configuration!C15 -> url missing | D137: total | E137: =SUM(E138:E148) -> 0 | F137: 0 | G137: 0
D138: =LEFT('Raw data cdr'!CA$1,FIND(" time",'Raw data cdr'!CA$1)-1) -> GPRS | E138: =SUMIFS('Raw data cdr'!$CA:$CA,'Raw data cdr'!$D:$D,E$4,'Raw data cdr'!$L:$L,"HTTP browsing",'Raw data cdr'!$O:$O,$C$137) -> 0 | F138: =SUMIFS('Raw data cdr'!$CA:$CA,'Raw data cdr'!$D:$D,F$4,'Raw data cdr'!$L:$L,"HTTP browsing",'Raw data cdr'!$O:$O,$C$137) -> 0 | G138: =SUMIFS('Raw data cdr'!$CA:$CA,'Raw data cdr'!$D:$D,G$4,'Raw data cdr'!$L:$L,"HTTP browsing",'Raw data cdr'!$O:$O,$C$137) -> 0
D139: =LEFT('Raw data cdr'!CB$1,FIND(" time",'Raw data cdr'!CB$1)-1) -> EDGE | E139: =SUMIFS('Raw data cdr'!$CB:$CB,'Raw data cdr'!$D:$D,E$4,'Raw data cdr'!$L:$L,"HTTP browsing",'Raw data cdr'!$O:$O,$C$137) -> 0 | F139: =SUMIFS('Raw data cdr'!$CB:$CB,'Raw data cdr'!$D:$D,F$4,'Raw data cdr'!$L:$L,"HTTP browsing",'Raw data cdr'!$O:$O,$C$137) -> 0 | G139: =SUMIFS('Raw data cdr'!$CB:$CB,'Raw data cdr'!$D:$D,G$4,'Raw data cdr'!$L:$L,"HTTP browsing",'Raw data cdr'!$O:$O,$C$137) -> 0
D140: =LEFT('Raw data cdr'!CC$1,FIND(" time",'Raw data cdr'!CC$1)-1) -> UMTSR99 | E140: =SUMIFS('Raw data cdr'!$CC:$CC,'Raw data cdr'!$D:$D,E$4,'Raw data cdr'!$L:$L,"HTTP browsing",'Raw data cdr'!$O:$O,$C$137) -> 0 | F140: =SUMIFS('Raw data cdr'!$CC:$CC,'Raw data cdr'!$D:$D,F$4,'Raw data cdr'!$L:$L,"HTTP browsing",'Raw data cdr'!$O:$O,$C$137) -> 0 | G140: =SUMIFS('Raw data cdr'!$CC:$CC,'Raw data cdr'!$D:$D,G$4,'Raw data cdr'!$L:$L,"HTTP browsing",'Raw data cdr'!$O:$O,$C$137) -> 0
D141: =LEFT('Raw data cdr'!CD$1,FIND(" time",'Raw data cdr'!CD$1)-1) -> HSDPA | E141: =SUMIFS('Raw data cdr'!$CD:$CD,'Raw data cdr'!$D:$D,E$4,'Raw data cdr'!$L:$L,"HTTP browsing",'Raw data cdr'!$O:$O,$C$137) -> 0 | F141: =SUMIFS('Raw data cdr'!$CD:$CD,'Raw data cdr'!$D:$D,F$4,'Raw data cdr'!$L:$L,"HTTP browsing",'Raw data cdr'!$O:$O,$C$137) -> 0 | G141: =SUMIFS('Raw data cdr'!$CD:$CD,'Raw data cdr'!$D:$D,G$4,'Raw data cdr'!$L:$L,"HTTP browsing",'Raw data cdr'!$O:$O,$C$137) -> 0
D142: =LEFT('Raw data cdr'!CE$1,FIND(" time",'Raw data cdr'!CE$1)-1) -> HSUPA | E142: =SUMIFS('Raw data cdr'!$CE:$CE,'Raw data cdr'!$D:$D,E$4,'Raw data cdr'!$L:$L,"HTTP browsing",'Raw data cdr'!$O:$O,$C$137) -> 0 | F142: =SUMIFS('Raw data cdr'!$CE:$CE,'Raw data cdr'!$D:$D,F$4,'Raw data cdr'!$L:$L,"HTTP browsing",'Raw data cdr'!$O:$O,$C$137) -> 0 | G142: =SUMIFS('Raw data cdr'!$CE:$CE,'Raw data cdr'!$D:$D,G$4,'Raw data cdr'!$L:$L,"HTTP browsing",'Raw data cdr'!$O:$O,$C$137) -> 0
D143: =LEFT('Raw data cdr'!CF$1,FIND(" time",'Raw data cdr'!CF$1)-1) -> HSPA | E143: =SUMIFS('Raw data cdr'!$CF:$CF,'Raw data cdr'!$D:$D,E$4,'Raw data cdr'!$L:$L,"HTTP browsing",'Raw data cdr'!$O:$O,$C$137) -> 0 | F143: =SUMIFS('Raw data cdr'!$CF:$CF,'Raw data cdr'!$D:$D,F$4,'Raw data cdr'!$L:$L,"HTTP browsing",'Raw data cdr'!$O:$O,$C$137) -> 0 | G143: =SUMIFS('Raw data cdr'!$CF:$CF,'Raw data cdr'!$D:$D,G$4,'Raw data cdr'!$L:$L,"HTTP browsing",'Raw data cdr'!$O:$O,$C$137) -> 0
D144: =LEFT('Raw data cdr'!CG$1,FIND(" time",'Raw data cdr'!CG$1)-1) -> HSPA DC | E144: =SUMIFS('Raw data cdr'!$CG:$CG,'Raw data cdr'!$D:$D,E$4,'Raw data cdr'!$L:$L,"HTTP browsing",'Raw data cdr'!$O:$O,$C$137) -> 0 | F144: =SUMIFS('Raw data cdr'!$CG:$CG,'Raw data cdr'!$D:$D,F$4,'Raw data cdr'!$L:$L,"HTTP browsing",'Raw data cdr'!$O:$O,$C$137) -> 0 | G144: =SUMIFS('Raw data cdr'!$CG:$CG,'Raw data cdr'!$D:$D,G$4,'Raw data cdr'!$L:$L,"HTTP browsing",'Raw data cdr'!$O:$O,$C$137) -> 0
D145: =LEFT('Raw data cdr'!CH$1,FIND(" time",'Raw data cdr'!CH$1)-1) -> LTE | E145: =SUMIFS('Raw data cdr'!$CH:$CH,'Raw data cdr'!$D:$D,E$4,'Raw data cdr'!$L:$L,"HTTP browsing",'Raw data cdr'!$O:$O,$C$137) -> 0 | F145: =SUMIFS('Raw data cdr'!$CH:$CH,'Raw data cdr'!$D:$D,F$4,'Raw data cdr'!$L:$L,"HTTP browsing",'Raw data cdr'!$O:$O,$C$137) -> 0 | G145: =SUMIFS('Raw data cdr'!$CH:$CH,'Raw data cdr'!$D:$D,G$4,'Raw data cdr'!$L:$L,"HTTP browsing",'Raw data cdr'!$O:$O,$C$137) -> 0
D146: =LEFT('Raw data cdr'!CI$1,FIND(" time",'Raw data cdr'!CI$1)-1) -> LTE CA | E146: =SUMIFS('Raw data cdr'!$CI:$CI,'Raw data cdr'!$D:$D,E$4,'Raw data cdr'!$L:$L,"HTTP browsing",'Raw data cdr'!$O:$O,$C$137) -> 0 | F146: =SUMIFS('Raw data cdr'!$CI:$CI,'Raw data cdr'!$D:$D,F$4,'Raw data cdr'!$L:$L,"HTTP browsing",'Raw data cdr'!$O:$O,$C$137) -> 0 | G146: =SUMIFS('Raw data cdr'!$CI:$CI,'Raw data cdr'!$D:$D,G$4,'Raw data cdr'!$L:$L,"HTTP browsing",'Raw data cdr'!$O:$O,$C$137) -> 0
D147: =LEFT('Raw data cdr'!CJ$1,FIND(" time",'Raw data cdr'!CJ$1)-1) -> DC HSUPA | E147: =SUMIFS('Raw data cdr'!$CJ:$CJ,'Raw data cdr'!$D:$D,E$4,'Raw data cdr'!$L:$L,"HTTP browsing",'Raw data cdr'!$O:$O,$C$137) -> 0 | F147: =SUMIFS('Raw data cdr'!$CJ:$CJ,'Raw data cdr'!$D:$D,F$4,'Raw data cdr'!$L:$L,"HTTP browsing",'Raw data cdr'!$O:$O,$C$137) -> 0 | G147: =SUMIFS('Raw data cdr'!$CJ:$CJ,'Raw data cdr'!$D:$D,G$4,'Raw data cdr'!$L:$L,"HTTP browsing",'Raw data cdr'!$O:$O,$C$137) -> 0
D148: =LEFT('Raw data cdr'!CK$1,FIND(" time",'Raw data cdr'!CK$1)-1) -> LTE CA UL and DL | E148: =SUMIFS('Raw data cdr'!$CK:$CK,'Raw data cdr'!$D:$D,E$4,'Raw data cdr'!$L:$L,"HTTP browsing",'Raw data cdr'!$O:$O,$C$137) -> 0 | F148: =SUMIFS('Raw data cdr'!$CK:$CK,'Raw data cdr'!$D:$D,F$4,'Raw data cdr'!$L:$L,"HTTP browsing",'Raw data cdr'!$O:$O,$C$137) -> 0 | G148: =SUMIFS('Raw data cdr'!$CK:$CK,'Raw data cdr'!$D:$D,G$4,'Raw data cdr'!$L:$L,"HTTP browsing",'Raw data cdr'!$O:$O,$C$137) -> 0
B149: Youtube | D149: total | E149: =SUM(E150:E160) -> 6456.055 | F149: 6038.817 | G149: 6212.732 | H149: YES
D150: =LEFT('Raw data cdr'!CA$1,FIND(" time",'Raw data cdr'!CA$1)-1) -> GPRS | E150: =SUMIFS('Raw data cdr'!$CA:$CA,'Raw data cdr'!$D:$D,E$4,'Raw data cdr'!$L:$L,"Youtube*")+SUMIFS('Raw data cdr'!$CA:$CA,'Raw data cdr'!$D:$D,E$4,'Raw data cdr'!$L:$L,"Streaming") -> 0 | F150: =SUMIFS('Raw data cdr'!$CA:$CA,'Raw data cdr'!$D:$D,F$4,'Raw data cdr'!$L:$L,"Youtube*")+SUMIFS('Raw data cdr'!$CA:$CA,'Raw data cdr'!$D:$D,F$4,'Raw data cdr'!$L:$L,"Streaming") -> 0 | G150: =SUMIFS('Raw data cdr'!$CA:$CA,'Raw data cdr'!$D:$D,G$4,'Raw data cdr'!$L:$L,"Youtube*")+SUMIFS('Raw data cdr'!$CA:$CA,'Raw data cdr'!$D:$D,G$4,'Raw data cdr'!$L:$L,"Streaming") -> 0
D151: =LEFT('Raw data cdr'!CB$1,FIND(" time",'Raw data cdr'!CB$1)-1) -> EDGE | E151: =SUMIFS('Raw data cdr'!$CB:$CB,'Raw data cdr'!$D:$D,E$4,'Raw data cdr'!$L:$L,"Youtube*")+SUMIFS('Raw data cdr'!$CB:$CB,'Raw data cdr'!$D:$D,E$4,'Raw data cdr'!$L:$L,"Streaming") -> 0 | F151: =SUMIFS('Raw data cdr'!$CB:$CB,'Raw data cdr'!$D:$D,F$4,'Raw data cdr'!$L:$L,"Youtube*")+SUMIFS('Raw data cdr'!$CB:$CB,'Raw data cdr'!$D:$D,F$4,'Raw data cdr'!$L:$L,"Streaming") -> 0 | G151: =SUMIFS('Raw data cdr'!$CB:$CB,'Raw data cdr'!$D:$D,G$4,'Raw data cdr'!$L:$L,"Youtube*")+SUMIFS('Raw data cdr'!$CB:$CB,'Raw data cdr'!$D:$D,G$4,'Raw data cdr'!$L:$L,"Streaming") -> 0
D152: =LEFT('Raw data cdr'!CC$1,FIND(" time",'Raw data cdr'!CC$1)-1) -> UMTSR99 | E152: =SUMIFS('Raw data cdr'!$CC:$CC,'Raw data cdr'!$D:$D,E$4,'Raw data cdr'!$L:$L,"Youtube*")+SUMIFS('Raw data cdr'!$CC:$CC,'Raw data cdr'!$D:$D,E$4,'Raw data cdr'!$L:$L,"Streaming") -> 39.486 | F152: =SUMIFS('Raw data cdr'!$CC:$CC,'Raw data cdr'!$D:$D,F$4,'Raw data cdr'!$L:$L,"Youtube*")+SUMIFS('Raw data cdr'!$CC:$CC,'Raw data cdr'!$D:$D,F$4,'Raw data cdr'!$L:$L,"Streaming") -> 0 | G152: =SUMIFS('Raw data cdr'!$CC:$CC,'Raw data cdr'!$D:$D,G$4,'Raw data cdr'!$L:$L,"Youtube*")+SUMIFS('Raw data cdr'!$CC:$CC,'Raw data cdr'!$D:$D,G$4,'Raw data cdr'!$L:$L,"Streaming") -> 14.486 | H152: YES
D153: =LEFT('Raw data cdr'!CD$1,FIND(" time",'Raw data cdr'!CD$1)-1) -> HSDPA | E153: =SUMIFS('Raw data cdr'!$CD:$CD,'Raw data cdr'!$D:$D,E$4,'Raw data cdr'!$L:$L,"Youtube*")+SUMIFS('Raw data cdr'!$CD:$CD,'Raw data cdr'!$D:$D,E$4,'Raw data cdr'!$L:$L,"Streaming") -> 16.428 | F153: =SUMIFS('Raw data cdr'!$CD:$CD,'Raw data cdr'!$D:$D,F$4,'Raw data cdr'!$L:$L,"Youtube*")+SUMIFS('Raw data cdr'!$CD:$CD,'Raw data cdr'!$D:$D,F$4,'Raw data cdr'!$L:$L,"Streaming") -> 0 | G153: =SUMIFS('Raw data cdr'!$CD:$CD,'Raw data cdr'!$D:$D,G$4,'Raw data cdr'!$L:$L,"Youtube*")+SUMIFS('Raw data cdr'!$CD:$CD,'Raw data cdr'!$D:$D,G$4,'Raw data cdr'!$L:$L,"Streaming") -> 0 | H153: YES
D154: =LEFT('Raw data cdr'!CE$1,FIND(" time",'Raw data cdr'!CE$1)-1) -> HSUPA | E154: =SUMIFS('Raw data cdr'!$CE:$CE,'Raw data cdr'!$D:$D,E$4,'Raw data cdr'!$L:$L,"Youtube*")+SUMIFS('Raw data cdr'!$CE:$CE,'Raw data cdr'!$D:$D,E$4,'Raw data cdr'!$L:$L,"Streaming") -> 0 | F154: =SUMIFS('Raw data cdr'!$CE:$CE,'Raw data cdr'!$D:$D,F$4,'Raw data cdr'!$L:$L,"Youtube*")+SUMIFS('Raw data cdr'!$CE:$CE,'Raw data cdr'!$D:$D,F$4,'Raw data cdr'!$L:$L,"Streaming") -> 0 | G154: =SUMIFS('Raw data cdr'!$CE:$CE,'Raw data cdr'!$D:$D,G$4,'Raw data cdr'!$L:$L,"Youtube*")+SUMIFS('Raw data cdr'!$CE:$CE,'Raw data cdr'!$D:$D,G$4,'Raw data cdr'!$L:$L,"Streaming") -> 0
D155: =LEFT('Raw data cdr'!CF$1,FIND(" time",'Raw data cdr'!CF$1)-1) -> HSPA | E155: =SUMIFS('Raw data cdr'!$CF:$CF,'Raw data cdr'!$D:$D,E$4,'Raw data cdr'!$L:$L,"Youtube*")+SUMIFS('Raw data cdr'!$CF:$CF,'Raw data cdr'!$D:$D,E$4,'Raw data cdr'!$L:$L,"Streaming") -> 306.084 | F155: =SUMIFS('Raw data cdr'!$CF:$CF,'Raw data cdr'!$D:$D,F$4,'Raw data cdr'!$L:$L,"Youtube*")+SUMIFS('Raw data cdr'!$CF:$CF,'Raw data cdr'!$D:$D,F$4,'Raw data cdr'!$L:$L,"Streaming") -> 361.481 | G155: =SUMIFS('Raw data cdr'!$CF:$CF,'Raw data cdr'!$D:$D,G$4,'Raw data cdr'!$L:$L,"Youtube*")+SUMIFS('Raw data cdr'!$CF:$CF,'Raw data cdr'!$D:$D,G$4,'Raw data cdr'!$L:$L,"Streaming") -> 15.554 | H155: YES
D156: =LEFT('Raw data cdr'!CG$1,FIND(" time",'Raw data cdr'!CG$1)-1) -> HSPA DC | E156: =SUMIFS('Raw data cdr'!$CG:$CG,'Raw data cdr'!$D:$D,E$4,'Raw data cdr'!$L:$L,"Youtube*")+SUMIFS('Raw data cdr'!$CG:$CG,'Raw data cdr'!$D:$D,E$4,'Raw data cdr'!$L:$L,"Streaming") -> 0 | F156: =SUMIFS('Raw data cdr'!$CG:$CG,'Raw data cdr'!$D:$D,F$4,'Raw data cdr'!$L:$L,"Youtube*")+SUMIFS('Raw data cdr'!$CG:$CG,'Raw data cdr'!$D:$D,F$4,'Raw data cdr'!$L:$L,"Streaming") -> 0 | G156: =SUMIFS('Raw data cdr'!$CG:$CG,'Raw data cdr'!$D:$D,G$4,'Raw data cdr'!$L:$L,"Youtube*")+SUMIFS('Raw data cdr'!$CG:$CG,'Raw data cdr'!$D:$D,G$4,'Raw data cdr'!$L:$L,"Streaming") -> 101.972 | H156: YES
D157: =LEFT('Raw data cdr'!CH$1,FIND(" time",'Raw data cdr'!CH$1)-1) -> LTE | E157: =SUMIFS('Raw data cdr'!$CH:$CH,'Raw data cdr'!$D:$D,E$4,'Raw data cdr'!$L:$L,"Youtube*")+SUMIFS('Raw data cdr'!$CH:$CH,'Raw data cdr'!$D:$D,E$4,'Raw data cdr'!$L:$L,"Streaming") -> 1997.726 | F157: =SUMIFS('Raw data cdr'!$CH:$CH,'Raw data cdr'!$D:$D,F$4,'Raw data cdr'!$L:$L,"Youtube*")+SUMIFS('Raw data cdr'!$CH:$CH,'Raw data cdr'!$D:$D,F$4,'Raw data cdr'!$L:$L,"Streaming") -> 3182.58 | G157: =SUMIFS('Raw data cdr'!$CH:$CH,'Raw data cdr'!$D:$D,G$4,'Raw data cdr'!$L:$L,"Youtube*")+SUMIFS('Raw data cdr'!$CH:$CH,'Raw data cdr'!$D:$D,G$4,'Raw data cdr'!$L:$L,"Streaming") -> 2168.016 | H157: YES
D158: =LEFT('Raw data cdr'!CI$1,FIND(" time",'Raw data cdr'!CI$1)-1) -> LTE CA | E158: =SUMIFS('Raw data cdr'!$CI:$CI,'Raw data cdr'!$D:$D,E$4,'Raw data cdr'!$L:$L,"Youtube*")+SUMIFS('Raw data cdr'!$CI:$CI,'Raw data cdr'!$D:$D,E$4,'Raw data cdr'!$L:$L,"Streaming") -> 4096.331 | F158: =SUMIFS('Raw data cdr'!$CI:$CI,'Raw data cdr'!$D:$D,F$4,'Raw data cdr'!$L:$L,"Youtube*")+SUMIFS('Raw data cdr'!$CI:$CI,'Raw data cdr'!$D:$D,F$4,'Raw data cdr'!$L:$L,"Streaming") -> 2494.756 | G158: =SUMIFS('Raw data cdr'!$CI:$CI,'Raw data cdr'!$D:$D,G$4,'Raw data cdr'!$L:$L,"Youtube*")+SUMIFS('Raw data cdr'!$CI:$CI,'Raw data cdr'!$D:$D,G$4,'Raw data cdr'!$L:$L,"Streaming") -> 3299.19 | H158: YES
D159: =LEFT('Raw data cdr'!CJ$1,FIND(" time",'Raw data cdr'!CJ$1)-1) -> DC HSUPA | E159: =SUMIFS('Raw data cdr'!$CJ:$CJ,'Raw data cdr'!$D:$D,E$4,'Raw data cdr'!$L:$L,"Youtube*")+SUMIFS('Raw data cdr'!$CJ:$CJ,'Raw data cdr'!$D:$D,E$4,'Raw data cdr'!$L:$L,"Streaming") -> 0 | F159: =SUMIFS('Raw data cdr'!$CJ:$CJ,'Raw data cdr'!$D:$D,F$4,'Raw data cdr'!$L:$L,"Youtube*")+SUMIFS('Raw data cdr'!$CJ:$CJ,'Raw data cdr'!$D:$D,F$4,'Raw data cdr'!$L:$L,"Streaming") -> 0 | G159: =SUMIFS('Raw data cdr'!$CJ:$CJ,'Raw data cdr'!$D:$D,G$4,'Raw data cdr'!$L:$L,"Youtube*")+SUMIFS('Raw data cdr'!$CJ:$CJ,'Raw data cdr'!$D:$D,G$4,'Raw data cdr'!$L:$L,"Streaming") -> 0
D160: =LEFT('Raw data cdr'!CK$1,FIND(" time",'Raw data cdr'!CK$1)-1) -> LTE CA UL and DL | E160: =SUMIFS('Raw data cdr'!$CK:$CK,'Raw data cdr'!$D:$D,E$4,'Raw data cdr'!$L:$L,"Youtube*")+SUMIFS('Raw data cdr'!$CK:$CK,'Raw data cdr'!$D:$D,E$4,'Raw data cdr'!$L:$L,"Streaming") -> 0 | F160: =SUMIFS('Raw data cdr'!$CK:$CK,'Raw data cdr'!$D:$D,F$4,'Raw data cdr'!$L:$L,"Youtube*")+SUMIFS('Raw data cdr'!$CK:$CK,'Raw data cdr'!$D:$D,F$4,'Raw data cdr'!$L:$L,"Streaming") -> 0 | G160: =SUMIFS('Raw data cdr'!$CK:$CK,'Raw data cdr'!$D:$D,G$4,'Raw data cdr'!$L:$L,"Youtube*")+SUMIFS('Raw data cdr'!$CK:$CK,'Raw data cdr'!$D:$D,G$4,'Raw data cdr'!$L:$L,"Streaming") -> 613.514 | H160: YES

Sheet Raw Http distribution (hidden)
B1: HTTP DL mean data rate distribution calculated from "Raw data cdr" sheet | H1: HTTP small DL | M1: HTTP small UL | R1: HTTP large DL | W1: HTTP large UL
H2: Tput per operator (CDF source) | I2: =IF(ISBLANK('Raw measurement info'!$W$6),"",'Raw measurement info'!$W$6) -> Telekom Srbija a.d. | J2: =IF(ISBLANK('Raw measurement info'!$W$7),"",'Raw measurement info'!$W$7) -> Telenor Serbia | K2: =IF(ISBLANK('Raw measurement info'!$W$8),"",'Raw measurement info'!$W$8) -> Vip mobile d.o.o. | M2: Tput per operator (CDF source) | N2: =I2 -> Telekom Srbija a.d. | O2: Telenor Serbia | P2: Vip mobile d.o.o. | R2: Tput per operator (CDF source) | S2: =I2 -> Telekom Srbija a.d. | T2: Telenor Serbia | U2: Vip mobile d.o.o. | W2: Tput per operator (CDF source) | X2: =N2 -> Telekom Srbija a.d. | Y2: Telenor Serbia | Z2: Vip mobile d.o.o.
C3: =I2 -> Telekom Srbija a.d. | D3: Telenor Serbia | E3: Vip mobile d.o.o. | H3: 0 | I3: =IF(I$2<>"",(COUNTIFS('Raw data cdr'!$IB:$IB,"<="&$H3,'Raw data cdr'!$D:$D,I$2,'Raw data cdr'!$O:$O,Configuration!$C$18))/C$4,"") -> 0 | J3: =IF(J$2<>"",(COUNTIFS('Raw data cdr'!$IB:$IB,"<="&$H3,'Raw data cdr'!$D:$D,J$2,'Raw data cdr'!$O:$O,Configuration!$C$18))/D$4,"") -> 0 | K3: =IF(K$2<>"",(COUNTIFS('Raw data cdr'!$IB:$IB,"<="&$H3,'Raw data cdr'!$D:$D,K$2,'Raw data cdr'!$O:$O,Configuration!$C$18))/E$4,"") -> 0 | M3: 0 | N3: =IF(N$2<>"",(COUNTIFS('Raw data cdr'!$IB:$IB,"<="&$M3,'Raw data cdr'!$D:$D,N$2,'Raw data cdr'!$O:$O,Configuration!$C$19))/C$5,"") -> 0 | O3: =IF(O$2<>"",(COUNTIFS('Raw data cdr'!$IB:$IB,"<="&$M3,'Raw data cdr'!$D:$D,O$2,'Raw data cdr'!$O:$O,Configuration!$C$19))/D$5,"") -> 0.05454545455 | P3: =IF(P$2<>"",(COUNTIFS('Raw data cdr'!$IB:$IB,"<="&$M3,'Raw data cdr'!$D:$D,P$2,'Raw data cdr'!$O:$O,Configuration!$C$19))/E$5,"") -> 0 | R3: 0 | S3: =IF(S$2<>"",(COUNTIFS('Raw data cdr'!$IB:$IB,"<="&$R3,'Raw data cdr'!$D:$D,S$2,'Raw data cdr'!$O:$O,Configuration!$C$20))/C$6,"") -> 0 | T3: =IF(T$2<>"",(COUNTIFS('Raw data cdr'!$IB:$IB,"<="&$R3,'Raw data cdr'!$D:$D,T$2,'Raw data cdr'!$O:$O,Configuration!$C$20))/D$6,"") -> 0 | U3: =IF(U$2<>"",(COUNTIFS('Raw data cdr'!$IB:$IB,"<="&$R3,'Raw data cdr'!$D:$D,U$2,'Raw data cdr'!$O:$O,Configuration!$C$20))/E$6,"") -> 0 | W3: 0 | X3: =IF(X$2<>"",(COUNTIFS('Raw data cdr'!$IB:$IB,"<="&$W3,'Raw data cdr'!$D:$D,X$2,'Raw data cdr'!$O:$O,Configuration!$C$21))/C$7,"") -> 0 | Y3: =IF(Y$2<>"",(COUNTIFS('Raw data cdr'!$IB:$IB,"<="&$W3,'Raw data cdr'!$D:$D,Y$2,'Raw data cdr'!$O:$O,Configuration!$C$21))/D$7,"") -> 0 | Z3: =IF(Z$2<>"",(COUNTIFS('Raw data cdr'!$IB:$IB,"<="&$W3,'Raw data cdr'!$D:$D,Z$2,'Raw data cdr'!$O:$O,Configuration!$C$21))/E$7,"") -> 0
B4: Total samples HTTP tput DL small | C4: =COUNTIFS('Raw data cdr'!$IB:$IB,">0",'Raw data cdr'!$D:$D,C$3,'Raw data cdr'!$O:$O,Configuration!$C$18) -> 61 | D4: =COUNTIFS('Raw data cdr'!$IB:$IB,">0",'Raw data cdr'!$D:$D,D$3,'Raw data cdr'!$O:$O,Configuration!$C$18) -> 53 | E4: =COUNTIFS('Raw data cdr'!$IB:$IB,">0",'Raw data cdr'!$D:$D,E$3,'Raw data cdr'!$O:$O,Configuration!$C$18) -> 61 | H4: =H3+Configuration!$C$22 -> 1.8 | I4: =IF(I$2<>"",(COUNTIFS('Raw data cdr'!$IB:$IB,"<="&$H4,'Raw data cdr'!$IB:$IB,">"&$H3,'Raw data cdr'!$D:$D,I$2,'Raw data cdr'!$O:$O,Configuration!$C$18))/C$4,"") -> 0 | J4: =IF(J$2<>"",(COUNTIFS('Raw data cdr'!$IB:$IB,"<="&$H4,'Raw data cdr'!$IB:$IB,">"&$H3,'Raw data cdr'!$D:$D,J$2,'Raw data cdr'!$O:$O,Configuration!$C$18))/D$4,"") -> 0.03773584906 | K4: =IF(K$2<>"",(COUNTIFS('Raw data cdr'!$IB:$IB,"<="&$H4,'Raw data cdr'!$IB:$IB,">"&$H3,'Raw data cdr'!$D:$D,K$2,'Raw data cdr'!$O:$O,Configuration!$C$18))/E$4,"") -> 0 | M4: =M3+Configuration!$C$23 -> 0.7 | N4: =IF(N$2<>"",(COUNTIFS('Raw data cdr'!$IB:$IB,"<="&$M4,'Raw data cdr'!$IB:$IB,">"&$M3,'Raw data cdr'!$D:$D,N$2,'Raw data cdr'!$O:$O,Configuration!$C$19))/C$5,"") -> 0 | O4: =IF(O$2<>"",(COUNTIFS('Raw data cdr'!$IB:$IB,"<="&$M4,'Raw data cdr'!$IB:$IB,">"&$M3,'Raw data cdr'!$D:$D,O$2,'Raw data cdr'!$O:$O,Configuration!$C$19))/D$5,"") -> 0.03636363636 | P4: =IF(P$2<>"",(COUNTIFS('Raw data cdr'!$IB:$IB,"<="&$M4,'Raw data cdr'!$IB:$IB,">"&$M3,'Raw data cdr'!$D:$D,P$2,'Raw data cdr'!$O:$O,Configuration!$C$19))/E$5,"") -> 0.03333333333 | R4: =R3+Configuration!$C$24 -> 4.1 | S4: =IF(S$2<>"",(COUNTIFS('Raw data cdr'!$IB:$IB,"<="&$R4,'Raw data cdr'!$IB:$IB,">"&$R3,'Raw data cdr'!$D:$D,S$2,'Raw data cdr'!$O:$O,Configuration!$C$20))/C$6,"") -> 0.04761904762 | T4: =IF(T$2<>"",(COUNTIFS('Raw data cdr'!$IB:$IB,"<="&$R4,'Raw data cdr'!$IB:$IB,">"&$R3,'Raw data cdr'!$D:$D,T$2,'Raw data cdr'!$O:$O,Configuration!$C$20))/D$6,"") -> 0.05172413793 | U4: =IF(U$2<>"",(COUNTIFS('Raw data cdr'!$IB:$IB,"<="&$R4,'Raw data cdr'!$IB:$IB,">"&$R3,'Raw data cdr'!$D:$D,U$2,'Raw data cdr'!$O:$O,Configuration!$C$20))/E$6,"") -> 0.01666666667 | W4: =W3+Configuration!$C$25 -> 1.1 | X4: =IF(X$2<>"",(COUNTIFS('Raw data cdr'!$IB:$IB,"<="&$W4,'Raw data cdr'!$IB:$IB,">"&$W3,'Raw data cdr'!$D:$D,X$2,'Raw data cdr'!$O:$O,Configuration!$C$21))/C$7,"") -> 0.01587301587 | Y4: =IF(Y$2<>"",(COUNTIFS('Raw data cdr'!$IB:$IB,"<="&$W4,'Raw data cdr'!$IB:$IB,">"&$W3,'Raw data cdr'!$D:$D,Y$2,'Raw data cdr'!$O:$O,Configuration!$C$21))/D$7,"") -> 0.03389830508 | Z4: =IF(Z$2<>"",(COUNTIFS('Raw data cdr'!$IB:$IB,"<="&$W4,'Raw data cdr'!$IB:$IB,">"&$W3,'Raw data cdr'!$D:$D,Z$2,'Raw data cdr'!$O:$O,Configuration!$C$21))/E$7,"") -> 0.1016949153
B5: Total samples HTTP tput UL small | C5: =COUNTIFS('Raw data cdr'!$IB:$IB,">0",'Raw data cdr'!$D:$D,C$3,'Raw data cdr'!$O:$O,Configuration!$C$19) -> 63 | D5: =COUNTIFS('Raw data cdr'!$IB:$IB,">0",'Raw data cdr'!$D:$D,D$3,'Raw data cdr'!$O:$O,Configuration!$C$19) -> 55 | E5: =COUNTIFS('Raw data cdr'!$IB:$IB,">0",'Raw data cdr'!$D:$D,E$3,'Raw data cdr'!$O:$O,Configuration!$C$19) -> 60 | H5: =H4+Configuration!$C$22 -> 3.6 | I5: =IF(I$2<>"",(COUNTIFS('Raw data cdr'!$IB:$IB,"<="&$H5,'Raw data cdr'!$IB:$IB,">"&$H4,'Raw data cdr'!$D:$D,I$2,'Raw data cdr'!$O:$O,Configuration!$C$18))/C$4,"") -> 0.01639344262 | J5: =IF(J$2<>"",(COUNTIFS('Raw data cdr'!$IB:$IB,"<="&$H5,'Raw data cdr'!$IB:$IB,">"&$H4,'Raw data cdr'!$D:$D,J$2,'Raw data cdr'!$O:$O,Configuration!$C$18))/D$4,"") -> 0.01886792453 | K5: =IF(K$2<>"",(COUNTIFS('Raw data cdr'!$IB:$IB,"<="&$H5,'Raw data cdr'!$IB:$IB,">"&$H4,'Raw data cdr'!$D:$D,K$2,'Raw data cdr'!$O:$O,Configuration!$C$18))/E$4,"") -> 0 | M5: =M4+Configuration!$C$23 -> 1.4 | N5: =IF(N$2<>"",(COUNTIFS('Raw data cdr'!$IB:$IB,"<="&$M5,'Raw data cdr'!$IB:$IB,">"&$M4,'Raw data cdr'!$D:$D,N$2,'Raw data cdr'!$O:$O,Configuration!$C$19))/C$5,"") -> 0.03174603175 | O5: =IF(O$2<>"",(COUNTIFS('Raw data cdr'!$IB:$IB,"<="&$M5,'Raw data cdr'!$IB:$IB,">"&$M4,'Raw data cdr'!$D:$D,O$2,'Raw data cdr'!$O:$O,Configuration!$C$19))/D$5,"") -> 0.03636363636 | P5: =IF(P$2<>"",(COUNTIFS('Raw data cdr'!$IB:$IB,"<="&$M5,'Raw data cdr'!$IB:$IB,">"&$M4,'Raw data cdr'!$D:$D,P$2,'Raw data cdr'!$O:$O,Configuration!$C$19))/E$5,"") -> 0.1333333333 | R5: =R4+Configuration!$C$24 -> 8.2 | S5: =IF(S$2<>"",(COUNTIFS('Raw data cdr'!$IB:$IB,"<="&$R5,'Raw data cdr'!$IB:$IB,">"&$R4,'Raw data cdr'!$D:$D,S$2,'Raw data cdr'!$O:$O,Configuration!$C$20))/C$6,"") -> 0.06349206349 | T5: =IF(T$2<>"",(COUNTIFS('Raw data cdr'!$IB:$IB,"<="&$R5,'Raw data cdr'!$IB:$IB,">"&$R4,'Raw data cdr'!$D:$D,T$2,'Raw data cdr'!$O:$O,Configuration!$C$20))/D$6,"") -> 0.06896551724 | U5: =IF(U$2<>"",(COUNTIFS('Raw data cdr'!$IB:$IB,"<="&$R5,'Raw data cdr'!$IB:$IB,">"&$R4,'Raw data cdr'!$D:$D,U$2,'Raw data cdr'!$O:$O,Configuration!$C$20))/E$6,"") -> 0.1666666667 | W5: =W4+Configuration!$C$25 -> 2.2 | X5: =IF(X$2<>"",(COUNTIFS('Raw data cdr'!$IB:$IB,"<="&$W5,'Raw data cdr'!$IB:$IB,">"&$W4,'Raw data cdr'!$D:$D,X$2,'Raw data cdr'!$O:$O,Configuration!$C$21))/C$7,"") -> 0.01587301587 | Y5: =IF(Y$2<>"",(COUNTIFS('Raw data cdr'!$IB:$IB,"<="&$W5,'Raw data cdr'!$IB:$IB,">"&$W4,'Raw data cdr'!$D:$D,Y$2,'Raw data cdr'!$O:$O,Configuration!$C$21))/D$7,"") -> 0.06779661017 | Z5: =IF(Z$2<>"",(COUNTIFS('Raw data cdr'!$IB:$IB,"<="&$W5,'Raw data cdr'!$IB:$IB,">"&$W4,'Raw data cdr'!$D:$D,Z$2,'Raw data cdr'!$O:$O,Configuration!$C$21))/E$7,"") -> 0.1186440678
B6: Total samples HTTP tput DL large | C6: =COUNTIFS('Raw data cdr'!$IB:$IB,">0",'Raw data cdr'!$D:$D,C$3,'Raw data cdr'!$O:$O,Configuration!$C$20) -> 63 | D6: =COUNTIFS('Raw data cdr'!$IB:$IB,">0",'Raw data cdr'!$D:$D,D$3,'Raw data cdr'!$O:$O,Configuration!$C$20) -> 58 | E6: =COUNTIFS('Raw data cdr'!$IB:$IB,">0",'Raw data cdr'!$D:$D,E$3,'Raw data cdr'!$O:$O,Configuration!$C$20) -> 60 | H6: =H5+Configuration!$C$22 -> 5.4 | I6: =IF(I$2<>"",(COUNTIFS('Raw data cdr'!$IB:$IB,"<="&$H6,'Raw data cdr'!$IB:$IB,">"&$H5,'Raw data cdr'!$D:$D,I$2,'Raw data cdr'!$O:$O,Configuration!$C$18))/C$4,"") -> 0.01639344262 | J6: =IF(J$2<>"",(COUNTIFS('Raw data cdr'!$IB:$IB,"<="&$H6,'Raw data cdr'!$IB:$IB,">"&$H5,'Raw data cdr'!$D:$D,J$2,'Raw data cdr'!$O:$O,Configuration!$C$18))/D$4,"") -> 0 | K6: =IF(K$2<>"",(COUNTIFS('Raw data cdr'!$IB:$IB,"<="&$H6,'Raw data cdr'!$IB:$IB,">"&$H5,'Raw data cdr'!$D:$D,K$2,'Raw data cdr'!$O:$O,Configuration!$C$18))/E$4,"") -> 0.03278688525 | M6: =M5+Configuration!$C$23 -> 2.1 | N6: =IF(N$2<>"",(COUNTIFS('Raw data cdr'!$IB:$IB,"<="&$M6,'Raw data cdr'!$IB:$IB,">"&$M5,'Raw data cdr'!$D:$D,N$2,'Raw data cdr'!$O:$O,Configuration!$C$19))/C$5,"") -> 0.01587301587 | O6: =IF(O$2<>"",(COUNTIFS('Raw data cdr'!$IB:$IB,"<="&$M6,'Raw data cdr'!$IB:$IB,">"&$M5,'Raw data cdr'!$D:$D,O$2,'Raw data cdr'!$O:$O,Configuration!$C$19))/D$5,"") -> 0.03636363636 | P6: =IF(P$2<>"",(COUNTIFS('Raw data cdr'!$IB:$IB,"<="&$M6,'Raw data cdr'!$IB:$IB,">"&$M5,'Raw data cdr'!$D:$D,P$2,'Raw data cdr'!$O:$O,Configuration!$C$19))/E$5,"") -> 0.06666666667 | R6: =R5+Configuration!$C$24 -> 12.3 | S6: =IF(S$2<>"",(COUNTIFS('Raw data cdr'!$IB:$IB,"<="&$R6,'Raw data cdr'!$IB:$IB,">"&$R5,'Raw data cdr'!$D:$D,S$2,'Raw data cdr'!$O:$O,Configuration!$C$20))/C$6,"") -> 0.09523809524 | T6: =IF(T$2<>"",(COUNTIFS('Raw data cdr'!$IB:$IB,"<="&$R6,'Raw data cdr'!$IB:$IB,">"&$R5,'Raw data cdr'!$D:$D,T$2,'Raw data cdr'!$O:$O,Configuration!$C$20))/D$6,"") -> 0.1551724138 | U6: =IF(U$2<>"",(COUNTIFS('Raw data cdr'!$IB:$IB,"<="&$R6,'Raw data cdr'!$IB:$IB,">"&$R5,'Raw data cdr'!$D:$D,U$2,'Raw data cdr'!$O:$O,Configuration!$C$20))/E$6,"") -> 0.15 | W6: =W5+Configuration!$C$25 -> 3.3 | X6: =IF(X$2<>"",(COUNTIFS('Raw data cdr'!$IB:$IB,"<="&$W6,'Raw data cdr'!$IB:$IB,">"&$W5,'Raw data cdr'!$D:$D,X$2,'Raw data cdr'!$O:$O,Configuration!$C$21))/C$7,"") -> 0.04761904762 | Y6: =IF(Y$2<>"",(COUNTIFS('Raw data cdr'!$IB:$IB,"<="&$W6,'Raw data cdr'!$IB:$IB,">"&$W5,'Raw data cdr'!$D:$D,Y$2,'Raw data cdr'!$O:$O,Configuration!$C$21))/D$7,"") -> 0.03389830508 | Z6: =IF(Z$2<>"",(COUNTIFS('Raw data cdr'!$IB:$IB,"<="&$W6,'Raw data cdr'!$IB:$IB,">"&$W5,'Raw data cdr'!$D:$D,Z$2,'Raw data cdr'!$O:$O,Configuration!$C$21))/E$7,"") -> 0.1016949153
B7: Total samples HTTP tput DL large | C7: =COUNTIFS('Raw data cdr'!$IB:$IB,">0",'Raw data cdr'!$D:$D,C$3,'Raw data cdr'!$O:$O,Configuration!$C$21) -> 63 | D7: =COUNTIFS('Raw data cdr'!$IB:$IB,">0",'Raw data cdr'!$D:$D,D$3,'Raw data cdr'!$O:$O,Configuration!$C$21) -> 59 | E7: =COUNTIFS('Raw data cdr'!$IB:$IB,">0",'Raw data cdr'!$D:$D,E$3,'Raw data cdr'!$O:$O,Configuration!$C$21) -> 59 | H7: =H6+Configuration!$C$22 -> 7.2 | I7: =IF(I$2<>"",(COUNTIFS('Raw data cdr'!$IB:$IB,"<="&$H7,'Raw data cdr'!$IB:$IB,">"&$H6,'Raw data cdr'!$D:$D,I$2,'Raw data cdr'!$O:$O,Configuration!$C$18))/C$4,"") -> 0.03278688525 | J7: =IF(J$2<>"",(COUNTIFS('Raw data cdr'!$IB:$IB,"<="&$H7,'Raw data cdr'!$IB:$IB,">"&$H6,'Raw data cdr'!$D:$D,J$2,'Raw data cdr'!$O:$O,Configuration!$C$18))/D$4,"") -> 0.1320754717 | K7: =IF(K$2<>"",(COUNTIFS('Raw data cdr'!$IB:$IB,"<="&$H7,'Raw data cdr'!$IB:$IB,">"&$H6,'Raw data cdr'!$D:$D,K$2,'Raw data cdr'!$O:$O,Configuration!$C$18))/E$4,"") -> 0.06557377049 | M7: =M6+Configuration!$C$23 -> 2.8 | N7: =IF(N$2<>"",(COUNTIFS('Raw data cdr'!$IB:$IB,"<="&$M7,'Raw data cdr'!$IB:$IB,">"&$M6,'Raw data cdr'!$D:$D,N$2,'Raw data cdr'!$O:$O,Configuration!$C$19))/C$5,"") -> 0.01587301587 | O7: =IF(O$2<>"",(COUNTIFS('Raw data cdr'!$IB:$IB,"<="&$M7,'Raw data cdr'!$IB:$IB,">"&$M6,'Raw data cdr'!$D:$D,O$2,'Raw data cdr'!$O:$O,Configuration!$C$19))/D$5,"") -> 0.1272727273 | P7: =IF(P$2<>"",(COUNTIFS('Raw data cdr'!$IB:$IB,"<="&$M7,'Raw data cdr'!$IB:$IB,">"&$M6,'Raw data cdr'!$D:$D,P$2,'Raw data cdr'!$O:$O,Configuration!$C$19))/E$5,"") -> 0.06666666667 | R7: =R6+Configuration!$C$24 -> 16.4 | S7: =IF(S$2<>"",(COUNTIFS('Raw data cdr'!$IB:$IB,"<="&$R7,'Raw data cdr'!$IB:$IB,">"&$R6,'Raw data cdr'!$D:$D,S$2,'Raw data cdr'!$O:$O,Configuration!$C$20))/C$6,"") -> 0.07936507937 | T7: =IF(T$2<>"",(COUNTIFS('Raw data cdr'!$IB:$IB,"<="&$R7,'Raw data cdr'!$IB:$IB,">"&$R6,'Raw data cdr'!$D:$D,T$2,'Raw data cdr'!$O:$O,Configuration!$C$20))/D$6,"") -> 0.1034482759 | U7: =IF(U$2<>"",(COUNTIFS('Raw data cdr'!$IB:$IB,"<="&$R7,'Raw data cdr'!$IB:$IB,">"&$R6,'Raw data cdr'!$D:$D,U$2,'Raw data cdr'!$O:$O,Configuration!$C$20))/E$6,"") -> 0.08333333333 | W7: =W6+Configuration!$C$25 -> 4.4 | X7: =IF(X$2<>"",(COUNTIFS('Raw data cdr'!$IB:$IB,"<="&$W7,'Raw data cdr'!$IB:$IB,">"&$W6,'Raw data cdr'!$D:$D,X$2,'Raw data cdr'!$O:$O,Configuration!$C$21))/C$7,"") -> 0.04761904762 | Y7: =IF(Y$2<>"",(COUNTIFS('Raw data cdr'!$IB:$IB,"<="&$W7,'Raw data cdr'!$IB:$IB,">"&$W6,'Raw data cdr'!$D:$D,Y$2,'Raw data cdr'!$O:$O,Configuration!$C$21))/D$7,"") -> 0.1355932203 | Z7: =IF(Z$2<>"",(COUNTIFS('Raw data cdr'!$IB:$IB,"<="&$W7,'Raw data cdr'!$IB:$IB,">"&$W6,'Raw data cdr'!$D:$D,Z$2,'Raw data cdr'!$O:$O,Configuration!$C$21))/E$7,"") -> 0.1525423729
H8: =H7+Configuration!$C$22 -> 9 | I8: =IF(I$2<>"",(COUNTIFS('Raw data cdr'!$IB:$IB,"<="&$H8,'Raw data cdr'!$IB:$IB,">"&$H7,'Raw data cdr'!$D:$D,I$2,'Raw data cdr'!$O:$O,Configuration!$C$18))/C$4,"") -> 0.04918032787 | J8: =IF(J$2<>"",(COUNTIFS('Raw data cdr'!$IB:$IB,"<="&$H8,'Raw data cdr'!$IB:$IB,">"&$H7,'Raw data cdr'!$D:$D,J$2,'Raw data cdr'!$O:$O,Configuration!$C$18))/D$4,"") -> 0 | K8: =IF(K$2<>"",(COUNTIFS('Raw data cdr'!$IB:$IB,"<="&$H8,'Raw data cdr'!$IB:$IB,">"&$H7,'Raw data cdr'!$D:$D,K$2,'Raw data cdr'!$O:$O,Configuration!$C$18))/E$4,"") -> 0.06557377049 | M8: =M7+Configuration!$C$23 -> 3.5 | N8: =IF(N$2<>"",(COUNTIFS('Raw data cdr'!$IB:$IB,"<="&$M8,'Raw data cdr'!$IB:$IB,">"&$M7,'Raw data cdr'!$D:$D,N$2,'Raw data cdr'!$O:$O,Configuration!$C$19))/C$5,"") -> 0.04761904762 | O8: =IF(O$2<>"",(COUNTIFS('Raw data cdr'!$IB:$IB,"<="&$M8,'Raw data cdr'!$IB:$IB,">"&$M7,'Raw data cdr'!$D:$D,O$2,'Raw data cdr'!$O:$O,Configuration!$C$19))/D$5,"") -> 0.01818181818 | P8: =IF(P$2<>"",(COUNTIFS('Raw data cdr'!$IB:$IB,"<="&$M8,'Raw data cdr'!$IB:$IB,">"&$M7,'Raw data cdr'!$D:$D,P$2,'Raw data cdr'!$O:$O,Configuration!$C$19))/E$5,"") -> 0.08333333333 | R8: =R7+Configuration!$C$24 -> 20.5 | S8: =IF(S$2<>"",(COUNTIFS('Raw data cdr'!$IB:$IB,"<="&$R8,'Raw data cdr'!$IB:$IB,">"&$R7,'Raw data cdr'!$D:$D,S$2,'Raw data cdr'!$O:$O,Configuration!$C$20))/C$6,"") -> 0.09523809524 | T8: =IF(T$2<>"",(COUNTIFS('Raw data cdr'!$IB:$IB,"<="&$R8,'Raw data cdr'!$IB:$IB,">"&$R7,'Raw data cdr'!$D:$D,T$2,'Raw data cdr'!$O:$O,Configuration!$C$20))/D$6,"") -> 0.08620689655 | U8: =IF(U$2<>"",(COUNTIFS('Raw data cdr'!$IB:$IB,"<="&$R8,'Raw data cdr'!$IB:$IB,">"&$R7,'Raw data cdr'!$D:$D,U$2,'Raw data cdr'!$O:$O,Configuration!$C$20))/E$6,"") -> 0.01666666667 | W8: =W7+Configuration!$C$25 -> 5.5 | X8: =IF(X$2<>"",(COUNTIFS('Raw data cdr'!$IB:$IB,"<="&$W8,'Raw data cdr'!$IB:$IB,">"&$W7,'Raw data cdr'!$D:$D,X$2,'Raw data cdr'!$O:$O,Configuration!$C$21))/C$7,"") -> 0.04761904762 | Y8: =IF(Y$2<>"",(COUNTIFS('Raw data cdr'!$IB:$IB,"<="&$W8,'Raw data cdr'!$IB:$IB,">"&$W7,'Raw data cdr'!$D:$D,Y$2,'Raw data cdr'!$O:$O,Configuration!$C$21))/D$7,"") -> 0.06779661017 | Z8: =IF(Z$2<>"",(COUNTIFS('Raw data cdr'!$IB:$IB,"<="&$W8,'Raw data cdr'!$IB:$IB,">"&$W7,'Raw data cdr'!$D:$D,Z$2,'Raw data cdr'!$O:$O,Configuration!$C$21))/E$7,"") -> 0.06779661017
H9: =H8+Configuration!$C$22 -> 10.8 | I9: =IF(I$2<>"",(COUNTIFS('Raw data cdr'!$IB:$IB,"<="&$H9,'Raw data cdr'!$IB:$IB,">"&$H8,'Raw data cdr'!$D:$D,I$2,'Raw data cdr'!$O:$O,Configuration!$C$18))/C$4,"") -> 0.03278688525 | J9: =IF(J$2<>"",(COUNTIFS('Raw data cdr'!$IB:$IB,"<="&$H9,'Raw data cdr'!$IB:$IB,">"&$H8,'Raw data cdr'!$D:$D,J$2,'Raw data cdr'!$O:$O,Configuration!$C$18))/D$4,"") -> 0.09433962264 | K9: =IF(K$2<>"",(COUNTIFS('Raw data cdr'!$IB:$IB,"<="&$H9,'Raw data cdr'!$IB:$IB,">"&$H8,'Raw data cdr'!$D:$D,K$2,'Raw data cdr'!$O:$O,Configuration!$C$18))/E$4,"") -> 0.06557377049 | M9: =M8+Configuration!$C$23 -> 4.2 | N9: =IF(N$2<>"",(COUNTIFS('Raw data cdr'!$IB:$IB,"<="&$M9,'Raw data cdr'!$IB:$IB,">"&$M8,'Raw data cdr'!$D:$D,N$2,'Raw data cdr'!$O:$O,Configuration!$C$19))/C$5,"") -> 0.03174603175 | O9: =IF(O$2<>"",(COUNTIFS('Raw data cdr'!$IB:$IB,"<="&$M9,'Raw data cdr'!$IB:$IB,">"&$M8,'Raw data cdr'!$D:$D,O$2,'Raw data cdr'!$O:$O,Configuration!$C$19))/D$5,"") -> 0.01818181818 | P9: =IF(P$2<>"",(COUNTIFS('Raw data cdr'!$IB:$IB,"<="&$M9,'Raw data cdr'!$IB:$IB,">"&$M8,'Raw data cdr'!$D:$D,P$2,'Raw data cdr'!$O:$O,Configuration!$C$19))/E$5,"") -> 0.06666666667 | R9: =R8+Configuration!$C$24 -> 24.6 | S9: =IF(S$2<>"",(COUNTIFS('Raw data cdr'!$IB:$IB,"<="&$R9,'Raw data cdr'!$IB:$IB,">"&$R8,'Raw data cdr'!$D:$D,S$2,'Raw data cdr'!$O:$O,Configuration!$C$20))/C$6,"") -> 0.03174603175 | T9: =IF(T$2<>"",(COUNTIFS('Raw data cdr'!$IB:$IB,"<="&$R9,'Raw data cdr'!$IB:$IB,">"&$R8,'Raw data cdr'!$D:$D,T$2,'Raw data cdr'!$O:$O,Configuration!$C$20))/D$6,"") -> 0.1034482759 | U9: =IF(U$2<>"",(COUNTIFS('Raw data cdr'!$IB:$IB,"<="&$R9,'Raw data cdr'!$IB:$IB,">"&$R8,'Raw data cdr'!$D:$D,U$2,'Raw data cdr'!$O:$O,Configuration!$C$20))/E$6,"") -> 0.08333333333 | W9: =W8+Configuration!$C$25 -> 6.6 | X9: =IF(X$2<>"",(COUNTIFS('Raw data cdr'!$IB:$IB,"<="&$W9,'Raw data cdr'!$IB:$IB,">"&$W8,'Raw data cdr'!$D:$D,X$2,'Raw data cdr'!$O:$O,Configuration!$C$21))/C$7,"") -> 0.03174603175 | Y9: =IF(Y$2<>"",(COUNTIFS('Raw data cdr'!$IB:$IB,"<="&$W9,'Raw data cdr'!$IB:$IB,">"&$W8,'Raw data cdr'!$D:$D,Y$2,'Raw data cdr'!$O:$O,Configuration!$C$21))/D$7,"") -> 0.05084745763 | Z9: =IF(Z$2<>"",(COUNTIFS('Raw data cdr'!$IB:$IB,"<="&$W9,'Raw data cdr'!$IB:$IB,">"&$W8,'Raw data cdr'!$D:$D,Z$2,'Raw data cdr'!$O:$O,Configuration!$C$21))/E$7,"") -> 0.01694915254
H10: =H9+Configuration!$C$22 -> 12.6 | I10: =IF(I$2<>"",(COUNTIFS('Raw data cdr'!$IB:$IB,"<="&$H10,'Raw data cdr'!$IB:$IB,">"&$H9,'Raw data cdr'!$D:$D,I$2,'Raw data cdr'!$O:$O,Configuration!$C$18))/C$4,"") -> 0.03278688525 | J10: =IF(J$2<>"",(COUNTIFS('Raw data cdr'!$IB:$IB,"<="&$H10,'Raw data cdr'!$IB:$IB,">"&$H9,'Raw data cdr'!$D:$D,J$2,'Raw data cdr'!$O:$O,Configuration!$C$18))/D$4,"") -> 0.05660377358 | K10: =IF(K$2<>"",(COUNTIFS('Raw data cdr'!$IB:$IB,"<="&$H10,'Raw data cdr'!$IB:$IB,">"&$H9,'Raw data cdr'!$D:$D,K$2,'Raw data cdr'!$O:$O,Configuration!$C$18))/E$4,"") -> 0.06557377049 | M10: =M9+Configuration!$C$23 -> 4.9 | N10: =IF(N$2<>"",(COUNTIFS('Raw data cdr'!$IB:$IB,"<="&$M10,'Raw data cdr'!$IB:$IB,">"&$M9,'Raw data cdr'!$D:$D,N$2,'Raw data cdr'!$O:$O,Configuration!$C$19))/C$5,"") -> 0.07936507937 | O10: =IF(O$2<>"",(COUNTIFS('Raw data cdr'!$IB:$IB,"<="&$M10,'Raw data cdr'!$IB:$IB,">"&$M9,'Raw data cdr'!$D:$D,O$2,'Raw data cdr'!$O:$O,Configuration!$C$19))/D$5,"") -> 0.05454545455 | P10: =IF(P$2<>"",(COUNTIFS('Raw data cdr'!$IB:$IB,"<="&$M10,'Raw data cdr'!$IB:$IB,">"&$M9,'Raw data cdr'!$D:$D,P$2,'Raw data cdr'!$O:$O,Configuration!$C$19))/E$5,"") -> 0.01666666667 | R10: =R9+Configuration!$C$24 -> 28.7 | S10: =IF(S$2<>"",(COUNTIFS('Raw data cdr'!$IB:$IB,"<="&$R10,'Raw data cdr'!$IB:$IB,">"&$R9,'Raw data cdr'!$D:$D,S$2,'Raw data cdr'!$O:$O,Configuration!$C$20))/C$6,"") -> 0.03174603175 | T10: =IF(T$2<>"",(COUNTIFS('Raw data cdr'!$IB:$IB,"<="&$R10,'Raw data cdr'!$IB:$IB,">"&$R9,'Raw data cdr'!$D:$D,T$2,'Raw data cdr'!$O:$O,Configuration!$C$20))/D$6,"") -> 0.06896551724 | U10: =IF(U$2<>"",(COUNTIFS('Raw data cdr'!$IB:$IB,"<="&$R10,'Raw data cdr'!$IB:$IB,">"&$R9,'Raw data cdr'!$D:$D,U$2,'Raw data cdr'!$O:$O,Configuration!$C$20))/E$6,"") -> 0.05 | W10: =W9+Configuration!$C$25 -> 7.7 | X10: =IF(X$2<>"",(COUNTIFS('Raw data cdr'!$IB:$IB,"<="&$W10,'Raw data cdr'!$IB:$IB,">"&$W9,'Raw data cdr'!$D:$D,X$2,'Raw data cdr'!$O:$O,Configuration!$C$21))/C$7,"") -> 0.09523809524 | Y10: =IF(Y$2<>"",(COUNTIFS('Raw data cdr'!$IB:$IB,"<="&$W10,'Raw data cdr'!$IB:$IB,">"&$W9,'Raw data cdr'!$D:$D,Y$2,'Raw data cdr'!$O:$O,Configuration!$C$21))/D$7,"") -> 0.06779661017 | Z10: =IF(Z$2<>"",(COUNTIFS('Raw data cdr'!$IB:$IB,"<="&$W10,'Raw data cdr'!$IB:$IB,">"&$W9,'Raw data cdr'!$D:$D,Z$2,'Raw data cdr'!$O:$O,Configuration!$C$21))/E$7,"") -> 0.08474576271
H11: =H10+Configuration!$C$22 -> 14.4 | I11: =IF(I$2<>"",(COUNTIFS('Raw data cdr'!$IB:$IB,"<="&$H11,'Raw data cdr'!$IB:$IB,">"&$H10,'Raw data cdr'!$D:$D,I$2,'Raw data cdr'!$O:$O,Configuration!$C$18))/C$4,"") -> 0.01639344262 | J11: =IF(J$2<>"",(COUNTIFS('Raw data cdr'!$IB:$IB,"<="&$H11,'Raw data cdr'!$IB:$IB,">"&$H10,'Raw data cdr'!$D:$D,J$2,'Raw data cdr'!$O:$O,Configuration!$C$18))/D$4,"") -> 0.1132075472 | K11: =IF(K$2<>"",(COUNTIFS('Raw data cdr'!$IB:$IB,"<="&$H11,'Raw data cdr'!$IB:$IB,">"&$H10,'Raw data cdr'!$D:$D,K$2,'Raw data cdr'!$O:$O,Configuration!$C$18))/E$4,"") -> 0.06557377049 | M11: =M10+Configuration!$C$23 -> 5.6 | N11: =IF(N$2<>"",(COUNTIFS('Raw data cdr'!$IB:$IB,"<="&$M11,'Raw data cdr'!$IB:$IB,">"&$M10,'Raw data cdr'!$D:$D,N$2,'Raw data cdr'!$O:$O,Configuration!$C$19))/C$5,"") -> 0.04761904762 | O11: =IF(O$2<>"",(COUNTIFS('Raw data cdr'!$IB:$IB,"<="&$M11,'Raw data cdr'!$IB:$IB,">"&$M10,'Raw data cdr'!$D:$D,O$2,'Raw data cdr'!$O:$O,Configuration!$C$19))/D$5,"") -> 0.09090909091 | P11: =IF(P$2<>"",(COUNTIFS('Raw data cdr'!$IB:$IB,"<="&$M11,'Raw data cdr'!$IB:$IB,">"&$M10,'Raw data cdr'!$D:$D,P$2,'Raw data cdr'!$O:$O,Configuration!$C$19))/E$5,"") -> 0.05 | R11: =R10+Configuration!$C$24 -> 32.8 | S11: =IF(S$2<>"",(COUNTIFS('Raw data cdr'!$IB:$IB,"<="&$R11,'Raw data cdr'!$IB:$IB,">"&$R10,'Raw data cdr'!$D:$D,S$2,'Raw data cdr'!$O:$O,Configuration!$C$20))/C$6,"") -> 0.01587301587 | T11: =IF(T$2<>"",(COUNTIFS('Raw data cdr'!$IB:$IB,"<="&$R11,'Raw data cdr'!$IB:$IB,">"&$R10,'Raw data cdr'!$D:$D,T$2,'Raw data cdr'!$O:$O,Configuration!$C$20))/D$6,"") -> 0.03448275862 | U11: =IF(U$2<>"",(COUNTIFS('Raw data cdr'!$IB:$IB,"<="&$R11,'Raw data cdr'!$IB:$IB,">"&$R10,'Raw data cdr'!$D:$D,U$2,'Raw data cdr'!$O:$O,Configuration!$C$20))/E$6,"") -> 0.06666666667 | W11: =W10+Configuration!$C$25 -> 8.8 | X11: =IF(X$2<>"",(COUNTIFS('Raw data cdr'!$IB:$IB,"<="&$W11,'Raw data cdr'!$IB:$IB,">"&$W10,'Raw data cdr'!$D:$D,X$2,'Raw data cdr'!$O:$O,Configuration!$C$21))/C$7,"") -> 0.06349206349 | Y11: =IF(Y$2<>"",(COUNTIFS('Raw data cdr'!$IB:$IB,"<="&$W11,'Raw data cdr'!$IB:$IB,">"&$W10,'Raw data cdr'!$D:$D,Y$2,'Raw data cdr'!$O:$O,Configuration!$C$21))/D$7,"") -> 0.06779661017 | Z11: =IF(Z$2<>"",(COUNTIFS('Raw data cdr'!$IB:$IB,"<="&$W11,'Raw data cdr'!$IB:$IB,">"&$W10,'Raw data cdr'!$D:$D,Z$2,'Raw data cdr'!$O:$O,Configuration!$C$21))/E$7,"") -> 0.03389830508
H12: =H11+Configuration!$C$22 -> 16.2 | I12: =IF(I$2<>"",(COUNTIFS('Raw data cdr'!$IB:$IB,"<="&$H12,'Raw data cdr'!$IB:$IB,">"&$H11,'Raw data cdr'!$D:$D,I$2,'Raw data cdr'!$O:$O,Configuration!$C$18))/C$4,"") -> 0.03278688525 | J12: =IF(J$2<>"",(COUNTIFS('Raw data cdr'!$IB:$IB,"<="&$H12,'Raw data cdr'!$IB:$IB,">"&$H11,'Raw data cdr'!$D:$D,J$2,'Raw data cdr'!$O:$O,Configuration!$C$18))/D$4,"") -> 0.01886792453 | K12: =IF(K$2<>"",(COUNTIFS('Raw data cdr'!$IB:$IB,"<="&$H12,'Raw data cdr'!$IB:$IB,">"&$H11,'Raw data cdr'!$D:$D,K$2,'Raw data cdr'!$O:$O,Configuration!$C$18))/E$4,"") -> 0.06557377049 | M12: =M11+Configuration!$C$23 -> 6.3 | N12: =IF(N$2<>"",(COUNTIFS('Raw data cdr'!$IB:$IB,"<="&$M12,'Raw data cdr'!$IB:$IB,">"&$M11,'Raw data cdr'!$D:$D,N$2,'Raw data cdr'!$O:$O,Configuration!$C$19))/C$5,"") -> 0.03174603175 | O12: =IF(O$2<>"",(COUNTIFS('Raw data cdr'!$IB:$IB,"<="&$M12,'Raw data cdr'!$IB:$IB,">"&$M11,'Raw data cdr'!$D:$D,O$2,'Raw data cdr'!$O:$O,Configuration!$C$19))/D$5,"") -> 0.07272727273 | P12: =IF(P$2<>"",(COUNTIFS('Raw data cdr'!$IB:$IB,"<="&$M12,'Raw data cdr'!$IB:$IB,">"&$M11,'Raw data cdr'!$D:$D,P$2,'Raw data cdr'!$O:$O,Configuration!$C$19))/E$5,"") -> 0.1 | R12: =R11+Configuration!$C$24 -> 36.9 | S12: =IF(S$2<>"",(COUNTIFS('Raw data cdr'!$IB:$IB,"<="&$R12,'Raw data cdr'!$IB:$IB,">"&$R11,'Raw data cdr'!$D:$D,S$2,'Raw data cdr'!$O:$O,Configuration!$C$20))/C$6,"") -> 0.04761904762 | T12: =IF(T$2<>"",(COUNTIFS('Raw data cdr'!$IB:$IB,"<="&$R12,'Raw data cdr'!$IB:$IB,">"&$R11,'Raw data cdr'!$D:$D,T$2,'Raw data cdr'!$O:$O,Configuration!$C$20))/D$6,"") -> 0.05172413793 | U12: =IF(U$2<>"",(COUNTIFS('Raw data cdr'!$IB:$IB,"<="&$R12,'Raw data cdr'!$IB:$IB,">"&$R11,'Raw data cdr'!$D:$D,U$2,'Raw data cdr'!$O:$O,Configuration!$C$20))/E$6,"") -> 0 | W12: =W11+Configuration!$C$25 -> 9.9 | X12: =IF(X$2<>"",(COUNTIFS('Raw data cdr'!$IB:$IB,"<="&$W12,'Raw data cdr'!$IB:$IB,">"&$W11,'Raw data cdr'!$D:$D,X$2,'Raw data cdr'!$O:$O,Configuration!$C$21))/C$7,"") -> 0.04761904762 | Y12: =IF(Y$2<>"",(COUNTIFS('Raw data cdr'!$IB:$IB,"<="&$W12,'Raw data cdr'!$IB:$IB,">"&$W11,'Raw data cdr'!$D:$D,Y$2,'Raw data cdr'!$O:$O,Configuration!$C$21))/D$7,"") -> 0.1016949153 | Z12: =IF(Z$2<>"",(COUNTIFS('Raw data cdr'!$IB:$IB,"<="&$W12,'Raw data cdr'!$IB:$IB,">"&$W11,'Raw data cdr'!$D:$D,Z$2,'Raw data cdr'!$O:$O,Configuration!$C$21))/E$7,"") -> 0.01694915254
H13: =H12+Configuration!$C$22 -> 18 | I13: =IF(I$2<>"",(COUNTIFS('Raw data cdr'!$IB:$IB,"<="&$H13,'Raw data cdr'!$IB:$IB,">"&$H12,'Raw data cdr'!$D:$D,I$2,'Raw data cdr'!$O:$O,Configuration!$C$18))/C$4,"") -> 0.03278688525 | J13: =IF(J$2<>"",(COUNTIFS('Raw data cdr'!$IB:$IB,"<="&$H13,'Raw data cdr'!$IB:$IB,">"&$H12,'Raw data cdr'!$D:$D,J$2,'Raw data cdr'!$O:$O,Configuration!$C$18))/D$4,"") -> 0.05660377358 | K13: =IF(K$2<>"",(COUNTIFS('Raw data cdr'!$IB:$IB,"<="&$H13,'Raw data cdr'!$IB:$IB,">"&$H12,'Raw data cdr'!$D:$D,K$2,'Raw data cdr'!$O:$O,Configuration!$C$18))/E$4,"") -> 0.08196721311 | M13: =M12+Configuration!$C$23 -> 7 | N13: =IF(N$2<>"",(COUNTIFS('Raw data cdr'!$IB:$IB,"<="&$M13,'Raw data cdr'!$IB:$IB,">"&$M12,'Raw data cdr'!$D:$D,N$2,'Raw data cdr'!$O:$O,Configuration!$C$19))/C$5,"") -> 0.01587301587 | O13: =IF(O$2<>"",(COUNTIFS('Raw data cdr'!$IB:$IB,"<="&$M13,'Raw data cdr'!$IB:$IB,">"&$M12,'Raw data cdr'!$D:$D,O$2,'Raw data cdr'!$O:$O,Configuration!$C$19))/D$5,"") -> 0.07272727273 | P13: =IF(P$2<>"",(COUNTIFS('Raw data cdr'!$IB:$IB,"<="&$M13,'Raw data cdr'!$IB:$IB,">"&$M12,'Raw data cdr'!$D:$D,P$2,'Raw data cdr'!$O:$O,Configuration!$C$19))/E$5,"") -> 0.01666666667 | R13: =R12+Configuration!$C$24 -> 41 | S13: =IF(S$2<>"",(COUNTIFS('Raw data cdr'!$IB:$IB,"<="&$R13,'Raw data cdr'!$IB:$IB,">"&$R12,'Raw data cdr'!$D:$D,S$2,'Raw data cdr'!$O:$O,Configuration!$C$20))/C$6,"") -> 0.03174603175 | T13: =IF(T$2<>"",(COUNTIFS('Raw data cdr'!$IB:$IB,"<="&$R13,'Raw data cdr'!$IB:$IB,">"&$R12,'Raw data cdr'!$D:$D,T$2,'Raw data cdr'!$O:$O,Configuration!$C$20))/D$6,"") -> 0.01724137931 | U13: =IF(U$2<>"",(COUNTIFS('Raw data cdr'!$IB:$IB,"<="&$R13,'Raw data cdr'!$IB:$IB,">"&$R12,'Raw data cdr'!$D:$D,U$2,'Raw data cdr'!$O:$O,Configuration!$C$20))/E$6,"") -> 0.01666666667 | W13: =W12+Configuration!$C$25 -> 11 | X13: =IF(X$2<>"",(COUNTIFS('Raw data cdr'!$IB:$IB,"<="&$W13,'Raw data cdr'!$IB:$IB,">"&$W12,'Raw data cdr'!$D:$D,X$2,'Raw data cdr'!$O:$O,Configuration!$C$21))/C$7,"") -> 0.07936507937 | Y13: =IF(Y$2<>"",(COUNTIFS('Raw data cdr'!$IB:$IB,"<="&$W13,'Raw data cdr'!$IB:$IB,">"&$W12,'Raw data cdr'!$D:$D,Y$2,'Raw data cdr'!$O:$O,Configuration!$C$21))/D$7,"") -> 0.06779661017 | Z13: =IF(Z$2<>"",(COUNTIFS('Raw data cdr'!$IB:$IB,"<="&$W13,'Raw data cdr'!$IB:$IB,">"&$W12,'Raw data cdr'!$D:$D,Z$2,'Raw data cdr'!$O:$O,Configuration!$C$21))/E$7,"") -> 0.01694915254
H14: =H13+Configuration!$C$22 -> 19.8 | I14: =IF(I$2<>"",(COUNTIFS('Raw data cdr'!$IB:$IB,"<="&$H14,'Raw data cdr'!$IB:$IB,">"&$H13,'Raw data cdr'!$D:$D,I$2,'Raw data cdr'!$O:$O,Configuration!$C$18))/C$4,"") -> 0.03278688525 | J14: =IF(J$2<>"",(COUNTIFS('Raw data cdr'!$IB:$IB,"<="&$H14,'Raw data cdr'!$IB:$IB,">"&$H13,'Raw data cdr'!$D:$D,J$2,'Raw data cdr'!$O:$O,Configuration!$C$18))/D$4,"") -> 0.01886792453 | K14: =IF(K$2<>"",(COUNTIFS('Raw data cdr'!$IB:$IB,"<="&$H14,'Raw data cdr'!$IB:$IB,">"&$H13,'Raw data cdr'!$D:$D,K$2,'Raw data cdr'!$O:$O,Configuration!$C$18))/E$4,"") -> 0.1639344262 | M14: =M13+Configuration!$C$23 -> 7.7 | N14: =IF(N$2<>"",(COUNTIFS('Raw data cdr'!$IB:$IB,"<="&$M14,'Raw data cdr'!$IB:$IB,">"&$M13,'Raw data cdr'!$D:$D,N$2,'Raw data cdr'!$O:$O,Configuration!$C$19))/C$5,"") -> 0.04761904762 | O14: =IF(O$2<>"",(COUNTIFS('Raw data cdr'!$IB:$IB,"<="&$M14,'Raw data cdr'!$IB:$IB,">"&$M13,'Raw data cdr'!$D:$D,O$2,'Raw data cdr'!$O:$O,Configuration!$C$19))/D$5,"") -> 0.03636363636 | P14: =IF(P$2<>"",(COUNTIFS('Raw data cdr'!$IB:$IB,"<="&$M14,'Raw data cdr'!$IB:$IB,">"&$M13,'Raw data cdr'!$D:$D,P$2,'Raw data cdr'!$O:$O,Configuration!$C$19))/E$5,"") -> 0.06666666667 | R14: =R13+Configuration!$C$24 -> 45.1 | S14: =IF(S$2<>"",(COUNTIFS('Raw data cdr'!$IB:$IB,"<="&$R14,'Raw data cdr'!$IB:$IB,">"&$R13,'Raw data cdr'!$D:$D,S$2,'Raw data cdr'!$O:$O,Configuration!$C$20))/C$6,"") -> 0.01587301587 | T14: =IF(T$2<>"",(COUNTIFS('Raw data cdr'!$IB:$IB,"<="&$R14,'Raw data cdr'!$IB:$IB,">"&$R13,'Raw data cdr'!$D:$D,T$2,'Raw data cdr'!$O:$O,Configuration!$C$20))/D$6,"") -> 0 | U14: =IF(U$2<>"",(COUNTIFS('Raw data cdr'!$IB:$IB,"<="&$R14,'Raw data cdr'!$IB:$IB,">"&$R13,'Raw data cdr'!$D:$D,U$2,'Raw data cdr'!$O:$O,Configuration!$C$20))/E$6,"") -> 0.03333333333 | W14: =W13+Configuration!$C$25 -> 12.1 | X14: =IF(X$2<>"",(COUNTIFS('Raw data cdr'!$IB:$IB,"<="&$W14,'Raw data cdr'!$IB:$IB,">"&$W13,'Raw data cdr'!$D:$D,X$2,'Raw data cdr'!$O:$O,Configuration!$C$21))/C$7,"") -> 0.07936507937 | Y14: =IF(Y$2<>"",(COUNTIFS('Raw data cdr'!$IB:$IB,"<="&$W14,'Raw data cdr'!$IB:$IB,">"&$W13,'Raw data cdr'!$D:$D,Y$2,'Raw data cdr'!$O:$O,Configuration!$C$21))/D$7,"") -> 0.08474576271 | Z14: =IF(Z$2<>"",(COUNTIFS('Raw data cdr'!$IB:$IB,"<="&$W14,'Raw data cdr'!$IB:$IB,">"&$W13,'Raw data cdr'!$D:$D,Z$2,'Raw data cdr'!$O:$O,Configuration!$C$21))/E$7,"") -> 0.05084745763
H15: =H14+Configuration!$C$22 -> 21.6 | I15: =IF(I$2<>"",(COUNTIFS('Raw data cdr'!$IB:$IB,"<="&$H15,'Raw data cdr'!$IB:$IB,">"&$H14,'Raw data cdr'!$D:$D,I$2,'Raw data cdr'!$O:$O,Configuration!$C$18))/C$4,"") -> 0.01639344262 | J15: =IF(J$2<>"",(COUNTIFS('Raw data cdr'!$IB:$IB,"<="&$H15,'Raw data cdr'!$IB:$IB,">"&$H14,'Raw data cdr'!$D:$D,J$2,'Raw data cdr'!$O:$O,Configuration!$C$18))/D$4,"") -> 0.03773584906 | K15: =IF(K$2<>"",(COUNTIFS('Raw data cdr'!$IB:$IB,"<="&$H15,'Raw data cdr'!$IB:$IB,">"&$H14,'Raw data cdr'!$D:$D,K$2,'Raw data cdr'!$O:$O,Configuration!$C$18))/E$4,"") -> 0.01639344262 | M15: =M14+Configuration!$C$23 -> 8.4 | N15: =IF(N$2<>"",(COUNTIFS('Raw data cdr'!$IB:$IB,"<="&$M15,'Raw data cdr'!$IB:$IB,">"&$M14,'Raw data cdr'!$D:$D,N$2,'Raw data cdr'!$O:$O,Configuration!$C$19))/C$5,"") -> 0.06349206349 | O15: =IF(O$2<>"",(COUNTIFS('Raw data cdr'!$IB:$IB,"<="&$M15,'Raw data cdr'!$IB:$IB,">"&$M14,'Raw data cdr'!$D:$D,O$2,'Raw data cdr'!$O:$O,Configuration!$C$19))/D$5,"") -> 0.03636363636 | P15: =IF(P$2<>"",(COUNTIFS('Raw data cdr'!$IB:$IB,"<="&$M15,'Raw data cdr'!$IB:$IB,">"&$M14,'Raw data cdr'!$D:$D,P$2,'Raw data cdr'!$O:$O,Configuration!$C$19))/E$5,"") -> 0 | R15: =R14+Configuration!$C$24 -> 49.2 | S15: =IF(S$2<>"",(COUNTIFS('Raw data cdr'!$IB:$IB,"<="&$R15,'Raw data cdr'!$IB:$IB,">"&$R14,'Raw data cdr'!$D:$D,S$2,'Raw data cdr'!$O:$O,Configuration!$C$20))/C$6,"") -> 0.01587301587 | T15: =IF(T$2<>"",(COUNTIFS('Raw data cdr'!$IB:$IB,"<="&$R15,'Raw data cdr'!$IB:$IB,">"&$R14,'Raw data cdr'!$D:$D,T$2,'Raw data cdr'!$O:$O,Configuration!$C$20))/D$6,"") -> 0.01724137931 | U15: =IF(U$2<>"",(COUNTIFS('Raw data cdr'!$IB:$IB,"<="&$R15,'Raw data cdr'!$IB:$IB,">"&$R14,'Raw data cdr'!$D:$D,U$2,'Raw data cdr'!$O:$O,Configuration!$C$20))/E$6,"") -> 0.03333333333 | W15: =W14+Configuration!$C$25 -> 13.2 | X15: =IF(X$2<>"",(COUNTIFS('Raw data cdr'!$IB:$IB,"<="&$W15,'Raw data cdr'!$IB:$IB,">"&$W14,'Raw data cdr'!$D:$D,X$2,'Raw data cdr'!$O:$O,Configuration!$C$21))/C$7,"") -> 0.04761904762 | Y15: =IF(Y$2<>"",(COUNTIFS('Raw data cdr'!$IB:$IB,"<="&$W15,'Raw data cdr'!$IB:$IB,">"&$W14,'Raw data cdr'!$D:$D,Y$2,'Raw data cdr'!$O:$O,Configuration!$C$21))/D$7,"") -> 0.01694915254 | Z15: =IF(Z$2<>"",(COUNTIFS('Raw data cdr'!$IB:$IB,"<="&$W15,'Raw data cdr'!$IB:$IB,">"&$W14,'Raw data cdr'!$D:$D,Z$2,'Raw data cdr'!$O:$O,Configuration!$C$21))/E$7,"") -> 0.05084745763
H16: =H15+Configuration!$C$22 -> 23.4 | I16: =IF(I$2<>"",(COUNTIFS('Raw data cdr'!$IB:$IB,"<="&$H16,'Raw data cdr'!$IB:$IB,">"&$H15,'Raw data cdr'!$D:$D,I$2,'Raw data cdr'!$O:$O,Configuration!$C$18))/C$4,"") -> 0.03278688525 | J16: =IF(J$2<>"",(COUNTIFS('Raw data cdr'!$IB:$IB,"<="&$H16,'Raw data cdr'!$IB:$IB,">"&$H15,'Raw data cdr'!$D:$D,J$2,'Raw data cdr'!$O:$O,Configuration!$C$18))/D$4,"") -> 0 | K16: =IF(K$2<>"",(COUNTIFS('Raw data cdr'!$IB:$IB,"<="&$H16,'Raw data cdr'!$IB:$IB,">"&$H15,'Raw data cdr'!$D:$D,K$2,'Raw data cdr'!$O:$O,Configuration!$C$18))/E$4,"") -> 0.08196721311 | M16: =M15+Configuration!$C$23 -> 9.1 | N16: =IF(N$2<>"",(COUNTIFS('Raw data cdr'!$IB:$IB,"<="&$M16,'Raw data cdr'!$IB:$IB,">"&$M15,'Raw data cdr'!$D:$D,N$2,'Raw data cdr'!$O:$O,Configuration!$C$19))/C$5,"") -> 0.06349206349 | O16: =IF(O$2<>"",(COUNTIFS('Raw data cdr'!$IB:$IB,"<="&$M16,'Raw data cdr'!$IB:$IB,">"&$M15,'Raw data cdr'!$D:$D,O$2,'Raw data cdr'!$O:$O,Configuration!$C$19))/D$5,"") -> 0.01818181818 | P16: =IF(P$2<>"",(COUNTIFS('Raw data cdr'!$IB:$IB,"<="&$M16,'Raw data cdr'!$IB:$IB,">"&$M15,'Raw data cdr'!$D:$D,P$2,'Raw data cdr'!$O:$O,Configuration!$C$19))/E$5,"") -> 0.03333333333 | R16: =R15+Configuration!$C$24 -> 53.3 | S16: =IF(S$2<>"",(COUNTIFS('Raw data cdr'!$IB:$IB,"<="&$R16,'Raw data cdr'!$IB:$IB,">"&$R15,'Raw data cdr'!$D:$D,S$2,'Raw data cdr'!$O:$O,Configuration!$C$20))/C$6,"") -> 0.04761904762 | T16: =IF(T$2<>"",(COUNTIFS('Raw data cdr'!$IB:$IB,"<="&$R16,'Raw data cdr'!$IB:$IB,">"&$R15,'Raw data cdr'!$D:$D,T$2,'Raw data cdr'!$O:$O,Configuration!$C$20))/D$6,"") -> 0.03448275862 | U16: =IF(U$2<>"",(COUNTIFS('Raw data cdr'!$IB:$IB,"<="&$R16,'Raw data cdr'!$IB:$IB,">"&$R15,'Raw data cdr'!$D:$D,U$2,'Raw data cdr'!$O:$O,Configuration!$C$20))/E$6,"") -> 0.03333333333 | W16: =W15+Configuration!$C$25 -> 14.3 | X16: =IF(X$2<>"",(COUNTIFS('Raw data cdr'!$IB:$IB,"<="&$W16,'Raw data cdr'!$IB:$IB,">"&$W15,'Raw data cdr'!$D:$D,X$2,'Raw data cdr'!$O:$O,Configuration!$C$21))/C$7,"") -> 0.03174603175 | Y16: =IF(Y$2<>"",(COUNTIFS('Raw data cdr'!$IB:$IB,"<="&$W16,'Raw data cdr'!$IB:$IB,">"&$W15,'Raw data cdr'!$D:$D,Y$2,'Raw data cdr'!$O:$O,Configuration!$C$21))/D$7,"") -> 0.06779661017 | Z16: =IF(Z$2<>"",(COUNTIFS('Raw data cdr'!$IB:$IB,"<="&$W16,'Raw data cdr'!$IB:$IB,">"&$W15,'Raw data cdr'!$D:$D,Z$2,'Raw data cdr'!$O:$O,Configuration!$C$21))/E$7,"") -> 0.05084745763
H17: =H16+Configuration!$C$22 -> 25.2 | I17: =IF(I$2<>"",(COUNTIFS('Raw data cdr'!$IB:$IB,"<="&$H17,'Raw data cdr'!$IB:$IB,">"&$H16,'Raw data cdr'!$D:$D,I$2,'Raw data cdr'!$O:$O,Configuration!$C$18))/C$4,"") -> 0.01639344262 | J17: =IF(J$2<>"",(COUNTIFS('Raw data cdr'!$IB:$IB,"<="&$H17,'Raw data cdr'!$IB:$IB,">"&$H16,'Raw data cdr'!$D:$D,J$2,'Raw data cdr'!$O:$O,Configuration!$C$18))/D$4,"") -> 0.03773584906 | K17: =IF(K$2<>"",(COUNTIFS('Raw data cdr'!$IB:$IB,"<="&$H17,'Raw data cdr'!$IB:$IB,">"&$H16,'Raw data cdr'!$D:$D,K$2,'Raw data cdr'!$O:$O,Configuration!$C$18))/E$4,"") -> 0.08196721311 | M17: =M16+Configuration!$C$23 -> 9.8 | N17: =IF(N$2<>"",(COUNTIFS('Raw data cdr'!$IB:$IB,"<="&$M17,'Raw data cdr'!$IB:$IB,">"&$M16,'Raw data cdr'!$D:$D,N$2,'Raw data cdr'!$O:$O,Configuration!$C$19))/C$5,"") -> 0.03174603175 | O17: =IF(O$2<>"",(COUNTIFS('Raw data cdr'!$IB:$IB,"<="&$M17,'Raw data cdr'!$IB:$IB,">"&$M16,'Raw data cdr'!$D:$D,O$2,'Raw data cdr'!$O:$O,Configuration!$C$19))/D$5,"") -> 0.05454545455 | P17: =IF(P$2<>"",(COUNTIFS('Raw data cdr'!$IB:$IB,"<="&$M17,'Raw data cdr'!$IB:$IB,">"&$M16,'Raw data cdr'!$D:$D,P$2,'Raw data cdr'!$O:$O,Configuration!$C$19))/E$5,"") -> 0.06666666667 | R17: =R16+Configuration!$C$24 -> 57.4 | S17: =IF(S$2<>"",(COUNTIFS('Raw data cdr'!$IB:$IB,"<="&$R17,'Raw data cdr'!$IB:$IB,">"&$R16,'Raw data cdr'!$D:$D,S$2,'Raw data cdr'!$O:$O,Configuration!$C$20))/C$6,"") -> 0.01587301587 | T17: =IF(T$2<>"",(COUNTIFS('Raw data cdr'!$IB:$IB,"<="&$R17,'Raw data cdr'!$IB:$IB,">"&$R16,'Raw data cdr'!$D:$D,T$2,'Raw data cdr'!$O:$O,Configuration!$C$20))/D$6,"") -> 0.01724137931 | U17: =IF(U$2<>"",(COUNTIFS('Raw data cdr'!$IB:$IB,"<="&$R17,'Raw data cdr'!$IB:$IB,">"&$R16,'Raw data cdr'!$D:$D,U$2,'Raw data cdr'!$O:$O,Configuration!$C$20))/E$6,"") -> 0.03333333333 | W17: =W16+Configuration!$C$25 -> 15.4 | X17: =IF(X$2<>"",(COUNTIFS('Raw data cdr'!$IB:$IB,"<="&$W17,'Raw data cdr'!$IB:$IB,">"&$W16,'Raw data cdr'!$D:$D,X$2,'Raw data cdr'!$O:$O,Configuration!$C$21))/C$7,"") -> 0.06349206349 | Y17: =IF(Y$2<>"",(COUNTIFS('Raw data cdr'!$IB:$IB,"<="&$W17,'Raw data cdr'!$IB:$IB,">"&$W16,'Raw data cdr'!$D:$D,Y$2,'Raw data cdr'!$O:$O,Configuration!$C$21))/D$7,"") -> 0.05084745763 | Z17: =IF(Z$2<>"",(COUNTIFS('Raw data cdr'!$IB:$IB,"<="&$W17,'Raw data cdr'!$IB:$IB,">"&$W16,'Raw data cdr'!$D:$D,Z$2,'Raw data cdr'!$O:$O,Configuration!$C$21))/E$7,"") -> 0.01694915254
H18: =H17+Configuration!$C$22 -> 27 | I18: =IF(I$2<>"",(COUNTIFS('Raw data cdr'!$IB:$IB,"<="&$H18,'Raw data cdr'!$IB:$IB,">"&$H17,'Raw data cdr'!$D:$D,I$2,'Raw data cdr'!$O:$O,Configuration!$C$18))/C$4,"") -> 0.03278688525 | J18: =IF(J$2<>"",(COUNTIFS('Raw data cdr'!$IB:$IB,"<="&$H18,'Raw data cdr'!$IB:$IB,">"&$H17,'Raw data cdr'!$D:$D,J$2,'Raw data cdr'!$O:$O,Configuration!$C$18))/D$4,"") -> 0.07547169811 | K18: =IF(K$2<>"",(COUNTIFS('Raw data cdr'!$IB:$IB,"<="&$H18,'Raw data cdr'!$IB:$IB,">"&$H17,'Raw data cdr'!$D:$D,K$2,'Raw data cdr'!$O:$O,Configuration!$C$18))/E$4,"") -> 0 | M18: =M17+Configuration!$C$23 -> 10.5 | N18: =IF(N$2<>"",(COUNTIFS('Raw data cdr'!$IB:$IB,"<="&$M18,'Raw data cdr'!$IB:$IB,">"&$M17,'Raw data cdr'!$D:$D,N$2,'Raw data cdr'!$O:$O,Configuration!$C$19))/C$5,"") -> 0.04761904762 | O18: =IF(O$2<>"",(COUNTIFS('Raw data cdr'!$IB:$IB,"<="&$M18,'Raw data cdr'!$IB:$IB,">"&$M17,'Raw data cdr'!$D:$D,O$2,'Raw data cdr'!$O:$O,Configuration!$C$19))/D$5,"") -> 0.07272727273 | P18: =IF(P$2<>"",(COUNTIFS('Raw data cdr'!$IB:$IB,"<="&$M18,'Raw data cdr'!$IB:$IB,">"&$M17,'Raw data cdr'!$D:$D,P$2,'Raw data cdr'!$O:$O,Configuration!$C$19))/E$5,"") -> 0.03333333333 | R18: =R17+Configuration!$C$24 -> 61.5 | S18: =IF(S$2<>"",(COUNTIFS('Raw data cdr'!$IB:$IB,"<="&$R18,'Raw data cdr'!$IB:$IB,">"&$R17,'Raw data cdr'!$D:$D,S$2,'Raw data cdr'!$O:$O,Configuration!$C$20))/C$6,"") -> 0.04761904762 | T18: =IF(T$2<>"",(COUNTIFS('Raw data cdr'!$IB:$IB,"<="&$R18,'Raw data cdr'!$IB:$IB,">"&$R17,'Raw data cdr'!$D:$D,T$2,'Raw data cdr'!$O:$O,Configuration!$C$20))/D$6,"") -> 0 | U18: =IF(U$2<>"",(COUNTIFS('Raw data cdr'!$IB:$IB,"<="&$R18,'Raw data cdr'!$IB:$IB,">"&$R17,'Raw data cdr'!$D:$D,U$2,'Raw data cdr'!$O:$O,Configuration!$C$20))/E$6,"") -> 0.05 | W18: =W17+Configuration!$C$25 -> 16.5 | X18: =IF(X$2<>"",(COUNTIFS('Raw data cdr'!$IB:$IB,"<="&$W18,'Raw data cdr'!$IB:$IB,">"&$W17,'Raw data cdr'!$D:$D,X$2,'Raw data cdr'!$O:$O,Configuration!$C$21))/C$7,"") -> 0.01587301587 | Y18: =IF(Y$2<>"",(COUNTIFS('Raw data cdr'!$IB:$IB,"<="&$W18,'Raw data cdr'!$IB:$IB,">"&$W17,'Raw data cdr'!$D:$D,Y$2,'Raw data cdr'!$O:$O,Configuration!$C$21))/D$7,"") -> 0 | Z18: =IF(Z$2<>"",(COUNTIFS('Raw data cdr'!$IB:$IB,"<="&$W18,'Raw data cdr'!$IB:$IB,">"&$W17,'Raw data cdr'!$D:$D,Z$2,'Raw data cdr'!$O:$O,Configuration!$C$21))/E$7,"") -> 0.01694915254
H19: =H18+Configuration!$C$22 -> 28.8 | I19: =IF(I$2<>"",(COUNTIFS('Raw data cdr'!$IB:$IB,"<="&$H19,'Raw data cdr'!$IB:$IB,">"&$H18,'Raw data cdr'!$D:$D,I$2,'Raw data cdr'!$O:$O,Configuration!$C$18))/C$4,"") -> 0.04918032787 | J19: =IF(J$2<>"",(COUNTIFS('Raw data cdr'!$IB:$IB,"<="&$H19,'Raw data cdr'!$IB:$IB,">"&$H18,'Raw data cdr'!$D:$D,J$2,'Raw data cdr'!$O:$O,Configuration!$C$18))/D$4,"") -> 0.03773584906 | K19: =IF(K$2<>"",(COUNTIFS('Raw data cdr'!$IB:$IB,"<="&$H19,'Raw data cdr'!$IB:$IB,">"&$H18,'Raw data cdr'!$D:$D,K$2,'Raw data cdr'!$O:$O,Configuration!$C$18))/E$4,"") -> 0.06557377049 | M19: =M18+Configuration!$C$23 -> 11.2 | N19: =IF(N$2<>"",(COUNTIFS('Raw data cdr'!$IB:$IB,"<="&$M19,'Raw data cdr'!$IB:$IB,">"&$M18,'Raw data cdr'!$D:$D,N$2,'Raw data cdr'!$O:$O,Configuration!$C$19))/C$5,"") -> 0.06349206349 | O19: =IF(O$2<>"",(COUNTIFS('Raw data cdr'!$IB:$IB,"<="&$M19,'Raw data cdr'!$IB:$IB,">"&$M18,'Raw data cdr'!$D:$D,O$2,'Raw data cdr'!$O:$O,Configuration!$C$19))/D$5,"") -> 0.01818181818 | P19: =IF(P$2<>"",(COUNTIFS('Raw data cdr'!$IB:$IB,"<="&$M19,'Raw data cdr'!$IB:$IB,">"&$M18,'Raw data cdr'!$D:$D,P$2,'Raw data cdr'!$O:$O,Configuration!$C$19))/E$5,"") -> 0.03333333333 | R19: =R18+Configuration!$C$24 -> 65.6 | S19: =IF(S$2<>"",(COUNTIFS('Raw data cdr'!$IB:$IB,"<="&$R19,'Raw data cdr'!$IB:$IB,">"&$R18,'Raw data cdr'!$D:$D,S$2,'Raw data cdr'!$O:$O,Configuration!$C$20))/C$6,"") -> 0.03174603175 | T19: =IF(T$2<>"",(COUNTIFS('Raw data cdr'!$IB:$IB,"<="&$R19,'Raw data cdr'!$IB:$IB,">"&$R18,'Raw data cdr'!$D:$D,T$2,'Raw data cdr'!$O:$O,Configuration!$C$20))/D$6,"") -> 0.03448275862 | U19: =IF(U$2<>"",(COUNTIFS('Raw data cdr'!$IB:$IB,"<="&$R19,'Raw data cdr'!$IB:$IB,">"&$R18,'Raw data cdr'!$D:$D,U$2,'Raw data cdr'!$O:$O,Configuration!$C$20))/E$6,"") -> 0.01666666667 | W19: =W18+Configuration!$C$25 -> 17.6 | X19: =IF(X$2<>"",(COUNTIFS('Raw data cdr'!$IB:$IB,"<="&$W19,'Raw data cdr'!$IB:$IB,">"&$W18,'Raw data cdr'!$D:$D,X$2,'Raw data cdr'!$O:$O,Configuration!$C$21))/C$7,"") -> 0.03174603175 | Y19: =IF(Y$2<>"",(COUNTIFS('Raw data cdr'!$IB:$IB,"<="&$W19,'Raw data cdr'!$IB:$IB,">"&$W18,'Raw data cdr'!$D:$D,Y$2,'Raw data cdr'!$O:$O,Configuration!$C$21))/D$7,"") -> 0.03389830508 | Z19: =IF(Z$2<>"",(COUNTIFS('Raw data cdr'!$IB:$IB,"<="&$W19,'Raw data cdr'!$IB:$IB,">"&$W18,'Raw data cdr'!$D:$D,Z$2,'Raw data cdr'!$O:$O,Configuration!$C$21))/E$7,"") -> 0.03389830508
H20: =H19+Configuration!$C$22 -> 30.6 | I20: =IF(I$2<>"",(COUNTIFS('Raw data cdr'!$IB:$IB,"<="&$H20,'Raw data cdr'!$IB:$IB,">"&$H19,'Raw data cdr'!$D:$D,I$2,'Raw data cdr'!$O:$O,Configuration!$C$18))/C$4,"") -> 0.03278688525 | J20: =IF(J$2<>"",(COUNTIFS('Raw data cdr'!$IB:$IB,"<="&$H20,'Raw data cdr'!$IB:$IB,">"&$H19,'Raw data cdr'!$D:$D,J$2,'Raw data cdr'!$O:$O,Configuration!$C$18))/D$4,"") -> 0.07547169811 | K20: =IF(K$2<>"",(COUNTIFS('Raw data cdr'!$IB:$IB,"<="&$H20,'Raw data cdr'!$IB:$IB,">"&$H19,'Raw data cdr'!$D:$D,K$2,'Raw data cdr'!$O:$O,Configuration!$C$18))/E$4,"") -> 0 | M20: =M19+Configuration!$C$23 -> 11.9 | N20: =IF(N$2<>"",(COUNTIFS('Raw data cdr'!$IB:$IB,"<="&$M20,'Raw data cdr'!$IB:$IB,">"&$M19,'Raw data cdr'!$D:$D,N$2,'Raw data cdr'!$O:$O,Configuration!$C$19))/C$5,"") -> 0.04761904762 | O20: =IF(O$2<>"",(COUNTIFS('Raw data cdr'!$IB:$IB,"<="&$M20,'Raw data cdr'!$IB:$IB,">"&$M19,'Raw data cdr'!$D:$D,O$2,'Raw data cdr'!$O:$O,Configuration!$C$19))/D$5,"") -> 0.09090909091 | P20: =IF(P$2<>"",(COUNTIFS('Raw data cdr'!$IB:$IB,"<="&$M20,'Raw data cdr'!$IB:$IB,">"&$M19,'Raw data cdr'!$D:$D,P$2,'Raw data cdr'!$O:$O,Configuration!$C$19))/E$5,"") -> 0.01666666667 | R20: =R19+Configuration!$C$24 -> 69.7 | S20: =IF(S$2<>"",(COUNTIFS('Raw data cdr'!$IB:$IB,"<="&$R20,'Raw data cdr'!$IB:$IB,">"&$R19,'Raw data cdr'!$D:$D,S$2,'Raw data cdr'!$O:$O,Configuration!$C$20))/C$6,"") -> 0.03174603175 | T20: =IF(T$2<>"",(COUNTIFS('Raw data cdr'!$IB:$IB,"<="&$R20,'Raw data cdr'!$IB:$IB,">"&$R19,'Raw data cdr'!$D:$D,T$2,'Raw data cdr'!$O:$O,Configuration!$C$20))/D$6,"") -> 0.03448275862 | U20: =IF(U$2<>"",(COUNTIFS('Raw data cdr'!$IB:$IB,"<="&$R20,'Raw data cdr'!$IB:$IB,">"&$R19,'Raw data cdr'!$D:$D,U$2,'Raw data cdr'!$O:$O,Configuration!$C$20))/E$6,"") -> 0 | W20: =W19+Configuration!$C$25 -> 18.7 | X20: =IF(X$2<>"",(COUNTIFS('Raw data cdr'!$IB:$IB,"<="&$W20,'Raw data cdr'!$IB:$IB,">"&$W19,'Raw data cdr'!$D:$D,X$2,'Raw data cdr'!$O:$O,Configuration!$C$21))/C$7,"") -> 0.04761904762 | Y20: =IF(Y$2<>"",(COUNTIFS('Raw data cdr'!$IB:$IB,"<="&$W20,'Raw data cdr'!$IB:$IB,">"&$W19,'Raw data cdr'!$D:$D,Y$2,'Raw data cdr'!$O:$O,Configuration!$C$21))/D$7,"") -> 0.01694915254 | Z20: =IF(Z$2<>"",(COUNTIFS('Raw data cdr'!$IB:$IB,"<="&$W20,'Raw data cdr'!$IB:$IB,">"&$W19,'Raw data cdr'!$D:$D,Z$2,'Raw data cdr'!$O:$O,Configuration!$C$21))/E$7,"") -> 0
H21: =H20+Configuration!$C$22 -> 32.4 | I21: =IF(I$2<>"",(COUNTIFS('Raw data cdr'!$IB:$IB,"<="&$H21,'Raw data cdr'!$IB:$IB,">"&$H20,'Raw data cdr'!$D:$D,I$2,'Raw data cdr'!$O:$O,Configuration!$C$18))/C$4,"") -> 0.03278688525 | J21: =IF(J$2<>"",(COUNTIFS('Raw data cdr'!$IB:$IB,"<="&$H21,'Raw data cdr'!$IB:$IB,">"&$H20,'Raw data cdr'!$D:$D,J$2,'Raw data cdr'!$O:$O,Configuration!$C$18))/D$4,"") -> 0 | K21: =IF(K$2<>"",(COUNTIFS('Raw data cdr'!$IB:$IB,"<="&$H21,'Raw data cdr'!$IB:$IB,">"&$H20,'Raw data cdr'!$D:$D,K$2,'Raw data cdr'!$O:$O,Configuration!$C$18))/E$4,"") -> 0.01639344262 | M21: =M20+Configuration!$C$23 -> 12.6 | N21: =IF(N$2<>"",(COUNTIFS('Raw data cdr'!$IB:$IB,"<="&$M21,'Raw data cdr'!$IB:$IB,">"&$M20,'Raw data cdr'!$D:$D,N$2,'Raw data cdr'!$O:$O,Configuration!$C$19))/C$5,"") -> 0.04761904762 | O21: =IF(O$2<>"",(COUNTIFS('Raw data cdr'!$IB:$IB,"<="&$M21,'Raw data cdr'!$IB:$IB,">"&$M20,'Raw data cdr'!$D:$D,O$2,'Raw data cdr'!$O:$O,Configuration!$C$19))/D$5,"") -> 0.01818181818 | P21: =IF(P$2<>"",(COUNTIFS('Raw data cdr'!$IB:$IB,"<="&$M21,'Raw data cdr'!$IB:$IB,">"&$M20,'Raw data cdr'!$D:$D,P$2,'Raw data cdr'!$O:$O,Configuration!$C$19))/E$5,"") -> 0.01666666667 | R21: =R20+Configuration!$C$24 -> 73.8 | S21: =IF(S$2<>"",(COUNTIFS('Raw data cdr'!$IB:$IB,"<="&$R21,'Raw data cdr'!$IB:$IB,">"&$R20,'Raw data cdr'!$D:$D,S$2,'Raw data cdr'!$O:$O,Configuration!$C$20))/C$6,"") -> 0.01587301587 | T21: =IF(T$2<>"",(COUNTIFS('Raw data cdr'!$IB:$IB,"<="&$R21,'Raw data cdr'!$IB:$IB,">"&$R20,'Raw data cdr'!$D:$D,T$2,'Raw data cdr'!$O:$O,Configuration!$C$20))/D$6,"") -> 0.01724137931 | U21: =IF(U$2<>"",(COUNTIFS('Raw data cdr'!$IB:$IB,"<="&$R21,'Raw data cdr'!$IB:$IB,">"&$R20,'Raw data cdr'!$D:$D,U$2,'Raw data cdr'!$O:$O,Configuration!$C$20))/E$6,"") -> 0.01666666667 | W21: =W20+Configuration!$C$25 -> 19.8 | X21: =IF(X$2<>"",(COUNTIFS('Raw data cdr'!$IB:$IB,"<="&$W21,'Raw data cdr'!$IB:$IB,">"&$W20,'Raw data cdr'!$D:$D,X$2,'Raw data cdr'!$O:$O,Configuration!$C$21))/C$7,"") -> 0.03174603175 | Y21: =IF(Y$2<>"",(COUNTIFS('Raw data cdr'!$IB:$IB,"<="&$W21,'Raw data cdr'!$IB:$IB,">"&$W20,'Raw data cdr'!$D:$D,Y$2,'Raw data cdr'!$O:$O,Configuration!$C$21))/D$7,"") -> 0.01694915254 | Z21: =IF(Z$2<>"",(COUNTIFS('Raw data cdr'!$IB:$IB,"<="&$W21,'Raw data cdr'!$IB:$IB,">"&$W20,'Raw data cdr'!$D:$D,Z$2,'Raw data cdr'!$O:$O,Configuration!$C$21))/E$7,"") -> 0.01694915254
H22: =H21+Configuration!$C$22 -> 34.2 | I22: =IF(I$2<>"",(COUNTIFS('Raw data cdr'!$IB:$IB,"<="&$H22,'Raw data cdr'!$IB:$IB,">"&$H21,'Raw data cdr'!$D:$D,I$2,'Raw data cdr'!$O:$O,Configuration!$C$18))/C$4,"") -> 0 | J22: =IF(J$2<>"",(COUNTIFS('Raw data cdr'!$IB:$IB,"<="&$H22,'Raw data cdr'!$IB:$IB,">"&$H21,'Raw data cdr'!$D:$D,J$2,'Raw data cdr'!$O:$O,Configuration!$C$18))/D$4,"") -> 0.01886792453 | K22: =IF(K$2<>"",(COUNTIFS('Raw data cdr'!$IB:$IB,"<="&$H22,'Raw data cdr'!$IB:$IB,">"&$H21,'Raw data cdr'!$D:$D,K$2,'Raw data cdr'!$O:$O,Configuration!$C$18))/E$4,"") -> 0.01639344262 | M22: =M21+Configuration!$C$23 -> 13.3 | N22: =IF(N$2<>"",(COUNTIFS('Raw data cdr'!$IB:$IB,"<="&$M22,'Raw data cdr'!$IB:$IB,">"&$M21,'Raw data cdr'!$D:$D,N$2,'Raw data cdr'!$O:$O,Configuration!$C$19))/C$5,"") -> 0.03174603175 | O22: =IF(O$2<>"",(COUNTIFS('Raw data cdr'!$IB:$IB,"<="&$M22,'Raw data cdr'!$IB:$IB,">"&$M21,'Raw data cdr'!$D:$D,O$2,'Raw data cdr'!$O:$O,Configuration!$C$19))/D$5,"") -> 0.01818181818 | P22: =IF(P$2<>"",(COUNTIFS('Raw data cdr'!$IB:$IB,"<="&$M22,'Raw data cdr'!$IB:$IB,">"&$M21,'Raw data cdr'!$D:$D,P$2,'Raw data cdr'!$O:$O,Configuration!$C$19))/E$5,"") -> 0.01666666667 | R22: =R21+Configuration!$C$24 -> 77.9 | S22: =IF(S$2<>"",(COUNTIFS('Raw data cdr'!$IB:$IB,"<="&$R22,'Raw data cdr'!$IB:$IB,">"&$R21,'Raw data cdr'!$D:$D,S$2,'Raw data cdr'!$O:$O,Configuration!$C$20))/C$6,"") -> 0 | T22: =IF(T$2<>"",(COUNTIFS('Raw data cdr'!$IB:$IB,"<="&$R22,'Raw data cdr'!$IB:$IB,">"&$R21,'Raw data cdr'!$D:$D,T$2,'Raw data cdr'!$O:$O,Configuration!$C$20))/D$6,"") -> 0 | U22: =IF(U$2<>"",(COUNTIFS('Raw data cdr'!$IB:$IB,"<="&$R22,'Raw data cdr'!$IB:$IB,">"&$R21,'Raw data cdr'!$D:$D,U$2,'Raw data cdr'!$O:$O,Configuration!$C$20))/E$6,"") -> 0 | W22: =W21+Configuration!$C$25 -> 20.9 | X22: =IF(X$2<>"",(COUNTIFS('Raw data cdr'!$IB:$IB,"<="&$W22,'Raw data cdr'!$IB:$IB,">"&$W21,'Raw data cdr'!$D:$D,X$2,'Raw data cdr'!$O:$O,Configuration!$C$21))/C$7,"") -> 0.03174603175 | Y22: =IF(Y$2<>"",(COUNTIFS('Raw data cdr'!$IB:$IB,"<="&$W22,'Raw data cdr'!$IB:$IB,">"&$W21,'Raw data cdr'!$D:$D,Y$2,'Raw data cdr'!$O:$O,Configuration!$C$21))/D$7,"") -> 0 | Z22: =IF(Z$2<>"",(COUNTIFS('Raw data cdr'!$IB:$IB,"<="&$W22,'Raw data cdr'!$IB:$IB,">"&$W21,'Raw data cdr'!$D:$D,Z$2,'Raw data cdr'!$O:$O,Configuration!$C$21))/E$7,"") -> 0
H23: =H22+Configuration!$C$22 -> 36 | I23: =IF(I$2<>"",(COUNTIFS('Raw data cdr'!$IB:$IB,"<="&$H23,'Raw data cdr'!$IB:$IB,">"&$H22,'Raw data cdr'!$D:$D,I$2,'Raw data cdr'!$O:$O,Configuration!$C$18))/C$4,"") -> 0.03278688525 | J23: =IF(J$2<>"",(COUNTIFS('Raw data cdr'!$IB:$IB,"<="&$H23,'Raw data cdr'!$IB:$IB,">"&$H22,'Raw data cdr'!$D:$D,J$2,'Raw data cdr'!$O:$O,Configuration!$C$18))/D$4,"") -> 0.01886792453 | K23: =IF(K$2<>"",(COUNTIFS('Raw data cdr'!$IB:$IB,"<="&$H23,'Raw data cdr'!$IB:$IB,">"&$H22,'Raw data cdr'!$D:$D,K$2,'Raw data cdr'!$O:$O,Configuration!$C$18))/E$4,"") -> 0 | M23: =M22+Configuration!$C$23 -> 14 | N23: =IF(N$2<>"",(COUNTIFS('Raw data cdr'!$IB:$IB,"<="&$M23,'Raw data cdr'!$IB:$IB,">"&$M22,'Raw data cdr'!$D:$D,N$2,'Raw data cdr'!$O:$O,Configuration!$C$19))/C$5,"") -> 0.01587301587 | O23: =IF(O$2<>"",(COUNTIFS('Raw data cdr'!$IB:$IB,"<="&$M23,'Raw data cdr'!$IB:$IB,">"&$M22,'Raw data cdr'!$D:$D,O$2,'Raw data cdr'!$O:$O,Configuration!$C$19))/D$5,"") -> 0 | P23: =IF(P$2<>"",(COUNTIFS('Raw data cdr'!$IB:$IB,"<="&$M23,'Raw data cdr'!$IB:$IB,">"&$M22,'Raw data cdr'!$D:$D,P$2,'Raw data cdr'!$O:$O,Configuration!$C$19))/E$5,"") -> 0.01666666667 | R23: =R22+Configuration!$C$24 -> 82 | S23: =IF(S$2<>"",(COUNTIFS('Raw data cdr'!$IB:$IB,"<="&$R23,'Raw data cdr'!$IB:$IB,">"&$R22,'Raw data cdr'!$D:$D,S$2,'Raw data cdr'!$O:$O,Configuration!$C$20))/C$6,"") -> 0 | T23: =IF(T$2<>"",(COUNTIFS('Raw data cdr'!$IB:$IB,"<="&$R23,'Raw data cdr'!$IB:$IB,">"&$R22,'Raw data cdr'!$D:$D,T$2,'Raw data cdr'!$O:$O,Configuration!$C$20))/D$6,"") -> 0 | U23: =IF(U$2<>"",(COUNTIFS('Raw data cdr'!$IB:$IB,"<="&$R23,'Raw data cdr'!$IB:$IB,">"&$R22,'Raw data cdr'!$D:$D,U$2,'Raw data cdr'!$O:$O,Configuration!$C$20))/E$6,"") -> 0 | W23: =W22+Configuration!$C$25 -> 22 | X23: =IF(X$2<>"",(COUNTIFS('Raw data cdr'!$IB:$IB,"<="&$W23,'Raw data cdr'!$IB:$IB,">"&$W22,'Raw data cdr'!$D:$D,X$2,'Raw data cdr'!$O:$O,Configuration!$C$21))/C$7,"") -> 0 | Y23: =IF(Y$2<>"",(COUNTIFS('Raw data cdr'!$IB:$IB,"<="&$W23,'Raw data cdr'!$IB:$IB,">"&$W22,'Raw data cdr'!$D:$D,Y$2,'Raw data cdr'!$O:$O,Configuration!$C$21))/D$7,"") -> 0 | Z23: =IF(Z$2<>"",(COUNTIFS('Raw data cdr'!$IB:$IB,"<="&$W23,'Raw data cdr'!$IB:$IB,">"&$W22,'Raw data cdr'!$D:$D,Z$2,'Raw data cdr'!$O:$O,Configuration!$C$21))/E$7,"") -> 0.01694915254
H24: =H23+Configuration!$C$22 -> 37.8 | I24: =IF(I$2<>"",(COUNTIFS('Raw data cdr'!$IB:$IB,"<="&$H24,'Raw data cdr'!$IB:$IB,">"&$H23,'Raw data cdr'!$D:$D,I$2,'Raw data cdr'!$O:$O,Configuration!$C$18))/C$4,"") -> 0.06557377049 | J24: =IF(J$2<>"",(COUNTIFS('Raw data cdr'!$IB:$IB,"<="&$H24,'Raw data cdr'!$IB:$IB,">"&$H23,'Raw data cdr'!$D:$D,J$2,'Raw data cdr'!$O:$O,Configuration!$C$18))/D$4,"") -> 0.01886792453 | K24: =IF(K$2<>"",(COUNTIFS('Raw data cdr'!$IB:$IB,"<="&$H24,'Raw data cdr'!$IB:$IB,">"&$H23,'Raw data cdr'!$D:$D,K$2,'Raw data cdr'!$O:$O,Configuration!$C$18))/E$4,"") -> 0.03278688525 | M24: =M23+Configuration!$C$23 -> 14.7 | N24: =IF(N$2<>"",(COUNTIFS('Raw data cdr'!$IB:$IB,"<="&$M24,'Raw data cdr'!$IB:$IB,">"&$M23,'Raw data cdr'!$D:$D,N$2,'Raw data cdr'!$O:$O,Configuration!$C$19))/C$5,"") -> 0.01587301587 | O24: =IF(O$2<>"",(COUNTIFS('Raw data cdr'!$IB:$IB,"<="&$M24,'Raw data cdr'!$IB:$IB,">"&$M23,'Raw data cdr'!$D:$D,O$2,'Raw data cdr'!$O:$O,Configuration!$C$19))/D$5,"") -> 0.01818181818 | P24: =IF(P$2<>"",(COUNTIFS('Raw data cdr'!$IB:$IB,"<="&$M24,'Raw data cdr'!$IB:$IB,">"&$M23,'Raw data cdr'!$D:$D,P$2,'Raw data cdr'!$O:$O,Configuration!$C$19))/E$5,"") -> 0.01666666667 | R24: =R23+Configuration!$C$24 -> 86.1 | S24: =IF(S$2<>"",(COUNTIFS('Raw data cdr'!$IB:$IB,"<="&$R24,'Raw data cdr'!$IB:$IB,">"&$R23,'Raw data cdr'!$D:$D,S$2,'Raw data cdr'!$O:$O,Configuration!$C$20))/C$6,"") -> 0.04761904762 | T24: =IF(T$2<>"",(COUNTIFS('Raw data cdr'!$IB:$IB,"<="&$R24,'Raw data cdr'!$IB:$IB,">"&$R23,'Raw data cdr'!$D:$D,T$2,'Raw data cdr'!$O:$O,Configuration!$C$20))/D$6,"") -> 0.01724137931 | U24: =IF(U$2<>"",(COUNTIFS('Raw data cdr'!$IB:$IB,"<="&$R24,'Raw data cdr'!$IB:$IB,">"&$R23,'Raw data cdr'!$D:$D,U$2,'Raw data cdr'!$O:$O,Configuration!$C$20))/E$6,"") -> 0.01666666667 | W24: =W23+Configuration!$C$25 -> 23.1 | X24: =IF(X$2<>"",(COUNTIFS('Raw data cdr'!$IB:$IB,"<="&$W24,'Raw data cdr'!$IB:$IB,">"&$W23,'Raw data cdr'!$D:$D,X$2,'Raw data cdr'!$O:$O,Configuration!$C$21))/C$7,"") -> 0.04761904762 | Y24: =IF(Y$2<>"",(COUNTIFS('Raw data cdr'!$IB:$IB,"<="&$W24,'Raw data cdr'!$IB:$IB,">"&$W23,'Raw data cdr'!$D:$D,Y$2,'Raw data cdr'!$O:$O,Configuration!$C$21))/D$7,"") -> 0 | Z24: =IF(Z$2<>"",(COUNTIFS('Raw data cdr'!$IB:$IB,"<="&$W24,'Raw data cdr'!$IB:$IB,">"&$W23,'Raw data cdr'!$D:$D,Z$2,'Raw data cdr'!$O:$O,Configuration!$C$21))/E$7,"") -> 0
H25: =H24+Configuration!$C$22 -> 39.6 | I25: =IF(I$2<>"",(COUNTIFS('Raw data cdr'!$IB:$IB,"<="&$H25,'Raw data cdr'!$IB:$IB,">"&$H24,'Raw data cdr'!$D:$D,I$2,'Raw data cdr'!$O:$O,Configuration!$C$18))/C$4,"") -> 0 | J25: =IF(J$2<>"",(COUNTIFS('Raw data cdr'!$IB:$IB,"<="&$H25,'Raw data cdr'!$IB:$IB,">"&$H24,'Raw data cdr'!$D:$D,J$2,'Raw data cdr'!$O:$O,Configuration!$C$18))/D$4,"") -> 0.05660377358 | K25: =IF(K$2<>"",(COUNTIFS('Raw data cdr'!$IB:$IB,"<="&$H25,'Raw data cdr'!$IB:$IB,">"&$H24,'Raw data cdr'!$D:$D,K$2,'Raw data cdr'!$O:$O,Configuration!$C$18))/E$4,"") -> 0 | M25: =M24+Configuration!$C$23 -> 15.4 | N25: =IF(N$2<>"",(COUNTIFS('Raw data cdr'!$IB:$IB,"<="&$M25,'Raw data cdr'!$IB:$IB,">"&$M24,'Raw data cdr'!$D:$D,N$2,'Raw data cdr'!$O:$O,Configuration!$C$19))/C$5,"") -> 0 | O25: =IF(O$2<>"",(COUNTIFS('Raw data cdr'!$IB:$IB,"<="&$M25,'Raw data cdr'!$IB:$IB,">"&$M24,'Raw data cdr'!$D:$D,O$2,'Raw data cdr'!$O:$O,Configuration!$C$19))/D$5,"") -> 0.01818181818 | P25: =IF(P$2<>"",(COUNTIFS('Raw data cdr'!$IB:$IB,"<="&$M25,'Raw data cdr'!$IB:$IB,">"&$M24,'Raw data cdr'!$D:$D,P$2,'Raw data cdr'!$O:$O,Configuration!$C$19))/E$5,"") -> 0.01666666667 | R25: =R24+Configuration!$C$24 -> 90.2 | S25: =IF(S$2<>"",(COUNTIFS('Raw data cdr'!$IB:$IB,"<="&$R25,'Raw data cdr'!$IB:$IB,">"&$R24,'Raw data cdr'!$D:$D,S$2,'Raw data cdr'!$O:$O,Configuration!$C$20))/C$6,"") -> 0 | T25: =IF(T$2<>"",(COUNTIFS('Raw data cdr'!$IB:$IB,"<="&$R25,'Raw data cdr'!$IB:$IB,">"&$R24,'Raw data cdr'!$D:$D,T$2,'Raw data cdr'!$O:$O,Configuration!$C$20))/D$6,"") -> 0 | U25: =IF(U$2<>"",(COUNTIFS('Raw data cdr'!$IB:$IB,"<="&$R25,'Raw data cdr'!$IB:$IB,">"&$R24,'Raw data cdr'!$D:$D,U$2,'Raw data cdr'!$O:$O,Configuration!$C$20))/E$6,"") -> 0.01666666667 | W25: =W24+Configuration!$C$25 -> 24.2 | X25: =IF(X$2<>"",(COUNTIFS('Raw data cdr'!$IB:$IB,"<="&$W25,'Raw data cdr'!$IB:$IB,">"&$W24,'Raw data cdr'!$D:$D,X$2,'Raw data cdr'!$O:$O,Configuration!$C$21))/C$7,"") -> 0 | Y25: =IF(Y$2<>"",(COUNTIFS('Raw data cdr'!$IB:$IB,"<="&$W25,'Raw data cdr'!$IB:$IB,">"&$W24,'Raw data cdr'!$D:$D,Y$2,'Raw data cdr'!$O:$O,Configuration!$C$21))/D$7,"") -> 0.01694915254 | Z25: =IF(Z$2<>"",(COUNTIFS('Raw data cdr'!$IB:$IB,"<="&$W25,'Raw data cdr'!$IB:$IB,">"&$W24,'Raw data cdr'!$D:$D,Z$2,'Raw data cdr'!$O:$O,Configuration!$C$21))/E$7,"") -> 0
H26: =H25+Configuration!$C$22 -> 41.4 | I26: =IF(I$2<>"",(COUNTIFS('Raw data cdr'!$IB:$IB,"<="&$H26,'Raw data cdr'!$IB:$IB,">"&$H25,'Raw data cdr'!$D:$D,I$2,'Raw data cdr'!$O:$O,Configuration!$C$18))/C$4,"") -> 0.01639344262 | J26: =IF(J$2<>"",(COUNTIFS('Raw data cdr'!$IB:$IB,"<="&$H26,'Raw data cdr'!$IB:$IB,">"&$H25,'Raw data cdr'!$D:$D,J$2,'Raw data cdr'!$O:$O,Configuration!$C$18))/D$4,"") -> 0 | K26: =IF(K$2<>"",(COUNTIFS('Raw data cdr'!$IB:$IB,"<="&$H26,'Raw data cdr'!$IB:$IB,">"&$H25,'Raw data cdr'!$D:$D,K$2,'Raw data cdr'!$O:$O,Configuration!$C$18))/E$4,"") -> 0 | M26: =M25+Configuration!$C$23 -> 16.1 | N26: =IF(N$2<>"",(COUNTIFS('Raw data cdr'!$IB:$IB,"<="&$M26,'Raw data cdr'!$IB:$IB,">"&$M25,'Raw data cdr'!$D:$D,N$2,'Raw data cdr'!$O:$O,Configuration!$C$19))/C$5,"") -> 0.04761904762 | O26: =IF(O$2<>"",(COUNTIFS('Raw data cdr'!$IB:$IB,"<="&$M26,'Raw data cdr'!$IB:$IB,">"&$M25,'Raw data cdr'!$D:$D,O$2,'Raw data cdr'!$O:$O,Configuration!$C$19))/D$5,"") -> 0 | P26: =IF(P$2<>"",(COUNTIFS('Raw data cdr'!$IB:$IB,"<="&$M26,'Raw data cdr'!$IB:$IB,">"&$M25,'Raw data cdr'!$D:$D,P$2,'Raw data cdr'!$O:$O,Configuration!$C$19))/E$5,"") -> 0 | R26: =R25+Configuration!$C$24 -> 94.3 | S26: =IF(S$2<>"",(COUNTIFS('Raw data cdr'!$IB:$IB,"<="&$R26,'Raw data cdr'!$IB:$IB,">"&$R25,'Raw data cdr'!$D:$D,S$2,'Raw data cdr'!$O:$O,Configuration!$C$20))/C$6,"") -> 0 | T26: =IF(T$2<>"",(COUNTIFS('Raw data cdr'!$IB:$IB,"<="&$R26,'Raw data cdr'!$IB:$IB,">"&$R25,'Raw data cdr'!$D:$D,T$2,'Raw data cdr'!$O:$O,Configuration!$C$20))/D$6,"") -> 0 | U26: =IF(U$2<>"",(COUNTIFS('Raw data cdr'!$IB:$IB,"<="&$R26,'Raw data cdr'!$IB:$IB,">"&$R25,'Raw data cdr'!$D:$D,U$2,'Raw data cdr'!$O:$O,Configuration!$C$20))/E$6,"") -> 0 | W26: =W25+Configuration!$C$25 -> 25.3 | X26: =IF(X$2<>"",(COUNTIFS('Raw data cdr'!$IB:$IB,"<="&$W26,'Raw data cdr'!$IB:$IB,">"&$W25,'Raw data cdr'!$D:$D,X$2,'Raw data cdr'!$O:$O,Configuration!$C$21))/C$7,"") -> 0.01587301587 | Y26: =IF(Y$2<>"",(COUNTIFS('Raw data cdr'!$IB:$IB,"<="&$W26,'Raw data cdr'!$IB:$IB,">"&$W25,'Raw data cdr'!$D:$D,Y$2,'Raw data cdr'!$O:$O,Configuration!$C$21))/D$7,"") -> 0 | Z26: =IF(Z$2<>"",(COUNTIFS('Raw data cdr'!$IB:$IB,"<="&$W26,'Raw data cdr'!$IB:$IB,">"&$W25,'Raw data cdr'!$D:$D,Z$2,'Raw data cdr'!$O:$O,Configuration!$C$21))/E$7,"") -> 0
H27: =H26+Configuration!$C$22 -> 43.2 | I27: =IF(I$2<>"",(COUNTIFS('Raw data cdr'!$IB:$IB,"<="&$H27,'Raw data cdr'!$IB:$IB,">"&$H26,'Raw data cdr'!$D:$D,I$2,'Raw data cdr'!$O:$O,Configuration!$C$18))/C$4,"") -> 0.03278688525 | J27: =IF(J$2<>"",(COUNTIFS('Raw data cdr'!$IB:$IB,"<="&$H27,'Raw data cdr'!$IB:$IB,">"&$H26,'Raw data cdr'!$D:$D,J$2,'Raw data cdr'!$O:$O,Configuration!$C$18))/D$4,"") -> 0.01886792453 | K27: =IF(K$2<>"",(COUNTIFS('Raw data cdr'!$IB:$IB,"<="&$H27,'Raw data cdr'!$IB:$IB,">"&$H26,'Raw data cdr'!$D:$D,K$2,'Raw data cdr'!$O:$O,Configuration!$C$18))/E$4,"") -> 0.01639344262 | M27: =M26+Configuration!$C$23 -> 16.8 | N27: =IF(N$2<>"",(COUNTIFS('Raw data cdr'!$IB:$IB,"<="&$M27,'Raw data cdr'!$IB:$IB,">"&$M26,'Raw data cdr'!$D:$D,N$2,'Raw data cdr'!$O:$O,Configuration!$C$19))/C$5,"") -> 0.03174603175 | O27: =IF(O$2<>"",(COUNTIFS('Raw data cdr'!$IB:$IB,"<="&$M27,'Raw data cdr'!$IB:$IB,">"&$M26,'Raw data cdr'!$D:$D,O$2,'Raw data cdr'!$O:$O,Configuration!$C$19))/D$5,"") -> 0 | P27: =IF(P$2<>"",(COUNTIFS('Raw data cdr'!$IB:$IB,"<="&$M27,'Raw data cdr'!$IB:$IB,">"&$M26,'Raw data cdr'!$D:$D,P$2,'Raw data cdr'!$O:$O,Configuration!$C$19))/E$5,"") -> 0.01666666667 | R27: =R26+Configuration!$C$24 -> 98.4 | S27: =IF(S$2<>"",(COUNTIFS('Raw data cdr'!$IB:$IB,"<="&$R27,'Raw data cdr'!$IB:$IB,">"&$R26,'Raw data cdr'!$D:$D,S$2,'Raw data cdr'!$O:$O,Configuration!$C$20))/C$6,"") -> 0.01587301587 | T27: =IF(T$2<>"",(COUNTIFS('Raw data cdr'!$IB:$IB,"<="&$R27,'Raw data cdr'!$IB:$IB,">"&$R26,'Raw data cdr'!$D:$D,T$2,'Raw data cdr'!$O:$O,Configuration!$C$20))/D$6,"") -> 0 | U27: =IF(U$2<>"",(COUNTIFS('Raw data cdr'!$IB:$IB,"<="&$R27,'Raw data cdr'!$IB:$IB,">"&$R26,'Raw data cdr'!$D:$D,U$2,'Raw data cdr'!$O:$O,Configuration!$C$20))/E$6,"") -> 0.03333333333 | W27: =W26+Configuration!$C$25 -> 26.4 | X27: =IF(X$2<>"",(COUNTIFS('Raw data cdr'!$IB:$IB,"<="&$W27,'Raw data cdr'!$IB:$IB,">"&$W26,'Raw data cdr'!$D:$D,X$2,'Raw data cdr'!$O:$O,Configuration!$C$21))/C$7,"") -> 0.01587301587 | Y27: =IF(Y$2<>"",(COUNTIFS('Raw data cdr'!$IB:$IB,"<="&$W27,'Raw data cdr'!$IB:$IB,">"&$W26,'Raw data cdr'!$D:$D,Y$2,'Raw data cdr'!$O:$O,Configuration!$C$21))/D$7,"") -> 0 | Z27: =IF(Z$2<>"",(COUNTIFS('Raw data cdr'!$IB:$IB,"<="&$W27,'Raw data cdr'!$IB:$IB,">"&$W26,'Raw data cdr'!$D:$D,Z$2,'Raw data cdr'!$O:$O,Configuration!$C$21))/E$7,"") -> 0.01694915254
H28: =H27+Configuration!$C$22 -> 45 | I28: =IF(I$2<>"",(COUNTIFS('Raw data cdr'!$IB:$IB,"<="&$H28,'Raw data cdr'!$IB:$IB,">"&$H27,'Raw data cdr'!$D:$D,I$2,'Raw data cdr'!$O:$O,Configuration!$C$18))/C$4,"") -> 0.01639344262 | J28: =IF(J$2<>"",(COUNTIFS('Raw data cdr'!$IB:$IB,"<="&$H28,'Raw data cdr'!$IB:$IB,">"&$H27,'Raw data cdr'!$D:$D,J$2,'Raw data cdr'!$O:$O,Configuration!$C$18))/D$4,"") -> 0 | K28: =IF(K$2<>"",(COUNTIFS('Raw data cdr'!$IB:$IB,"<="&$H28,'Raw data cdr'!$IB:$IB,">"&$H27,'Raw data cdr'!$D:$D,K$2,'Raw data cdr'!$O:$O,Configuration!$C$18))/E$4,"") -> 0 | M28: =M27+Configuration!$C$23 -> 17.5 | N28: =IF(N$2<>"",(COUNTIFS('Raw data cdr'!$IB:$IB,"<="&$M28,'Raw data cdr'!$IB:$IB,">"&$M27,'Raw data cdr'!$D:$D,N$2,'Raw data cdr'!$O:$O,Configuration!$C$19))/C$5,"") -> 0 | O28: =IF(O$2<>"",(COUNTIFS('Raw data cdr'!$IB:$IB,"<="&$M28,'Raw data cdr'!$IB:$IB,">"&$M27,'Raw data cdr'!$D:$D,O$2,'Raw data cdr'!$O:$O,Configuration!$C$19))/D$5,"") -> 0 | P28: =IF(P$2<>"",(COUNTIFS('Raw data cdr'!$IB:$IB,"<="&$M28,'Raw data cdr'!$IB:$IB,">"&$M27,'Raw data cdr'!$D:$D,P$2,'Raw data cdr'!$O:$O,Configuration!$C$19))/E$5,"") -> 0 | R28: =R27+Configuration!$C$24 -> 102.5 | S28: =IF(S$2<>"",(COUNTIFS('Raw data cdr'!$IB:$IB,"<="&$R28,'Raw data cdr'!$IB:$IB,">"&$R27,'Raw data cdr'!$D:$D,S$2,'Raw data cdr'!$O:$O,Configuration!$C$20))/C$6,"") -> 0.06349206349 | T28: =IF(T$2<>"",(COUNTIFS('Raw data cdr'!$IB:$IB,"<="&$R28,'Raw data cdr'!$IB:$IB,">"&$R27,'Raw data cdr'!$D:$D,T$2,'Raw data cdr'!$O:$O,Configuration!$C$20))/D$6,"") -> 0.01724137931 | U28: =IF(U$2<>"",(COUNTIFS('Raw data cdr'!$IB:$IB,"<="&$R28,'Raw data cdr'!$IB:$IB,">"&$R27,'Raw data cdr'!$D:$D,U$2,'Raw data cdr'!$O:$O,Configuration!$C$20))/E$6,"") -> 0.01666666667 | W28: =W27+Configuration!$C$25 -> 27.5 | X28: =IF(X$2<>"",(COUNTIFS('Raw data cdr'!$IB:$IB,"<="&$W28,'Raw data cdr'!$IB:$IB,">"&$W27,'Raw data cdr'!$D:$D,X$2,'Raw data cdr'!$O:$O,Configuration!$C$21))/C$7,"") -> 0 | Y28: =IF(Y$2<>"",(COUNTIFS('Raw data cdr'!$IB:$IB,"<="&$W28,'Raw data cdr'!$IB:$IB,">"&$W27,'Raw data cdr'!$D:$D,Y$2,'Raw data cdr'!$O:$O,Configuration!$C$21))/D$7,"") -> 0 | Z28: =IF(Z$2<>"",(COUNTIFS('Raw data cdr'!$IB:$IB,"<="&$W28,'Raw data cdr'!$IB:$IB,">"&$W27,'Raw data cdr'!$D:$D,Z$2,'Raw data cdr'!$O:$O,Configuration!$C$21))/E$7,"") -> 0.01694915254
H29: =H28+Configuration!$C$22 -> 46.8 | I29: =IF(I$2<>"",(COUNTIFS('Raw data cdr'!$IB:$IB,"<="&$H29,'Raw data cdr'!$IB:$IB,">"&$H28,'Raw data cdr'!$D:$D,I$2,'Raw data cdr'!$O:$O,Configuration!$C$18))/C$4,"") -> 0.04918032787 | J29: =IF(J$2<>"",(COUNTIFS('Raw data cdr'!$IB:$IB,"<="&$H29,'Raw data cdr'!$IB:$IB,">"&$H28,'Raw data cdr'!$D:$D,J$2,'Raw data cdr'!$O:$O,Configuration!$C$18))/D$4,"") -> 0.03773584906 | K29: =IF(K$2<>"",(COUNTIFS('Raw data cdr'!$IB:$IB,"<="&$H29,'Raw data cdr'!$IB:$IB,">"&$H28,'Raw data cdr'!$D:$D,K$2,'Raw data cdr'!$O:$O,Configuration!$C$18))/E$4,"") -> 0 | M29: =M28+Configuration!$C$23 -> 18.2 | N29: =IF(N$2<>"",(COUNTIFS('Raw data cdr'!$IB:$IB,"<="&$M29,'Raw data cdr'!$IB:$IB,">"&$M28,'Raw data cdr'!$D:$D,N$2,'Raw data cdr'!$O:$O,Configuration!$C$19))/C$5,"") -> 0.01587301587 | O29: =IF(O$2<>"",(COUNTIFS('Raw data cdr'!$IB:$IB,"<="&$M29,'Raw data cdr'!$IB:$IB,">"&$M28,'Raw data cdr'!$D:$D,O$2,'Raw data cdr'!$O:$O,Configuration!$C$19))/D$5,"") -> 0 | P29: =IF(P$2<>"",(COUNTIFS('Raw data cdr'!$IB:$IB,"<="&$M29,'Raw data cdr'!$IB:$IB,">"&$M28,'Raw data cdr'!$D:$D,P$2,'Raw data cdr'!$O:$O,Configuration!$C$19))/E$5,"") -> 0.01666666667 | R29: =R28+Configuration!$C$24 -> 106.6 | S29: =IF(S$2<>"",(COUNTIFS('Raw data cdr'!$IB:$IB,"<="&$R29,'Raw data cdr'!$IB:$IB,">"&$R28,'Raw data cdr'!$D:$D,S$2,'Raw data cdr'!$O:$O,Configuration!$C$20))/C$6,"") -> 0.01587301587 | T29: =IF(T$2<>"",(COUNTIFS('Raw data cdr'!$IB:$IB,"<="&$R29,'Raw data cdr'!$IB:$IB,">"&$R28,'Raw data cdr'!$D:$D,T$2,'Raw data cdr'!$O:$O,Configuration!$C$20))/D$6,"") -> 0.03448275862 | U29: =IF(U$2<>"",(COUNTIFS('Raw data cdr'!$IB:$IB,"<="&$R29,'Raw data cdr'!$IB:$IB,">"&$R28,'Raw data cdr'!$D:$D,U$2,'Raw data cdr'!$O:$O,Configuration!$C$20))/E$6,"") -> 0 | W29: =W28+Configuration!$C$25 -> 28.6 | X29: =IF(X$2<>"",(COUNTIFS('Raw data cdr'!$IB:$IB,"<="&$W29,'Raw data cdr'!$IB:$IB,">"&$W28,'Raw data cdr'!$D:$D,X$2,'Raw data cdr'!$O:$O,Configuration!$C$21))/C$7,"") -> 0 | Y29: =IF(Y$2<>"",(COUNTIFS('Raw data cdr'!$IB:$IB,"<="&$W29,'Raw data cdr'!$IB:$IB,">"&$W28,'Raw data cdr'!$D:$D,Y$2,'Raw data cdr'!$O:$O,Configuration!$C$21))/D$7,"") -> 0 | Z29: =IF(Z$2<>"",(COUNTIFS('Raw data cdr'!$IB:$IB,"<="&$W29,'Raw data cdr'!$IB:$IB,">"&$W28,'Raw data cdr'!$D:$D,Z$2,'Raw data cdr'!$O:$O,Configuration!$C$21))/E$7,"") -> 0
H30: =H29+Configuration!$C$22 -> 48.6 | I30: =IF(I$2<>"",(COUNTIFS('Raw data cdr'!$IB:$IB,"<="&$H30,'Raw data cdr'!$IB:$IB,">"&$H29,'Raw data cdr'!$D:$D,I$2,'Raw data cdr'!$O:$O,Configuration!$C$18))/C$4,"") -> 0.01639344262 | J30: =IF(J$2<>"",(COUNTIFS('Raw data cdr'!$IB:$IB,"<="&$H30,'Raw data cdr'!$IB:$IB,">"&$H29,'Raw data cdr'!$D:$D,J$2,'Raw data cdr'!$O:$O,Configuration!$C$18))/D$4,"") -> 0.01886792453 | K30: =IF(K$2<>"",(COUNTIFS('Raw data cdr'!$IB:$IB,"<="&$H30,'Raw data cdr'!$IB:$IB,">"&$H29,'Raw data cdr'!$D:$D,K$2,'Raw data cdr'!$O:$O,Configuration!$C$18))/E$4,"") -> 0 | M30: =M29+Configuration!$C$23 -> 18.9 | N30: =IF(N$2<>"",(COUNTIFS('Raw data cdr'!$IB:$IB,"<="&$M30,'Raw data cdr'!$IB:$IB,">"&$M29,'Raw data cdr'!$D:$D,N$2,'Raw data cdr'!$O:$O,Configuration!$C$19))/C$5,"") -> 0.01587301587 | O30: =IF(O$2<>"",(COUNTIFS('Raw data cdr'!$IB:$IB,"<="&$M30,'Raw data cdr'!$IB:$IB,">"&$M29,'Raw data cdr'!$D:$D,O$2,'Raw data cdr'!$O:$O,Configuration!$C$19))/D$5,"") -> 0 | P30: =IF(P$2<>"",(COUNTIFS('Raw data cdr'!$IB:$IB,"<="&$M30,'Raw data cdr'!$IB:$IB,">"&$M29,'Raw data cdr'!$D:$D,P$2,'Raw data cdr'!$O:$O,Configuration!$C$19))/E$5,"") -> 0 | R30: =R29+Configuration!$C$24 -> 110.7 | S30: =IF(S$2<>"",(COUNTIFS('Raw data cdr'!$IB:$IB,"<="&$R30,'Raw data cdr'!$IB:$IB,">"&$R29,'Raw data cdr'!$D:$D,S$2,'Raw data cdr'!$O:$O,Configuration!$C$20))/C$6,"") -> 0 | T30: =IF(T$2<>"",(COUNTIFS('Raw data cdr'!$IB:$IB,"<="&$R30,'Raw data cdr'!$IB:$IB,">"&$R29,'Raw data cdr'!$D:$D,T$2,'Raw data cdr'!$O:$O,Configuration!$C$20))/D$6,"") -> 0 | U30: =IF(U$2<>"",(COUNTIFS('Raw data cdr'!$IB:$IB,"<="&$R30,'Raw data cdr'!$IB:$IB,">"&$R29,'Raw data cdr'!$D:$D,U$2,'Raw data cdr'!$O:$O,Configuration!$C$20))/E$6,"") -> 0 | W30: =W29+Configuration!$C$25 -> 29.7 | X30: =IF(X$2<>"",(COUNTIFS('Raw data cdr'!$IB:$IB,"<="&$W30,'Raw data cdr'!$IB:$IB,">"&$W29,'Raw data cdr'!$D:$D,X$2,'Raw data cdr'!$O:$O,Configuration!$C$21))/C$7,"") -> 0 | Y30: =IF(Y$2<>"",(COUNTIFS('Raw data cdr'!$IB:$IB,"<="&$W30,'Raw data cdr'!$IB:$IB,">"&$W29,'Raw data cdr'!$D:$D,Y$2,'Raw data cdr'!$O:$O,Configuration!$C$21))/D$7,"") -> 0 | Z30: =IF(Z$2<>"",(COUNTIFS('Raw data cdr'!$IB:$IB,"<="&$W30,'Raw data cdr'!$IB:$IB,">"&$W29,'Raw data cdr'!$D:$D,Z$2,'Raw data cdr'!$O:$O,Configuration!$C$21))/E$7,"") -> 0
H31: =H30+Configuration!$C$22 -> 50.4 | I31: =IF(I$2<>"",(COUNTIFS('Raw data cdr'!$IB:$IB,"<="&$H31,'Raw data cdr'!$IB:$IB,">"&$H30,'Raw data cdr'!$D:$D,I$2,'Raw data cdr'!$O:$O,Configuration!$C$18))/C$4,"") -> 0.03278688525 | J31: =IF(J$2<>"",(COUNTIFS('Raw data cdr'!$IB:$IB,"<="&$H31,'Raw data cdr'!$IB:$IB,">"&$H30,'Raw data cdr'!$D:$D,J$2,'Raw data cdr'!$O:$O,Configuration!$C$18))/D$4,"") -> 0 | K31: =IF(K$2<>"",(COUNTIFS('Raw data cdr'!$IB:$IB,"<="&$H31,'Raw data cdr'!$IB:$IB,">"&$H30,'Raw data cdr'!$D:$D,K$2,'Raw data cdr'!$O:$O,Configuration!$C$18))/E$4,"") -> 0 | M31: =M30+Configuration!$C$23 -> 19.6 | N31: =IF(N$2<>"",(COUNTIFS('Raw data cdr'!$IB:$IB,"<="&$M31,'Raw data cdr'!$IB:$IB,">"&$M30,'Raw data cdr'!$D:$D,N$2,'Raw data cdr'!$O:$O,Configuration!$C$19))/C$5,"") -> 0.01587301587 | O31: =IF(O$2<>"",(COUNTIFS('Raw data cdr'!$IB:$IB,"<="&$M31,'Raw data cdr'!$IB:$IB,">"&$M30,'Raw data cdr'!$D:$D,O$2,'Raw data cdr'!$O:$O,Configuration!$C$19))/D$5,"") -> 0 | P31: =IF(P$2<>"",(COUNTIFS('Raw data cdr'!$IB:$IB,"<="&$M31,'Raw data cdr'!$IB:$IB,">"&$M30,'Raw data cdr'!$D:$D,P$2,'Raw data cdr'!$O:$O,Configuration!$C$19))/E$5,"") -> 0 | R31: =R30+Configuration!$C$24 -> 114.8 | S31: =IF(S$2<>"",(COUNTIFS('Raw data cdr'!$IB:$IB,"<="&$R31,'Raw data cdr'!$IB:$IB,">"&$R30,'Raw data cdr'!$D:$D,S$2,'Raw data cdr'!$O:$O,Configuration!$C$20))/C$6,"") -> 0.03174603175 | T31: =IF(T$2<>"",(COUNTIFS('Raw data cdr'!$IB:$IB,"<="&$R31,'Raw data cdr'!$IB:$IB,">"&$R30,'Raw data cdr'!$D:$D,T$2,'Raw data cdr'!$O:$O,Configuration!$C$20))/D$6,"") -> 0 | U31: =IF(U$2<>"",(COUNTIFS('Raw data cdr'!$IB:$IB,"<="&$R31,'Raw data cdr'!$IB:$IB,">"&$R30,'Raw data cdr'!$D:$D,U$2,'Raw data cdr'!$O:$O,Configuration!$C$20))/E$6,"") -> 0.01666666667 | W31: =W30+Configuration!$C$25 -> 30.8 | X31: =IF(X$2<>"",(COUNTIFS('Raw data cdr'!$IB:$IB,"<="&$W31,'Raw data cdr'!$IB:$IB,">"&$W30,'Raw data cdr'!$D:$D,X$2,'Raw data cdr'!$O:$O,Configuration!$C$21))/C$7,"") -> 0 | Y31: =IF(Y$2<>"",(COUNTIFS('Raw data cdr'!$IB:$IB,"<="&$W31,'Raw data cdr'!$IB:$IB,">"&$W30,'Raw data cdr'!$D:$D,Y$2,'Raw data cdr'!$O:$O,Configuration!$C$21))/D$7,"") -> 0 | Z31: =IF(Z$2<>"",(COUNTIFS('Raw data cdr'!$IB:$IB,"<="&$W31,'Raw data cdr'!$IB:$IB,">"&$W30,'Raw data cdr'!$D:$D,Z$2,'Raw data cdr'!$O:$O,Configuration!$C$21))/E$7,"") -> 0
H32: =H31+Configuration!$C$22 -> 52.2 | I32: =IF(I$2<>"",(COUNTIFS('Raw data cdr'!$IB:$IB,"<="&$H32,'Raw data cdr'!$IB:$IB,">"&$H31,'Raw data cdr'!$D:$D,I$2,'Raw data cdr'!$O:$O,Configuration!$C$18))/C$4,"") -> 0.03278688525 | J32: =IF(J$2<>"",(COUNTIFS('Raw data cdr'!$IB:$IB,"<="&$H32,'Raw data cdr'!$IB:$IB,">"&$H31,'Raw data cdr'!$D:$D,J$2,'Raw data cdr'!$O:$O,Configuration!$C$18))/D$4,"") -> 0 | K32: =IF(K$2<>"",(COUNTIFS('Raw data cdr'!$IB:$IB,"<="&$H32,'Raw data cdr'!$IB:$IB,">"&$H31,'Raw data cdr'!$D:$D,K$2,'Raw data cdr'!$O:$O,Configuration!$C$18))/E$4,"") -> 0 | M32: =M31+Configuration!$C$23 -> 20.3 | N32: =IF(N$2<>"",(COUNTIFS('Raw data cdr'!$IB:$IB,"<="&$M32,'Raw data cdr'!$IB:$IB,">"&$M31,'Raw data cdr'!$D:$D,N$2,'Raw data cdr'!$O:$O,Configuration!$C$19))/C$5,"") -> 0 | O32: =IF(O$2<>"",(COUNTIFS('Raw data cdr'!$IB:$IB,"<="&$M32,'Raw data cdr'!$IB:$IB,">"&$M31,'Raw data cdr'!$D:$D,O$2,'Raw data cdr'!$O:$O,Configuration!$C$19))/D$5,"") -> 0 | P32: =IF(P$2<>"",(COUNTIFS('Raw data cdr'!$IB:$IB,"<="&$M32,'Raw data cdr'!$IB:$IB,">"&$M31,'Raw data cdr'!$D:$D,P$2,'Raw data cdr'!$O:$O,Configuration!$C$19))/E$5,"") -> 0 | R32: =R31+Configuration!$C$24 -> 118.9 | S32: =IF(S$2<>"",(COUNTIFS('Raw data cdr'!$IB:$IB,"<="&$R32,'Raw data cdr'!$IB:$IB,">"&$R31,'Raw data cdr'!$D:$D,S$2,'Raw data cdr'!$O:$O,Configuration!$C$20))/C$6,"") -> 0.01587301587 | T32: =IF(T$2<>"",(COUNTIFS('Raw data cdr'!$IB:$IB,"<="&$R32,'Raw data cdr'!$IB:$IB,">"&$R31,'Raw data cdr'!$D:$D,T$2,'Raw data cdr'!$O:$O,Configuration!$C$20))/D$6,"") -> 0 | U32: =IF(U$2<>"",(COUNTIFS('Raw data cdr'!$IB:$IB,"<="&$R32,'Raw data cdr'!$IB:$IB,">"&$R31,'Raw data cdr'!$D:$D,U$2,'Raw data cdr'!$O:$O,Configuration!$C$20))/E$6,"") -> 0 | W32: =W31+Configuration!$C$25 -> 31.9 | X32: =IF(X$2<>"",(COUNTIFS('Raw data cdr'!$IB:$IB,"<="&$W32,'Raw data cdr'!$IB:$IB,">"&$W31,'Raw data cdr'!$D:$D,X$2,'Raw data cdr'!$O:$O,Configuration!$C$21))/C$7,"") -> 0.01587301587 | Y32: =IF(Y$2<>"",(COUNTIFS('Raw data cdr'!$IB:$IB,"<="&$W32,'Raw data cdr'!$IB:$IB,">"&$W31,'Raw data cdr'!$D:$D,Y$2,'Raw data cdr'!$O:$O,Configuration!$C$21))/D$7,"") -> 0 | Z32: =IF(Z$2<>"",(COUNTIFS('Raw data cdr'!$IB:$IB,"<="&$W32,'Raw data cdr'!$IB:$IB,">"&$W31,'Raw data cdr'!$D:$D,Z$2,'Raw data cdr'!$O:$O,Configuration!$C$21))/E$7,"") -> 0
H33: =H32+Configuration!$C$22 -> 54 | I33: =IF(I$2<>"",(COUNTIFS('Raw data cdr'!$IB:$IB,"<="&$H33,'Raw data cdr'!$IB:$IB,">"&$H32,'Raw data cdr'!$D:$D,I$2,'Raw data cdr'!$O:$O,Configuration!$C$18))/C$4,"") -> 0.04918032787 | J33: =IF(J$2<>"",(COUNTIFS('Raw data cdr'!$IB:$IB,"<="&$H33,'Raw data cdr'!$IB:$IB,">"&$H32,'Raw data cdr'!$D:$D,J$2,'Raw data cdr'!$O:$O,Configuration!$C$18))/D$4,"") -> 0 | K33: =IF(K$2<>"",(COUNTIFS('Raw data cdr'!$IB:$IB,"<="&$H33,'Raw data cdr'!$IB:$IB,">"&$H32,'Raw data cdr'!$D:$D,K$2,'Raw data cdr'!$O:$O,Configuration!$C$18))/E$4,"") -> 0 | M33: =M32+Configuration!$C$23 -> 21 | N33: =IF(N$2<>"",(COUNTIFS('Raw data cdr'!$IB:$IB,"<="&$M33,'Raw data cdr'!$IB:$IB,">"&$M32,'Raw data cdr'!$D:$D,N$2,'Raw data cdr'!$O:$O,Configuration!$C$19))/C$5,"") -> 0 | O33: =IF(O$2<>"",(COUNTIFS('Raw data cdr'!$IB:$IB,"<="&$M33,'Raw data cdr'!$IB:$IB,">"&$M32,'Raw data cdr'!$D:$D,O$2,'Raw data cdr'!$O:$O,Configuration!$C$19))/D$5,"") -> 0 | P33: =IF(P$2<>"",(COUNTIFS('Raw data cdr'!$IB:$IB,"<="&$M33,'Raw data cdr'!$IB:$IB,">"&$M32,'Raw data cdr'!$D:$D,P$2,'Raw data cdr'!$O:$O,Configuration!$C$19))/E$5,"") -> 0 | R33: =R32+Configuration!$C$24 -> 123 | S33: =IF(S$2<>"",(COUNTIFS('Raw data cdr'!$IB:$IB,"<="&$R33,'Raw data cdr'!$IB:$IB,">"&$R32,'Raw data cdr'!$D:$D,S$2,'Raw data cdr'!$O:$O,Configuration!$C$20))/C$6,"") -> 0 | T33: =IF(T$2<>"",(COUNTIFS('Raw data cdr'!$IB:$IB,"<="&$R33,'Raw data cdr'!$IB:$IB,">"&$R32,'Raw data cdr'!$D:$D,T$2,'Raw data cdr'!$O:$O,Configuration!$C$20))/D$6,"") -> 0 | U33: =IF(U$2<>"",(COUNTIFS('Raw data cdr'!$IB:$IB,"<="&$R33,'Raw data cdr'!$IB:$IB,">"&$R32,'Raw data cdr'!$D:$D,U$2,'Raw data cdr'!$O:$O,Configuration!$C$20))/E$6,"") -> 0 | W33: =W32+Configuration!$C$25 -> 33 | X33: =IF(X$2<>"",(COUNTIFS('Raw data cdr'!$IB:$IB,"<="&$W33,'Raw data cdr'!$IB:$IB,">"&$W32,'Raw data cdr'!$D:$D,X$2,'Raw data cdr'!$O:$O,Configuration!$C$21))/C$7,"") -> 0 | Y33: =IF(Y$2<>"",(COUNTIFS('Raw data cdr'!$IB:$IB,"<="&$W33,'Raw data cdr'!$IB:$IB,">"&$W32,'Raw data cdr'!$D:$D,Y$2,'Raw data cdr'!$O:$O,Configuration!$C$21))/D$7,"") -> 0 | Z33: =IF(Z$2<>"",(COUNTIFS('Raw data cdr'!$IB:$IB,"<="&$W33,'Raw data cdr'!$IB:$IB,">"&$W32,'Raw data cdr'!$D:$D,Z$2,'Raw data cdr'!$O:$O,Configuration!$C$21))/E$7,"") -> 0
H34: =H33+Configuration!$C$22 -> 55.8 | I34: =IF(I$2<>"",(COUNTIFS('Raw data cdr'!$IB:$IB,"<="&$H34,'Raw data cdr'!$IB:$IB,">"&$H33,'Raw data cdr'!$D:$D,I$2,'Raw data cdr'!$O:$O,Configuration!$C$18))/C$4,"") -> 0.01639344262 | J34: =IF(J$2<>"",(COUNTIFS('Raw data cdr'!$IB:$IB,"<="&$H34,'Raw data cdr'!$IB:$IB,">"&$H33,'Raw data cdr'!$D:$D,J$2,'Raw data cdr'!$O:$O,Configuration!$C$18))/D$4,"") -> 0 | K34: =IF(K$2<>"",(COUNTIFS('Raw data cdr'!$IB:$IB,"<="&$H34,'Raw data cdr'!$IB:$IB,">"&$H33,'Raw data cdr'!$D:$D,K$2,'Raw data cdr'!$O:$O,Configuration!$C$18))/E$4,"") -> 0 | M34: =M33+Configuration!$C$23 -> 21.7 | N34: =IF(N$2<>"",(COUNTIFS('Raw data cdr'!$IB:$IB,"<="&$M34,'Raw data cdr'!$IB:$IB,">"&$M33,'Raw data cdr'!$D:$D,N$2,'Raw data cdr'!$O:$O,Configuration!$C$19))/C$5,"") -> 0 | O34: =IF(O$2<>"",(COUNTIFS('Raw data cdr'!$IB:$IB,"<="&$M34,'Raw data cdr'!$IB:$IB,">"&$M33,'Raw data cdr'!$D:$D,O$2,'Raw data cdr'!$O:$O,Configuration!$C$19))/D$5,"") -> 0 | P34: =IF(P$2<>"",(COUNTIFS('Raw data cdr'!$IB:$IB,"<="&$M34,'Raw data cdr'!$IB:$IB,">"&$M33,'Raw data cdr'!$D:$D,P$2,'Raw data cdr'!$O:$O,Configuration!$C$19))/E$5,"") -> 0 | R34: =R33+Configuration!$C$24 -> 127.1 | S34: =IF(S$2<>"",(COUNTIFS('Raw data cdr'!$IB:$IB,"<="&$R34,'Raw data cdr'!$IB:$IB,">"&$R33,'Raw data cdr'!$D:$D,S$2,'Raw data cdr'!$O:$O,Configuration!$C$20))/C$6,"") -> 0.01587301587 | T34: =IF(T$2<>"",(COUNTIFS('Raw data cdr'!$IB:$IB,"<="&$R34,'Raw data cdr'!$IB:$IB,">"&$R33,'Raw data cdr'!$D:$D,T$2,'Raw data cdr'!$O:$O,Configuration!$C$20))/D$6,"") -> 0 | U34: =IF(U$2<>"",(COUNTIFS('Raw data cdr'!$IB:$IB,"<="&$R34,'Raw data cdr'!$IB:$IB,">"&$R33,'Raw data cdr'!$D:$D,U$2,'Raw data cdr'!$O:$O,Configuration!$C$20))/E$6,"") -> 0.01666666667 | W34: =W33+Configuration!$C$25 -> 34.1 | X34: =IF(X$2<>"",(COUNTIFS('Raw data cdr'!$IB:$IB,"<="&$W34,'Raw data cdr'!$IB:$IB,">"&$W33,'Raw data cdr'!$D:$D,X$2,'Raw data cdr'!$O:$O,Configuration!$C$21))/C$7,"") -> 0 | Y34: =IF(Y$2<>"",(COUNTIFS('Raw data cdr'!$IB:$IB,"<="&$W34,'Raw data cdr'!$IB:$IB,">"&$W33,'Raw data cdr'!$D:$D,Y$2,'Raw data cdr'!$O:$O,Configuration!$C$21))/D$7,"") -> 0 | Z34: =IF(Z$2<>"",(COUNTIFS('Raw data cdr'!$IB:$IB,"<="&$W34,'Raw data cdr'!$IB:$IB,">"&$W33,'Raw data cdr'!$D:$D,Z$2,'Raw data cdr'!$O:$O,Configuration!$C$21))/E$7,"") -> 0
H35: =H34+Configuration!$C$22 -> 57.6 | I35: =IF(I$2<>"",(COUNTIFS('Raw data cdr'!$IB:$IB,"<="&$H35,'Raw data cdr'!$IB:$IB,">"&$H34,'Raw data cdr'!$D:$D,I$2,'Raw data cdr'!$O:$O,Configuration!$C$18))/C$4,"") -> 0.03278688525 | J35: =IF(J$2<>"",(COUNTIFS('Raw data cdr'!$IB:$IB,"<="&$H35,'Raw data cdr'!$IB:$IB,">"&$H34,'Raw data cdr'!$D:$D,J$2,'Raw data cdr'!$O:$O,Configuration!$C$18))/D$4,"") -> 0 | K35: =IF(K$2<>"",(COUNTIFS('Raw data cdr'!$IB:$IB,"<="&$H35,'Raw data cdr'!$IB:$IB,">"&$H34,'Raw data cdr'!$D:$D,K$2,'Raw data cdr'!$O:$O,Configuration!$C$18))/E$4,"") -> 0 | M35: =M34+Configuration!$C$23 -> 22.4 | N35: =IF(N$2<>"",(COUNTIFS('Raw data cdr'!$IB:$IB,"<="&$M35,'Raw data cdr'!$IB:$IB,">"&$M34,'Raw data cdr'!$D:$D,N$2,'Raw data cdr'!$O:$O,Configuration!$C$19))/C$5,"") -> 0.03174603175 | O35: =IF(O$2<>"",(COUNTIFS('Raw data cdr'!$IB:$IB,"<="&$M35,'Raw data cdr'!$IB:$IB,">"&$M34,'Raw data cdr'!$D:$D,O$2,'Raw data cdr'!$O:$O,Configuration!$C$19))/D$5,"") -> 0.01818181818 | P35: =IF(P$2<>"",(COUNTIFS('Raw data cdr'!$IB:$IB,"<="&$M35,'Raw data cdr'!$IB:$IB,">"&$M34,'Raw data cdr'!$D:$D,P$2,'Raw data cdr'!$O:$O,Configuration!$C$19))/E$5,"") -> 0 | R35: =R34+Configuration!$C$24 -> 131.2 | S35: =IF(S$2<>"",(COUNTIFS('Raw data cdr'!$IB:$IB,"<="&$R35,'Raw data cdr'!$IB:$IB,">"&$R34,'Raw data cdr'!$D:$D,S$2,'Raw data cdr'!$O:$O,Configuration!$C$20))/C$6,"") -> 0 | T35: =IF(T$2<>"",(COUNTIFS('Raw data cdr'!$IB:$IB,"<="&$R35,'Raw data cdr'!$IB:$IB,">"&$R34,'Raw data cdr'!$D:$D,T$2,'Raw data cdr'!$O:$O,Configuration!$C$20))/D$6,"") -> 0.01724137931 | U35: =IF(U$2<>"",(COUNTIFS('Raw data cdr'!$IB:$IB,"<="&$R35,'Raw data cdr'!$IB:$IB,">"&$R34,'Raw data cdr'!$D:$D,U$2,'Raw data cdr'!$O:$O,Configuration!$C$20))/E$6,"") -> 0 | W35: =W34+Configuration!$C$25 -> 35.2 | X35: =IF(X$2<>"",(COUNTIFS('Raw data cdr'!$IB:$IB,"<="&$W35,'Raw data cdr'!$IB:$IB,">"&$W34,'Raw data cdr'!$D:$D,X$2,'Raw data cdr'!$O:$O,Configuration!$C$21))/C$7,"") -> 0 | Y35: =IF(Y$2<>"",(COUNTIFS('Raw data cdr'!$IB:$IB,"<="&$W35,'Raw data cdr'!$IB:$IB,">"&$W34,'Raw data cdr'!$D:$D,Y$2,'Raw data cdr'!$O:$O,Configuration!$C$21))/D$7,"") -> 0 | Z35: =IF(Z$2<>"",(COUNTIFS('Raw data cdr'!$IB:$IB,"<="&$W35,'Raw data cdr'!$IB:$IB,">"&$W34,'Raw data cdr'!$D:$D,Z$2,'Raw data cdr'!$O:$O,Configuration!$C$21))/E$7,"") -> 0
H36: =H35+Configuration!$C$22 -> 59.4 | I36: =IF(I$2<>"",(COUNTIFS('Raw data cdr'!$IB:$IB,"<="&$H36,'Raw data cdr'!$IB:$IB,">"&$H35,'Raw data cdr'!$D:$D,I$2,'Raw data cdr'!$O:$O,Configuration!$C$18))/C$4,"") -> 0.01639344262 | J36: =IF(J$2<>"",(COUNTIFS('Raw data cdr'!$IB:$IB,"<="&$H36,'Raw data cdr'!$IB:$IB,">"&$H35,'Raw data cdr'!$D:$D,J$2,'Raw data cdr'!$O:$O,Configuration!$C$18))/D$4,"") -> 0 | K36: =IF(K$2<>"",(COUNTIFS('Raw data cdr'!$IB:$IB,"<="&$H36,'Raw data cdr'!$IB:$IB,">"&$H35,'Raw data cdr'!$D:$D,K$2,'Raw data cdr'!$O:$O,Configuration!$C$18))/E$4,"") -> 0 | M36: =M35+Configuration!$C$23 -> 23.1 | N36: =IF(N$2<>"",(COUNTIFS('Raw data cdr'!$IB:$IB,"<="&$M36,'Raw data cdr'!$IB:$IB,">"&$M35,'Raw data cdr'!$D:$D,N$2,'Raw data cdr'!$O:$O,Configuration!$C$19))/C$5,"") -> 0.01587301587 | O36: =IF(O$2<>"",(COUNTIFS('Raw data cdr'!$IB:$IB,"<="&$M36,'Raw data cdr'!$IB:$IB,">"&$M35,'Raw data cdr'!$D:$D,O$2,'Raw data cdr'!$O:$O,Configuration!$C$19))/D$5,"") -> 0 | P36: =IF(P$2<>"",(COUNTIFS('Raw data cdr'!$IB:$IB,"<="&$M36,'Raw data cdr'!$IB:$IB,">"&$M35,'Raw data cdr'!$D:$D,P$2,'Raw data cdr'!$O:$O,Configuration!$C$19))/E$5,"") -> 0 | R36: =R35+Configuration!$C$24 -> 135.3 | S36: =IF(S$2<>"",(COUNTIFS('Raw data cdr'!$IB:$IB,"<="&$R36,'Raw data cdr'!$IB:$IB,">"&$R35,'Raw data cdr'!$D:$D,S$2,'Raw data cdr'!$O:$O,Configuration!$C$20))/C$6,"") -> 0 | T36: =IF(T$2<>"",(COUNTIFS('Raw data cdr'!$IB:$IB,"<="&$R36,'Raw data cdr'!$IB:$IB,">"&$R35,'Raw data cdr'!$D:$D,T$2,'Raw data cdr'!$O:$O,Configuration!$C$20))/D$6,"") -> 0.01724137931 | U36: =IF(U$2<>"",(COUNTIFS('Raw data cdr'!$IB:$IB,"<="&$R36,'Raw data cdr'!$IB:$IB,">"&$R35,'Raw data cdr'!$D:$D,U$2,'Raw data cdr'!$O:$O,Configuration!$C$20))/E$6,"") -> 0 | W36: =W35+Configuration!$C$25 -> 36.3 | X36: =IF(X$2<>"",(COUNTIFS('Raw data cdr'!$IB:$IB,"<="&$W36,'Raw data cdr'!$IB:$IB,">"&$W35,'Raw data cdr'!$D:$D,X$2,'Raw data cdr'!$O:$O,Configuration!$C$21))/C$7,"") -> 0 | Y36: =IF(Y$2<>"",(COUNTIFS('Raw data cdr'!$IB:$IB,"<="&$W36,'Raw data cdr'!$IB:$IB,">"&$W35,'Raw data cdr'!$D:$D,Y$2,'Raw data cdr'!$O:$O,Configuration!$C$21))/D$7,"") -> 0 | Z36: =IF(Z$2<>"",(COUNTIFS('Raw data cdr'!$IB:$IB,"<="&$W36,'Raw data cdr'!$IB:$IB,">"&$W35,'Raw data cdr'!$D:$D,Z$2,'Raw data cdr'!$O:$O,Configuration!$C$21))/E$7,"") -> 0
H37: =H36+Configuration!$C$22 -> 61.2 | I37: =IF(I$2<>"",(COUNTIFS('Raw data cdr'!$IB:$IB,"<="&$H37,'Raw data cdr'!$IB:$IB,">"&$H36,'Raw data cdr'!$D:$D,I$2,'Raw data cdr'!$O:$O,Configuration!$C$18))/C$4,"") -> 0.01639344262 | J37: =IF(J$2<>"",(COUNTIFS('Raw data cdr'!$IB:$IB,"<="&$H37,'Raw data cdr'!$IB:$IB,">"&$H36,'Raw data cdr'!$D:$D,J$2,'Raw data cdr'!$O:$O,Configuration!$C$18))/D$4,"") -> 0 | K37: =IF(K$2<>"",(COUNTIFS('Raw data cdr'!$IB:$IB,"<="&$H37,'Raw data cdr'!$IB:$IB,">"&$H36,'Raw data cdr'!$D:$D,K$2,'Raw data cdr'!$O:$O,Configuration!$C$18))/E$4,"") -> 0 | M37: =M36+Configuration!$C$23 -> 23.8 | N37: =IF(N$2<>"",(COUNTIFS('Raw data cdr'!$IB:$IB,"<="&$M37,'Raw data cdr'!$IB:$IB,">"&$M36,'Raw data cdr'!$D:$D,N$2,'Raw data cdr'!$O:$O,Configuration!$C$19))/C$5,"") -> 0 | O37: =IF(O$2<>"",(COUNTIFS('Raw data cdr'!$IB:$IB,"<="&$M37,'Raw data cdr'!$IB:$IB,">"&$M36,'Raw data cdr'!$D:$D,O$2,'Raw data cdr'!$O:$O,Configuration!$C$19))/D$5,"") -> 0.01818181818 | P37: =IF(P$2<>"",(COUNTIFS('Raw data cdr'!$IB:$IB,"<="&$M37,'Raw data cdr'!$IB:$IB,">"&$M36,'Raw data cdr'!$D:$D,P$2,'Raw data cdr'!$O:$O,Configuration!$C$19))/E$5,"") -> 0 | R37: =R36+Configuration!$C$24 -> 139.4 | S37: =IF(S$2<>"",(COUNTIFS('Raw data cdr'!$IB:$IB,"<="&$R37,'Raw data cdr'!$IB:$IB,">"&$R36,'Raw data cdr'!$D:$D,S$2,'Raw data cdr'!$O:$O,Configuration!$C$20))/C$6,"") -> 0 | T37: =IF(T$2<>"",(COUNTIFS('Raw data cdr'!$IB:$IB,"<="&$R37,'Raw data cdr'!$IB:$IB,">"&$R36,'Raw data cdr'!$D:$D,T$2,'Raw data cdr'!$O:$O,Configuration!$C$20))/D$6,"") -> 0 | U37: =IF(U$2<>"",(COUNTIFS('Raw data cdr'!$IB:$IB,"<="&$R37,'Raw data cdr'!$IB:$IB,">"&$R36,'Raw data cdr'!$D:$D,U$2,'Raw data cdr'!$O:$O,Configuration!$C$20))/E$6,"") -> 0 | W37: =W36+Configuration!$C$25 -> 37.4 | X37: =IF(X$2<>"",(COUNTIFS('Raw data cdr'!$IB:$IB,"<="&$W37,'Raw data cdr'!$IB:$IB,">"&$W36,'Raw data cdr'!$D:$D,X$2,'Raw data cdr'!$O:$O,Configuration!$C$21))/C$7,"") -> 0.01587301587 | Y37: =IF(Y$2<>"",(COUNTIFS('Raw data cdr'!$IB:$IB,"<="&$W37,'Raw data cdr'!$IB:$IB,">"&$W36,'Raw data cdr'!$D:$D,Y$2,'Raw data cdr'!$O:$O,Configuration!$C$21))/D$7,"") -> 0 | Z37: =IF(Z$2<>"",(COUNTIFS('Raw data cdr'!$IB:$IB,"<="&$W37,'Raw data cdr'!$IB:$IB,">"&$W36,'Raw data cdr'!$D:$D,Z$2,'Raw data cdr'!$O:$O,Configuration!$C$21))/E$7,"") -> 0
H38: =H37+Configuration!$C$22 -> 63 | I38: =IF(I$2<>"",(COUNTIFS('Raw data cdr'!$IB:$IB,"<="&$H38,'Raw data cdr'!$IB:$IB,">"&$H37,'Raw data cdr'!$D:$D,I$2,'Raw data cdr'!$O:$O,Configuration!$C$18))/C$4,"") -> 0.03278688525 | J38: =IF(J$2<>"",(COUNTIFS('Raw data cdr'!$IB:$IB,"<="&$H38,'Raw data cdr'!$IB:$IB,">"&$H37,'Raw data cdr'!$D:$D,J$2,'Raw data cdr'!$O:$O,Configuration!$C$18))/D$4,"") -> 0 | K38: =IF(K$2<>"",(COUNTIFS('Raw data cdr'!$IB:$IB,"<="&$H38,'Raw data cdr'!$IB:$IB,">"&$H37,'Raw data cdr'!$D:$D,K$2,'Raw data cdr'!$O:$O,Configuration!$C$18))/E$4,"") -> 0 | M38: =M37+Configuration!$C$23 -> 24.5 | N38: =IF(N$2<>"",(COUNTIFS('Raw data cdr'!$IB:$IB,"<="&$M38,'Raw data cdr'!$IB:$IB,">"&$M37,'Raw data cdr'!$D:$D,N$2,'Raw data cdr'!$O:$O,Configuration!$C$19))/C$5,"") -> 0.01587301587 | O38: =IF(O$2<>"",(COUNTIFS('Raw data cdr'!$IB:$IB,"<="&$M38,'Raw data cdr'!$IB:$IB,">"&$M37,'Raw data cdr'!$D:$D,O$2,'Raw data cdr'!$O:$O,Configuration!$C$19))/D$5,"") -> 0 | P38: =IF(P$2<>"",(COUNTIFS('Raw data cdr'!$IB:$IB,"<="&$M38,'Raw data cdr'!$IB:$IB,">"&$M37,'Raw data cdr'!$D:$D,P$2,'Raw data cdr'!$O:$O,Configuration!$C$19))/E$5,"") -> 0 | R38: =R37+Configuration!$C$24 -> 143.5 | S38: =IF(S$2<>"",(COUNTIFS('Raw data cdr'!$IB:$IB,"<="&$R38,'Raw data cdr'!$IB:$IB,">"&$R37,'Raw data cdr'!$D:$D,S$2,'Raw data cdr'!$O:$O,Configuration!$C$20))/C$6,"") -> 0 | T38: =IF(T$2<>"",(COUNTIFS('Raw data cdr'!$IB:$IB,"<="&$R38,'Raw data cdr'!$IB:$IB,">"&$R37,'Raw data cdr'!$D:$D,T$2,'Raw data cdr'!$O:$O,Configuration!$C$20))/D$6,"") -> 0 | U38: =IF(U$2<>"",(COUNTIFS('Raw data cdr'!$IB:$IB,"<="&$R38,'Raw data cdr'!$IB:$IB,">"&$R37,'Raw data cdr'!$D:$D,U$2,'Raw data cdr'!$O:$O,Configuration!$C$20))/E$6,"") -> 0 | W38: =W37+Configuration!$C$25 -> 38.5 | X38: =IF(X$2<>"",(COUNTIFS('Raw data cdr'!$IB:$IB,"<="&$W38,'Raw data cdr'!$IB:$IB,">"&$W37,'Raw data cdr'!$D:$D,X$2,'Raw data cdr'!$O:$O,Configuration!$C$21))/C$7,"") -> 0 | Y38: =IF(Y$2<>"",(COUNTIFS('Raw data cdr'!$IB:$IB,"<="&$W38,'Raw data cdr'!$IB:$IB,">"&$W37,'Raw data cdr'!$D:$D,Y$2,'Raw data cdr'!$O:$O,Configuration!$C$21))/D$7,"") -> 0 | Z38: =IF(Z$2<>"",(COUNTIFS('Raw data cdr'!$IB:$IB,"<="&$W38,'Raw data cdr'!$IB:$IB,">"&$W37,'Raw data cdr'!$D:$D,Z$2,'Raw data cdr'!$O:$O,Configuration!$C$21))/E$7,"") -> 0
H39: =H38+Configuration!$C$22 -> 64.8 | I39: =IF(I$2<>"",(COUNTIFS('Raw data cdr'!$IB:$IB,"<="&$H39,'Raw data cdr'!$IB:$IB,">"&$H38,'Raw data cdr'!$D:$D,I$2,'Raw data cdr'!$O:$O,Configuration!$C$18))/C$4,"") -> 0 | J39: =IF(J$2<>"",(COUNTIFS('Raw data cdr'!$IB:$IB,"<="&$H39,'Raw data cdr'!$IB:$IB,">"&$H38,'Raw data cdr'!$D:$D,J$2,'Raw data cdr'!$O:$O,Configuration!$C$18))/D$4,"") -> 0 | K39: =IF(K$2<>"",(COUNTIFS('Raw data cdr'!$IB:$IB,"<="&$H39,'Raw data cdr'!$IB:$IB,">"&$H38,'Raw data cdr'!$D:$D,K$2,'Raw data cdr'!$O:$O,Configuration!$C$18))/E$4,"") -> 0 | M39: =M38+Configuration!$C$23 -> 25.2 | N39: =IF(N$2<>"",(COUNTIFS('Raw data cdr'!$IB:$IB,"<="&$M39,'Raw data cdr'!$IB:$IB,">"&$M38,'Raw data cdr'!$D:$D,N$2,'Raw data cdr'!$O:$O,Configuration!$C$19))/C$5,"") -> 0 | O39: =IF(O$2<>"",(COUNTIFS('Raw data cdr'!$IB:$IB,"<="&$M39,'Raw data cdr'!$IB:$IB,">"&$M38,'Raw data cdr'!$D:$D,O$2,'Raw data cdr'!$O:$O,Configuration!$C$19))/D$5,"") -> 0 | P39: =IF(P$2<>"",(COUNTIFS('Raw data cdr'!$IB:$IB,"<="&$M39,'Raw data cdr'!$IB:$IB,">"&$M38,'Raw data cdr'!$D:$D,P$2,'Raw data cdr'!$O:$O,Configuration!$C$19))/E$5,"") -> 0 | R39: =R38+Configuration!$C$24 -> 147.6 | S39: =IF(S$2<>"",(COUNTIFS('Raw data cdr'!$IB:$IB,"<="&$R39,'Raw data cdr'!$IB:$IB,">"&$R38,'Raw data cdr'!$D:$D,S$2,'Raw data cdr'!$O:$O,Configuration!$C$20))/C$6,"") -> 0 | T39: =IF(T$2<>"",(COUNTIFS('Raw data cdr'!$IB:$IB,"<="&$R39,'Raw data cdr'!$IB:$IB,">"&$R38,'Raw data cdr'!$D:$D,T$2,'Raw data cdr'!$O:$O,Configuration!$C$20))/D$6,"") -> 0 | U39: =IF(U$2<>"",(COUNTIFS('Raw data cdr'!$IB:$IB,"<="&$R39,'Raw data cdr'!$IB:$IB,">"&$R38,'Raw data cdr'!$D:$D,U$2,'Raw data cdr'!$O:$O,Configuration!$C$20))/E$6,"") -> 0 | W39: =W38+Configuration!$C$25 -> 39.6 | X39: =IF(X$2<>"",(COUNTIFS('Raw data cdr'!$IB:$IB,"<="&$W39,'Raw data cdr'!$IB:$IB,">"&$W38,'Raw data cdr'!$D:$D,X$2,'Raw data cdr'!$O:$O,Configuration!$C$21))/C$7,"") -> 0 | Y39: =IF(Y$2<>"",(COUNTIFS('Raw data cdr'!$IB:$IB,"<="&$W39,'Raw data cdr'!$IB:$IB,">"&$W38,'Raw data cdr'!$D:$D,Y$2,'Raw data cdr'!$O:$O,Configuration!$C$21))/D$7,"") -> 0 | Z39: =IF(Z$2<>"",(COUNTIFS('Raw data cdr'!$IB:$IB,"<="&$W39,'Raw data cdr'!$IB:$IB,">"&$W38,'Raw data cdr'!$D:$D,Z$2,'Raw data cdr'!$O:$O,Configuration!$C$21))/E$7,"") -> 0
H40: =H39+Configuration!$C$22 -> 66.6 | I40: =IF(I$2<>"",(COUNTIFS('Raw data cdr'!$IB:$IB,"<="&$H40,'Raw data cdr'!$IB:$IB,">"&$H39,'Raw data cdr'!$D:$D,I$2,'Raw data cdr'!$O:$O,Configuration!$C$18))/C$4,"") -> 0 | J40: =IF(J$2<>"",(COUNTIFS('Raw data cdr'!$IB:$IB,"<="&$H40,'Raw data cdr'!$IB:$IB,">"&$H39,'Raw data cdr'!$D:$D,J$2,'Raw data cdr'!$O:$O,Configuration!$C$18))/D$4,"") -> 0 | K40: =IF(K$2<>"",(COUNTIFS('Raw data cdr'!$IB:$IB,"<="&$H40,'Raw data cdr'!$IB:$IB,">"&$H39,'Raw data cdr'!$D:$D,K$2,'Raw data cdr'!$O:$O,Configuration!$C$18))/E$4,"") -> 0 | M40: =M39+Configuration!$C$23 -> 25.9 | N40: =IF(N$2<>"",(COUNTIFS('Raw data cdr'!$IB:$IB,"<="&$M40,'Raw data cdr'!$IB:$IB,">"&$M39,'Raw data cdr'!$D:$D,N$2,'Raw data cdr'!$O:$O,Configuration!$C$19))/C$5,"") -> 0.01587301587 | O40: =IF(O$2<>"",(COUNTIFS('Raw data cdr'!$IB:$IB,"<="&$M40,'Raw data cdr'!$IB:$IB,">"&$M39,'Raw data cdr'!$D:$D,O$2,'Raw data cdr'!$O:$O,Configuration!$C$19))/D$5,"") -> 0 | P40: =IF(P$2<>"",(COUNTIFS('Raw data cdr'!$IB:$IB,"<="&$M40,'Raw data cdr'!$IB:$IB,">"&$M39,'Raw data cdr'!$D:$D,P$2,'Raw data cdr'!$O:$O,Configuration!$C$19))/E$5,"") -> 0 | R40: =R39+Configuration!$C$24 -> 151.7 | S40: =IF(S$2<>"",(COUNTIFS('Raw data cdr'!$IB:$IB,"<="&$R40,'Raw data cdr'!$IB:$IB,">"&$R39,'Raw data cdr'!$D:$D,S$2,'Raw data cdr'!$O:$O,Configuration!$C$20))/C$6,"") -> 0 | T40: =IF(T$2<>"",(COUNTIFS('Raw data cdr'!$IB:$IB,"<="&$R40,'Raw data cdr'!$IB:$IB,">"&$R39,'Raw data cdr'!$D:$D,T$2,'Raw data cdr'!$O:$O,Configuration!$C$20))/D$6,"") -> 0 | U40: =IF(U$2<>"",(COUNTIFS('Raw data cdr'!$IB:$IB,"<="&$R40,'Raw data cdr'!$IB:$IB,">"&$R39,'Raw data cdr'!$D:$D,U$2,'Raw data cdr'!$O:$O,Configuration!$C$20))/E$6,"") -> 0 | W40: =W39+Configuration!$C$25 -> 40.7 | X40: =IF(X$2<>"",(COUNTIFS('Raw data cdr'!$IB:$IB,"<="&$W40,'Raw data cdr'!$IB:$IB,">"&$W39,'Raw data cdr'!$D:$D,X$2,'Raw data cdr'!$O:$O,Configuration!$C$21))/C$7,"") -> 0 | Y40: =IF(Y$2<>"",(COUNTIFS('Raw data cdr'!$IB:$IB,"<="&$W40,'Raw data cdr'!$IB:$IB,">"&$W39,'Raw data cdr'!$D:$D,Y$2,'Raw data cdr'!$O:$O,Configuration!$C$21))/D$7,"") -> 0 | Z40: =IF(Z$2<>"",(COUNTIFS('Raw data cdr'!$IB:$IB,"<="&$W40,'Raw data cdr'!$IB:$IB,">"&$W39,'Raw data cdr'!$D:$D,Z$2,'Raw data cdr'!$O:$O,Configuration!$C$21))/E$7,"") -> 0
H41: =H40+Configuration!$C$22 -> 68.4 | I41: =IF(I$2<>"",(COUNTIFS('Raw data cdr'!$IB:$IB,"<="&$H41,'Raw data cdr'!$IB:$IB,">"&$H40,'Raw data cdr'!$D:$D,I$2,'Raw data cdr'!$O:$O,Configuration!$C$18))/C$4,"") -> 0 | J41: =IF(J$2<>"",(COUNTIFS('Raw data cdr'!$IB:$IB,"<="&$H41,'Raw data cdr'!$IB:$IB,">"&$H40,'Raw data cdr'!$D:$D,J$2,'Raw data cdr'!$O:$O,Configuration!$C$18))/D$4,"") -> 0 | K41: =IF(K$2<>"",(COUNTIFS('Raw data cdr'!$IB:$IB,"<="&$H41,'Raw data cdr'!$IB:$IB,">"&$H40,'Raw data cdr'!$D:$D,K$2,'Raw data cdr'!$O:$O,Configuration!$C$18))/E$4,"") -> 0 | M41: =M40+Configuration!$C$23 -> 26.6 | N41: =IF(N$2<>"",(COUNTIFS('Raw data cdr'!$IB:$IB,"<="&$M41,'Raw data cdr'!$IB:$IB,">"&$M40,'Raw data cdr'!$D:$D,N$2,'Raw data cdr'!$O:$O,Configuration!$C$19))/C$5,"") -> 0 | O41: =IF(O$2<>"",(COUNTIFS('Raw data cdr'!$IB:$IB,"<="&$M41,'Raw data cdr'!$IB:$IB,">"&$M40,'Raw data cdr'!$D:$D,O$2,'Raw data cdr'!$O:$O,Configuration!$C$19))/D$5,"") -> 0 | P41: =IF(P$2<>"",(COUNTIFS('Raw data cdr'!$IB:$IB,"<="&$M41,'Raw data cdr'!$IB:$IB,">"&$M40,'Raw data cdr'!$D:$D,P$2,'Raw data cdr'!$O:$O,Configuration!$C$19))/E$5,"") -> 0 | R41: =R40+Configuration!$C$24 -> 155.8 | S41: =IF(S$2<>"",(COUNTIFS('Raw data cdr'!$IB:$IB,"<="&$R41,'Raw data cdr'!$IB:$IB,">"&$R40,'Raw data cdr'!$D:$D,S$2,'Raw data cdr'!$O:$O,Configuration!$C$20))/C$6,"") -> 0 | T41: =IF(T$2<>"",(COUNTIFS('Raw data cdr'!$IB:$IB,"<="&$R41,'Raw data cdr'!$IB:$IB,">"&$R40,'Raw data cdr'!$D:$D,T$2,'Raw data cdr'!$O:$O,Configuration!$C$20))/D$6,"") -> 0 | U41: =IF(U$2<>"",(COUNTIFS('Raw data cdr'!$IB:$IB,"<="&$R41,'Raw data cdr'!$IB:$IB,">"&$R40,'Raw data cdr'!$D:$D,U$2,'Raw data cdr'!$O:$O,Configuration!$C$20))/E$6,"") -> 0.01666666667 | W41: =W40+Configuration!$C$25 -> 41.8 | X41: =IF(X$2<>"",(COUNTIFS('Raw data cdr'!$IB:$IB,"<="&$W41,'Raw data cdr'!$IB:$IB,">"&$W40,'Raw data cdr'!$D:$D,X$2,'Raw data cdr'!$O:$O,Configuration!$C$21))/C$7,"") -> 0 | Y41: =IF(Y$2<>"",(COUNTIFS('Raw data cdr'!$IB:$IB,"<="&$W41,'Raw data cdr'!$IB:$IB,">"&$W40,'Raw data cdr'!$D:$D,Y$2,'Raw data cdr'!$O:$O,Configuration!$C$21))/D$7,"") -> 0 | Z41: =IF(Z$2<>"",(COUNTIFS('Raw data cdr'!$IB:$IB,"<="&$W41,'Raw data cdr'!$IB:$IB,">"&$W40,'Raw data cdr'!$D:$D,Z$2,'Raw data cdr'!$O:$O,Configuration!$C$21))/E$7,"") -> 0
H42: =H41+Configuration!$C$22 -> 70.2 | I42: =IF(I$2<>"",(COUNTIFS('Raw data cdr'!$IB:$IB,"<="&$H42,'Raw data cdr'!$IB:$IB,">"&$H41,'Raw data cdr'!$D:$D,I$2,'Raw data cdr'!$O:$O,Configuration!$C$18))/C$4,"") -> 0.01639344262 | J42: =IF(J$2<>"",(COUNTIFS('Raw data cdr'!$IB:$IB,"<="&$H42,'Raw data cdr'!$IB:$IB,">"&$H41,'Raw data cdr'!$D:$D,J$2,'Raw data cdr'!$O:$O,Configuration!$C$18))/D$4,"") -> 0 | K42: =IF(K$2<>"",(COUNTIFS('Raw data cdr'!$IB:$IB,"<="&$H42,'Raw data cdr'!$IB:$IB,">"&$H41,'Raw data cdr'!$D:$D,K$2,'Raw data cdr'!$O:$O,Configuration!$C$18))/E$4,"") -> 0 | M42: =M41+Configuration!$C$23 -> 27.3 | N42: =IF(N$2<>"",(COUNTIFS('Raw data cdr'!$IB:$IB,"<="&$M42,'Raw data cdr'!$IB:$IB,">"&$M41,'Raw data cdr'!$D:$D,N$2,'Raw data cdr'!$O:$O,Configuration!$C$19))/C$5,"") -> 0 | O42: =IF(O$2<>"",(COUNTIFS('Raw data cdr'!$IB:$IB,"<="&$M42,'Raw data cdr'!$IB:$IB,">"&$M41,'Raw data cdr'!$D:$D,O$2,'Raw data cdr'!$O:$O,Configuration!$C$19))/D$5,"") -> 0 | P42: =IF(P$2<>"",(COUNTIFS('Raw data cdr'!$IB:$IB,"<="&$M42,'Raw data cdr'!$IB:$IB,">"&$M41,'Raw data cdr'!$D:$D,P$2,'Raw data cdr'!$O:$O,Configuration!$C$19))/E$5,"") -> 0 | R42: =R41+Configuration!$C$24 -> 159.9 | S42: =IF(S$2<>"",(COUNTIFS('Raw data cdr'!$IB:$IB,"<="&$R42,'Raw data cdr'!$IB:$IB,">"&$R41,'Raw data cdr'!$D:$D,S$2,'Raw data cdr'!$O:$O,Configuration!$C$20))/C$6,"") -> 0.01587301587 | T42: =IF(T$2<>"",(COUNTIFS('Raw data cdr'!$IB:$IB,"<="&$R42,'Raw data cdr'!$IB:$IB,">"&$R41,'Raw data cdr'!$D:$D,T$2,'Raw data cdr'!$O:$O,Configuration!$C$20))/D$6,"") -> 0 | U42: =IF(U$2<>"",(COUNTIFS('Raw data cdr'!$IB:$IB,"<="&$R42,'Raw data cdr'!$IB:$IB,">"&$R41,'Raw data cdr'!$D:$D,U$2,'Raw data cdr'!$O:$O,Configuration!$C$20))/E$6,"") -> 0 | W42: =W41+Configuration!$C$25 -> 42.9 | X42: =IF(X$2<>"",(COUNTIFS('Raw data cdr'!$IB:$IB,"<="&$W42,'Raw data cdr'!$IB:$IB,">"&$W41,'Raw data cdr'!$D:$D,X$2,'Raw data cdr'!$O:$O,Configuration!$C$21))/C$7,"") -> 0 | Y42: =IF(Y$2<>"",(COUNTIFS('Raw data cdr'!$IB:$IB,"<="&$W42,'Raw data cdr'!$IB:$IB,">"&$W41,'Raw data cdr'!$D:$D,Y$2,'Raw data cdr'!$O:$O,Configuration!$C$21))/D$7,"") -> 0 | Z42: =IF(Z$2<>"",(COUNTIFS('Raw data cdr'!$IB:$IB,"<="&$W42,'Raw data cdr'!$IB:$IB,">"&$W41,'Raw data cdr'!$D:$D,Z$2,'Raw data cdr'!$O:$O,Configuration!$C$21))/E$7,"") -> 0
H43: =H42+Configuration!$C$22 -> 72 | I43: =IF(I$2<>"",(COUNTIFS('Raw data cdr'!$IB:$IB,"<="&$H43,'Raw data cdr'!$IB:$IB,">"&$H42,'Raw data cdr'!$D:$D,I$2,'Raw data cdr'!$O:$O,Configuration!$C$18))/C$4,"") -> 0.01639344262 | J43: =IF(J$2<>"",(COUNTIFS('Raw data cdr'!$IB:$IB,"<="&$H43,'Raw data cdr'!$IB:$IB,">"&$H42,'Raw data cdr'!$D:$D,J$2,'Raw data cdr'!$O:$O,Configuration!$C$18))/D$4,"") -> 0 | K43: =IF(K$2<>"",(COUNTIFS('Raw data cdr'!$IB:$IB,"<="&$H43,'Raw data cdr'!$IB:$IB,">"&$H42,'Raw data cdr'!$D:$D,K$2,'Raw data cdr'!$O:$O,Configuration!$C$18))/E$4,"") -> 0 | M43: =M42+Configuration!$C$23 -> 28 | N43: =IF(N$2<>"",(COUNTIFS('Raw data cdr'!$IB:$IB,"<="&$M43,'Raw data cdr'!$IB:$IB,">"&$M42,'Raw data cdr'!$D:$D,N$2,'Raw data cdr'!$O:$O,Configuration!$C$19))/C$5,"") -> 0 | O43: =IF(O$2<>"",(COUNTIFS('Raw data cdr'!$IB:$IB,"<="&$M43,'Raw data cdr'!$IB:$IB,">"&$M42,'Raw data cdr'!$D:$D,O$2,'Raw data cdr'!$O:$O,Configuration!$C$19))/D$5,"") -> 0 | P43: =IF(P$2<>"",(COUNTIFS('Raw data cdr'!$IB:$IB,"<="&$M43,'Raw data cdr'!$IB:$IB,">"&$M42,'Raw data cdr'!$D:$D,P$2,'Raw data cdr'!$O:$O,Configuration!$C$19))/E$5,"") -> 0 | R43: =R42+Configuration!$C$24 -> 164 | S43: =IF(S$2<>"",(COUNTIFS('Raw data cdr'!$IB:$IB,"<="&$R43,'Raw data cdr'!$IB:$IB,">"&$R42,'Raw data cdr'!$D:$D,S$2,'Raw data cdr'!$O:$O,Configuration!$C$20))/C$6,"") -> 0.01587301587 | T43: =IF(T$2<>"",(COUNTIFS('Raw data cdr'!$IB:$IB,"<="&$R43,'Raw data cdr'!$IB:$IB,">"&$R42,'Raw data cdr'!$D:$D,T$2,'Raw data cdr'!$O:$O,Configuration!$C$20))/D$6,"") -> 0 | U43: =IF(U$2<>"",(COUNTIFS('Raw data cdr'!$IB:$IB,"<="&$R43,'Raw data cdr'!$IB:$IB,">"&$R42,'Raw data cdr'!$D:$D,U$2,'Raw data cdr'!$O:$O,Configuration!$C$20))/E$6,"") -> 0 | W43: =W42+Configuration!$C$25 -> 44 | X43: =IF(X$2<>"",(COUNTIFS('Raw data cdr'!$IB:$IB,"<="&$W43,'Raw data cdr'!$IB:$IB,">"&$W42,'Raw data cdr'!$D:$D,X$2,'Raw data cdr'!$O:$O,Configuration!$C$21))/C$7,"") -> 0.01587301587 | Y43: =IF(Y$2<>"",(COUNTIFS('Raw data cdr'!$IB:$IB,"<="&$W43,'Raw data cdr'!$IB:$IB,">"&$W42,'Raw data cdr'!$D:$D,Y$2,'Raw data cdr'!$O:$O,Configuration!$C$21))/D$7,"") -> 0 | Z43: =IF(Z$2<>"",(COUNTIFS('Raw data cdr'!$IB:$IB,"<="&$W43,'Raw data cdr'!$IB:$IB,">"&$W42,'Raw data cdr'!$D:$D,Z$2,'Raw data cdr'!$O:$O,Configuration!$C$21))/E$7,"") -> 0
H44: =CONCATENATE(">",H43) -> >71,9999999999999 | I44: =IF(I$2<>"",(COUNTIFS('Raw data cdr'!$IB:$IB,">"&$H43,'Raw data cdr'!$D:$D,I$2,'Raw data cdr'!$O:$O,Configuration!$C$18))/C$4,"") -> 0 | J44: =IF(J$2<>"",(COUNTIFS('Raw data cdr'!$IB:$IB,">"&$H43,'Raw data cdr'!$D:$D,J$2,'Raw data cdr'!$O:$O,Configuration!$C$18))/D$4,"") -> 0 | K44: =IF(K$2<>"",(COUNTIFS('Raw data cdr'!$IB:$IB,">"&$H43,'Raw data cdr'!$D:$D,K$2,'Raw data cdr'!$O:$O,Configuration!$C$18))/E$4,"") -> 0 | M44: =CONCATENATE(">",M43) -> >28 | N44: =IF(N$2<>"",(COUNTIFS('Raw data cdr'!$IB:$IB,">"&$M43,'Raw data cdr'!$D:$D,N$2,'Raw data cdr'!$O:$O,Configuration!$C$19))/C$5,"") -> 0 | O44: =IF(O$2<>"",(COUNTIFS('Raw data cdr'!$IB:$IB,">"&$M43,'Raw data cdr'!$D:$D,O$2,'Raw data cdr'!$O:$O,Configuration!$C$19))/D$5,"") -> 0 | P44: =IF(P$2<>"",(COUNTIFS('Raw data cdr'!$IB:$IB,">"&$M43,'Raw data cdr'!$D:$D,P$2,'Raw data cdr'!$O:$O,Configuration!$C$19))/E$5,"") -> 0 | R44: =CONCATENATE(">",R43) -> >164 | S44: =IF(S$2<>"",(COUNTIFS('Raw data cdr'!$IB:$IB,">"&$R43,'Raw data cdr'!$D:$D,S$2,'Raw data cdr'!$O:$O,Configuration!$C$20))/C$6,"") -> 0 | T44: =IF(T$2<>"",(COUNTIFS('Raw data cdr'!$IB:$IB,">"&$R43,'Raw data cdr'!$D:$D,T$2,'Raw data cdr'!$O:$O,Configuration!$C$20))/D$6,"") -> 0 | U44: =IF(U$2<>"",(COUNTIFS('Raw data cdr'!$IB:$IB,">"&$R43,'Raw data cdr'!$D:$D,U$2,'Raw data cdr'!$O:$O,Configuration!$C$20))/E$6,"") -> 0 | W44: =CONCATENATE(">",W43) -> >44 | X44: =IF(X$2<>"",(COUNTIFS('Raw data cdr'!$IB:$IB,">"&$W43,'Raw data cdr'!$D:$D,X$2,'Raw data cdr'!$O:$O,Configuration!$C$21))/C$7,"") -> 0 | Y44: =IF(Y$2<>"",(COUNTIFS('Raw data cdr'!$IB:$IB,">"&$W43,'Raw data cdr'!$D:$D,Y$2,'Raw data cdr'!$O:$O,Configuration!$C$21))/D$7,"") -> 0 | Z44: =IF(Z$2<>"",(COUNTIFS('Raw data cdr'!$IB:$IB,">"&$W43,'Raw data cdr'!$D:$D,Z$2,'Raw data cdr'!$O:$O,Configuration!$C$21))/E$7,"") -> 0
H45: TOTAL | I45: =SUM(I3:I44) -> 1 | J45: 1 | K45: 1 | N45: =SUM(N3:N44) -> 1 | O45: 1.054545455 | P45: 1 | S45: =SUM(S3:S44) -> 1 | T45: 1 | U45: 1 | X45: =SUM(X3:X44) -> 1 | Y45: 1 | Z45: 1

Sheet Raw VMOS distribution (hidden)
B1: HTTP DL mean data rate distribution calculated from "Raw data cdr" sheet | H1: Youtube VMOS
H2: Tput per operator (CDF source) | I2: =IF(ISBLANK('Raw measurement info'!$W$6),"",'Raw measurement info'!$W$6) -> Telekom Srbija a.d. | J2: =IF(ISBLANK('Raw measurement info'!$W$7),"",'Raw measurement info'!$W$7) -> Telenor Serbia | K2: =IF(ISBLANK('Raw measurement info'!$W$8),"",'Raw measurement info'!$W$8) -> Vip mobile d.o.o.
C3: =I2 -> Telekom Srbija a.d. | D3: Telenor Serbia | E3: Vip mobile d.o.o. | H3: 1 | I3: =IF(I$2<>"",(COUNTIFS('Raw data cdr'!$EL:$EL,"<="&$H3,'Raw data cdr'!$D:$D,I$2,'Raw data cdr'!$L:$L,"Youtube PEVQ-S"))/C$4,"") -> 0 | J3: =IF(J$2<>"",(COUNTIFS('Raw data cdr'!$EL:$EL,"<="&$H3,'Raw data cdr'!$D:$D,J$2,'Raw data cdr'!$L:$L,"Youtube PEVQ-S"))/D$4,"") -> 0 | K3: =IF(K$2<>"",(COUNTIFS('Raw data cdr'!$EL:$EL,"<="&$H3,'Raw data cdr'!$D:$D,K$2,'Raw data cdr'!$L:$L,"Youtube PEVQ-S"))/E$4,"") -> 0
B4: Total samples VMOS | C4: =COUNTIFS('Raw data cdr'!$EL:$EL,">0",'Raw data cdr'!$D:$D,C$3,'Raw data cdr'!$L:$L,"Youtube PEVQ-S") -> 60 | D4: =COUNTIFS('Raw data cdr'!$EL:$EL,">0",'Raw data cdr'!$D:$D,D$3,'Raw data cdr'!$L:$L,"Youtube PEVQ-S") -> 55 | E4: =COUNTIFS('Raw data cdr'!$EL:$EL,">0",'Raw data cdr'!$D:$D,E$3,'Raw data cdr'!$L:$L,"Youtube PEVQ-S") -> 58 | H4: =H3+0.1 -> 1.1 | I4: =IF(I$2<>"",(COUNTIFS('Raw data cdr'!$EL:$EL,"<="&$H4,'Raw data cdr'!$D:$D,I$2,'Raw data cdr'!$L:$L,"Youtube PEVQ-S"))/C$4,"") -> 0 | J4: =IF(J$2<>"",(COUNTIFS('Raw data cdr'!$EL:$EL,"<="&$H4,'Raw data cdr'!$D:$D,J$2,'Raw data cdr'!$L:$L,"Youtube PEVQ-S"))/D$4,"") -> 0 | K4: =IF(K$2<>"",(COUNTIFS('Raw data cdr'!$EL:$EL,"<="&$H4,'Raw data cdr'!$D:$D,K$2,'Raw data cdr'!$L:$L,"Youtube PEVQ-S"))/E$4,"") -> 0
H5: 1.2 | I5: =IF(I$2<>"",(COUNTIFS('Raw data cdr'!$EL:$EL,"<="&$H5,'Raw data cdr'!$D:$D,I$2,'Raw data cdr'!$L:$L,"Youtube PEVQ-S"))/C$4,"") -> 0 | J5: =IF(J$2<>"",(COUNTIFS('Raw data cdr'!$EL:$EL,"<="&$H5,'Raw data cdr'!$D:$D,J$2,'Raw data cdr'!$L:$L,"Youtube PEVQ-S"))/D$4,"") -> 0 | K5: =IF(K$2<>"",(COUNTIFS('Raw data cdr'!$EL:$EL,"<="&$H5,'Raw data cdr'!$D:$D,K$2,'Raw data cdr'!$L:$L,"Youtube PEVQ-S"))/E$4,"") -> 0
H6: 1.3 | I6: =IF(I$2<>"",(COUNTIFS('Raw data cdr'!$EL:$EL,"<="&$H6,'Raw data cdr'!$D:$D,I$2,'Raw data cdr'!$L:$L,"Youtube PEVQ-S"))/C$4,"") -> 0 | J6: =IF(J$2<>"",(COUNTIFS('Raw data cdr'!$EL:$EL,"<="&$H6,'Raw data cdr'!$D:$D,J$2,'Raw data cdr'!$L:$L,"Youtube PEVQ-S"))/D$4,"") -> 0 | K6: =IF(K$2<>"",(COUNTIFS('Raw data cdr'!$EL:$EL,"<="&$H6,'Raw data cdr'!$D:$D,K$2,'Raw data cdr'!$L:$L,"Youtube PEVQ-S"))/E$4,"") -> 0
H7: 1.4 | I7: =IF(I$2<>"",(COUNTIFS('Raw data cdr'!$EL:$EL,"<="&$H7,'Raw data cdr'!$D:$D,I$2,'Raw data cdr'!$L:$L,"Youtube PEVQ-S"))/C$4,"") -> 0 | J7: =IF(J$2<>"",(COUNTIFS('Raw data cdr'!$EL:$EL,"<="&$H7,'Raw data cdr'!$D:$D,J$2,'Raw data cdr'!$L:$L,"Youtube PEVQ-S"))/D$4,"") -> 0 | K7: =IF(K$2<>"",(COUNTIFS('Raw data cdr'!$EL:$EL,"<="&$H7,'Raw data cdr'!$D:$D,K$2,'Raw data cdr'!$L:$L,"Youtube PEVQ-S"))/E$4,"") -> 0
H8: 1.5 | I8: =IF(I$2<>"",(COUNTIFS('Raw data cdr'!$EL:$EL,"<="&$H8,'Raw data cdr'!$D:$D,I$2,'Raw data cdr'!$L:$L,"Youtube PEVQ-S"))/C$4,"") -> 0 | J8: =IF(J$2<>"",(COUNTIFS('Raw data cdr'!$EL:$EL,"<="&$H8,'Raw data cdr'!$D:$D,J$2,'Raw data cdr'!$L:$L,"Youtube PEVQ-S"))/D$4,"") -> 0 | K8: =IF(K$2<>"",(COUNTIFS('Raw data cdr'!$EL:$EL,"<="&$H8,'Raw data cdr'!$D:$D,K$2,'Raw data cdr'!$L:$L,"Youtube PEVQ-S"))/E$4,"") -> 0
H9: 1.6 | I9: =IF(I$2<>"",(COUNTIFS('Raw data cdr'!$EL:$EL,"<="&$H9,'Raw data cdr'!$D:$D,I$2,'Raw data cdr'!$L:$L,"Youtube PEVQ-S"))/C$4,"") -> 0 | J9: =IF(J$2<>"",(COUNTIFS('Raw data cdr'!$EL:$EL,"<="&$H9,'Raw data cdr'!$D:$D,J$2,'Raw data cdr'!$L:$L,"Youtube PEVQ-S"))/D$4,"") -> 0 | K9: =IF(K$2<>"",(COUNTIFS('Raw data cdr'!$EL:$EL,"<="&$H9,'Raw data cdr'!$D:$D,K$2,'Raw data cdr'!$L:$L,"Youtube PEVQ-S"))/E$4,"") -> 0
H10: 1.7 | I10: =IF(I$2<>"",(COUNTIFS('Raw data cdr'!$EL:$EL,"<="&$H10,'Raw data cdr'!$D:$D,I$2,'Raw data cdr'!$L:$L,"Youtube PEVQ-S"))/C$4,"") -> 0 | J10: =IF(J$2<>"",(COUNTIFS('Raw data cdr'!$EL:$EL,"<="&$H10,'Raw data cdr'!$D:$D,J$2,'Raw data cdr'!$L:$L,"Youtube PEVQ-S"))/D$4,"") -> 0 | K10: =IF(K$2<>"",(COUNTIFS('Raw data cdr'!$EL:$EL,"<="&$H10,'Raw data cdr'!$D:$D,K$2,'Raw data cdr'!$L:$L,"Youtube PEVQ-S"))/E$4,"") -> 0
H11: 1.8 | I11: =IF(I$2<>"",(COUNTIFS('Raw data cdr'!$EL:$EL,"<="&$H11,'Raw data cdr'!$D:$D,I$2,'Raw data cdr'!$L:$L,"Youtube PEVQ-S"))/C$4,"") -> 0 | J11: =IF(J$2<>"",(COUNTIFS('Raw data cdr'!$EL:$EL,"<="&$H11,'Raw data cdr'!$D:$D,J$2,'Raw data cdr'!$L:$L,"Youtube PEVQ-S"))/D$4,"") -> 0 | K11: =IF(K$2<>"",(COUNTIFS('Raw data cdr'!$EL:$EL,"<="&$H11,'Raw data cdr'!$D:$D,K$2,'Raw data cdr'!$L:$L,"Youtube PEVQ-S"))/E$4,"") -> 0
H12: 1.9 | I12: =IF(I$2<>"",(COUNTIFS('Raw data cdr'!$EL:$EL,"<="&$H12,'Raw data cdr'!$D:$D,I$2,'Raw data cdr'!$L:$L,"Youtube PEVQ-S"))/C$4,"") -> 0 | J12: =IF(J$2<>"",(COUNTIFS('Raw data cdr'!$EL:$EL,"<="&$H12,'Raw data cdr'!$D:$D,J$2,'Raw data cdr'!$L:$L,"Youtube PEVQ-S"))/D$4,"") -> 0 | K12: =IF(K$2<>"",(COUNTIFS('Raw data cdr'!$EL:$EL,"<="&$H12,'Raw data cdr'!$D:$D,K$2,'Raw data cdr'!$L:$L,"Youtube PEVQ-S"))/E$4,"") -> 0
H13: 2 | I13: =IF(I$2<>"",(COUNTIFS('Raw data cdr'!$EL:$EL,"<="&$H13,'Raw data cdr'!$D:$D,I$2,'Raw data cdr'!$L:$L,"Youtube PEVQ-S"))/C$4,"") -> 0 | J13: =IF(J$2<>"",(COUNTIFS('Raw data cdr'!$EL:$EL,"<="&$H13,'Raw data cdr'!$D:$D,J$2,'Raw data cdr'!$L:$L,"Youtube PEVQ-S"))/D$4,"") -> 0 | K13: =IF(K$2<>"",(COUNTIFS('Raw data cdr'!$EL:$EL,"<="&$H13,'Raw data cdr'!$D:$D,K$2,'Raw data cdr'!$L:$L,"Youtube PEVQ-S"))/E$4,"") -> 0
H14: 2.1 | I14: =IF(I$2<>"",(COUNTIFS('Raw data cdr'!$EL:$EL,"<="&$H14,'Raw data cdr'!$D:$D,I$2,'Raw data cdr'!$L:$L,"Youtube PEVQ-S"))/C$4,"") -> 0 | J14: =IF(J$2<>"",(COUNTIFS('Raw data cdr'!$EL:$EL,"<="&$H14,'Raw data cdr'!$D:$D,J$2,'Raw data cdr'!$L:$L,"Youtube PEVQ-S"))/D$4,"") -> 0 | K14: =IF(K$2<>"",(COUNTIFS('Raw data cdr'!$EL:$EL,"<="&$H14,'Raw data cdr'!$D:$D,K$2,'Raw data cdr'!$L:$L,"Youtube PEVQ-S"))/E$4,"") -> 0
H15: 2.2 | I15: =IF(I$2<>"",(COUNTIFS('Raw data cdr'!$EL:$EL,"<="&$H15,'Raw data cdr'!$D:$D,I$2,'Raw data cdr'!$L:$L,"Youtube PEVQ-S"))/C$4,"") -> 0 | J15: =IF(J$2<>"",(COUNTIFS('Raw data cdr'!$EL:$EL,"<="&$H15,'Raw data cdr'!$D:$D,J$2,'Raw data cdr'!$L:$L,"Youtube PEVQ-S"))/D$4,"") -> 0 | K15: =IF(K$2<>"",(COUNTIFS('Raw data cdr'!$EL:$EL,"<="&$H15,'Raw data cdr'!$D:$D,K$2,'Raw data cdr'!$L:$L,"Youtube PEVQ-S"))/E$4,"") -> 0
H16: 2.3 | I16: =IF(I$2<>"",(COUNTIFS('Raw data cdr'!$EL:$EL,"<="&$H16,'Raw data cdr'!$D:$D,I$2,'Raw data cdr'!$L:$L,"Youtube PEVQ-S"))/C$4,"") -> 0 | J16: =IF(J$2<>"",(COUNTIFS('Raw data cdr'!$EL:$EL,"<="&$H16,'Raw data cdr'!$D:$D,J$2,'Raw data cdr'!$L:$L,"Youtube PEVQ-S"))/D$4,"") -> 0 | K16: =IF(K$2<>"",(COUNTIFS('Raw data cdr'!$EL:$EL,"<="&$H16,'Raw data cdr'!$D:$D,K$2,'Raw data cdr'!$L:$L,"Youtube PEVQ-S"))/E$4,"") -> 0
H17: 2.4 | I17: =IF(I$2<>"",(COUNTIFS('Raw data cdr'!$EL:$EL,"<="&$H17,'Raw data cdr'!$D:$D,I$2,'Raw data cdr'!$L:$L,"Youtube PEVQ-S"))/C$4,"") -> 0 | J17: =IF(J$2<>"",(COUNTIFS('Raw data cdr'!$EL:$EL,"<="&$H17,'Raw data cdr'!$D:$D,J$2,'Raw data cdr'!$L:$L,"Youtube PEVQ-S"))/D$4,"") -> 0 | K17: =IF(K$2<>"",(COUNTIFS('Raw data cdr'!$EL:$EL,"<="&$H17,'Raw data cdr'!$D:$D,K$2,'Raw data cdr'!$L:$L,"Youtube PEVQ-S"))/E$4,"") -> 0
H18: 2.5 | I18: =IF(I$2<>"",(COUNTIFS('Raw data cdr'!$EL:$EL,"<="&$H18,'Raw data cdr'!$D:$D,I$2,'Raw data cdr'!$L:$L,"Youtube PEVQ-S"))/C$4,"") -> 0 | J18: =IF(J$2<>"",(COUNTIFS('Raw data cdr'!$EL:$EL,"<="&$H18,'Raw data cdr'!$D:$D,J$2,'Raw data cdr'!$L:$L,"Youtube PEVQ-S"))/D$4,"") -> 0 | K18: =IF(K$2<>"",(COUNTIFS('Raw data cdr'!$EL:$EL,"<="&$H18,'Raw data cdr'!$D:$D,K$2,'Raw data cdr'!$L:$L,"Youtube PEVQ-S"))/E$4,"") -> 0
H19: 2.6 | I19: =IF(I$2<>"",(COUNTIFS('Raw data cdr'!$EL:$EL,"<="&$H19,'Raw data cdr'!$D:$D,I$2,'Raw data cdr'!$L:$L,"Youtube PEVQ-S"))/C$4,"") -> 0 | J19: =IF(J$2<>"",(COUNTIFS('Raw data cdr'!$EL:$EL,"<="&$H19,'Raw data cdr'!$D:$D,J$2,'Raw data cdr'!$L:$L,"Youtube PEVQ-S"))/D$4,"") -> 0 | K19: =IF(K$2<>"",(COUNTIFS('Raw data cdr'!$EL:$EL,"<="&$H19,'Raw data cdr'!$D:$D,K$2,'Raw data cdr'!$L:$L,"Youtube PEVQ-S"))/E$4,"") -> 0
H20: 2.7 | I20: =IF(I$2<>"",(COUNTIFS('Raw data cdr'!$EL:$EL,"<="&$H20,'Raw data cdr'!$D:$D,I$2,'Raw data cdr'!$L:$L,"Youtube PEVQ-S"))/C$4,"") -> 0 | J20: =IF(J$2<>"",(COUNTIFS('Raw data cdr'!$EL:$EL,"<="&$H20,'Raw data cdr'!$D:$D,J$2,'Raw data cdr'!$L:$L,"Youtube PEVQ-S"))/D$4,"") -> 0 | K20: =IF(K$2<>"",(COUNTIFS('Raw data cdr'!$EL:$EL,"<="&$H20,'Raw data cdr'!$D:$D,K$2,'Raw data cdr'!$L:$L,"Youtube PEVQ-S"))/E$4,"") -> 0
H21: 2.8 | I21: =IF(I$2<>"",(COUNTIFS('Raw data cdr'!$EL:$EL,"<="&$H21,'Raw data cdr'!$D:$D,I$2,'Raw data cdr'!$L:$L,"Youtube PEVQ-S"))/C$4,"") -> 0 | J21: =IF(J$2<>"",(COUNTIFS('Raw data cdr'!$EL:$EL,"<="&$H21,'Raw data cdr'!$D:$D,J$2,'Raw data cdr'!$L:$L,"Youtube PEVQ-S"))/D$4,"") -> 0 | K21: =IF(K$2<>"",(COUNTIFS('Raw data cdr'!$EL:$EL,"<="&$H21,'Raw data cdr'!$D:$D,K$2,'Raw data cdr'!$L:$L,"Youtube PEVQ-S"))/E$4,"") -> 0
H22: 2.9 | I22: =IF(I$2<>"",(COUNTIFS('Raw data cdr'!$EL:$EL,"<="&$H22,'Raw data cdr'!$D:$D,I$2,'Raw data cdr'!$L:$L,"Youtube PEVQ-S"))/C$4,"") -> 0 | J22: =IF(J$2<>"",(COUNTIFS('Raw data cdr'!$EL:$EL,"<="&$H22,'Raw data cdr'!$D:$D,J$2,'Raw data cdr'!$L:$L,"Youtube PEVQ-S"))/D$4,"") -> 0 | K22: =IF(K$2<>"",(COUNTIFS('Raw data cdr'!$EL:$EL,"<="&$H22,'Raw data cdr'!$D:$D,K$2,'Raw data cdr'!$L:$L,"Youtube PEVQ-S"))/E$4,"") -> 0
H23: 3 | I23: =IF(I$2<>"",(COUNTIFS('Raw data cdr'!$EL:$EL,"<="&$H23,'Raw data cdr'!$D:$D,I$2,'Raw data cdr'!$L:$L,"Youtube PEVQ-S"))/C$4,"") -> 0 | J23: =IF(J$2<>"",(COUNTIFS('Raw data cdr'!$EL:$EL,"<="&$H23,'Raw data cdr'!$D:$D,J$2,'Raw data cdr'!$L:$L,"Youtube PEVQ-S"))/D$4,"") -> 0 | K23: =IF(K$2<>"",(COUNTIFS('Raw data cdr'!$EL:$EL,"<="&$H23,'Raw data cdr'!$D:$D,K$2,'Raw data cdr'!$L:$L,"Youtube PEVQ-S"))/E$4,"") -> 0
H24: 3.1 | I24: =IF(I$2<>"",(COUNTIFS('Raw data cdr'!$EL:$EL,"<="&$H24,'Raw data cdr'!$D:$D,I$2,'Raw data cdr'!$L:$L,"Youtube PEVQ-S"))/C$4,"") -> 0 | J24: =IF(J$2<>"",(COUNTIFS('Raw data cdr'!$EL:$EL,"<="&$H24,'Raw data cdr'!$D:$D,J$2,'Raw data cdr'!$L:$L,"Youtube PEVQ-S"))/D$4,"") -> 0.01818181818 | K24: =IF(K$2<>"",(COUNTIFS('Raw data cdr'!$EL:$EL,"<="&$H24,'Raw data cdr'!$D:$D,K$2,'Raw data cdr'!$L:$L,"Youtube PEVQ-S"))/E$4,"") -> 0
H25: 3.2 | I25: =IF(I$2<>"",(COUNTIFS('Raw data cdr'!$EL:$EL,"<="&$H25,'Raw data cdr'!$D:$D,I$2,'Raw data cdr'!$L:$L,"Youtube PEVQ-S"))/C$4,"") -> 0 | J25: =IF(J$2<>"",(COUNTIFS('Raw data cdr'!$EL:$EL,"<="&$H25,'Raw data cdr'!$D:$D,J$2,'Raw data cdr'!$L:$L,"Youtube PEVQ-S"))/D$4,"") -> 0.03636363636 | K25: =IF(K$2<>"",(COUNTIFS('Raw data cdr'!$EL:$EL,"<="&$H25,'Raw data cdr'!$D:$D,K$2,'Raw data cdr'!$L:$L,"Youtube PEVQ-S"))/E$4,"") -> 0
H26: 3.3 | I26: =IF(I$2<>"",(COUNTIFS('Raw data cdr'!$EL:$EL,"<="&$H26,'Raw data cdr'!$D:$D,I$2,'Raw data cdr'!$L:$L,"Youtube PEVQ-S"))/C$4,"") -> 0 | J26: =IF(J$2<>"",(COUNTIFS('Raw data cdr'!$EL:$EL,"<="&$H26,'Raw data cdr'!$D:$D,J$2,'Raw data cdr'!$L:$L,"Youtube PEVQ-S"))/D$4,"") -> 0.05454545455 | K26: =IF(K$2<>"",(COUNTIFS('Raw data cdr'!$EL:$EL,"<="&$H26,'Raw data cdr'!$D:$D,K$2,'Raw data cdr'!$L:$L,"Youtube PEVQ-S"))/E$4,"") -> 0
H27: 3.4 | I27: =IF(I$2<>"",(COUNTIFS('Raw data cdr'!$EL:$EL,"<="&$H27,'Raw data cdr'!$D:$D,I$2,'Raw data cdr'!$L:$L,"Youtube PEVQ-S"))/C$4,"") -> 0 | J27: =IF(J$2<>"",(COUNTIFS('Raw data cdr'!$EL:$EL,"<="&$H27,'Raw data cdr'!$D:$D,J$2,'Raw data cdr'!$L:$L,"Youtube PEVQ-S"))/D$4,"") -> 0.07272727273 | K27: =IF(K$2<>"",(COUNTIFS('Raw data cdr'!$EL:$EL,"<="&$H27,'Raw data cdr'!$D:$D,K$2,'Raw data cdr'!$L:$L,"Youtube PEVQ-S"))/E$4,"") -> 0
H28: 3.5 | I28: =IF(I$2<>"",(COUNTIFS('Raw data cdr'!$EL:$EL,"<="&$H28,'Raw data cdr'!$D:$D,I$2,'Raw data cdr'!$L:$L,"Youtube PEVQ-S"))/C$4,"") -> 0.01666666667 | J28: =IF(J$2<>"",(COUNTIFS('Raw data cdr'!$EL:$EL,"<="&$H28,'Raw data cdr'!$D:$D,J$2,'Raw data cdr'!$L:$L,"Youtube PEVQ-S"))/D$4,"") -> 0.09090909091 | K28: =IF(K$2<>"",(COUNTIFS('Raw data cdr'!$EL:$EL,"<="&$H28,'Raw data cdr'!$D:$D,K$2,'Raw data cdr'!$L:$L,"Youtube PEVQ-S"))/E$4,"") -> 0
H29: 3.6 | I29: =IF(I$2<>"",(COUNTIFS('Raw data cdr'!$EL:$EL,"<="&$H29,'Raw data cdr'!$D:$D,I$2,'Raw data cdr'!$L:$L,"Youtube PEVQ-S"))/C$4,"") -> 0.01666666667 | J29: =IF(J$2<>"",(COUNTIFS('Raw data cdr'!$EL:$EL,"<="&$H29,'Raw data cdr'!$D:$D,J$2,'Raw data cdr'!$L:$L,"Youtube PEVQ-S"))/D$4,"") -> 0.09090909091 | K29: =IF(K$2<>"",(COUNTIFS('Raw data cdr'!$EL:$EL,"<="&$H29,'Raw data cdr'!$D:$D,K$2,'Raw data cdr'!$L:$L,"Youtube PEVQ-S"))/E$4,"") -> 0
H30: 3.7 | I30: =IF(I$2<>"",(COUNTIFS('Raw data cdr'!$EL:$EL,"<="&$H30,'Raw data cdr'!$D:$D,I$2,'Raw data cdr'!$L:$L,"Youtube PEVQ-S"))/C$4,"") -> 0.03333333333 | J30: =IF(J$2<>"",(COUNTIFS('Raw data cdr'!$EL:$EL,"<="&$H30,'Raw data cdr'!$D:$D,J$2,'Raw data cdr'!$L:$L,"Youtube PEVQ-S"))/D$4,"") -> 0.1090909091 | K30: =IF(K$2<>"",(COUNTIFS('Raw data cdr'!$EL:$EL,"<="&$H30,'Raw data cdr'!$D:$D,K$2,'Raw data cdr'!$L:$L,"Youtube PEVQ-S"))/E$4,"") -> 0.01724137931
H31: 3.8 | I31: =IF(I$2<>"",(COUNTIFS('Raw data cdr'!$EL:$EL,"<="&$H31,'Raw data cdr'!$D:$D,I$2,'Raw data cdr'!$L:$L,"Youtube PEVQ-S"))/C$4,"") -> 0.03333333333 | J31: =IF(J$2<>"",(COUNTIFS('Raw data cdr'!$EL:$EL,"<="&$H31,'Raw data cdr'!$D:$D,J$2,'Raw data cdr'!$L:$L,"Youtube PEVQ-S"))/D$4,"") -> 0.1090909091 | K31: =IF(K$2<>"",(COUNTIFS('Raw data cdr'!$EL:$EL,"<="&$H31,'Raw data cdr'!$D:$D,K$2,'Raw data cdr'!$L:$L,"Youtube PEVQ-S"))/E$4,"") -> 0.01724137931
H32: 3.9 | I32: =IF(I$2<>"",(COUNTIFS('Raw data cdr'!$EL:$EL,"<="&$H32,'Raw data cdr'!$D:$D,I$2,'Raw data cdr'!$L:$L,"Youtube PEVQ-S"))/C$4,"") -> 0.03333333333 | J32: =IF(J$2<>"",(COUNTIFS('Raw data cdr'!$EL:$EL,"<="&$H32,'Raw data cdr'!$D:$D,J$2,'Raw data cdr'!$L:$L,"Youtube PEVQ-S"))/D$4,"") -> 0.1272727273 | K32: =IF(K$2<>"",(COUNTIFS('Raw data cdr'!$EL:$EL,"<="&$H32,'Raw data cdr'!$D:$D,K$2,'Raw data cdr'!$L:$L,"Youtube PEVQ-S"))/E$4,"") -> 0.03448275862
H33: 4 | I33: =IF(I$2<>"",(COUNTIFS('Raw data cdr'!$EL:$EL,"<="&$H33,'Raw data cdr'!$D:$D,I$2,'Raw data cdr'!$L:$L,"Youtube PEVQ-S"))/C$4,"") -> 0.15 | J33: =IF(J$2<>"",(COUNTIFS('Raw data cdr'!$EL:$EL,"<="&$H33,'Raw data cdr'!$D:$D,J$2,'Raw data cdr'!$L:$L,"Youtube PEVQ-S"))/D$4,"") -> 0.1818181818 | K33: =IF(K$2<>"",(COUNTIFS('Raw data cdr'!$EL:$EL,"<="&$H33,'Raw data cdr'!$D:$D,K$2,'Raw data cdr'!$L:$L,"Youtube PEVQ-S"))/E$4,"") -> 0.1379310345
H34: 4.1 | I34: =IF(I$2<>"",(COUNTIFS('Raw data cdr'!$EL:$EL,"<="&$H34,'Raw data cdr'!$D:$D,I$2,'Raw data cdr'!$L:$L,"Youtube PEVQ-S"))/C$4,"") -> 0.1833333333 | J34: =IF(J$2<>"",(COUNTIFS('Raw data cdr'!$EL:$EL,"<="&$H34,'Raw data cdr'!$D:$D,J$2,'Raw data cdr'!$L:$L,"Youtube PEVQ-S"))/D$4,"") -> 0.2545454545 | K34: =IF(K$2<>"",(COUNTIFS('Raw data cdr'!$EL:$EL,"<="&$H34,'Raw data cdr'!$D:$D,K$2,'Raw data cdr'!$L:$L,"Youtube PEVQ-S"))/E$4,"") -> 0.2068965517
H35: 4.2 | I35: =IF(I$2<>"",(COUNTIFS('Raw data cdr'!$EL:$EL,"<="&$H35,'Raw data cdr'!$D:$D,I$2,'Raw data cdr'!$L:$L,"Youtube PEVQ-S"))/C$4,"") -> 0.7333333333 | J35: =IF(J$2<>"",(COUNTIFS('Raw data cdr'!$EL:$EL,"<="&$H35,'Raw data cdr'!$D:$D,J$2,'Raw data cdr'!$L:$L,"Youtube PEVQ-S"))/D$4,"") -> 0.8181818182 | K35: =IF(K$2<>"",(COUNTIFS('Raw data cdr'!$EL:$EL,"<="&$H35,'Raw data cdr'!$D:$D,K$2,'Raw data cdr'!$L:$L,"Youtube PEVQ-S"))/E$4,"") -> 0.9482758621
H36: 4.3 | I36: =IF(I$2<>"",(COUNTIFS('Raw data cdr'!$EL:$EL,"<="&$H36,'Raw data cdr'!$D:$D,I$2,'Raw data cdr'!$L:$L,"Youtube PEVQ-S"))/C$4,"") -> 1 | J36: =IF(J$2<>"",(COUNTIFS('Raw data cdr'!$EL:$EL,"<="&$H36,'Raw data cdr'!$D:$D,J$2,'Raw data cdr'!$L:$L,"Youtube PEVQ-S"))/D$4,"") -> 1 | K36: =IF(K$2<>"",(COUNTIFS('Raw data cdr'!$EL:$EL,"<="&$H36,'Raw data cdr'!$D:$D,K$2,'Raw data cdr'!$L:$L,"Youtube PEVQ-S"))/E$4,"") -> 1
H37: 4.4 | I37: =IF(I$2<>"",(COUNTIFS('Raw data cdr'!$EL:$EL,"<="&$H37,'Raw data cdr'!$D:$D,I$2,'Raw data cdr'!$L:$L,"Youtube PEVQ-S"))/C$4,"") -> 1 | J37: =IF(J$2<>"",(COUNTIFS('Raw data cdr'!$EL:$EL,"<="&$H37,'Raw data cdr'!$D:$D,J$2,'Raw data cdr'!$L:$L,"Youtube PEVQ-S"))/D$4,"") -> 1 | K37: =IF(K$2<>"",(COUNTIFS('Raw data cdr'!$EL:$EL,"<="&$H37,'Raw data cdr'!$D:$D,K$2,'Raw data cdr'!$L:$L,"Youtube PEVQ-S"))/E$4,"") -> 1
H38: 4.5 | I38: =IF(I$2<>"",(COUNTIFS('Raw data cdr'!$EL:$EL,"<="&$H38,'Raw data cdr'!$D:$D,I$2,'Raw data cdr'!$L:$L,"Youtube PEVQ-S"))/C$4,"") -> 1 | J38: =IF(J$2<>"",(COUNTIFS('Raw data cdr'!$EL:$EL,"<="&$H38,'Raw data cdr'!$D:$D,J$2,'Raw data cdr'!$L:$L,"Youtube PEVQ-S"))/D$4,"") -> 1 | K38: =IF(K$2<>"",(COUNTIFS('Raw data cdr'!$EL:$EL,"<="&$H38,'Raw data cdr'!$D:$D,K$2,'Raw data cdr'!$L:$L,"Youtube PEVQ-S"))/E$4,"") -> 1
H39: 4.6 | I39: =IF(I$2<>"",(COUNTIFS('Raw data cdr'!$EL:$EL,"<="&$H39,'Raw data cdr'!$D:$D,I$2,'Raw data cdr'!$L:$L,"Youtube PEVQ-S"))/C$4,"") -> 1 | J39: =IF(J$2<>"",(COUNTIFS('Raw data cdr'!$EL:$EL,"<="&$H39,'Raw data cdr'!$D:$D,J$2,'Raw data cdr'!$L:$L,"Youtube PEVQ-S"))/D$4,"") -> 1 | K39: =IF(K$2<>"",(COUNTIFS('Raw data cdr'!$EL:$EL,"<="&$H39,'Raw data cdr'!$D:$D,K$2,'Raw data cdr'!$L:$L,"Youtube PEVQ-S"))/E$4,"") -> 1
H40: 4.7 | I40: =IF(I$2<>"",(COUNTIFS('Raw data cdr'!$EL:$EL,"<="&$H40,'Raw data cdr'!$D:$D,I$2,'Raw data cdr'!$L:$L,"Youtube PEVQ-S"))/C$4,"") -> 1 | J40: =IF(J$2<>"",(COUNTIFS('Raw data cdr'!$EL:$EL,"<="&$H40,'Raw data cdr'!$D:$D,J$2,'Raw data cdr'!$L:$L,"Youtube PEVQ-S"))/D$4,"") -> 1 | K40: =IF(K$2<>"",(COUNTIFS('Raw data cdr'!$EL:$EL,"<="&$H40,'Raw data cdr'!$D:$D,K$2,'Raw data cdr'!$L:$L,"Youtube PEVQ-S"))/E$4,"") -> 1
H41: 4.8 | I41: =IF(I$2<>"",(COUNTIFS('Raw data cdr'!$EL:$EL,"<="&$H41,'Raw data cdr'!$D:$D,I$2,'Raw data cdr'!$L:$L,"Youtube PEVQ-S"))/C$4,"") -> 1 | J41: =IF(J$2<>"",(COUNTIFS('Raw data cdr'!$EL:$EL,"<="&$H41,'Raw data cdr'!$D:$D,J$2,'Raw data cdr'!$L:$L,"Youtube PEVQ-S"))/D$4,"") -> 1 | K41: =IF(K$2<>"",(COUNTIFS('Raw data cdr'!$EL:$EL,"<="&$H41,'Raw data cdr'!$D:$D,K$2,'Raw data cdr'!$L:$L,"Youtube PEVQ-S"))/E$4,"") -> 1
H42: 4.9 | I42: =IF(I$2<>"",(COUNTIFS('Raw data cdr'!$EL:$EL,"<="&$H42,'Raw data cdr'!$D:$D,I$2,'Raw data cdr'!$L:$L,"Youtube PEVQ-S"))/C$4,"") -> 1 | J42: =IF(J$2<>"",(COUNTIFS('Raw data cdr'!$EL:$EL,"<="&$H42,'Raw data cdr'!$D:$D,J$2,'Raw data cdr'!$L:$L,"Youtube PEVQ-S"))/D$4,"") -> 1 | K42: =IF(K$2<>"",(COUNTIFS('Raw data cdr'!$EL:$EL,"<="&$H42,'Raw data cdr'!$D:$D,K$2,'Raw data cdr'!$L:$L,"Youtube PEVQ-S"))/E$4,"") -> 1
H43: 5 | I43: =IF(I$2<>"",(COUNTIFS('Raw data cdr'!$EL:$EL,"<="&$H43,'Raw data cdr'!$D:$D,I$2,'Raw data cdr'!$L:$L,"Youtube PEVQ-S"))/C$4,"") -> 1 | J43: =IF(J$2<>"",(COUNTIFS('Raw data cdr'!$EL:$EL,"<="&$H43,'Raw data cdr'!$D:$D,J$2,'Raw data cdr'!$L:$L,"Youtube PEVQ-S"))/D$4,"") -> 1 | K43: =IF(K$2<>"",(COUNTIFS('Raw data cdr'!$EL:$EL,"<="&$H43,'Raw data cdr'!$D:$D,K$2,'Raw data cdr'!$L:$L,"Youtube PEVQ-S"))/E$4,"") -> 1

Sheet Raw data cdr (hidden)
A1: File name | B1: Session index | C1: Home operator | D1: Serving operator | E1: System | F1: Device | G1: Device label | H1: IMEI | I1: IMSI | J1: GPS speed (km/h) | K1: Test status | L1: Test protocol | M1: Operation | N1: Direction | O1: Host address | P1: Test classification | Q1: Week | R1: Day | S1: Hour | T1: DNS lookup time (ms) | U1: IP service setup time (ETSI A) | V1: IP service setup time (ETSI B) | W1: TCP handshake time (ms) | X1: DNS->SYN,ACK (ms) | Y1: DNS->SYN(ms) | Z1: Test time application level (ms) | AA1: Test time IP level (ETSI A) (ms) | AB1: Test time IP level (ETSI B) (ms) | AC1: transferred_bytes | AD1: Test start time | AE1: Test end time | AF1: Test start latitude | AG1: Test start longitude | AH1: Test end latitude | AI1: Test end longitude | AJ1: Avg throughput (ETSI B) | AK1: Avg throughput (ETSI A) | AL1: Min throughput | AM1: Max throughput | AN1: tput_weight | AO1: tput_sum | AP1: Avg throughput GPRS | AQ1: Avg throughput EDGE | AR1: Avg throughput UMTS_R99 | AS1: Avg throughput HSDPA | AT1: Avg throughput HSUPA | AU1: Avg throughput HSPA | AV1: Avg throughput DC | AW1: Avg throughput LTE | AX1: Avg throughput LTE_CA | AY1: Transferred bytes GPRS | AZ1: Transferred bytes EDGE | BA1: Transferred bytes HSDPA | BB1: Transferred bytes HSUPA | BC1: Transferred bytes HSPA | BD1: Transferred bytes DC | BE1: Transferred bytes LTE | BF1: Transferred bytes LTE CA | BG1: TCP throughput | BH1: Total TCP retransmissions | BI1: Total TCP duplicate acks | BJ1: Start system | BK1: Start system and band | BL1: End system | BM1: End system and band | BN1: GSM900 time | BO1: GSM1800 time | BP1: UMTS850 time | BQ1: UMTS900 time | BR1: UMTS1900 time | BS1: UMTS2100 time | BT1: LTE800 time | BU1: LTE900 time | BV1: LTE1700 time | BW1: LTE1800 time | BX1: LTE2100 time | BY1: LTE2600 time | BZ1: UnknownRAT time | CA1: GPRS time | CB1: EDGE time | CC1: UMTSR99 time | CD1: HSDPA time | CE1: HSUPA time | CF1: HSPA time | CG1: HSPA DC time | CH1: LTE time | CI1: LTE CA time | CJ1: DC HSUPA time | CK1: LTE CA UL and DL time | CL1: LTE NB-IoT time | CM1: EN-DC time | CN1: SA NR time | CO1: UnknownTech time | CP1: AvgRSRP | CQ1: MinRSRP | CR1: MaxRSRP | CS1: StdDevRSRP | CT1: SINR | CU1: MinSINR | CV1: MAxSINR | CW1: StdDevSINR | CX1: AvgRSRP_ | CY1: AvgRSSI | CZ1: AvgRSRQ | DA1: MinRSRQ | DB1: MaxRSRQ | DC1: StdDevRSRQ | DD1: LTE_AvgULTx_Power | DE1: AvgRSCP | DF1: MinRSCP | DG1: MaxRSCP | DH1: StdDevRSCP | DI1: AvgEcN0 | DJ1: MinEcN0 | DK1: MaxEcN0 | DL1: StdDevEcN0 | DM1: UmtsAvgULTxPower | DN1: AvgRxLev | DO1: MinRxLev | DP1: MaxRxLev | DQ1: StdDevRxLev | DR1: YoutubeVideoStartTime | DS1: YoutubeVideoEndTime | DT1: YouTube_Video_Duration | DU1: Youtube service access time | DV1: Youtube IP service access time | DW1: Youtube player init delay | DX1: Youtube video access delay | DY1: Youtube initial buffering delay | DZ1: Youtube IP service access failure | EA1: YouTube freeze count | EB1: YouTube freeze percentage | EC1: Youtube 256x144 time | ED1: Youtube 640x360 time | EE1: Youtube 854x480 time | EF1: Youtube 960x720 time | EG1: Youtube 1280x720 time | EH1: Youtube 1920x1080 time | EI1: Youtube 2560x1440 time | EJ1: Youtube 3840x2160 time | EK1: PEVQS MOS BVQA avg | EL1: PEVQS MOS Avg | EM1: PEVQS MOS Min | EN1: PEVQS MOS Max | EO1: PEVQS buffer fill (%) | EP1: PEVQS frame rate Avg | EQ1: NetflixVideoStartTime | ER1: NetflixVideoEndTime | ES1: Netflix_Video_Duration | ET1: Netflix service access time | EU1: Netflix IP service access time | EV1: Netflix player init delay | EW1: Netflix video access delay | EX1: Netflix initial buffering delay | EY1: Netflix IP service access failure | EZ1: Netflix SD time | FA1: Netflix 854x480 time | FB1: Netflix 960x720 time | FC1: Netflix 1280x720 time | FD1: Netflix 1920x1080 time | FE1: Netflix 2560x1440 time | FF1: Netflix 3840x2160 time | FG1: LTE TA | FH1: LTE DL total bandwidth Avg | FI1: LTE DL MIMO layers avg | FJ1: LTE DL CA carriers avg (MHz) | FK1: LTE DL PRB utilization (%) | FL1: UMTS QPSK | FM1: 3G 16QAM | FN1: 3G 64QAM | FO1: 3G QPSK DC | FP1: 3G 16QAM DC | FQ1: 3G 64QAM DC | FR1: 3G BLER avg | FS1: 3G CQI DC1 avg | FT1: 3G CQI DC2 avg | FU1: 3G DC1 AvgTBsSize | FV1: 3G DC2 AvgTBsSize | FW1: 3G active set | FX1: 3G Monitored set | FY1: 3G Detected set | FZ1: 3G 2xMIMO usage | GA1: UMTS PH requ throughput median | GB1: 3G HS-PDSCH scheduled throughput median | GC1: DC1 DL throughput mean | GD1: DC1 DL throughput min | GE1: DC2 DL throughput mean | GF1: DC2 DL throughput min | GG1: GSM TA avg | GH1: Ping Attempt | GI1: Ping Success | GJ1: Ping failure | GK1: Ping RTT avg | GL1: Ping RTT min | GM1: Ping RTT max | GN1: rsrp_weight | GO1: rsrp_sum | GP1: lte_rs_snr_weight | GQ1: lte_rs_snr_sum | GR1: rscp_sum | GS1: rscp_weight | GT1: serving_rx_level_sub_sum | GU1: serving_rx_level_sub_weight | GV1: youtube_freeze_weight | GW1: vq_mos_weight | GX1: vq_mos_bvqa_sum | GY1: vq_mos_sum | GZ1: vq_buffer_fill_sum | HA1: lte_dl_bw_sum | HB1: lte_dl_bw_weight | HC1: rank_sum | HD1: rank_weight | HE1: lte_carriers_sum | HF1: lte_carriers_weight | HG1: prbs_dl_sum | HH1: prbs_dl_weight | HI1: umtsPrimary_cqi_sum | HJ1: umtsPrimary_cqi_weight | HK1: umtsSecondary_cqi_sum | HL1: umtsSecondary_cqi_weight | HM1: umts_2xmimo_ratio_sum | HN1: umts_2xmimo_ratio_weight | HO1: umtsPrimary_bit_rate_sum | HP1: umtsPrimary_bit_rate_weight | HQ1: umtsSecondary_bit_rate_sum | HR1: umtsSecondary_bit_rate_weight | HS1: umtsPrimary_tb_size_sum | HT1: umtsPrimary_tb_size_weight | HU1: umtsSecondary_tb_size_sum | HV1: umtsSecondary_tb_size_weight | HW1: umtsSecondary_tb_size_weight | IA1: =COUNTA(A:A) -> 1637 | IB1: Calculated tput Mbit/s
A2: Sid_Batajnica_06April2021 120649.3 | B2: 1 | C2: Telekom Srbija a.d. | D2: Telekom Srbija a.d. | E2: NEMO OUTDOOR,8.6.1.27 | F2: Samsung | G2: Mts DATA | H2: 358789101950851 | I2: 220033300900382 | J2: 99 | K2: Success | L2: ICMP ping | N2: Downlink | O2: 8.8.8.8 | P2: Success | Q2: 15 | R2: 3 | S2: 12 | Z2: 187 | AA2: 187 | AB2: 187 | AD2: 44292.50501 | AE2: 44292.50501 | AF2: 45.06781006 | AG2: 19.32631302 | AH2: 45.06781006 | AI2: 19.32631302 | BJ2: LTE FDD | BK2: LTE FDD 800 | BL2: LTE FDD | BM2: LTE FDD 800 | BT2: 0.725 | CH2: 0.725 | CP2: -94 | CQ2: -94 | CR2: -94 | CS2: 0 | CT2: 11.5 | CU2: 11.5 | CV2: 11.5 | CW2: 0 | CX2: -94 | CY2: -9 | CZ2: -9 | DA2: -9 | DB2: -9 | DC2: 0 | DD2: 7 | GH2: 10 | GI2: 10 | GJ2: 0 | GK2: 34 | GL2: 28 | GM2: 48 | GN2: 33 | GO2: -3102 | GP2: 33 | GQ2: 379.5 | IB2: =IF(Z2>0,0.008*AC2/Z2,"") -> 0
A3: Sid_Batajnica_06April2021 120649.3 | B3: 2 | C3: Telekom Srbija a.d. | D3: Telekom Srbija a.d. | E3: NEMO OUTDOOR,8.6.1.27 | F3: Samsung | G3: Mts DATA | H3: 358789101950851 | I3: 220033300900382 | J3: 99 | K3: Fail | L3: HTTP | N3: Downlink | O3: http://benchmarktestsrv.ratel.rs/dl5mb/file.txt | P3: Unknown | Q3: 15 | R3: 3 | S3: 12 | T3: 45 | U3: 176 | V3: 28 | W3: 34 | X3: 457 | Y3: 423 | Z3: 3633 | AA3: 2912 | AB3: 3060 | AC3: 1120461 | AD3: 44292.50505 | AE3: 44292.5051 | AF3: 45.06749725 | AG3: 19.32727432 | AH3: 45.06708527 | AI3: 19.32853889 | AJ3: 366163.7255 | AK3: 384773.6951 | AL3: 12989 | AM3: 491156 | AN3: 3.584 | AO3: 1098087.214 | AW3: 306385.9413 | BE3: 1098087.214 | BJ3: LTE FDD | BK3: LTE FDD 800 | BL3: LTE FDD | BM3: LTE FDD 800 | BT3: 4.01 | CH3: 4.01 | CP3: -93.97457627 | CQ3: -97 | CR3: -91 | CS3: 0.2749996736 | CT3: 16.98305085 | CU3: 15 | CV3: 17 | CW3: 0.1833331157 | CX3: -93.97457627 | CY3: -6.025423729 | CZ3: -6.025423729 | DA3: -9 | DB3: -6 | DC3: 0.2749996736 | DD3: 8.991525424 | FH3: 10 | FI3: 2 | FJ3: 1 | FK3: 21.33333333 | GN3: 118 | GO3: -11089 | GP3: 118 | GQ3: 2004 | HA3: 30 | HB3: 3 | HC3: 600 | HD3: 300 | HE3: 300 | HF3: 300 | HG3: 64 | HH3: 3 | IB3: 2.467296449
A4: Sid_Batajnica_06April2021 120649.3 | B4: 3 | C4: Telekom Srbija a.d. | D4: Telekom Srbija a.d. | E4: NEMO OUTDOOR,8.6.1.27 | F4: Samsung | G4: Mts DATA | H4: 358789101950851 | I4: 220033300900382 | J4: 98 | K4: Success | L4: HTTP | N4: Uplink | O4: http://benchmarktestsrv.ratel.rs/ul2.5mb | P4: Success | Q4: 15 | R4: 3 | S4: 12 | T4: 2 | V4: 1 | W4: 22 | Z4: 1295 | AA4: 1223 | AB4: 1222 | AC4: 2621440 | AD4: 44292.50518 | AE4: 44292.5052 | AF4: 45.06636047 | AG4: 19.33076477 | AH4: 45.06614304 | AI4: 19.33140373 | AJ4: 2145204.583 | AK4: 2143450.531 | AL4: 2080507 | AM4: 2080507 | AN4: 1.236 | AO4: 2571507.734 | AW4: 2080507.875 | BE4: 2571507.734 | BJ4: LTE FDD | BK4: LTE FDD 800 | BL4: LTE FDD | BM4: LTE FDD 800 | BT4: 1.708 | CH4: 1.708 | CP4: -93.00508906 | CQ4: -95 | CR4: -93 | CS4: 0.1007582182 | CT4: 11.00508906 | CU4: 11 | CV4: 13 | CW4: 0.1007582182 | CX4: -93.00508906 | CY4: -8 | CZ4: -8 | DA4: -8 | DB4: -8 | DC4: 0 | DD4: 19.96946565 | FH4: 10 | FI4: 2 | FJ4: 1 | FK4: 4 | GN4: 393 | GO4: -36551 | GP4: 393 | GQ4: 4325 | HA4: 10 | HB4: 1 | HC4: 200 | HD4: 100 | HE4: 100 | HF4: 100 | HG4: 4 | HH4: 1 | IB4: 16.19422394
A5: Sid_Batajnica_06April2021 120649.3 | B5: 4 | C5: Telekom Srbija a.d. | D5: Telekom Srbija a.d. | E5: NEMO OUTDOOR,8.6.1.27 | F5: Samsung | G5: Mts DATA | H5: 358789101950851 | I5: 220033300900382 | J5: 95 | K5: Success | L5: HTTP browsing | N5: Downlink | O5: http://benchmarktestsrv.ratel.rs | P5: Success | Q5: 15 | R5: 3 | S5: 12 | U5: 77 | V5: 40 | W5: 43 | Z5: 3545 | AA5: 3440 | AB5: 3477 | AC5: 837665 | AD5: 44292.5053 | AE5: 44292.50536 | AF5: 45.06518936 | AG5: 19.33419037 | AH5: 45.06472015 | AI5: 19.3355751 | AJ5: 240916.0196 | AK5: 243507.2674 | AL5: 13093 | AM5: 779700 | AN5: 3.493 | AO5: 844540.1739 | AW5: 241780.754 | BE5: 844540.1739 | BJ5: LTE FDD | BK5: LTE FDD 800 | BL5: LTE FDD | BM5: LTE FDD 800 | BT5: 5.056 | CH5: 5.056 | CP5: -93 | CQ5: -95 | CR5: -92 | CS5: 0 | CT5: 14 | CU5: 7.5 | CV5: 15 | CW5: 1 | CX5: -93 | CY5: -11.5 | CZ5: -11.5 | DA5: -15 | DB5: -7 | DC5: 3.5 | DD5: 7.5 | FH5: 10 | FI5: 1.75 | FJ5: 1 | GN5: 2 | GO5: -186 | GP5: 2 | GQ5: 28 | HA5: 40 | HB5: 4 | HC5: 700 | HD5: 400 | HE5: 400 | HF5: 400 | HH5: 4 | IB5: 1.890358251
A6: Sid_Batajnica_06April2021 120649.3 | B6: 5 | C6: Telekom Srbija a.d. | D6: Telekom Srbija a.d. | E6: NEMO OUTDOOR,8.6.1.27 | F6: Samsung | G6: Mts DATA | H6: 358789101950851 | I6: 220033300900382 | J6: 71 | K6: Success | L6: HTTP browsing | N6: Downlink | O6: https://m.kupujemprodajem.com | P6: Success | Q6: 15 | R6: 3 | S6: 12 | V6: 64 | W6: 26 | Z6: 5181 | AA6: 4689 | AB6: 4625 | AC6: 5204360 | AD6: 44292.50545 | AE6: 44292.50553 | AF6: 45.06414413 | AG6: 19.33747292 | AH6: 45.0637207 | AI6: 19.33880424 | AJ6: 1125267.027 | AK6: 1109908.296 | AL6: 476162 | AM6: 1508376 | AN6: 4.07 | AO6: 4826903.12 | AW6: 1185971.283 | BE6: 4826903.12 | BJ6: LTE FDD | BK6: LTE FDD 800 | BL6: LTE FDD | BM6: LTE FDD 800 | BT6: 6.87 | CH6: 6.87 | CP6: -110.6666667 | CQ6: -112 | CR6: -107 | CS6: 0.4714045208 | CT6: -1.5 | CU6: -2 | CV6: 1.5 | CW6: 0.4082482905 | CX6: -110.6666667 | CY6: -13.66666667 | CZ6: -13.66666667 | DA6: -15 | DB6: -9 | DC6: 1.885618083 | DD6: 21.66666667 | FH6: 10 | FI6: 1 | FJ6: 1 | FK6: 55.6 | GN6: 3 | GO6: -332 | GP6: 3 | GQ6: -4.5 | HA6: 50 | HB6: 5 | HC6: 500 | HD6: 500 | HE6: 500 | HF6: 500 | HG6: 278 | HH6: 5 | IB6: 8.036070257
A7: Sid_Batajnica_06April2021 120649.3 | B7: 6 | C7: Telekom Srbija a.d. | D7: Telekom Srbija a.d. | E7: NEMO OUTDOOR,8.6.1.27 | F7: Samsung | G7: Mts DATA | H7: 358789101950851 | I7: 220033300900382 | J7: 57 | K7: Success | L7: HTTP | N7: Downlink | O7: http://benchmarktestsrv.ratel.rs/dl1gb/file.txt | P7: Success | Q7: 15 | R7: 3 | S7: 12 | U7: 133 | V7: 26 | W7: 53 | Z7: 7430 | AA7: 7285 | AB7: 7392 | AC7: 18319018 | AD7: 44292.50555 | AE7: 44292.50564 | AF7: 45.06366348 | AG7: 19.33896637 | AH7: 45.06322861 | AI7: 19.34020233 | AJ7: 2478222.132 | AK7: 2514621.551 | AL7: 1006438 | AM7: 3575816 | AN7: 6.83 | AO7: 16307754.28 | AW7: 2387665.342 | BE7: 16307754.28 | BJ7: LTE FDD | BK7: LTE FDD 800 | BL7: LTE FDD | BM7: LTE FDD 800 | BT7: 7.977 | CH7: 7.977 | CP7: -105.99 | CQ7: -109 | CR7: -99 | CS7: 0.223383079 | CT7: 4.999 | CU7: 2 | CV7: 8.5 | CW7: 0.0707036067 | CX7: -105.99 | CY7: -10.015 | CZ7: -10.015 | DA7: -15 | DB7: -10 | DC7: 0.2734501783 | DD7: 20.001 | FH7: 10 | FI7: 1.5 | FJ7: 1 | FK7: 81 | GN7: 1000 | GO7: -105990 | GP7: 1000 | GQ7: 4999 | HA7: 80 | HB7: 8 | HC7: 1200 | HD7: 800 | HE7: 800 | HF7: 800 | HG7: 648 | HH7: 8 | IB7: 19.72438008
A8: Sid_Batajnica_06April2021 120649.3 | B8: 7 | C8: Telekom Srbija a.d. | D8: Telekom Srbija a.d. | E8: NEMO OUTDOOR,8.6.1.27 | F8: Samsung | G8: Mts DATA | H8: 358789101950851 | I8: 220033300900382 | J8: 48 | K8: Success | L8: HTTP | N8: Uplink | O8: http://benchmarktestsrv.ratel.rs/ul400mb | P8: Success | Q8: 15 | R8: 3 | S8: 12 | T8: 3 | V8: 2 | W8: 38 | Z8: 40105 | AA8: 40099 | AB8: 40097 | AC8: 49356622 | AD8: 44292.50567 | AE8: 44292.50614 | AF8: 45.06306076 | AG8: 19.34063911 | AH8: 45.06229782 | AI8: 19.3426609 | AJ8: 1230930.543 | AK8: 1230869.149 | AL8: 241024 | AM8: 1902880 | AN8: 40.105 | AO8: 49441379.76 | AW8: 1203263.259 | AX8: 1234722.591 | BE8: 2951604.775 | BF8: 46489774.99 | BJ8: LTE FDD | BK8: LTE FDD 800 | BL8: LTE FDD | BM8: LTE FDD 800 | BT8: 3.941 | BW8: 36.591 | CH8: 3.243 | CI8: 37.289 | CP8: -102.8957719 | CQ8: -114 | CR8: -100 | CS8: 4.519916792 | CT8: 1.888297872 | CU8: -0.5 | CV8: 11 | CW8: 3.09918761 | CX8: -102.8957719 | CY8: -8.470993117 | CZ8: -8.470993117 | DA8: -11 | DB8: -7 | DC8: 1.094095307 | DD8: 20.66741321 | FH8: 28 | FI8: 1.071428571 | FJ8: 1.023809524 | FK8: 4.557823129 | GN8: 1017 | GO8: -104645 | GP8: 1786 | GQ8: 3372.5 | HA8: 1320 | HB8: 46 | HC8: 4500 | HD8: 4200 | HE8: 4300 | HF8: 4200 | HG8: 191.4285714 | HH8: 42 | IB8: 9.845480015
A9: Sid_Batajnica_06April2021 120649.3 | B9: 8 | C9: Telekom Srbija a.d. | D9: Telekom Srbija a.d. | E9: NEMO OUTDOOR,8.6.1.27 | F9: Samsung | G9: Mts DATA | H9: 358789101950851 | I9: 220033300900382 | J9: 1 | K9: Success | L9: Streaming | N9: Downlink | O9: https://m.youtube.com | P9: Success | Q9: 15 | R9: 3 | S9: 12 | T9: 43 | W9: 30 | Z9: 31170 | AA9: 31170 | AB9: 31170 | AC9: 21578570 | AD9: 44292.50616 | AE9: 44292.50668 | AF9: 45.06229019 | AG9: 19.34265327 | AH9: 45.06083298 | AI9: 19.34701347 | AJ9: 692286.4934 | AK9: 692286.4934 | AL9: 11 | AM9: 2885468 | AN9: 31.17 | AO9: 21323960.75 | AX9: 684118.0864 | BF9: 21323960.75 | BJ9: LTE FDD | BK9: LTE FDD 1800 | BL9: LTE FDD | BM9: LTE FDD 1800 | BW9: 44.828 | CI9: 44.828 | CP9: -105.5328066 | CQ9: -110 | CR9: -100 | CS9: 3.110504414 | CT9: 11.39208633 | CU9: 0 | CV9: 21 | CW9: 6.27229949 | CX9: -105.5328066 | CY9: -7.18069392 | CZ9: -7.18069392 | DA9: -10 | DB9: -5 | DC9: 0.8828599957 | DD9: 20.35417382 | DR9: 44292.50616 | DS9: 44292.50668 | DT9: 2056707040 | DU9: 16365 | DV9: 13701 | DW9: 41 | DX9: 789 | DY9: 1834 | EA9: 0 | EB9: 0 | EC9: 0 | ED9: 0 | EE9: 0 | EF9: 0 | EG9: 0 | EH9: 28.6 | EI9: 0 | EJ9: 0 | FH9: 30 | FI9: 1.733333333 | FJ9: 1.2 | FK9: 11.84444444 | GN9: 2911 | GO9: -307206 | GP9: 4031 | GQ9: 45921.5 | HA9: 1260 | HB9: 42 | HC9: 5200 | HD9: 3000 | HE9: 3600 | HF9: 3000 | HG9: 355.3333333 | HH9: 30 | IB9: 5.538291947
A10: Sid_Batajnica_06April2021 120649.3 | B10: 9 | C10: Telekom Srbija a.d. | D10: Telekom Srbija a.d. | E10: NEMO OUTDOOR,8.6.1.27 | F10: Samsung | G10: Mts DATA | H10: 358789101950851 | I10: 220033300900382 | J10: 47 | K10: Success | L10: Youtube PEVQ-S | N10: Downlink | O10: youtube.com | P10: Success | Q10: 15 | R10: 3 | S10: 12 | T10: 36 | Z10: 45926 | AA10: 45926 | AB10: 45926 | AC10: 36232197 | AD10: 44292.50669 | AE10: 44292.50742 | AF10: 45.06078339 | AG10: 19.34716988 | AH10: 45.05662537 | AI10: 19.36034393 | AJ10: 788925.5977 | AK10: 788925.5977 | AL10: 0 | AM10: 2380717 | AN10: 45.926 | AO10: 36207595.73 | AX10: 788389.9259 | BF10: 36207595.73 | BJ10: LTE FDD | BK10: LTE FDD 1800 | BL10: LTE FDD | BM10: LTE FDD 1800 | BW10: 62.946 | CI10: 62.946 | CP10: -102.4103646 | CQ10: -113 | CR10: -99 | CS10: 3.250006766 | CT10: 15.67361303 | CU10: 0 | CV10: 22 | CW10: 5.717297949 | CX10: -102.4103646 | CY10: -6.350105453 | CZ10: -6.350105453 | DA10: -9 | DB10: -5 | DC10: 0.7876681087 | DD10: 18.80415788 | DR10: 44292.50669 | DS10: 44292.50742 | DT10: 174000 | DU10: 19194 | DV10: 17056 | DW10: 50 | DX10: 803 | DY10: 1285 | EA10: 0 | EB10: 0 | EC10: 0 | ED10: 0 | EE10: 8.006 | EF10: 0 | EG10: 0 | EH10: 24.126 | EI10: 0 | EJ10: 0 | EK10: 4.45250001 | EL10: 4.14610002 | EM10: 2.815000057 | EN10: 4.518000126 | EO10: 787.6 | EP10: 787.6 | FH10: 30 | FI10: 1.4 | FJ10: 1.222222222 | FK10: 4.162962963 | GN10: 3319 | GO10: -339900 | GP10: 3623 | GQ10: 56785.5 | GW10: 10 | GX10: 44.5250001 | GY10: 41.4610002 | GZ10: 7876 | HA10: 1860 | HB10: 62 | HC10: 6300 | HD10: 4500 | HE10: 5500 | HF10: 4500 | HG10: 187.3333333 | HH10: 45 | IB10: 6.311404782
A11: Sid_Batajnica_06April2021 120649.3 | B11: 10 | C11: Telekom Srbija a.d. | D11: Telekom Srbija a.d. | E11: NEMO OUTDOOR,8.6.1.27 | F11: Samsung | G11: Mts DATA | H11: 358789101950851 | I11: 220033300900382 | J11: 100 | K11: Success | L11: ICMP ping | N11: Downlink | O11: 8.8.8.8 | P11: Success | Q11: 15 | R11: 3 | S11: 12 | Z11: 192 | AA11: 192 | AB11: 192 | AD11: 44292.50749 | AE11: 44292.5075 | AF11: 45.05598831 | AG11: 19.36229324 | AH11: 45.05598831 | AI11: 19.36229324 | BJ11: LTE FDD | BK11: LTE FDD 1800 | BL11: LTE FDD | BM11: LTE FDD 1800 | BW11: 0.889 | CI11: 0.889 | GH11: 10 | GI11: 10 | GJ11: 0 | GK11: 33 | GL11: 29 | GM11: 52 | IB11: 0
A12: Sid_Batajnica_06April2021 120649.3 | B12: 11 | C12: Telekom Srbija a.d. | D12: Telekom Srbija a.d. | E12: NEMO OUTDOOR,8.6.1.27 | F12: Samsung | G12: Mts DATA | H12: 358789101950851 | I12: 220033300900382 | J12: 101 | K12: Success | L12: HTTP | N12: Downlink | O12: http://benchmarktestsrv.ratel.rs/dl5mb/file.txt | P12: Success | Q12: 15 | R12: 3 | S12: 12 | T12: 4 | U12: 151 | V12: 47 | W12: 24 | X12: 679 | Y12: 655 | Z12: 697 | AA12: 543 | AB12: 647 | AC12: 5242880 | AD12: 44292.50753 | AE12: 44292.50755 | AF12: 45.0555687 | AG12: 19.36361885 | AH12: 45.05546188 | AI12: 19.36395073 | AJ12: 8103369.397 | AK12: 9655395.948 | AL12: 7620465 | AM12: 7620465 | AN12: 0.652 | AO12: 4968543.18 | AX12: 7620465 | BF12: 4968543.18 | BJ12: LTE FDD | BK12: LTE FDD 1800 | BL12: LTE FDD | BM12: LTE FDD 1800 | BW12: 1.347 | CI12: 1.347 | CP12: -103 | CQ12: -103 | CR12: -103 | CS12: 0 | CT12: 12.5 | CU12: 12.5 | CV12: 12.5 | CW12: 0 | CX12: -103 | CY12: -6 | CZ12: -6 | DA12: -6 | DB12: -6 | DC12: 0 | DD12: 14 | FH12: 30 | FI12: 1 | FJ12: 1 | GN12: 158 | GO12: -16274 | GP12: 158 | GQ12: 1975 | HA12: 30 | HB12: 1 | HC12: 100 | HD12: 100 | HE12: 100 | HF12: 100 | HH12: 1 | IB12: 60.17652798
A13: Sid_Batajnica_06April2021 120649.3 | B13: 12 | C13: Telekom Srbija a.d. | D13: Telekom Srbija a.d. | E13: NEMO OUTDOOR,8.6.1.27 | F13: Samsung | G13: Mts DATA | H13: 358789101950851 | I13: 220033300900382 | J13: 99 | K13: Success | L13: HTTP | N13: Uplink | O13: http://benchmarktestsrv.ratel.rs/ul2.5mb | P13: Success | Q13: 15 | R13: 3 | S13: 12 | T13: 2 | V13: 1 | W13: 43 | Z13: 1952 | AA13: 1879 | AB13: 1878 | AC13: 2621440 | AD13: 44292.50766 | AE13: 44292.50769 | AF13: 45.05440903 | AG13: 19.36715698 | AH13: 45.05420303 | AI13: 19.36779022 | AJ13: 1395867.945 | AK13: 1395125.067 | AL13: 2211536 | AM13: 2211536 | AN13: 1.092 | AO13: 2414997.721 | AX13: 2211536.375 | BF13: 2414997.721 | BJ13: LTE FDD | BK13: LTE FDD 1800 | BL13: LTE FDD | BM13: LTE FDD 1800 | BW13: 2.582 | CI13: 2.582 | CP13: -103 | CQ13: -108 | CR13: -103 | CS13: 0 | CT13: 10 | CU13: 6.5 | CV13: 10 | CW13: 0 | CX13: -103 | CY13: -6 | CZ13: -6 | DA13: -7 | DB13: -6 | DC13: 0 | DD13: 22 | FH13: 30 | FI13: 1.5 | FJ13: 1 | FK13: 1.333333333 | GN13: 1 | GO13: -103 | GP13: 1 | GQ13: 10 | HA13: 60 | HB13: 2 | HC13: 300 | HD13: 200 | HE13: 200 | HF13: 200 | HG13: 2.666666667 | HH13: 2 | IB13: 10.74360656
A14: Sid_Batajnica_06April2021 120649.3 | B14: 13 | C14: Telekom Srbija a.d. | D14: Telekom Srbija a.d. | E14: NEMO OUTDOOR,8.6.1.27 | F14: Samsung | G14: Mts DATA | H14: 358789101950851 | I14: 220033300900382 | J14: 100 | K14: Success | L14: HTTP browsing | N14: Downlink | O14: http://benchmarktestsrv.ratel.rs | P14: Success | Q14: 15 | R14: 3 | S14: 12 | U14: 73 | V14: 40 | W14: 37 | Z14: 3353 | AA14: 3247 | AB14: 3280 | AC14: 837665 | AD14: 44292.5078 | AE14: 44292.50785 | AF14: 45.05325317 | AG14: 19.37064362 | AH14: 45.05271149 | AI14: 19.3721981 | AJ14: 255385.6707 | AK14: 257981.2134 | AL14: 290251 | AM14: 290251 | AN14: 3.305 | AO14: 959279.9681 | AX14: 290251.125 | BF14: 959279.9681 | BJ14: LTE FDD | BK14: LTE FDD 1800 | BL14: LTE FDD | BM14: LTE FDD 1800 | BW14: 4.796 | CI14: 4.796 | CP14: -109.0054054 | CQ14: -111 | CR14: -106 | CS14: 0.0733224863 | CT14: 10.5027027 | CU14: 6 | CV14: 13 | CW14: 0.03666124315 | CX14: -109.0054054 | CY14: -7 | CZ14: -7 | DA14: -7 | DB14: -7 | DC14: 0 | DD14: 23 | FH14: 30 | FI14: 2 | FJ14: 1 | GN14: 185 | GO14: -20166 | GP14: 185 | GQ14: 1943 | HA14: 90 | HB14: 3 | HC14: 600 | HD14: 300 | HE14: 300 | HF14: 300 | HH14: 3 | IB14: 1.998604235
A15: Sid_Batajnica_06April2021 120649.3 | B15: 14 | C15: Telekom Srbija a.d. | D15: Telekom Srbija a.d. | E15: NEMO OUTDOOR,8.6.1.27 | F15: Samsung | G15: Mts DATA | H15: 358789101950851 | I15: 220033300900382 | J15: 99 | K15: Success | L15: HTTP browsing | N15: Downlink | O15: https://m.kupujemprodajem.com | P15: Success | Q15: 15 | R15: 3 | S15: 12 | V15: 73 | W15: 30 | Z15: 5127 | AA15: 4861 | AB15: 4788 | AC15: 5166449 | AD15: 44292.50794 | AE15: 44292.50801 | AF15: 45.05186844 | AG15: 19.3746624 | AH15: 45.05123901 | AI15: 19.37657738 | AJ15: 1079041.145 | AK15: 1062836.659 | AL15: 465414 | AM15: 1884355 | AN15: 4.164 | AO15: 4920132.126 | AX15: 1181587.927 | BF15: 4920132.126 | BJ15: LTE FDD | BK15: LTE FDD 1800 | BL15: LTE FDD | BM15: LTE FDD 1800 | BT15: 0.977 | BW15: 5.531 | CH15: 0.441 | CI15: 6.067 | CP15: -108.6450648 | CQ15: -114 | CR15: -104 | CS15: 4.986486531 | CT15: -2.149323181 | CU15: -5.5 | CV15: 6 | CW15: 4.153352107 | CX15: -108.6450648 | CY15: -9.000997009 | CZ15: -9.000997009 | DA15: -10 | DB15: -8 | DC15: 0.03155970447 | DD15: 22.60152284 | FH15: 27 | FI15: 1.5 | FJ15: 1.166666667 | FK15: 15.30864198 | GN15: 1003 | GO15: -108971 | GP15: 1182 | GQ15: -2540.5 | HA15: 250 | HB15: 9 | HC15: 900 | HD15: 600 | HE15: 700 | HF15: 600 | HG15: 91.85185185 | HH15: 6 | IB15: 8.061554905
A16: Sid_Batajnica_06April2021 120649.3 | B16: 15 | C16: Telekom Srbija a.d. | D16: Telekom Srbija a.d. | E16: NEMO OUTDOOR,8.6.1.27 | F16: Samsung | G16: Mts DATA | H16: 358789101950851 | I16: 220033300900382 | J16: 100 | K16: Success | L16: HTTP | N16: Downlink | O16: http://benchmarktestsrv.ratel.rs/dl1gb/file.txt | P16: Success | Q16: 15 | R16: 3 | S16: 12 | U16: 137 | V16: 29 | W16: 26 | Z16: 7275 | AA16: 7132 | AB16: 7240 | AC16: 41567914 | AD16: 44292.50803 | AE16: 44292.50813 | AF16: 45.05104065 | AG16: 19.37720299 | AH16: 45.05019379 | AI16: 19.37973785 | AJ16: 5741424.586 | AK16: 5828367.078 | AL16: 3819204 | AM16: 7784669 | AN16: 6.917 | AO16: 38252112.17 | AX16: 5530159.342 | BF16: 38252112.17 | BJ16: LTE FDD | BK16: LTE FDD 800 | BL16: LTE FDD | BM16: LTE FDD 800 | BT16: 1.474 | BW16: 6.536 | CI16: 8.01 | CP16: -104.7101594 | CQ16: -116 | CR16: -100 | CS16: 5.443174056 | CT16: 4.840297653 | CU16: -8.5 | CV16: 7.5 | CW16: 3.438472445 | CX16: -104.7101594 | CY16: -11.14541833 | CZ16: -11.14541833 | DA16: -18 | DB16: -9 | DC16: 2.479953276 | DD16: 19.04273504 | FH16: 30 | FI16: 1.888888889 | FJ16: 1.888888889 | FK16: 70.66666667 | GN16: 1004 | GO16: -105129 | GP16: 1747 | GQ16: 8456 | HA16: 570 | HB16: 19 | HC16: 1700 | HD16: 900 | HE16: 1700 | HF16: 900 | HG16: 636 | HH16: 9 | IB16: 45.71042089
A17: Sid_Batajnica_06April2021 120649.3 | B17: 16 | C17: Telekom Srbija a.d. | D17: Telekom Srbija a.d. | E17: NEMO OUTDOOR,8.6.1.27 | F17: Samsung | G17: Mts DATA | H17: 358789101950851 | I17: 220033300900382 | J17: 101 | K17: Success | L17: HTTP | N17: Uplink | O17: http://benchmarktestsrv.ratel.rs/ul400mb | P17: Success | Q17: 15 | R17: 3 | S17: 12 | T17: 4 | V17: 1 | W17: 52 | Z17: 40306 | AA17: 40246 | AB17: 40245 | AC17: 49733454 | AD17: 44292.50815 | AE17: 44292.50862 | AF17: 45.04998779 | AG17: 19.38036156 | AH17: 45.04575729 | AI17: 19.39335251 | AJ17: 1235767.275 | AK17: 1235736.57 | AL17: 232382 | AM17: 2361344 | AN17: 39.491 | AO17: 48275786.43 | AW17: 547248.5 | AX17: 1253702.398 | BE17: 956043.1295 | BF17: 47319743.3 | BJ17: LTE FDD | BK17: LTE FDD 1800 | BL17: LTE FDD | BM17: LTE FDD 1800 | BT17: 4.538 | BW17: 36.267 | CH17: 2.001 | CI17: 38.804 | CP17: -108.3061175 | CQ17: -118 | CR17: -102 | CS17: 5.16089688 | CT17: -1.205078441 | CU17: -8.5 | CV17: 6.5 | CW17: 4.330280351 | CX17: -108.3061175 | CY17: -10.76035645 | CZ17: -10.76035645 | DA17: -15 | DB17: -7 | DC17: 2.187532255 | DD17: 21.73362445 | FH17: 28 | FI17: 1.130434783 | FJ17: 1.043478261 | FK17: 4.860248447 | FX17: 0 | FY17: 0 | GN17: 4152 | GO17: -449687 | GP17: 6183 | GQ17: -7451 | HA17: 1620 | HB17: 56 | HC17: 5200 | HD17: 4600 | HE17: 4800 | HF17: 4600 | HG17: 223.5714286 | HH17: 46 | IB17: 9.871176301
A18: Sid_Batajnica_06April2021 120649.3 | B18: 17 | C18: Telekom Srbija a.d. | D18: Telekom Srbija a.d. | E18: NEMO OUTDOOR,8.6.1.27 | F18: Samsung | G18: Mts DATA | H18: 358789101950851 | I18: 220033300900382 | J18: 100 | K18: Success | L18: Streaming | N18: Downlink | O18: https://m.youtube.com | P18: Success | Q18: 15 | R18: 3 | S18: 12 | T18: 332 | W18: 15 | Z18: 30857 | AA18: 30857 | AB18: 30857 | AC18: 16421861 | AD18: 44292.50864 | AE18: 44292.50915 | AF18: 45.0456543 | AG18: 19.39367485 | AH18: 45.04088211 | AI18: 19.40796471 | AJ18: 532192.4037 | AK18: 532192.4037 | AL18: 0 | AM18: 2176166 | AN18: 29.689 | AO18: 16385595.01 | AX18: 551907.946 | BF18: 16385595.01 | BJ18: LTE FDD | BK18: LTE FDD 1800 | BL18: LTE FDD | BM18: LTE FDD 1800 | BT18: 3.61 | BW18: 40.743 | CI18: 44.353 | CP18: -110.678747 | CQ18: -118 | CR18: -96 | CS18: 2.500801794 | CT18: -0.8541983077 | CU18: -14 | CV18: 21 | CW18: 6.46038752 | CX18: -110.678747 | CY18: -10.41677202 | CZ18: -10.41677202 | DA18: -16 | DB18: -6 | DC18: 2.085287745 | DD18: 20.70381825 | DR18: 44292.50864 | DS18: 44292.50915 | DT18: 2056923040 | DU18: 16298 | DV18: 13828 | DW18: 59 | DX18: 701 | DY18: 1710 | EA18: 0 | EB18: 0 | EC18: 0 | ED18: 0 | EE18: 0 | EF18: 0 | EG18: 0 | EH18: 28.342 | EI18: 0 | EJ18: 0 | FH18: 30 | FI18: 1.25 | FJ18: 1.25 | FK18: 8.296296296 | GN18: 7119 | GO18: -787922 | GP18: 9218 | GQ18: -7874 | HA18: 1770 | HB18: 59 | HC18: 4500 | HD18: 3600 | HE18: 4500 | HF18: 3600 | HG18: 298.6666667 | HH18: 36 | IB18: 4.257539229
A19: Sid_Batajnica_06April2021 120649.3 | B19: 18 | C19: Telekom Srbija a.d. | D19: Telekom Srbija a.d. | E19: NEMO OUTDOOR,8.6.1.27 | F19: Samsung | G19: Mts DATA | H19: 358789101950851 | I19: 220033300900382 | J19: 100 | K19: Success | L19: Youtube PEVQ-S | N19: Downlink | O19: youtube.com | P19: Success | Q19: 15 | R19: 3 | S19: 12 | T19: 2 | Z19: 45661 | AA19: 45661 | AB19: 45661 | AC19: 34479583 | AD19: 44292.50917 | AE19: 44292.5099 | AF19: 45.04077148 | AG19: 19.40829468 | AH19: 45.03417969 | AI19: 19.42834854 | AJ19: 755121.0661 | AK19: 755121.0661 | AL19: 25 | AM19: 2891491 | AN19: 44.779 | AO19: 34541284.71 | AX19: 771372.4003 | BF19: 34541284.71 | BJ19: LTE FDD | BK19: LTE FDD 1800 | BL19: LTE FDD | BM19: LTE FDD 1800 | BT19: 0.6 | BW19: 62.171 | CI19: 62.771 | CP19: -108.8221071 | CQ19: -117 | CR19: -90 | CS19: 6.483571434 | CT19: 5.368780971 | CU19: -6.5 | CV19: 27.5 | CW19: 7.771458454 | CX19: -108.8221071 | CY19: -9.17221811 | CZ19: -9.17221811 | DA19: -15 | DB19: -5 | DC19: 1.533875382 | DD19: 20.10773545 | DR19: 44292.50917 | DS19: 44292.5099 | DT19: 174000 | DU19: 19248 | DV19: 17112 | DW19: 50 | DX19: 811 | DY19: 1275 | EA19: 0 | EB19: 0 | EC19: 0 | ED19: 0 | EE19: 0 | EF19: 0 | EG19: 11.02 | EH19: 20.844 | EI19: 0 | EJ19: 0 | EK19: 4.45250001 | EL19: 4.169300056 | EM19: 2.815000057 | EN19: 4.518000126 | EO19: 800.7 | EP19: 800.7 | FH19: 30 | FI19: 1.613636364 | FJ19: 1.25 | FK19: 10 | GN19: 4053 | GO19: -441056 | GP19: 5045 | GQ19: 27085.5 | GW19: 10 | GX19: 44.5250001 | GY19: 41.69300056 | GZ19: 8007 | HA19: 1920 | HB19: 64 | HC19: 7100 | HD19: 4400 | HE19: 5500 | HF19: 4400 | HG19: 440 | HH19: 44 | IB19: 6.040968529
A20: Sid_Batajnica_06April2021 120649.3 | B20: 19 | C20: Telekom Srbija a.d. | D20: Telekom Srbija a.d. | E20: NEMO OUTDOOR,8.6.1.27 | F20: Samsung | G20: Mts DATA | H20: 358789101950851 | I20: 220033300900382 | J20: 99 | K20: Success | L20: ICMP ping | N20: Downlink | O20: 8.8.8.8 | P20: Success | Q20: 15 | R20: 3 | S20: 12 | Z20: 152 | AA20: 152 | AB20: 152 | AD20: 44292.50996 | AE20: 44292.50996 | AF20: 45.03356552 | AG20: 19.43025398 | AH20: 45.03356552 | AI20: 19.43025398 | BJ20: LTE FDD | BK20: LTE FDD 1800 | BL20: LTE FDD | BM20: LTE FDD 1800 | BW20: 0.453 | CI20: 0.453 | GH20: 10 | GI20: 10 | GJ20: 0 | GK20: 33 | GL20: 29 | GM20: 51 | IB20: 0
A21: Sid_Batajnica_06April2021 120649.3 | B21: 20 | C21: Telekom Srbija a.d. | D21: Telekom Srbija a.d. | E21: NEMO OUTDOOR,8.6.1.27 | F21: Samsung | G21: Mts DATA | H21: 358789101950851 | I21: 220033300900382 | J21: 99 | K21: Success | L21: HTTP | N21: Downlink | O21: http://benchmarktestsrv.ratel.rs/dl5mb/file.txt | P21: Success | Q21: 15 | R21: 3 | S21: 12 | T21: 3 | U21: 169 | V21: 54 | W21: 49 | X21: 1045 | Y21: 996 | Z21: 1122 | AA21: 948 | AB21: 1063 | AC21: 5242880 | AD21: 44292.51001 | AE21: 44292.51003 | AF21: 45.0332489 | AG21: 19.43121529 | AH21: 45.03294754 | AI21: 19.43211555 | AJ21: 4932154.28 | AK21: 5530464.135 | AL21: 4137891 | AM21: 4137891 | AN21: 0.956 | AO21: 3955823.796 | AX21: 4137891 | BF21: 3955823.796 | BJ21: LTE FDD | BK21: LTE FDD 1800 | BL21: LTE FDD | BM21: LTE FDD 1800 | BW21: 2.16 | CI21: 2.16 | CP21: -105.047619 | CQ21: -106 | CR21: -105 | CS21: 0.212958855 | CT21: 4.695121951 | CU21: 0 | CV21: 12.5 | CW21: 4.612916712 | CX21: -105.047619 | CY21: -8 | CZ21: -8 | DA21: -8 | DB21: -8 | DC21: 0 | DD21: 20 | FH21: 30 | FI21: 1 | FJ21: 1 | GN21: 21 | GO21: -2206 | GP21: 41 | GQ21: 192.5 | HA21: 30 | HB21: 1 | HC21: 100 | HD21: 100 | HE21: 100 | HF21: 100 | HH21: 1 | IB21: 37.38238859
A22: Sid_Batajnica_06April2021 120649.3 | B22: 21 | C22: Telekom Srbija a.d. | D22: Telekom Srbija a.d. | E22: NEMO OUTDOOR,8.6.1.27 | F22: Samsung | G22: Mts DATA | H22: 358789101950851 | I22: 220033300900382 | J22: 102 | K22: Success | L22: HTTP | N22: Uplink | O22: http://benchmarktestsrv.ratel.rs/ul2.5mb | P22: Success | Q22: 15 | R22: 3 | S22: 12 | T22: 2 | V22: 1 | W22: 49 | Z22: 2164 | AA22: 2091 | AB22: 2090 | AC22: 2621440 | AD22: 44292.51015 | AE22: 44292.51017 | AF22: 45.03202057 | AG22: 19.43501472 | AH22: 45.03170013 | AI22: 19.43597984 | AJ22: 1254277.512 | AK22: 1253677.666 | AL22: 582991 | AM22: 1877798 | AN22: 2.107 | AO22: 2631933.774 | AX22: 1249138.004 | BF22: 2631933.774 | BJ22: LTE FDD | BK22: LTE FDD 1800 | BL22: LTE FDD | BM22: LTE FDD 1800 | BW22: 2.437 | CI22: 2.437 | CP22: -108 | CQ22: -108 | CR22: -104 | CS22: 0 | CT22: 11 | CU22: 11 | CV22: 14 | CW22: 0 | CX22: -108 | CY22: -8 | CZ22: -8 | DA22: -8 | DB22: -7 | DC22: 0 | DD22: 22 | FH22: 30 | FI22: 1 | FJ22: 1 | FK22: 1.777777778 | GN22: 1 | GO22: -108 | GP22: 1 | GQ22: 11 | HA22: 90 | HB22: 3 | HC22: 300 | HD22: 300 | HE22: 300 | HF22: 300 | HG22: 5.333333333 | HH22: 3 | IB22: 9.691090573
A23: Sid_Batajnica_06April2021 120649.3 | B23: 22 | C23: Telekom Srbija a.d. | D23: Telekom Srbija a.d. | E23: NEMO OUTDOOR,8.6.1.27 | F23: Samsung | G23: Mts DATA | H23: 358789101950851 | I23: 220033300900382 | J23: 101 | K23: Success | L23: HTTP browsing | N23: Downlink | O23: http://benchmarktestsrv.ratel.rs | P23: Success | Q23: 15 | R23: 3 | S23: 12 | U23: 73 | V23: 27 | W23: 28 | Z23: 3424 | AA23: 3328 | AB23: 3374 | AC23: 837665 | AD23: 44292.51027 | AE23: 44292.51033 | AF23: 45.0308609 | AG23: 19.43856049 | AH23: 45.03033447 | AI23: 19.44018745 | AJ23: 248270.5987 | AK23: 251702.2236 | AL23: 2569 | AM23: 816295 | AN23: 3.376 | AO23: 839488.3675 | AW23: 2569.5 | AX23: 816295 | BE23: 6051.1725 | BF23: 833437.195 | BJ23: LTE FDD | BK23: LTE FDD 1800 | BL23: LTE FDD | BM23: LTE FDD 1800 | BT23: 0.801 | BW23: 4.104 | CH23: 0.389 | CI23: 4.516 | CP23: -107.75 | CQ23: -117 | CR23: -98 | CS23: 8.78881422 | CT23: -1.154288703 | CU23: -3.5 | CV23: 4.5 | CW23: 0.2309531286 | CX23: -107.75 | CY23: -12.96133094 | CZ23: -12.96133094 | DA23: -14 | DB23: -10 | DC23: 1.139282728 | DD23: 21.51725941 | FH23: 26 | FI23: 1 | FJ23: 1 | FK23: 14.61538462 | GN23: 1112 | GO23: -119818 | GP23: 1912 | GQ23: -2207 | HA23: 160 | HB23: 6 | HC23: 500 | HD23: 500 | HE23: 500 | HF23: 500 | HG23: 73.07692308 | HH23: 5 | IB23: 1.957161215
A24: Sid_Batajnica_06April2021 120649.3 | B24: 23 | C24: Telekom Srbija a.d. | D24: Telekom Srbija a.d. | E24: NEMO OUTDOOR,8.6.1.27 | F24: Samsung | G24: Mts DATA | H24: 358789101950851 | I24: 220033300900382 | J24: 100 | K24: Success | L24: HTTP browsing | N24: Downlink | O24: https://m.kupujemprodajem.com | P24: Success | Q24: 15 | R24: 3 | S24: 12 | V24: 73 | W24: 37 | Z24: 4825 | AA24: 4395 | AB24: 4322 | AC24: 5176991 | AD24: 44292.51043 | AE24: 44292.5105 | AF24: 45.02933502 | AG24: 19.44307518 | AH24: 45.02867889 | AI24: 19.44499969 | AJ24: 1197822.999 | AK24: 1177927.418 | AL24: 786390 | AM24: 1668128 | AN24: 4.266 | AO24: 5161150.807 | AX24: 1209833.757 | BF24: 5161150.807 | BJ24: LTE FDD | BK24: LTE FDD 1800 | BL24: LTE FDD | BM24: LTE FDD 1800 | BW24: 6.409 | CI24: 6.409 | CP24: -109.0167286 | CQ24: -115 | CR24: -108 | CS24: 0.2887269918 | CT24: 7.98605948 | CU24: 3 | CV24: 10 | CW24: 0.2406058265 | CX24: -109.0167286 | CY24: -8.003717472 | CZ24: -8.003717472 | DA24: -10 | DB24: -7 | DC24: 0.08614594964 | DD24: 21.00557621 | FH24: 30 | FI24: 1 | FJ24: 1 | FK24: 18 | GN24: 538 | GO24: -58651 | GP24: 538 | GQ24: 4296.5 | HA24: 120 | HB24: 4 | HC24: 400 | HD24: 400 | HE24: 400 | HF24: 400 | HG24: 72 | HH24: 4 | IB24: 8.583612021
A25: Sid_Batajnica_06April2021 120649.3 | B25: 24 | C25: Telekom Srbija a.d. | D25: Telekom Srbija a.d. | E25: NEMO OUTDOOR,8.6.1.27 | F25: Samsung | G25: Mts DATA | H25: 358789101950851 | I25: 220033300900382 | J25: 99 | K25: Success | L25: HTTP | N25: Downlink | O25: http://benchmarktestsrv.ratel.rs/dl1gb/file.txt | P25: Success | Q25: 15 | R25: 3 | S25: 12 | U25: 159 | V25: 52 | W25: 47 | Z25: 7218 | AA25: 6956 | AB25: 7063 | AC25: 47092906 | AD25: 44292.51052 | AE25: 44292.51061 | AF25: 45.02848434 | AG25: 19.44564056 | AH25: 45.02763748 | AI25: 19.44820976 | AJ25: 6667550.05 | AK25: 6770112.996 | AL25: 5289386 | AM25: 8406011 | AN25: 6.806 | AO25: 44945192.48 | AX25: 6603760.283 | BF25: 44945192.48 | BJ25: LTE FDD | BK25: LTE FDD 1800 | BL25: LTE FDD | BM25: LTE FDD 1800 | BT25: 0.07 | BW25: 7.928 | CH25: 0.069 | CI25: 7.929 | CP25: -115.9207921 | CQ25: -118 | CR25: -106 | CS25: 4.516050952 | CT25: 0.8649538867 | CU25: -1 | CV25: 8 | CW25: 1.265696064 | CX25: -115.9207921 | CY25: -15.82673267 | CZ25: -15.82673267 | DA25: -16 | DB25: -8 | DC25: 0.3784782163 | DD25: 22.19323671 | FH25: 25 | FI25: 2.625 | FJ25: 1.875 | FK25: 93.7 | GN25: 404 | GO25: -46832 | GP25: 759 | GQ25: 656.5 | HA25: 430 | HB25: 17 | HC25: 2100 | HD25: 800 | HE25: 1500 | HF25: 800 | HG25: 749.6 | HH25: 8 | IB25: 52.1949637
A26: Sid_Batajnica_06April2021 120649.3 | B26: 25 | C26: Telekom Srbija a.d. | D26: Telekom Srbija a.d. | E26: NEMO OUTDOOR,8.6.1.27 | F26: Samsung | G26: Mts DATA | H26: 358789101950851 | I26: 220033300900382 | J26: 99 | K26: Success | L26: HTTP | N26: Uplink | O26: http://benchmarktestsrv.ratel.rs/ul400mb | P26: Success | Q26: 15 | R26: 3 | S26: 12 | T26: 2 | V26: 1 | W26: 49 | Z26: 40549 | AA26: 40542 | AB26: 40541 | AC26: 34551630 | AD26: 44292.51064 | AE26: 44292.51111 | AF26: 45.02743149 | AG26: 19.44883728 | AH26: 45.02346802 | AI26: 19.46090126 | AJ26: 852263.881 | AK26: 852242.8593 | AL26: 189046 | AM26: 1494945 | AN26: 40.549 | AO26: 34576578.88 | AW26: 852711.0134 | BE26: 34576578.88 | BJ26: LTE FDD | BK26: LTE FDD 800 | BL26: LTE FDD | BM26: LTE FDD 800 | BT26: 40.903 | CH26: 40.903 | CP26: -107.4375 | CQ26: -114 | CR26: -101 | CS26: 3.27812351 | CT26: -0.875 | CU26: -5.5 | CV26: 2 | CW26: 1.700183814 | CX26: -107.4375 | CY26: -12.8125 | CZ26: -12.8125 | DA26: -17 | DB26: -10 | DC26: 1.589762168 | DD26: 21.6875 | FH26: 10 | FI26: 1.025 | FJ26: 1 | FK26: 6.8 | GN26: 16 | GO26: -1719 | GP26: 16 | GQ26: -14 | HA26: 400 | HB26: 40 | HC26: 4100 | HD26: 4000 | HE26: 4000 | HF26: 4000 | HG26: 272 | HH26: 40 | IB26: 6.816765888
A27: Sid_Batajnica_06April2021 120649.3 | B27: 26 | C27: Telekom Srbija a.d. | D27: Telekom Srbija a.d. | E27: NEMO OUTDOOR,8.6.1.27 | F27: Samsung | G27: Mts DATA | H27: 358789101950851 | I27: 220033300900382 | J27: 69 | K27: Success | L27: Streaming | N27: Downlink | O27: https://m.youtube.com | P27: Success | Q27: 15 | R27: 3 | S27: 12 | W27: 89 | Z27: 31070 | AA27: 31070 | AB27: 31070 | AC27: 21705633 | AD27: 44292.51114 | AE27: 44292.51166 | AF27: 45.02332687 | AG27: 19.46132278 | AH27: 45.02109528 | AI27: 19.46809959 | AJ27: 698604.2163 | AK27: 698604.2163 | AL27: 0 | AM27: 2814728 | AN27: 29.946 | AO27: 21837481.29 | AW27: 469099.1366 | AX27: 839690.8847 | BE27: 4187178.893 | BF27: 17650302.4 | BJ27: LTE FDD | BK27: LTE FDD 800 | BL27: LTE FDD | BM27: LTE FDD 800 | BT27: 22.399 | BW27: 21.279 | CH27: 13.287 | CI27: 30.391 | CP27: -111.1152536 | CQ27: -118 | CR27: -105 | CS27: 3.105438727 | CT27: -1.726237843 | CU27: -6.5 | CV27: 12 | CW27: 2.752056765 | CX27: -111.1152536 | CY27: -12.17349166 | CZ27: -12.17349166 | DA27: -16 | DB27: -7 | DC27: 2.035918453 | DD27: 21.59555928 | DR27: 44292.51114 | DS27: 44292.51166 | DT27: 2057139040 | DU27: 16278 | DV27: 13608 | DW27: 51 | DX27: 834 | DY27: 1785 | EA27: 0 | EB27: 0 | EC27: 0 | ED27: 0 | EE27: 0 | EF27: 0 | EG27: 0 | EH27: 28.339 | EI27: 0 | EJ27: 0 | FH27: 25 | FI27: 1.105263158 | FJ27: 1.184210526 | FK27: 16.37894737 | GN27: 11453 | GO27: -1272603 | GP27: 18096 | GQ27: -31238 | HA27: 1500 | HB27: 60 | HC27: 4200 | HD27: 3800 | HE27: 4500 | HF27: 3800 | HG27: 622.4 | HH27: 38 | IB27: 5.58883373
A28: Sid_Batajnica_06April2021 120649.3 | B28: 27 | C28: Telekom Srbija a.d. | D28: Telekom Srbija a.d. | E28: NEMO OUTDOOR,8.6.1.27 | F28: Samsung | G28: Mts DATA | H28: 358789101950851 | I28: 220033300900382 | J28: 28 | K28: Success | L28: Youtube PEVQ-S | N28: Downlink | O28: youtube.com | P28: Success | Q28: 15 | R28: 3 | S28: 12 | Z28: 45957 | AA28: 45957 | AB28: 45957 | AC28: 36346685 | AD28: 44292.51167 | AE28: 44292.5124 | AF28: 45.02106476 | AG28: 19.46818733 | AH28: 45.0206871 | AI28: 19.46920395 | AJ28: 790884.6313 | AK28: 790884.6313 | AL28: 0 | AM28: 2904508 | AN28: 45.957 | AO28: 36867616.11 | AX28: 802219.8165 | BF28: 36867616.11 | BJ28: LTE FDD | BK28: LTE FDD 1800 | BL28: LTE FDD | BM28: LTE FDD 1800 | BW28: 62.631 | CI28: 62.631 | CP28: -110.9248311 | CQ28: -113 | CR28: -105 | CS28: 1.452604245 | CT28: 7.867890995 | CU28: -1 | CV28: 14 | CW28: 2.650304726 | CX28: -110.9248311 | CY28: -7.394847973 | CZ28: -7.394847973 | DA28: -12 | DB28: -6 | DC28: 0.7655530221 | DD28: 19.04898649 | DR28: 44292.51167 | DS28: 44292.5124 | DT28: 174000 | DU28: 18765 | DV28: 16674 | DW28: 51 | DX28: 752 | DY28: 1288 | EA28: 0 | EB28: 0 | EC28: 0 | ED28: 0 | EE28: 0 | EF28: 0 | EG28: 11.981 | EH28: 21.205 | EI28: 0 | EJ28: 0 | EK28: 4.45250001 | EL28: 4.169300056 | EM28: 2.815000057 | EN28: 4.518000126 | EO28: 790.3 | EP28: 790.3 | FH28: 30 | FI28: 1.431818182 | FJ28: 1.204545455 | FK28: 7.575757576 | GN28: 2368 | GO28: -262670 | GP28: 2532 | GQ28: 19921.5 | GW28: 10 | GX28: 44.5250001 | GY28: 41.69300056 | GZ28: 7903 | HA28: 1770 | HB28: 59 | HC28: 6300 | HD28: 4400 | HE28: 5300 | HF28: 4400 | HG28: 333.3333333 | HH28: 44 | IB28: 6.32707705
A29: Sid_Batajnica_06April2021 120649.3 | B29: 28 | C29: Telekom Srbija a.d. | D29: Telekom Srbija a.d. | E29: NEMO OUTDOOR,8.6.1.27 | F29: Samsung | G29: Mts DATA | H29: 358789101950851 | I29: 220033300900382 | J29: 36 | K29: Success | L29: ICMP ping | N29: Downlink | O29: 8.8.8.8 | P29: Success | Q29: 15 | R29: 3 | S29: 12 | Z29: 191 | AA29: 191 | AB29: 191 | AD29: 44292.51247 | AE29: 44292.51247 | AF29: 45.02044296 | AG29: 19.46987343 | AH29: 45.02044296 | AI29: 19.46987343 | BJ29: LTE FDD | BK29: LTE FDD 800 | BL29: LTE FDD | BM29: LTE FDD 800 | BT29: 0.883 | CH29: 0.883 | CP29: -109 | CQ29: -109 | CR29: -109 | CS29: 0 | CT29: -0.5 | CU29: -0.5 | CV29: -0.5 | CW29: 0 | CX29: -109 | CY29: -12 | CZ29: -12 | DA29: -12 | DB29: -12 | DC29: 0 | DD29: 23 | GH29: 10 | GI29: 10 | GJ29: 0 | GK29: 40 | GL29: 31 | GM29: 59 | GN29: 61 | GO29: -6649 | GP29: 61 | GQ29: -30.5 | IB29: 0
A30: Sid_Batajnica_06April2021 120649.3 | B30: 29 | C30: Telekom Srbija a.d. | D30: Telekom Srbija a.d. | E30: NEMO OUTDOOR,8.6.1.27 | F30: Samsung | G30: Mts DATA | H30: 358789101950851 | I30: 220033300900382 | J30: 45 | K30: Success | L30: HTTP | N30: Downlink | O30: http://benchmarktestsrv.ratel.rs/dl5mb/file.txt | P30: Success | Q30: 15 | R30: 3 | S30: 12 | T30: 2 | U30: 156 | V30: 29 | W30: 44 | X30: 373 | Y30: 329 | Z30: 1920 | AA30: 1751 | AB30: 1878 | AC30: 5242880 | AD30: 44292.51251 | AE30: 44292.51254 | AF30: 45.02023315 | AG30: 19.4704628 | AH30: 45.02011871 | AI30: 19.47079468 | AJ30: 2791735.889 | AK30: 2994220.445 | AL30: 1229662 | AM30: 1229662 | AN30: 1.017 | AO30: 1250566.508 | AW30: 1229662.25 | BE30: 1250566.508 | BJ30: LTE FDD | BK30: LTE FDD 800 | BL30: LTE FDD | BM30: LTE FDD 800 | BT30: 2.29 | CH30: 2.29 | CP30: -101.0266667 | CQ30: -105 | CR30: -101 | CS30: 0.3255081498 | CT30: 7.513333333 | CU30: 7.5 | CV30: 9.5 | CW30: 0.1627540749 | CX30: -101.0266667 | CY30: -12.97333333 | CZ30: -12.97333333 | DA30: -13 | DB30: -9 | DC30: 0.3255081498 | DD30: 21.99333333 | FH30: 10 | FI30: 1.5 | FJ30: 1 | FK30: 26 | GN30: 150 | GO30: -15154 | GP30: 150 | GQ30: 1127 | HA30: 20 | HB30: 2 | HC30: 300 | HD30: 200 | HE30: 200 | HF30: 200 | HG30: 52 | HH30: 2 | IB30: 21.84533333
A31: Sid_Batajnica_06April2021 120649.3 | B31: 30 | C31: Telekom Srbija a.d. | D31: Telekom Srbija a.d. | E31: NEMO OUTDOOR,8.6.1.27 | F31: Samsung | G31: Mts DATA | H31: 358789101950851 | I31: 220033300900382 | J31: 49 | K31: Success | L31: HTTP | N31: Uplink | O31: http://benchmarktestsrv.ratel.rs/ul2.5mb | P31: Success | Q31: 15 | R31: 3 | S31: 12 | T31: 3 | V31: 0 | W31: 42 | Z31: 2244 | AA31: 2244 | AB31: 2244 | AC31: 2621440 | AD31: 44292.51263 | AE31: 44292.51267 | AF31: 45.01969147 | AG31: 19.47208214 | AH31: 45.01953506 | AI31: 19.47254372 | AJ31: 1168199.643 | AK31: 1168199.643 | AL31: 504029 | AM31: 1928381 | AN31: 2.2 | AO31: 2617254.493 | AW31: 1189661.133 | BE31: 2617254.493 | BJ31: LTE FDD | BK31: LTE FDD 800 | BL31: LTE FDD | BM31: LTE FDD 800 | BT31: 2.729 | CH31: 2.729 | CP31: -103 | CQ31: -103 | CR31: -99 | CS31: 0 | CT31: 6.5 | CU31: 6.5 | CV31: 8.5 | CW31: 0 | CX31: -103 | CY31: -9 | CZ31: -9 | DA31: -9 | DB31: -6 | DC31: 0 | DD31: 21 | FH31: 10 | FI31: 1.5 | FJ31: 1 | FK31: 5 | GN31: 84 | GO31: -8652 | GP31: 84 | GQ31: 546 | HA31: 20 | HB31: 2 | HC31: 300 | HD31: 200 | HE31: 200 | HF31: 200 | HG31: 10 | HH31: 2 | IB31: 9.345597148
A32: Sid_Batajnica_06April2021 120649.3 | B32: 31 | C32: Telekom Srbija a.d. | D32: Telekom Srbija a.d. | E32: NEMO OUTDOOR,8.6.1.27 | F32: Samsung | G32: Mts DATA | H32: 358789101950851 | I32: 220033300900382 | J32: 47 | K32: Success | L32: HTTP browsing | N32: Downlink | O32: http://benchmarktestsrv.ratel.rs | P32: Success | Q32: 15 | R32: 3 | S32: 12 | U32: 98 | V32: 58 | W32: 60 | Z32: 3464 | AA32: 3334 | AB32: 3374 | AC32: 837665 | AD32: 44292.51276 | AE32: 44292.51283 | AF32: 45.01911926 | AG32: 19.4738102 | AH32: 45.01882935 | AI32: 19.47469711 | AJ32: 248270.5987 | AK32: 251249.2501 | AL32: 7020 | AM32: 674449 | AN32: 2.427 | AO32: 711165.3036 | AW32: 674449.375 | AX32: 7020.875 | BE32: 701427.35 | BF32: 9737.953625 | BJ32: LTE FDD | BK32: LTE FDD 800 | BL32: LTE FDD | BM32: LTE FDD 800 | BT32: 4.227 | BW32: 1.288 | CH32: 3.652 | CI32: 1.863 | CP32: -104.1776447 | CQ32: -106 | CR32: -99 | CS32: 0.568974321 | CT32: -1.164669098 | CU32: -1.5 | CV32: 8 | CW32: 0.5551711353 | CX32: -104.1776447 | CY32: -8.351297405 | CZ32: -8.351297405 | DA32: -13 | DB32: -6 | DC32: 2.002579004 | DD32: 15.20072993 | FH32: 24 | FI32: 1.2 | FJ32: 1 | FK32: 8.833333333 | GN32: 1002 | GO32: -104386 | GP32: 1919 | GQ32: -2235 | HA32: 170 | HB32: 7 | HC32: 600 | HD32: 500 | HE32: 500 | HF32: 500 | HG32: 44.16666667 | HH32: 5 | IB32: 1.934561201
A33: Sid_Batajnica_06April2021 120649.3 | B33: 32 | C33: Telekom Srbija a.d. | D33: Telekom Srbija a.d. | E33: NEMO OUTDOOR,8.6.1.27 | F33: Samsung | G33: Mts DATA | H33: 358789101950851 | I33: 220033300900382 | J33: 55 | K33: Success | L33: HTTP browsing | N33: Downlink | O33: https://m.kupujemprodajem.com | P33: Success | Q33: 15 | R33: 3 | S33: 12 | V33: 70 | W33: 24 | Z33: 5473 | AA33: 4056 | AB33: 3986 | AC33: 5425607 | AD33: 44292.51291 | AE33: 44292.513 | AF33: 45.01834869 | AG33: 19.4760704 | AH33: 45.01786804 | AI33: 19.47759628 | AJ33: 1361165.83 | AK33: 1337674.31 | AL33: 622866 | AM33: 1688079 | AN33: 4.147 | AO33: 5098741.737 | AX33: 1229501.263 | BF33: 5098741.737 | BJ33: LTE FDD | BK33: LTE FDD 1800 | BL33: LTE FDD | BM33: LTE FDD 1800 | BW33: 7.122 | CI33: 7.122 | CP33: -101.0159681 | CQ33: -110 | CR33: -101 | CS33: 0.3309463099 | CT33: 17.44770916 | CU33: 0 | CV33: 17.5 | CW33: 0.8120143238 | CX33: -101.0159681 | CY33: -6.001996008 | CZ33: -6.001996008 | DA33: -7 | DB33: -6 | DC33: 0.04463209536 | DD33: 18.00998004 | FH33: 30 | FI33: 2 | FJ33: 1.166666667 | FK33: 30.44444444 | GN33: 1002 | GO33: -101218 | GP33: 1004 | GQ33: 17517.5 | HA33: 240 | HB33: 8 | HC33: 1200 | HD33: 600 | HE33: 700 | HF33: 600 | HG33: 182.6666667 | HH33: 6 | IB33: 7.930724648
A34: Sid_Batajnica_06April2021 120649.3 | B34: 33 | C34: Telekom Srbija a.d. | D34: Telekom Srbija a.d. | E34: NEMO OUTDOOR,8.6.1.27 | F34: Samsung | G34: Mts DATA | H34: 358789101950851 | I34: 220033300900382 | J34: 74 | K34: Success | L34: HTTP | N34: Downlink | O34: http://benchmarktestsrv.ratel.rs/dl1gb/file.txt | P34: Success | Q34: 15 | R34: 3 | S34: 12 | U34: 125 | V34: 31 | W34: 23 | Z34: 7286 | AA34: 7156 | AB34: 7250 | AC34: 78062378 | AD34: 44292.51302 | AE34: 44292.51311 | AF34: 45.01768494 | AG34: 19.47811127 | AH34: 45.01699448 | AI34: 19.48012733 | AJ34: 10767224.55 | AK34: 10908660.98 | AL34: 6433737 | AM34: 13486417 | AN34: 6.806 | AO34: 72258073.03 | AX34: 10616819.43 | BF34: 72258073.03 | BJ34: LTE FDD | BK34: LTE FDD 1800 | BL34: LTE FDD | BM34: LTE FDD 1800 | BW34: 7.818 | CI34: 7.818 | CP34: -104.25 | CQ34: -106 | CR34: -101 | CS34: 2.046338193 | CT34: 6.375 | CU34: 0 | CV34: 12.5 | CW34: 4.060095442 | CX34: -104.25 | CY34: -14 | CZ34: -14 | DA34: -16 | DB34: -9 | DC34: 2.915475947 | DD34: 19 | FH34: 30 | FI34: 3.375 | FJ34: 1.875 | FK34: 93.83333333 | GN34: 4 | GO34: -417 | GP34: 8 | GQ34: 51 | HA34: 450 | HB34: 15 | HC34: 2700 | HD34: 800 | HE34: 1500 | HF34: 800 | HG34: 750.6666667 | HH34: 8 | IB34: 85.71219105
A35: Sid_Batajnica_06April2021 120649.3 | B35: 34 | C35: Telekom Srbija a.d. | D35: Telekom Srbija a.d. | E35: NEMO OUTDOOR,8.6.1.27 | F35: Samsung | G35: Mts DATA | H35: 358789101950851 | I35: 220033300900382 | J35: 95 | K35: Success | L35: HTTP | N35: Uplink | O35: http://benchmarktestsrv.ratel.rs/ul400mb | P35: Success | Q35: 15 | R35: 3 | S35: 12 | T35: 2 | V35: 1 | W35: 48 | Z35: 40315 | AA35: 40310 | AB35: 40309 | AC35: 82280270 | AD35: 44292.51313 | AE35: 44292.5136 | AF35: 45.0166893 | AG35: 19.48109055 | AH35: 45.0125351 | AI35: 19.49382019 | AJ35: 2041238.185 | AK35: 2041187.547 | AL35: 347713 | AM35: 4042752 | AN35: 40.315 | AO35: 82399402.69 | AX35: 2043889.438 | BF35: 82399402.69 | BJ35: LTE FDD | BK35: LTE FDD 1800 | BL35: LTE FDD | BM35: LTE FDD 1800 | BW35: 40.648 | CI35: 40.648 | CP35: -106.9794521 | CQ35: -112 | CR35: -101 | CS35: 0.3838323758 | CT35: 5.079745597 | CU35: 4 | CV35: 14 | CW35: 0.6685196529 | CX35: -106.9794521 | CY35: -7.988258317 | CZ35: -7.988258317 | DA35: -9 | DB35: -6 | DC35: 0.1164506892 | DD35: 21.9853229 | FH35: 30 | FI35: 1.225 | FJ35: 1 | FK35: 3.733333333 | GN35: 1022 | GO35: -109333 | GP35: 1022 | GQ35: 5191.5 | HA35: 1200 | HB35: 40 | HC35: 4900 | HD35: 4000 | HE35: 4000 | HF35: 4000 | HG35: 149.3333333 | HH35: 40 | IB35: 16.32747513
A36: Sid_Batajnica_06April2021 120649.3 | B36: 35 | C36: Telekom Srbija a.d. | D36: Telekom Srbija a.d. | E36: NEMO OUTDOOR,8.6.1.27 | F36: Samsung | G36: Mts DATA | H36: 358789101950851 | I36: 220033300900382 | J36: 97 | K36: Success | L36: Streaming | N36: Downlink | O36: https://m.youtube.com | P36: Success | Q36: 15 | R36: 3 | S36: 12 | T36: 2 | W36: 14 | Z36: 30943 | AA36: 30943 | AB36: 30943 | AC36: 23361124 | AD36: 44292.51362 | AE36: 44292.51413 | AF36: 45.01234055 | AG36: 19.49445343 | AH36: 45.0076561 | AI36: 19.50848579 | AJ36: 754972.821 | AK36: 754972.821 | AL36: 0 | AM36: 2482001 | AN36: 30.943 | AO36: 23517323.1 | AX36: 760020.7833 | BF36: 23517323.1 | BJ36: LTE FDD | BK36: LTE FDD 1800 | BL36: LTE FDD | BM36: LTE FDD 1800 | BW36: 44.287 | CI36: 44.287 | CP36: -106.0883046 | CQ36: -111 | CR36: -100 | CS36: 2.201499014 | CT36: 5.156408884 | CU36: -2 | CV36: 15 | CW36: 4.078679267 | CX36: -106.0883046 | CY36: -8.646389325 | CZ36: -8.646389325 | DA36: -12 | DB36: -5 | DC36: 1.962801315 | DD36: 17.46546311 | DR36: 44292.51362 | DS36: 44292.51413 | DT36: 2057351040 | DU36: 16171 | DV36: 13346 | DW36: 43 | DX36: 859 | DY36: 1923 | EA36: 0 | EB36: 0 | EC36: 0 | ED36: 0 | EE36: 0 | EF36: 0 | EG36: 0 | EH36: 28.076 | EI36: 0 | EJ36: 0 | FH36: 30 | FI36: 1.483870968 | FJ36: 1.290322581 | FK36: 10.38709677 | GN36: 2548 | GO36: -270313 | GP36: 3737 | GQ36: 19269.5 | HA36: 1440 | HB36: 48 | HC36: 4600 | HD36: 3100 | HE36: 4000 | HF36: 3100 | HG36: 322 | HH36: 31 | IB36: 6.039782568
A37: Sid_Batajnica_06April2021 120649.3 | B37: 36 | C37: Telekom Srbija a.d. | D37: Telekom Srbija a.d. | E37: NEMO OUTDOOR,8.6.1.27 | F37: Samsung | G37: Mts DATA | H37: 358789101950851 | I37: 220033300900382 | J37: 99 | K37: Success | L37: Youtube PEVQ-S | N37: Downlink | O37: youtube.com | P37: Success | Q37: 15 | R37: 3 | S37: 12 | T37: 39 | Z37: 45751 | AA37: 45751 | AB37: 45751 | AC37: 34680418 | AD37: 44292.51415 | AE37: 44292.51488 | AF37: 45.00744247 | AG37: 19.50912857 | AH37: 45.00099564 | AI37: 19.52911758 | AJ37: 758025.3546 | AK37: 758025.3546 | AL37: 0 | AM37: 2194212 | AN37: 44.756 | AO37: 34780539.26 | AX37: 777114.5603 | BF37: 34780539.26 | BJ37: LTE FDD | BK37: LTE FDD 1800 | BL37: LTE FDD | BM37: LTE FDD 1800 | BW37: 62.837 | CI37: 62.837 | CP37: -109.6825939 | CQ37: -114 | CR37: -103 | CS37: 2.305381172 | CT37: 0.1240057374 | CU37: -9.5 | CV37: 14 | CW37: 5.390423533 | CX37: -109.6825939 | CY37: -9.490401024 | CZ37: -9.490401024 | DA37: -16 | DB37: -6 | DC37: 1.236666778 | DD37: 22.05881447 | DR37: 44292.51415 | DS37: 44292.51488 | DT37: 174000 | DU37: 19204 | DV37: 17125 | DW37: 54 | DX37: 798 | DY37: 1227 | EA37: 0 | EB37: 0 | EC37: 0 | ED37: 0 | EE37: 7.998 | EF37: 0 | EG37: 0 | EH37: 23.959 | EI37: 0 | EJ37: 0 | EK37: 4.45250001 | EL37: 4.14610002 | EM37: 2.815000057 | EN37: 4.518000126 | EO37: 785.7 | EP37: 785.7 | FH37: 30 | FI37: 1.52173913 | FJ37: 1.326086957 | FK37: 14.08695652 | GN37: 4688 | GO37: -514192 | GP37: 7669 | GQ37: 951 | GW37: 10 | GX37: 44.5250001 | GY37: 41.4610002 | GZ37: 7857 | HA37: 2250 | HB37: 75 | HC37: 7000 | HD37: 4600 | HE37: 6100 | HF37: 4600 | HG37: 648 | HH37: 46 | IB37: 6.064202837
A38: Sid_Batajnica_06April2021 120649.3 | B38: 37 | C38: Telekom Srbija a.d. | D38: Telekom Srbija a.d. | E38: NEMO OUTDOOR,8.6.1.27 | F38: Samsung | G38: Mts DATA | H38: 358789101950851 | I38: 220033300900382 | J38: 98 | K38: Success | L38: ICMP ping | N38: Downlink | O38: 8.8.8.8 | P38: Success | Q38: 15 | R38: 3 | S38: 12 | Z38: 187 | AA38: 187 | AB38: 187 | AD38: 44292.51495 | AE38: 44292.51495 | AF38: 45.00036621 | AG38: 19.53104401 | AH38: 45.00036621 | AI38: 19.53104401 | BJ38: LTE FDD | BK38: LTE FDD 1800 | BL38: LTE FDD | BM38: LTE FDD 1800 | BW38: 0.71 | CI38: 0.71 | GH38: 10 | GI38: 10 | GJ38: 0 | GK38: 33 | GL38: 23 | GM38: 55 | IB38: 0
A39: Sid_Batajnica_06April2021 120649.3 | B39: 38 | C39: Telekom Srbija a.d. | D39: Telekom Srbija a.d. | E39: NEMO OUTDOOR,8.6.1.27 | F39: Samsung | G39: Mts DATA | H39: 358789101950851 | I39: 220033300900382 | J39: 99 | K39: Success | L39: HTTP | N39: Downlink | O39: http://benchmarktestsrv.ratel.rs/dl5mb/file.txt | P39: Success | Q39: 15 | R39: 3 | S39: 12 | T39: 3 | U39: 138 | V39: 40 | W39: 69 | X39: 825 | Y39: 756 | Z39: 975 | AA39: 831 | AB39: 929 | AC39: 5242880 | AD39: 44292.51499 | AE39: 44292.51501 | AF39: 45.00004959 | AG39: 19.53200722 | AH39: 44.99985886 | AI39: 19.5326519 | AJ39: 5643573.735 | AK39: 6309121.54 | AL39: 5405030 | AM39: 5405030 | AN39: 0.922 | AO39: 4983438.467 | AX39: 5405030.875 | BF39: 4983438.467 | BJ39: LTE FDD | BK39: LTE FDD 1800 | BL39: LTE FDD | BM39: LTE FDD 1800 | BW39: 1.727 | CI39: 1.727 | CP39: -106 | CQ39: -106 | CR39: -106 | CS39: 0 | CT39: 1 | CU39: 1 | CV39: 1 | CW39: 0 | CX39: -106 | CY39: -9 | CZ39: -9 | DA39: -9 | DB39: -9 | DC39: 0 | DD39: 20 | FH39: 30 | FI39: 1 | FJ39: 1 | GN39: 1 | GO39: -106 | GP39: 1 | GQ39: 1 | HA39: 30 | HB39: 1 | HC39: 100 | HD39: 100 | HE39: 100 | HF39: 100 | HH39: 1 | IB39: 43.01850256
A40: Sid_Batajnica_06April2021 120649.3 | B40: 39 | C40: Telekom Srbija a.d. | D40: Telekom Srbija a.d. | E40: NEMO OUTDOOR,8.6.1.27 | F40: Samsung | G40: Mts DATA | H40: 358789101950851 | I40: 220033300900382 | J40: 99 | K40: Success | L40: HTTP | N40: Uplink | O40: http://benchmarktestsrv.ratel.rs/ul2.5mb | P40: Success | Q40: 15 | R40: 3 | S40: 12 | T40: 4 | V40: 0 | W40: 22 | Z40: 2132 | AA40: 2132 | AB40: 2132 | AC40: 2621440 | AD40: 44292.51512 | AE40: 44292.51515 | AF40: 44.99892807 | AG40: 19.535532 | AH40: 44.99859619 | AI40: 19.53647804 | AJ40: 1229568.48 | AK40: 1229568.48 | AL40: 431328 | AM40: 2057537 | AN40: 2.089 | AO40: 2600433.119 | AX40: 1244821.982 | BF40: 2600433.119 | BJ40: LTE FDD | BK40: LTE FDD 1800 | BL40: LTE FDD | BM40: LTE FDD 1800 | BW40: 2.498 | CI40: 2.498 | CP40: -114 | CQ40: -114 | CR40: -108 | CS40: 0 | CT40: 2 | CU40: 2 | CV40: 6 | CW40: 0 | CX40: -114 | CY40: -13 | CZ40: -13 | DA40: -13 | DB40: -10 | DC40: 0 | DD40: 22 | FH40: 30 | FI40: 1.5 | FJ40: 1 | FK40: 1.333333333 | GN40: 1 | GO40: -114 | GP40: 1 | GQ40: 2 | HA40: 60 | HB40: 2 | HC40: 300 | HD40: 200 | HE40: 200 | HF40: 200 | HG40: 2.666666667 | HH40: 2 | IB40: 9.836547842
A41: Sid_Batajnica_06April2021 120649.3 | B41: 40 | C41: Telekom Srbija a.d. | D41: Telekom Srbija a.d. | E41: NEMO OUTDOOR,8.6.1.27 | F41: Samsung | G41: Mts DATA | H41: 358789101950851 | I41: 220033300900382 | J41: 94 | K41: Success | L41: HTTP browsing | N41: Downlink | O41: http://benchmarktestsrv.ratel.rs | P41: Success | Q41: 15 | R41: 3 | S41: 12 | U41: 79 | V41: 26 | W41: 27 | Z41: 3488 | AA41: 3392 | AB41: 3445 | AC41: 837665 | AD41: 44292.51525 | AE41: 44292.51531 | AF41: 44.99770737 | AG41: 19.53932762 | AH41: 44.99721909 | AI41: 19.54088783 | AJ41: 243153.8462 | AK41: 246953.125 | AL41: 50125 | AM41: 733252 | AN41: 3.435 | AO41: 861455.7041 | AX41: 250787.6868 | BF41: 861455.7041 | BJ41: LTE FDD | BK41: LTE FDD 1800 | BL41: LTE FDD | BM41: LTE FDD 1800 | BW41: 5.174 | CI41: 5.174 | CP41: -109 | CQ41: -111 | CR41: -108 | CS41: 0 | CT41: 0 | CU41: -3 | CV41: 6 | CW41: 0 | CX41: -109 | CY41: -13 | CZ41: -13 | DA41: -14 | DB41: -10 | DC41: 0 | DD41: 22 | FH41: 30 | FI41: 1 | FJ41: 1 | FK41: 0.8888888889 | GN41: 1 | GO41: -109 | GP41: 1 | GQ41: 0 | HA41: 90 | HB41: 3 | HC41: 300 | HD41: 300 | HE41: 300 | HF41: 300 | HG41: 2.666666667 | HH41: 3 | IB41: 1.92125
